Workbook

Sheet Entradas >>>>

Sheet Entradas no Texto
A1: Número | B1: Entrada | C1: Item
A2: 1 | B2: =CAPEX!E70 -> 1765855306 | C2: 7.1. Capex
A3: 2 | B3: =B4+B5 -> 769957628.2 | C3: 7.1. Capex
A4: 3 | B4: =CAPEX!E67 -> 574430019.1 | C4: 7.1. Capex
A5: 4 | B5: =CAPEX!E68 -> 195527609.1 | C5: 7.1. Capex
A6: 5 | B6: =CAPEX!E69 -> 995897677.4 | C6: 7.1. Capex
A7: 6 | B7: ='Painel de Controle'!J28 -> 3235.56 | C7: 7.2. Outorga da Terra
A8: 7 | B8: ='Painel de Controle'!J29 -> 15441.73443 | C8: 7.2. Outorga da Terra
A9: 8 | B9: ='Painel de Controle'!J30 -> 49962658.24 | C9: 7.2. Outorga da Terra
A10: 10 | B10: =WACC!D8 -> 0.03706804644 | C10: 8.1.1.1. Taxa Livre de Risco
A11: 11 | B11: =WACC!D9 -> 0.1008992758 | C11: 8.1.1.2. Risco de Mercado
A12: 12 | B12: =WACC!D11 -> 0.6699377565 | C12: 8.1.1.3. Cálculo do Beta
A13: 13 | B13: =B12 -> 0.6699377565 | C13: 8.1.1.3. Cálculo do Beta
A14: 13 | B14: =WACC!D13 -> 1.333176136 | C14: 8.1.1.3. Cálculo do Beta
A15: 14 | B15: =WACC!D15 -> 0.02831941363 | C15: 8.1.1.4. Prêmio de Risco Adicional
A16: 15 | B16: =B15 -> 0.02831941363 | C16: 8.1.1.4. Prêmio de Risco Adicional
A17: 16 | B17: =B16*10000 -> 283.1941363 | C17: 8.1.1.4. Prêmio de Risco Adicional
A18: 17 | B18: =B16 -> 0.02831941363 | C18: 8.1.1.4. Prêmio de Risco Adicional
A19: 18 | B19: =B18+3.71% -> 0.06541941363 | C19: 8.1.1.4. Prêmio de Risco Adicional
A20: 19 | B20: =WACC!D17 -> 0.02015276342 | C20: 8.1.1.5. Inflação
A21: 20 | B21: =B20 -> 0.02015276342 | C21: 8.1.1.5. Inflação
A22: 25 | B22: =WACC!D20 -> 0.06798317143 | C22: 8.1.2. Custo do Capital de Terceiros
A23: 26 | B23: =WACC!D22 -> 0.09189321718 | C23: 8.1.3. Cálculo do Custo Médio Ponderado de Capital
A24: 27 | C24: 8.1.3. Cálculo do Custo Médio Ponderado de Capital | D24: =WACC!D18 -> 0.1277582858 | E24: x | F24: =WACC!D5 -> 0.4 | G24: + | H24: =WACC!D20 -> 0.06798317143 | I24: x | J24: =WACC!D6 -> 0.6
A25: 28 | B25: =B23 -> 0.09189321718 | C25: 8.1.3. Cálculo do Custo Médio Ponderado de Capital
A26: 29 | B26: =WACC!D20 -> 0.06798317143 | C26: 8.2. Financiamento
A27: 30 | B27: =Financiamento!C13*12 -> 240 | C27: 8.2. Financiamento
A28: 31 | B28: ='Tabelas no Texto'!F389 -> 1241210699 | C28: 8.2.1. Parâmetros de amortização da dívida | D28: Despesas Financeiras
A29: 32 | B29: ='Painel de Controle'!Q7*1000+CAPEX!E67*40%+CAPEX!E68*40% -> 267508461.6 | C29: 8.2.1. Parâmetros de amortização da dívida | D29: Capital Próprio
A30: 33 | B30: =Financiamento!C8*Financiamento!C10*1000 -> 801077152.5 | C30: 8.2.1. Parâmetros de amortização da dívida | D30: Capital de Terceiros
A31: 34 | B31: ='Painel de Controle'!Q7*1000 -> -40474589.66 | C31: 8.2.1. Parâmetros de amortização da dívida
A32: 35 | B32: =1-B33 -> 0.2503388199 | C32: 8.2.1. Parâmetros de amortização da dívida
A33: 36 | B33: =B30/(B30+B29) -> 0.7496611801 | C33: 8.2.1. Parâmetros de amortização da dívida
A34: 37 | B34: =WACC!D22 -> 0.09189321718 | C34: 9.1. VPL
A35: 38 | B35: ='Painel de Controle'!Q9*1000 -> -674040.906 | C35: 9.1. VPL
B36: =WACC!D18 -> 0.1277582858 | C36: 9.1. VPL
A37: 39 | B37: ='Painel de Controle'!Q15*1000 -> -16322471.8 | C37: 9.1. VPL
A38: 40 | B38: =B34 -> 0.09189321718 | C38: 9.1. VPL
A39: 41 | B39: ='Painel de Controle'!Q8*1000 -> 39800548.75 | C39: 9.1. VPL
B40: =B36 -> 0.1277582858 | C40: 9.1. VPL
A41: 42 | B41: ='Painel de Controle'!Q14*1000 -> 13032458.54 | C41: 9.1. VPL
A42: 43 | B42: ='Painel de Controle'!Q9*1000 -> -674040.906 | C42: 9.1. VPL
A43: 44 | B43: ='Painel de Controle'!Q15*1000 -> -16322471.8 | C43: 9.1. VPL
A44: 45 | B44: =WACC!D22 -> 0.09189321718 | C44: 9.2. TIR
A45: 46 | B45: ='Painel de Controle'!Q6 -> 0.09179745716 | C45: 9.2. TIR
A46: 47 | B46: ='Painel de Controle'!Q12 -> 0.121117069 | C46: 9.2. TIR
A47: 48 | B47: =B44 -> 0.09189321718 | C47: 9.2. TIR
A48: 49 | B48: ='Painel de Controle'!Q10 -> 14 | C48: 9.3. Payback
A49: 50 | B49: ='Painel de Controle'!Q16 -> 12 | C49: 9.3. Payback
A50: 51 | B50: ='Painel de Controle'!Q7*1000 -> -40474589.66 | C50: 9.4. Remuneração do Poder Concedente
A51: 52 | B51: =1-B50/'Investimentos Prévios'!D24 -> 1.116425614 | C51: 9.4. Remuneração do Poder Concedente
A52: 53 | B52: =Sensibilidade!F12 -> 0.06873126493 | C52: 10.1. Variação nos Custos de Investimento e Opex
A53: 54 | B53: =Sensibilidade!D10 -> 0.1172196654 | C53: 10.1. Variação nos Custos de Investimento e Opex
A54: 55 | B54: =Sensibilidade!L12 -> 0.07627225119 | C54: 10.1. Variação nos Custos de Investimento e Opex
A55: 56 | B55: =Sensibilidade!J10 -> 0.1831845755 | C55: 10.1. Variação nos Custos de Investimento e Opex
A56: 57 | B56: =Sensibilidade!D18 -> 0.04588465085 | C56: 10.2. Variação nos Custos de Investimento e nas Receitas
A57: 58 | B57: =Sensibilidade!F16 -> 0.1378576271 | C57: 10.2. Variação nos Custos de Investimento e nas Receitas
A58: 59 | B58: =Sensibilidade!J18 -> 0.03730791777 | C58: 10.2. Variação nos Custos de Investimento e nas Receitas
A59: 60 | B59: =Sensibilidade!L16 -> 0.226684887 | C59: 10.2. Variação nos Custos de Investimento e nas Receitas
A60: 61 | B60: =Sensibilidade!D25 -> 0.04020321205 | C60: 10.3. Variação nos Custos de Operação e nas Receitas
A61: 62 | B61: =Sensibilidade!F23 -> 0.1379564795 | C61: 10.3. Variação nos Custos de Operação e nas Receitas
A62: 63 | B62: =Sensibilidade!J25 -> 0.02618430022 | C62: 10.3. Variação nos Custos de Operação e nas Receitas
A63: 64 | B63: =Sensibilidade!L23 -> 0.2152995431 | C63: 10.3. Variação nos Custos de Operação e nas Receitas

Sheet Tabelas no Texto
A1: Tabela 1 - Distribuição de área por cultivo
A2: ='Painel de Controle'!B24 -> Cultivo | B2: ='Painel de Controle'!C24 -> % Área | C2: ='Painel de Controle'!D24 -> Área (ha)
A3: ='Painel de Controle'!B25 -> Melancia | B3: ='Painel de Controle'!C25 -> 0.025 | C3: ='Painel de Controle'!D25 -> 255.9545
A4: ='Painel de Controle'!B26 -> Melão | B4: ='Painel de Controle'!C26 -> 0.025 | C4: ='Painel de Controle'!D26 -> 255.9545
A5: ='Painel de Controle'!B27 -> Tomate | B5: ='Painel de Controle'!C27 -> 0.05 | C5: ='Painel de Controle'!D27 -> 511.909
A6: ='Painel de Controle'!B28 -> Feijão | B6: ='Painel de Controle'!C28 -> 0.1 | C6: ='Painel de Controle'!D28 -> 1023.818
A7: ='Painel de Controle'!B29 -> Abacaxi | B7: ='Painel de Controle'!C29 -> 0.025 | C7: ='Painel de Controle'!D29 -> 255.9545
A8: ='Painel de Controle'!B30 -> Acerola | B8: ='Painel de Controle'!C30 -> 0.1 | C8: ='Painel de Controle'!D30 -> 1023.818
A9: ='Painel de Controle'!B31 -> Banana | B9: ='Painel de Controle'!C31 -> 0.4 | C9: ='Painel de Controle'!D31 -> 4095.272
A10: ='Painel de Controle'!B32 -> Coco | B10: ='Painel de Controle'!C32 -> 0.1 | C10: ='Painel de Controle'!D32 -> 1023.818
A11: ='Painel de Controle'!B33 -> Goiaba | B11: ='Painel de Controle'!C33 -> 0.1 | C11: ='Painel de Controle'!D33 -> 1023.818
A12: ='Painel de Controle'!B34 -> Laranja | B12: ='Painel de Controle'!C34 -> 0.1 | C12: ='Painel de Controle'!D34 -> 1023.818
A13: ='Painel de Controle'!B35 -> Mamão | B13: ='Painel de Controle'!C35 -> 0.025 | C13: ='Painel de Controle'!D35 -> 255.9545
A14: ='Painel de Controle'!B36 -> Maracujá | B14: ='Painel de Controle'!C36 -> 0.025 | C14: ='Painel de Controle'!D36 -> 255.9545
A15: ='Painel de Controle'!B37 -> Uva | B15: ='Painel de Controle'!C37 -> 0.025 | C15: ='Painel de Controle'!D37 -> 255.9545
A17: Tabela 2 - Receita Líquida da produção agrícola
A18: Ano | B18: Receita | C18: Ano | D18: Receita
A19: 1 | B19: =SUMIF('FC Projeto'!$D$12:$AL$12,A19,'FC Projeto'!$D$14:$AL$14) -> 0 | C19: 19 | D19: =SUMIF('FC Projeto'!$D$12:$AL$12,C19,'FC Projeto'!$D$14:$AL$14) -> 474847.0614
A20: 2 | B20: =SUMIF('FC Projeto'!$D$12:$AL$12,A20,'FC Projeto'!$D$14:$AL$14) -> 0 | C20: 20 | D20: =SUMIF('FC Projeto'!$D$12:$AL$12,C20,'FC Projeto'!$D$14:$AL$14) -> 474847.0614
A21: 3 | B21: =SUMIF('FC Projeto'!$D$12:$AL$12,A21,'FC Projeto'!$D$14:$AL$14) -> 0 | C21: 21 | D21: =SUMIF('FC Projeto'!$D$12:$AL$12,C21,'FC Projeto'!$D$14:$AL$14) -> 474847.0614
A22: 4 | B22: =SUMIF('FC Projeto'!$D$12:$AL$12,A22,'FC Projeto'!$D$14:$AL$14) -> 173441.3563 | C22: 22 | D22: =SUMIF('FC Projeto'!$D$12:$AL$12,C22,'FC Projeto'!$D$14:$AL$14) -> 474847.0614
A23: 5 | B23: =SUMIF('FC Projeto'!$D$12:$AL$12,A23,'FC Projeto'!$D$14:$AL$14) -> 296758.4264 | C23: 23 | D23: =SUMIF('FC Projeto'!$D$12:$AL$12,C23,'FC Projeto'!$D$14:$AL$14) -> 474847.0614
A24: 6 | B24: =SUMIF('FC Projeto'!$D$12:$AL$12,A24,'FC Projeto'!$D$14:$AL$14) -> 390399.7003 | C24: 24 | D24: =SUMIF('FC Projeto'!$D$12:$AL$12,C24,'FC Projeto'!$D$14:$AL$14) -> 474847.0614
A25: 7 | B25: =SUMIF('FC Projeto'!$D$12:$AL$12,A25,'FC Projeto'!$D$14:$AL$14) -> 441298.9967 | C25: 25 | D25: =SUMIF('FC Projeto'!$D$12:$AL$12,C25,'FC Projeto'!$D$14:$AL$14) -> 474847.0614
A26: 8 | B26: =SUMIF('FC Projeto'!$D$12:$AL$12,A26,'FC Projeto'!$D$14:$AL$14) -> 474847.0614 | C26: 26 | D26: =SUMIF('FC Projeto'!$D$12:$AL$12,C26,'FC Projeto'!$D$14:$AL$14) -> 474847.0614
A27: 9 | B27: =SUMIF('FC Projeto'!$D$12:$AL$12,A27,'FC Projeto'!$D$14:$AL$14) -> 474847.0614 | C27: 27 | D27: =SUMIF('FC Projeto'!$D$12:$AL$12,C27,'FC Projeto'!$D$14:$AL$14) -> 474847.0614
A28: 10 | B28: =SUMIF('FC Projeto'!$D$12:$AL$12,A28,'FC Projeto'!$D$14:$AL$14) -> 474847.0614 | C28: 28 | D28: =SUMIF('FC Projeto'!$D$12:$AL$12,C28,'FC Projeto'!$D$14:$AL$14) -> 474847.0614
A29: 11 | B29: =SUMIF('FC Projeto'!$D$12:$AL$12,A29,'FC Projeto'!$D$14:$AL$14) -> 474847.0614 | C29: 29 | D29: =SUMIF('FC Projeto'!$D$12:$AL$12,C29,'FC Projeto'!$D$14:$AL$14) -> 474847.0614
A30: 12 | B30: =SUMIF('FC Projeto'!$D$12:$AL$12,A30,'FC Projeto'!$D$14:$AL$14) -> 474847.0614 | C30: 30 | D30: =SUMIF('FC Projeto'!$D$12:$AL$12,C30,'FC Projeto'!$D$14:$AL$14) -> 474847.0614
A31: 13 | B31: =SUMIF('FC Projeto'!$D$12:$AL$12,A31,'FC Projeto'!$D$14:$AL$14) -> 474847.0614 | C31: 31 | D31: =SUMIF('FC Projeto'!$D$12:$AL$12,C31,'FC Projeto'!$D$14:$AL$14) -> 474847.0614
A32: 14 | B32: =SUMIF('FC Projeto'!$D$12:$AL$12,A32,'FC Projeto'!$D$14:$AL$14) -> 474847.0614 | C32: 32 | D32: =SUMIF('FC Projeto'!$D$12:$AL$12,C32,'FC Projeto'!$D$14:$AL$14) -> 474847.0614
A33: 15 | B33: =SUMIF('FC Projeto'!$D$12:$AL$12,A33,'FC Projeto'!$D$14:$AL$14) -> 474847.0614 | C33: 33 | D33: =SUMIF('FC Projeto'!$D$12:$AL$12,C33,'FC Projeto'!$D$14:$AL$14) -> 474847.0614
A34: 16 | B34: =SUMIF('FC Projeto'!$D$12:$AL$12,A34,'FC Projeto'!$D$14:$AL$14) -> 474847.0614 | C34: 34 | D34: =SUMIF('FC Projeto'!$D$12:$AL$12,C34,'FC Projeto'!$D$14:$AL$14) -> 474847.0614
A35: 17 | B35: =SUMIF('FC Projeto'!$D$12:$AL$12,A35,'FC Projeto'!$D$14:$AL$14) -> 474847.0614 | C35: 35 | D35: =SUMIF('FC Projeto'!$D$12:$AL$12,C35,'FC Projeto'!$D$14:$AL$14) -> 474847.0614
A36: 18 | B36: =SUMIF('FC Projeto'!$D$12:$AL$12,A36,'FC Projeto'!$D$14:$AL$14) -> 474847.0614
A38: Tabela 3 - Capex - Infraestrutura de Irrigação e de apoio
A39: =CAPEX!C9 -> Discriminação | B39: =CAPEX!D9 -> Vida Útil (anos) | C39: =CAPEX!E9 -> Valores (R$)
A40: =CAPEX!C10 -> Custos diversos | B40: =CAPEX!D10 -> 0 | C40: =CAPEX!E10 -> 0
A41: =CAPEX!C11 -> Desmatamento das áreas agrícolas (SAU) | B41: =CAPEX!D11 -> 35 | C41: =CAPEX!E11 -> 60562555.13
A42: =CAPEX!C12 -> M. Ambiente (Estudos, Licenças e Exec. PBAs ) | B42: =CAPEX!D12 -> 35 | C42: =CAPEX!E12 -> 51989500.7
A43: =CAPEX!C13 -> Consultoria (projetos) | B43: =CAPEX!D13 -> 35 | C43: =CAPEX!E13 -> 5392675.777
A44: =CAPEX!C14 -> Consultoria (supervisão de obras) | B44: =CAPEX!D14 -> 35 | C44: =CAPEX!E14 -> 5392675.778
A45: =CAPEX!C15 -> Serviços preliminares | B45: =CAPEX!D15 -> 0 | C45: =CAPEX!E15 -> 0
A46: =CAPEX!C16 -> Mobilização e desmobilização | B46: =CAPEX!D16 -> 35 | C46: =CAPEX!E16 -> 2195314.783
A47: =CAPEX!C17 -> Administração direta | B47: =CAPEX!D17 -> 35 | C47: =CAPEX!E17 -> 17131551.49
A48: =CAPEX!C18 -> Implantação do canteiro de obras | B48: =CAPEX!D18 -> 35 | C48: =CAPEX!E18 -> 351684.9988
A49: =CAPEX!C19 -> Infraestrutura Sul | B49: =CAPEX!D19 -> 0 | C49: =CAPEX!E19 -> 0
A50: =CAPEX!C20 -> EBP-Sul | B50: =CAPEX!D20 -> 20 | C50: =CAPEX!E20 -> 22095987.81
A51: =CAPEX!C21 -> Adutora EBP-Sul | B51: =CAPEX!D21 -> 30 | C51: =CAPEX!E21 -> 89046.66158
A52: =CAPEX!C22 -> Reservatório pulmão | B52: =CAPEX!D22 -> 35 | C52: =CAPEX!E22 -> 380921.6185
A53: =CAPEX!C23 -> Canal CP2-Sul | B53: =CAPEX!D23 -> 35 | C53: =CAPEX!E23 -> 1411566.577
A54: =CAPEX!C24 -> EBS-Sul | B54: =CAPEX!D24 -> 20 | C54: =CAPEX!E24 -> 17528904.15
A55: =CAPEX!C25 -> Adutora da EBS-Sul | B55: =CAPEX!D25 -> 30 | C55: =CAPEX!E25 -> 84003.45128
A56: =CAPEX!C26 -> Canal CP3-Sul | B56: =CAPEX!D26 -> 35 | C56: =CAPEX!E26 -> 2547427.585
A57: =CAPEX!C27 -> EBA-9 | B57: =CAPEX!D27 -> 20 | C57: =CAPEX!E27 -> 4339886.331
A58: =CAPEX!C28 -> EBAs 10-11-12 | B58: =CAPEX!D28 -> 25 | C58: =CAPEX!E28 -> 11068385.44
A59: =CAPEX!C29 -> Tomadas empresariais (24) | B59: =CAPEX!D29 -> 30 | C59: =CAPEX!E29 -> 3006894.9
A60: =CAPEX!C30 -> Tomadas gravitárias (5) | B60: =CAPEX!D30 -> 30 | C60: =CAPEX!E30 -> 187243.7713
A61: =CAPEX!C31 -> Adutoras das EBAs / Setores (36,1% de "L") | B61: =CAPEX!D31 -> 30 | C61: =CAPEX!E31 -> 52511382.16
A62: =CAPEX!C32 -> Estradas dos canais e estradas dos setores | B62: =CAPEX!D32 -> 35 | C62: =CAPEX!E32 -> 2130009.683
A63: =CAPEX!C33 -> Drenos dos canais e drenos nos setores | B63: =CAPEX!D33 -> 35 | C63: =CAPEX!E33 -> 6404215.569
A64: =CAPEX!C34 -> Infraestr. de Suprim. de Energia Elétrica | B64: =CAPEX!D34 -> 20 | C64: =CAPEX!E34 -> 32771043.89
A65: =CAPEX!C35 -> Infraestrutura Norte | B65: =CAPEX!D35 -> 0 | C65: =CAPEX!E35 -> 0
A66: =CAPEX!C36 -> EBP-Norte (8,37 m³/s) | B66: =CAPEX!D36 -> 20 | C66: =CAPEX!E36 -> 47928189.56
A67: =CAPEX!C37 -> Adutora EBP-Norte | B67: =CAPEX!D37 -> 30 | C67: =CAPEX!E37 -> 370056.2713
A68: =CAPEX!C38 -> Canal CP-3 Norte (8,37 m³/s) - (SH-1, 2, 3, 4, 5 e 6) | B68: =CAPEX!D38 -> 30 | C68: =CAPEX!E38 -> 16465092.91
A69: =CAPEX!C39 -> Canal CS2/CP3 Norte (2,24 m³/s) - (SH-7 e 8) | B69: =CAPEX!D39 -> 35 | C69: =CAPEX!E39 -> 3224018.836
A70: =CAPEX!C40 -> Sifões invertidos no CP-3 Norte | B70: =CAPEX!D40 -> 35 | C70: =CAPEX!E40 -> 221947.1246
A71: =CAPEX!C41 -> Tomadas empresariais (27 no CP-3 e no CS-2) | B71: =CAPEX!D41 -> 30 | C71: =CAPEX!E41 -> 3382756.763
A72: =CAPEX!C42 -> Tomadas gravitárias (13 no CP-3 e 3 no CS-2) | B72: =CAPEX!D42 -> 30 | C72: =CAPEX!E42 -> 599180.0681
A73: =CAPEX!C43 -> EBAs 1 a 8 | B73: =CAPEX!D43 -> 25 | C73: =CAPEX!E43 -> 29515694.5
A74: =CAPEX!C44 -> Adutoras das EBAs / Setores (63,9% de SAU ) | B74: =CAPEX!D44 -> 30 | C74: =CAPEX!E44 -> 92949510.25
A75: =CAPEX!C45 -> Casa de Comando - Comportas | B75: =CAPEX!D45 -> 35 | C75: =CAPEX!E45 -> 151239.3122
A76: =CAPEX!C46 -> Estradas dos canais e estradas dos setores | B76: =CAPEX!D46 -> 35 | C76: =CAPEX!E46 -> 12099692.12
A77: =CAPEX!C47 -> Drenos dos canais e drenos nos setores | B77: =CAPEX!D47 -> 35 | C77: =CAPEX!E47 -> 9690129.597
A78: =CAPEX!C48 -> Infraestr. de Suprim. de Energia Elétrica | B78: =CAPEX!D48 -> 20 | C78: =CAPEX!E48 -> 58259633.59
A79: =CAPEX!C49 -> Infraestrutura de Irrigação e de Apoio | B79: =CAPEX!D49 -> 0 | C79: =CAPEX!E49 -> 574430019.1
A81: Tabela 4 - Capex - On Farm
A82: =CAPEX!C51 -> Discriminação | B82: =CAPEX!D51 -> Vida Útil (anos) | C82: =CAPEX!E51 -> Valores (R$)
A83: =CAPEX!C52 -> Investimento on farm | B83: =CAPEX!D52 -> 0 | C83: =CAPEX!E52 -> 0
A84: =CAPEX!C53 -> Ramais móveis e emissores | B84: =CAPEX!D53 -> 5 | C84: =CAPEX!E53 -> 42506001.98
A85: =CAPEX!C54 -> Rede de distribuição e cavaletes (fornec.) | B85: =CAPEX!D54 -> 15 | C85: =CAPEX!E54 -> 127518005.9
A86: =CAPEX!C55 -> Assentam. e montagem dos tubos da rede e cavaletes | B86: =CAPEX!D55 -> 15 | C86: =CAPEX!E55 -> 25503601.19
A87: =CAPEX!C56 -> Investimento on farm | B87: =CAPEX!D56 -> 0 | C87: =CAPEX!E56 -> 195527609.1
A89: Tabela 5 - Capex - Reinvestimentos
A90: =CAPEX!C58 -> Discriminação | B90: =CAPEX!D58 -> Vida Útil (anos) | C90: =CAPEX!E58 -> Valores (R$)
A91: =CAPEX!C59 -> Reinvestimento | B91: =CAPEX!D59 -> 0 | C91: =CAPEX!E59 -> 0
A92: =CAPEX!C60 -> Ramais móveis e emissores | B92: =CAPEX!D60 -> 5 | C92: =CAPEX!E60 -> 212530009.9
A93: =CAPEX!C61 -> Rede de distribuição e cavaletes | B93: =CAPEX!D61 -> 15 | C93: =CAPEX!E61 -> 306043214.2
A94: =CAPEX!C62 -> Equipamentos EBPs, EBS, EBAs - Redes e Equip. Elétricos | B94: =CAPEX!D62 -> 20 | C94: =CAPEX!E62 -> 243326964.6
A95: =CAPEX!C63 -> Equipamentos Adutoras, Canais, Sifões Inv. e Redes Tubos Setores | B95: =CAPEX!D63 -> 30 | C95: =CAPEX!E63 -> 233997488.7
A96: =CAPEX!C64 -> Reinvestimento | B96: =CAPEX!D64 -> 0 | C96: =CAPEX!E64 -> 995897677.4
A98: Tabela 6 - Capex - Resumo
A99: =CAPEX!C66 -> Discriminação | B99: =CAPEX!E66 -> Valores (R$)
A100: Infraestrutura de Irrigação e de Apoio | B100: =CAPEX!E67 -> 574430019.1
A101: =CAPEX!C68 -> Investimento on farm | B101: =CAPEX!E68 -> 195527609.1
A102: =CAPEX!C69 -> Reinvestimento | B102: =CAPEX!E69 -> 995897677.4
A103: =CAPEX!C70 -> Investimento Total | B103: =CAPEX!E70 -> 1765855306
A105: Tabela 7 - Cronograma Físico-Financeiro dos Investimentos em Infraestrutura de Irrigação e de Apoio
A106: =A39 -> Discriminação | B106: =CAPEX!F9 -> 1 | C106: =CAPEX!G9 -> 2 | D106: =CAPEX!H9 -> 3 | E106: =CAPEX!I9 -> 4 | F106: =CAPEX!J9 -> 5 | G106: =CAPEX!K9 -> 6 | H106: =CAPEX!L9 -> 7
A107: Custos diversos
A108: Desmatamento das áreas agrícolas (SAU) | B108: =CAPEX!F11 -> 0 | C108: =CAPEX!G11 -> 0 | D108: =CAPEX!H11 -> 22120915.46 | E108: =CAPEX!I11 -> 15728004.79 | F108: =CAPEX!J11 -> 11943118.68 | G108: =CAPEX!K11 -> 6491756.396 | H108: =CAPEX!L11 -> 4278759.799
A109: M. Ambiente (Estudos, Licenças e Exec. PBAs ) | B109: =CAPEX!F12 -> 3042292.989 | C109: =CAPEX!G12 -> 4869516.715 | D109: =CAPEX!H12 -> 9227865.415 | E109: =CAPEX!I12 -> 9373531.98 | F109: =CAPEX!J12 -> 9626586.93 | G109: =CAPEX!K12 -> 8261458.478 | H109: =CAPEX!L12 -> 7588248.194
A110: Consultoria (projetos) | B110: =CAPEX!F13 -> 5392675.777 | C110: =CAPEX!G13 -> 0 | D110: =CAPEX!H13 -> 0 | E110: =CAPEX!I13 -> 0 | F110: =CAPEX!J13 -> 0 | G110: =CAPEX!K13 -> 0 | H110: =CAPEX!L13 -> 0
A111: Consultoria (supervisão de obras) | B111: =CAPEX!F14 -> 0 | C111: =CAPEX!G14 -> 1969714.203 | D111: =CAPEX!H14 -> 1400469.816 | E111: =CAPEX!I14 -> 1063451.941 | F111: =CAPEX!J14 -> 578045.913 | G111: =CAPEX!K14 -> 380993.9042 | H111: =CAPEX!L14 -> 0
A112: Serviços preliminares
A113: Mobilização e desmobilização | B113: =CAPEX!F16 -> 0 | C113: =CAPEX!G16 -> 1097657.392 | D113: =CAPEX!H16 -> 0 | E113: =CAPEX!I16 -> 0 | F113: =CAPEX!J16 -> 0 | G113: =CAPEX!K16 -> 0 | H113: =CAPEX!L16 -> 1097657.392
A114: Administração direta | B114: =CAPEX!F17 -> 0 | C114: =CAPEX!G17 -> 2855258.582 | D114: =CAPEX!H17 -> 2855258.582 | E114: =CAPEX!I17 -> 2855258.582 | F114: =CAPEX!J17 -> 2855258.582 | G114: =CAPEX!K17 -> 2855258.582 | H114: =CAPEX!L17 -> 2855258.582
A115: Implantação do canteiro de obras | B115: =CAPEX!F18 -> 0 | C115: =CAPEX!G18 -> 351684.9988 | D115: =CAPEX!H18 -> 0 | E115: =CAPEX!I18 -> 0 | F115: =CAPEX!J18 -> 0 | G115: =CAPEX!K18 -> 0 | H115: =CAPEX!L18 -> 0
A116: Infraestrutura Sul
A117: EBP-Sul | B117: =CAPEX!F20 -> 0 | C117: =CAPEX!G20 -> 8838395.122 | D117: =CAPEX!H20 -> 13257592.68 | E117: =CAPEX!I20 -> 0 | F117: =CAPEX!J20 -> 0 | G117: =CAPEX!K20 -> 0 | H117: =CAPEX!L20 -> 0
A118: Adutora EBP-Sul | B118: =CAPEX!F21 -> 0 | C118: =CAPEX!G21 -> 89046.66158 | D118: =CAPEX!H21 -> 0 | E118: =CAPEX!I21 -> 0 | F118: =CAPEX!J21 -> 0 | G118: =CAPEX!K21 -> 0 | H118: =CAPEX!L21 -> 0
A119: Reservatório pulmão | B119: =CAPEX!F22 -> 0 | C119: =CAPEX!G22 -> 380921.6185 | D119: =CAPEX!H22 -> 0 | E119: =CAPEX!I22 -> 0 | F119: =CAPEX!J22 -> 0 | G119: =CAPEX!K22 -> 0 | H119: =CAPEX!L22 -> 0
A120: Canal CP2-Sul | B120: =CAPEX!F23 -> 0 | C120: =CAPEX!G23 -> 1411566.577 | D120: =CAPEX!H23 -> 0 | E120: =CAPEX!I23 -> 0 | F120: =CAPEX!J23 -> 0 | G120: =CAPEX!K23 -> 0 | H120: =CAPEX!L23 -> 0
A121: EBS-Sul | B121: =CAPEX!F24 -> 0 | C121: =CAPEX!G24 -> 7011561.66 | D121: =CAPEX!H24 -> 10517342.49 | E121: =CAPEX!I24 -> 0 | F121: =CAPEX!J24 -> 0 | G121: =CAPEX!K24 -> 0 | H121: =CAPEX!L24 -> 0
A122: Adutora da EBS-Sul | B122: =CAPEX!F25 -> 0 | C122: =CAPEX!G25 -> 84003.45128 | D122: =CAPEX!H25 -> 0 | E122: =CAPEX!I25 -> 0 | F122: =CAPEX!J25 -> 0 | G122: =CAPEX!K25 -> 0 | H122: =CAPEX!L25 -> 0
A123: Canal CP3-Sul | B123: =CAPEX!F26 -> 0 | C123: =CAPEX!G26 -> 2547427.585 | D123: =CAPEX!H26 -> 0 | E123: =CAPEX!I26 -> 0 | F123: =CAPEX!J26 -> 0 | G123: =CAPEX!K26 -> 0 | H123: =CAPEX!L26 -> 0
A124: EBA-9 | B124: =CAPEX!F27 -> 0 | C124: =CAPEX!G27 -> 1735954.532 | D124: =CAPEX!H27 -> 2603931.798 | E124: =CAPEX!I27 -> 0 | F124: =CAPEX!J27 -> 0 | G124: =CAPEX!K27 -> 0 | H124: =CAPEX!L27 -> 0
A125: EBAs 10-11-12 | B125: =CAPEX!F28 -> 0 | C125: =CAPEX!G28 -> 4427354.174 | D125: =CAPEX!H28 -> 6641031.261 | E125: =CAPEX!I28 -> 0 | F125: =CAPEX!J28 -> 0 | G125: =CAPEX!K28 -> 0 | H125: =CAPEX!L28 -> 0
A126: Tomadas empresariais (24) | B126: =CAPEX!F29 -> 0 | C126: =CAPEX!G29 -> 1202757.96 | D126: =CAPEX!H29 -> 1804136.94 | E126: =CAPEX!I29 -> 0 | F126: =CAPEX!J29 -> 0 | G126: =CAPEX!K29 -> 0 | H126: =CAPEX!L29 -> 0
A127: Tomadas gravitárias (5) | B127: =CAPEX!F30 -> 0 | C127: =CAPEX!G30 -> 187243.7713 | D127: =CAPEX!H30 -> 0 | E127: =CAPEX!I30 -> 0 | F127: =CAPEX!J30 -> 0 | G127: =CAPEX!K30 -> 0 | H127: =CAPEX!L30 -> 0
A128: Adutoras das EBAs / Setores (36,1% de "L") | B128: =CAPEX!F31 -> 0 | C128: =CAPEX!G31 -> 21004552.86 | D128: =CAPEX!H31 -> 31506829.29 | E128: =CAPEX!I31 -> 0 | F128: =CAPEX!J31 -> 0 | G128: =CAPEX!K31 -> 0 | H128: =CAPEX!L31 -> 0
A129: Estradas dos canais e estradas dos setores | B129: =CAPEX!F32 -> 0 | C129: =CAPEX!G32 -> 852003.8732 | D129: =CAPEX!H32 -> 1278005.81 | E129: =CAPEX!I32 -> 0 | F129: =CAPEX!J32 -> 0 | G129: =CAPEX!K32 -> 0 | H129: =CAPEX!L32 -> 0
A130: Drenos dos canais e drenos nos setores | B130: =CAPEX!F33 -> 0 | C130: =CAPEX!G33 -> 2561686.227 | D130: =CAPEX!H33 -> 3842529.341 | E130: =CAPEX!I33 -> 0 | F130: =CAPEX!J33 -> 0 | G130: =CAPEX!K33 -> 0 | H130: =CAPEX!L33 -> 0
A131: Infraestr. de Suprim. de Energia Elétrica | B131: =CAPEX!F34 -> 0 | C131: =CAPEX!G34 -> 13108417.56 | D131: =CAPEX!H34 -> 19662626.34 | E131: =CAPEX!I34 -> 0 | F131: =CAPEX!J34 -> 0 | G131: =CAPEX!K34 -> 0 | H131: =CAPEX!L34 -> 0
A132: Infraestrutura Norte
A133: EBP-Norte (8,37 m³/s) | B133: =CAPEX!F36 -> 0 | C133: =CAPEX!G36 -> 0 | D133: =CAPEX!H36 -> 19171275.82 | E133: =CAPEX!I36 -> 28756913.73 | F133: =CAPEX!J36 -> 0 | G133: =CAPEX!K36 -> 0 | H133: =CAPEX!L36 -> 0
A134: Adutora EBP-Norte | B134: =CAPEX!F37 -> 0 | C134: =CAPEX!G37 -> 0 | D134: =CAPEX!H37 -> 370056.2713 | E134: =CAPEX!I37 -> 0 | F134: =CAPEX!J37 -> 0 | G134: =CAPEX!K37 -> 0 | H134: =CAPEX!L37 -> 0
A135: Canal CP-3 Norte (8,37 m³/s) - (SH-1, 2, 3, 4, 5 e 6) | B135: =CAPEX!F38 -> 0 | C135: =CAPEX!G38 -> 0 | D135: =CAPEX!H38 -> 8232546.456 | E135: =CAPEX!I38 -> 8232546.456 | F135: =CAPEX!J38 -> 0 | G135: =CAPEX!K38 -> 0 | H135: =CAPEX!L38 -> 0
A136: Canal CS2/CP3 Norte (2,24 m³/s) - (SH-7 e 8) | B136: =CAPEX!F39 -> 0 | C136: =CAPEX!G39 -> 0 | D136: =CAPEX!H39 -> 0 | E136: =CAPEX!I39 -> 0 | F136: =CAPEX!J39 -> 3224018.836 | G136: =CAPEX!K39 -> 0 | H136: =CAPEX!L39 -> 0
A137: Sifões invertidos no CP-3 Norte | B137: =CAPEX!F40 -> 0 | C137: =CAPEX!G40 -> 0 | D137: =CAPEX!H40 -> 110973.5623 | E137: =CAPEX!I40 -> 110973.5623 | F137: =CAPEX!J40 -> 0 | G137: =CAPEX!K40 -> 0 | H137: =CAPEX!L40 -> 0
A138: Tomadas empresariais (27 no CP-3 e no CS-2) | B138: =CAPEX!F41 -> 0 | C138: =CAPEX!G41 -> 0 | D138: =CAPEX!H41 -> 845689.1907 | E138: =CAPEX!I41 -> 845689.1907 | F138: =CAPEX!J41 -> 845689.1907 | G138: =CAPEX!K41 -> 845689.1907 | H138: =CAPEX!L41 -> 0
A139: Tomadas gravitárias (13 no CP-3 e 3 no CS-2) | B139: =CAPEX!F42 -> 0 | C139: =CAPEX!G42 -> 0 | D139: =CAPEX!H42 -> 149795.017 | E139: =CAPEX!I42 -> 149795.017 | F139: =CAPEX!J42 -> 149795.017 | G139: =CAPEX!K42 -> 149795.017 | H139: =CAPEX!L42 -> 0
A140: EBAs 1 a 8 | B140: =CAPEX!F43 -> 0 | C140: =CAPEX!G43 -> 0 | D140: =CAPEX!H43 -> 11068385.44 | E140: =CAPEX!I43 -> 11068385.44 | F140: =CAPEX!J43 -> 3689461.812 | G140: =CAPEX!K43 -> 3689461.812 | H140: =CAPEX!L43 -> 0
A141: Adutoras das EBAs / Setores (63,9% de SAU ) | B141: =CAPEX!F44 -> 0 | C141: =CAPEX!G44 -> 0 | D141: =CAPEX!H44 -> 38029344.09 | E141: =CAPEX!I44 -> 28877723.26 | F141: =CAPEX!J44 -> 15696665.98 | G141: =CAPEX!K44 -> 10345776.9 | H141: =CAPEX!L44 -> 0
A142: Casa de Comando - Comportas | B142: =CAPEX!F45 -> 0 | C142: =CAPEX!G45 -> 0 | D142: =CAPEX!H45 -> 37809.82806 | E142: =CAPEX!I45 -> 37809.82806 | F142: =CAPEX!J45 -> 37809.82806 | G142: =CAPEX!K45 -> 37809.82806 | H142: =CAPEX!L45 -> 0
A143: Estradas dos canais e estradas dos setores | B143: =CAPEX!F46 -> 0 | C143: =CAPEX!G46 -> 0 | D143: =CAPEX!H46 -> 3024923.03 | E143: =CAPEX!I46 -> 3024923.03 | F143: =CAPEX!J46 -> 3024923.03 | G143: =CAPEX!K46 -> 3024923.03 | H143: =CAPEX!L46 -> 0
A144: Drenos dos canais e drenos nos setores | B144: =CAPEX!F47 -> 0 | C144: =CAPEX!G47 -> 0 | D144: =CAPEX!H47 -> 2422532.399 | E144: =CAPEX!I47 -> 2422532.399 | F144: =CAPEX!J47 -> 2422532.399 | G144: =CAPEX!K47 -> 2422532.399 | H144: =CAPEX!L47 -> 0
A145: Infraestr. de Suprim. de Energia Elétrica | B145: =CAPEX!F48 -> 0 | C145: =CAPEX!G48 -> 0 | D145: =CAPEX!H48 -> 14564908.4 | E145: =CAPEX!I48 -> 14564908.4 | F145: =CAPEX!J48 -> 14564908.4 | G145: =CAPEX!K48 -> 14564908.4 | H145: =CAPEX!L48 -> 0
A146: Total | B146: =CAPEX!F49 -> 8434968.766 | C146: =CAPEX!G49 -> 76586725.53 | D146: =CAPEX!H49 -> 224746774.7 | E146: =CAPEX!I49 -> 127112447.6 | F146: =CAPEX!J49 -> 68658814.6 | G146: =CAPEX!K49 -> 53070363.94 | H146: =CAPEX!L49 -> 15819923.97
A148: Tabela 8 - Cronograma Físico-Financeiro dos Investimentos on Farm
A149: =A82 -> Discriminação | B149: =CAPEX!I51 -> 4 | C149: =CAPEX!J51 -> 5 | D149: =CAPEX!K51 -> 6 | E149: =CAPEX!L51 -> 7 | F149: =CAPEX!M51 -> 8
A150: =A84 -> Ramais móveis e emissores | B150: =CAPEX!I53 -> 15525627.58 | C150: =CAPEX!J53 -> 11038745 | D150: =CAPEX!K53 -> 8382311.895 | E150: =CAPEX!L53 -> 4556257.734 | F150: =CAPEX!M53 -> 3003059.764
A151: =A85 -> Rede de distribuição e cavaletes (fornec.) | B151: =CAPEX!I54 -> 46576882.75 | C151: =CAPEX!J54 -> 33116235 | D151: =CAPEX!K54 -> 25146935.68 | E151: =CAPEX!L54 -> 13668773.2 | F151: =CAPEX!M54 -> 9009179.291
A152: =A86 -> Assentam. e montagem dos tubos da rede e cavaletes | B152: =CAPEX!I55 -> 9315376.55 | C152: =CAPEX!J55 -> 6623247.001 | D152: =CAPEX!K55 -> 5029387.137 | E152: =CAPEX!L55 -> 2733754.641 | F152: =CAPEX!M55 -> 1801835.858
A153: Total | B153: =CAPEX!I56 -> 71417886.89 | C153: =CAPEX!J56 -> 50778227.01 | D153: =CAPEX!K56 -> 38558634.72 | E153: =CAPEX!L56 -> 20958785.58 | F153: =CAPEX!M56 -> 13814074.91
A155: Tabela 9 - Cronograma Físico-Financeiro dos Reinvestimentos
A156: =A90 -> Discriminação | B156: =CAPEX!Q58 -> 12 | C156: =CAPEX!R58 -> 13 | D156: =CAPEX!S58 -> 14 | E156: =CAPEX!T58 -> 15 | F156: =CAPEX!U58 -> 16 | G156: =CAPEX!V58 -> 17 | H156: =CAPEX!W58 -> 18
A157: =A92 -> Ramais móveis e emissores | B157: =CAPEX!Q60 -> 14168667.33 | C157: =CAPEX!R60 -> 14168667.33 | D157: =CAPEX!S60 -> 14168667.33 | E157: =CAPEX!T60 -> 0 | F157: =CAPEX!U60 -> 0 | G157: =CAPEX!V60 -> 14168667.33 | H157: =CAPEX!W60 -> 14168667.33
A158: =A93 -> Rede de distribuição e cavaletes | B158: =CAPEX!Q61 -> 0 | C158: =CAPEX!R61 -> 0 | D158: =CAPEX!S61 -> 0 | E158: =CAPEX!T61 -> 51007202.37 | F158: =CAPEX!U61 -> 51007202.37 | G158: =CAPEX!V61 -> 51007202.37 | H158: =CAPEX!W61 -> 0
A159: =A94 -> Equipamentos EBPs, EBS, EBAs - Redes e Equip. Elétricos | B159: =CAPEX!Q62 -> 0 | C159: =CAPEX!R62 -> 0 | D159: =CAPEX!S62 -> 0 | E159: =CAPEX!T62 -> 0 | F159: =CAPEX!U62 -> 0 | G159: =CAPEX!V62 -> 0 | H159: =CAPEX!W62 -> 0
A160: =A95 -> Equipamentos Adutoras, Canais, Sifões Inv. e Redes Tubos Setores | B160: =CAPEX!Q63 -> 0 | C160: =CAPEX!R63 -> 0 | D160: =CAPEX!S63 -> 0 | E160: =CAPEX!T63 -> 0 | F160: =CAPEX!U63 -> 0 | G160: =CAPEX!V63 -> 0 | H160: =CAPEX!W63 -> 0
A161: Total | B161: =CAPEX!Q64 -> 14168667.33 | C161: =CAPEX!R64 -> 14168667.33 | D161: =CAPEX!S64 -> 14168667.33 | E161: =CAPEX!T64 -> 51007202.37 | F161: =CAPEX!U64 -> 51007202.37 | G161: =CAPEX!V64 -> 65175869.7 | H161: =CAPEX!W64 -> 14168667.33
A162: =A156 -> Discriminação | B162: =CAPEX!X58 -> 19 | C162: =CAPEX!Y58 -> 20 | D162: =CAPEX!Z58 -> 21 | E162: =CAPEX!AA58 -> 22 | F162: =CAPEX!AB58 -> 23 | G162: =CAPEX!AC58 -> 24 | H162: =CAPEX!AF58 -> 27
A163: =A157 -> Ramais móveis e emissores | B163: =CAPEX!X60 -> 14168667.33 | C163: =CAPEX!Y60 -> 0 | D163: =CAPEX!Z60 -> 0 | E163: =CAPEX!AA60 -> 14168667.33 | F163: =CAPEX!AB60 -> 14168667.33 | G163: =CAPEX!AC60 -> 14168667.33 | H163: =CAPEX!AF60 -> 14168667.33
A164: Rede de distribuição e cavaletes | B164: =CAPEX!X61 -> 0 | C164: =CAPEX!Y61 -> 0 | D164: =CAPEX!Z61 -> 0 | E164: =CAPEX!AA61 -> 0 | F164: =CAPEX!AB61 -> 0 | G164: =CAPEX!AC61 -> 0 | H164: =CAPEX!AF61 -> 0
A165: Equipamentos EBPs, EBS, EBAs - Redes e Equip. Elétricos | B165: =CAPEX!X62 -> 0 | C165: =CAPEX!Y62 -> 81108988.19 | D165: =CAPEX!Z62 -> 81108988.19 | E165: =CAPEX!AA62 -> 81108988.19 | F165: =CAPEX!AB62 -> 0 | G165: =CAPEX!AC62 -> 0 | H165: =CAPEX!AF62 -> 0
A166: Equipamentos Adutoras, Canais, Sifões Inv. e Redes Tubos Setores | B166: =CAPEX!X63 -> 0 | C166: =CAPEX!Y63 -> 0 | D166: =CAPEX!Z63 -> 0 | E166: =CAPEX!AA63 -> 0 | F166: =CAPEX!AB63 -> 0 | G166: =CAPEX!AC63 -> 0 | H166: =CAPEX!AF63 -> 0
A167: Total | B167: =CAPEX!X64 -> 14168667.33 | C167: =CAPEX!Y64 -> 81108988.19 | D167: =CAPEX!Z64 -> 81108988.19 | E167: =CAPEX!AA64 -> 95277655.51 | F167: =CAPEX!AB64 -> 14168667.33 | G167: =CAPEX!AC64 -> 14168667.33 | H167: =CAPEX!AF64 -> 14168667.33
A168: =A162 -> Discriminação | B168: =CAPEX!AG58 -> 28 | C168: =CAPEX!AH58 -> 29 | D168: =CAPEX!AI58 -> 30 | E168: =CAPEX!AJ58 -> 31 | F168: =CAPEX!AK58 -> 32 | G168: =CAPEX!AL58 -> 33 | H168: =CAPEX!AM58 -> 34
A169: Ramais móveis e emissores | B169: =CAPEX!AG60 -> 14168667.33 | C169: =CAPEX!AH60 -> 14168667.33 | D169: =CAPEX!AI60 -> 0 | E169: =CAPEX!AJ60 -> 0 | F169: =CAPEX!AK60 -> 14168667.33 | G169: =CAPEX!AL60 -> 14168667.33 | H169: =CAPEX!AM60 -> 14168667.33
A170: Rede de distribuição e cavaletes | B170: =CAPEX!AG61 -> 0 | C170: =CAPEX!AH61 -> 0 | D170: =CAPEX!AI61 -> 51007202.37 | E170: =CAPEX!AJ61 -> 51007202.37 | F170: =CAPEX!AK61 -> 51007202.37 | G170: =CAPEX!AL61 -> 0 | H170: =CAPEX!AM61 -> 0
A171: Equipamentos EBPs, EBS, EBAs - Redes e Equip. Elétricos | B171: =CAPEX!AG62 -> 0 | C171: =CAPEX!AH62 -> 0 | D171: =CAPEX!AI62 -> 0 | E171: =CAPEX!AJ62 -> 0 | F171: =CAPEX!AK62 -> 0 | G171: =CAPEX!AL62 -> 0 | H171: =CAPEX!AM62 -> 0
A172: Equipamentos Adutoras, Canais, Sifões Inv. e Redes Tubos Setores | B172: =CAPEX!AG63 -> 0 | C172: =CAPEX!AH63 -> 0 | D172: =CAPEX!AI63 -> 77999162.91 | E172: =CAPEX!AJ63 -> 77999162.91 | F172: =CAPEX!AK63 -> 77999162.91 | G172: =CAPEX!AL63 -> 0 | H172: =CAPEX!AM63 -> 0
A173: Total | B173: =CAPEX!AG64 -> 14168667.33 | C173: =CAPEX!AH64 -> 14168667.33 | D173: =CAPEX!AI64 -> 129006365.3 | E173: =CAPEX!AJ64 -> 129006365.3 | F173: =CAPEX!AK64 -> 143175032.6 | G173: =CAPEX!AL64 -> 14168667.33 | H173: =CAPEX!AM64 -> 14168667.33
A175: Tabela 10 - Cronograma Físico-Financeiro dos Investimentos - Resumo
A176: =A99 -> Discriminação | B176: =CAPEX!F66 -> 1 | C176: =CAPEX!G66 -> 2 | D176: =CAPEX!H66 -> 3 | E176: =CAPEX!I66 -> 4 | F176: =CAPEX!J66 -> 5 | G176: =CAPEX!K66 -> 6 | H176: =CAPEX!L66 -> 7
A177: Infraestrutura de Irrigação e de Apoio | B177: =CAPEX!F67 -> 8434968.766 | C177: =CAPEX!G67 -> 76586725.53 | D177: =CAPEX!H67 -> 224746774.7 | E177: =CAPEX!I67 -> 127112447.6 | F177: =CAPEX!J67 -> 68658814.6 | G177: =CAPEX!K67 -> 53070363.94 | H177: =CAPEX!L67 -> 15819923.97
A178: Investimento on farm | B178: =CAPEX!F68 -> 0 | C178: =CAPEX!G68 -> 0 | D178: =CAPEX!H68 -> 0 | E178: =CAPEX!I68 -> 71417886.89 | F178: =CAPEX!J68 -> 50778227.01 | G178: =CAPEX!K68 -> 38558634.72 | H178: =CAPEX!L68 -> 20958785.58
A179: Reinvestimento | B179: =CAPEX!F69 -> 0 | C179: =CAPEX!G69 -> 0 | D179: =CAPEX!H69 -> 0 | E179: =CAPEX!I69 -> 0 | F179: =CAPEX!J69 -> 0 | G179: =CAPEX!K69 -> 0 | H179: =CAPEX!L69 -> 0
A180: Investimento Total | B180: =CAPEX!F70 -> 8434968.766 | C180: =CAPEX!G70 -> 76586725.53 | D180: =CAPEX!H70 -> 224746774.7 | E180: =CAPEX!I70 -> 198530334.5 | F180: =CAPEX!J70 -> 119437041.6 | G180: =CAPEX!K70 -> 91628998.65 | H180: =CAPEX!L70 -> 36778709.55
A181: =A176 -> Discriminação | B181: =CAPEX!M66 -> 8 | C181: =CAPEX!Q66 -> 12 | D181: =CAPEX!R66 -> 13 | E181: =CAPEX!S66 -> 14 | F181: =CAPEX!T66 -> 15 | G181: =CAPEX!U66 -> 16 | H181: =CAPEX!V66 -> 17
A182: =A177 -> Infraestrutura de Irrigação e de Apoio | B182: =CAPEX!M67 -> 0 | C182: =CAPEX!Q67 -> 0 | D182: =CAPEX!R67 -> 0 | E182: =CAPEX!S67 -> 0 | F182: =CAPEX!T67 -> 0 | G182: =CAPEX!U67 -> 0 | H182: =CAPEX!V67 -> 0
A183: Investimento on farm | B183: =CAPEX!M68 -> 13814074.91 | C183: =CAPEX!Q68 -> 0 | D183: =CAPEX!R68 -> 0 | E183: =CAPEX!S68 -> 0 | F183: =CAPEX!T68 -> 0 | G183: =CAPEX!U68 -> 0 | H183: =CAPEX!V68 -> 0
A184: Reinvestimento | B184: =CAPEX!M69 -> 0 | C184: =CAPEX!Q69 -> 14168667.33 | D184: =CAPEX!R69 -> 14168667.33 | E184: =CAPEX!S69 -> 14168667.33 | F184: =CAPEX!T69 -> 51007202.37 | G184: =CAPEX!U69 -> 51007202.37 | H184: =CAPEX!V69 -> 65175869.7
A185: Investimento Total | B185: =CAPEX!M70 -> 13814074.91 | C185: =CAPEX!Q70 -> 14168667.33 | D185: =CAPEX!R70 -> 14168667.33 | E185: =CAPEX!S70 -> 14168667.33 | F185: =CAPEX!T70 -> 51007202.37 | G185: =CAPEX!U70 -> 51007202.37 | H185: =CAPEX!V70 -> 65175869.7
A186: =A181 -> Discriminação | B186: =CAPEX!W66 -> 18 | C186: =CAPEX!X66 -> 19 | D186: =CAPEX!Y66 -> 20 | E186: =CAPEX!Z66 -> 21 | F186: =CAPEX!AA66 -> 22 | G186: =CAPEX!AB66 -> 23 | H186: =CAPEX!AC66 -> 24
A187: Infraestrutura de Irrigação e de Apoio | B187: =CAPEX!W67 -> 0 | C187: =CAPEX!X67 -> 0 | D187: =CAPEX!Y67 -> 0 | E187: =CAPEX!Z67 -> 0 | F187: =CAPEX!AA67 -> 0 | G187: =CAPEX!AB67 -> 0 | H187: =CAPEX!AC67 -> 0
A188: Investimento on farm | B188: =CAPEX!W68 -> 0 | C188: =CAPEX!X68 -> 0 | D188: =CAPEX!Y68 -> 0 | E188: =CAPEX!Z68 -> 0 | F188: =CAPEX!AA68 -> 0 | G188: =CAPEX!AB68 -> 0 | H188: =CAPEX!AC68 -> 0
A189: Reinvestimento | B189: =CAPEX!W69 -> 14168667.33 | C189: =CAPEX!X69 -> 14168667.33 | D189: =CAPEX!Y69 -> 81108988.19 | E189: =CAPEX!Z69 -> 81108988.19 | F189: =CAPEX!AA69 -> 95277655.51 | G189: =CAPEX!AB69 -> 14168667.33 | H189: =CAPEX!AC69 -> 14168667.33
A190: Investimento Total | B190: =CAPEX!W70 -> 14168667.33 | C190: =CAPEX!X70 -> 14168667.33 | D190: =CAPEX!Y70 -> 81108988.19 | E190: =CAPEX!Z70 -> 81108988.19 | F190: =CAPEX!AA70 -> 95277655.51 | G190: =CAPEX!AB70 -> 14168667.33 | H190: =CAPEX!AC70 -> 14168667.33
A191: =A186 -> Discriminação | B191: =CAPEX!AF66 -> 27 | C191: =CAPEX!AG66 -> 28 | D191: =CAPEX!AH66 -> 29 | E191: =CAPEX!AI66 -> 30 | F191: =CAPEX!AJ66 -> 31 | G191: =CAPEX!AK66 -> 32 | H191: =CAPEX!AL66 -> 33 | I191: =CAPEX!AM66 -> 34
A192: Infraestrutura de Irrigação e de Apoio | B192: =CAPEX!AF67 -> 0 | C192: =CAPEX!AG67 -> 0 | D192: =CAPEX!AH67 -> 0 | E192: =CAPEX!AI67 -> 0 | F192: =CAPEX!AJ67 -> 0 | G192: =CAPEX!AK67 -> 0 | H192: =CAPEX!AL67 -> 0 | I192: =CAPEX!AM67 -> 0
A193: Investimento on farm | B193: =CAPEX!AF68 -> 0 | C193: =CAPEX!AG68 -> 0 | D193: =CAPEX!AH68 -> 0 | E193: =CAPEX!AI68 -> 0 | F193: =CAPEX!AJ68 -> 0 | G193: =CAPEX!AK68 -> 0 | H193: =CAPEX!AL68 -> 0 | I193: =CAPEX!AM68 -> 0
A194: Reinvestimento | B194: =CAPEX!AF69 -> 14168667.33 | C194: =CAPEX!AG69 -> 14168667.33 | D194: =CAPEX!AH69 -> 14168667.33 | E194: =CAPEX!AI69 -> 129006365.3 | F194: =CAPEX!AJ69 -> 129006365.3 | G194: =CAPEX!AK69 -> 143175032.6 | H194: =CAPEX!AL69 -> 14168667.33 | I194: =CAPEX!AM69 -> 14168667.33
A195: Investimento Total | B195: =CAPEX!AF70 -> 14168667.33 | C195: =CAPEX!AG70 -> 14168667.33 | D195: =CAPEX!AH70 -> 14168667.33 | E195: =CAPEX!AI70 -> 129006365.3 | F195: =CAPEX!AJ70 -> 129006365.3 | G195: =CAPEX!AK70 -> 143175032.6 | H195: =CAPEX!AL70 -> 14168667.33 | I195: =CAPEX!AM70 -> 14168667.33
A197: Tabela 11 - Depreciação dos Investimentos
A198: 1 | B198: =HLOOKUP(A198,Depreciação!$F$4:$AN$27,24,FALSE) -> 240999.1076 | C198: 19 | D198: =HLOOKUP(C198,Depreciação!$F$4:$AN$27,24,FALSE) -> 46781661.57
A199: 2 | B199: =HLOOKUP(A199,Depreciação!$F$4:$AN$27,24,FALSE) -> 3244990.002 | C199: 20 | D199: =HLOOKUP(C199,Depreciação!$F$4:$AN$27,24,FALSE) -> 48187812.18
A200: 3 | B200: =HLOOKUP(A200,Depreciação!$F$4:$AN$27,24,FALSE) -> 11963662.36 | C200: 21 | D200: =HLOOKUP(C200,Depreciação!$F$4:$AN$27,24,FALSE) -> 50231506.74
A201: 4 | B201: =HLOOKUP(A201,Depreciação!$F$4:$AN$27,24,FALSE) -> 23662999.28 | C201: 22 | D201: =HLOOKUP(C201,Depreciação!$F$4:$AN$27,24,FALSE) -> 51658737.84
A202: 5 | B202: =HLOOKUP(A202,Depreciação!$F$4:$AN$27,24,FALSE) -> 30915484.38 | C202: 23 | D202: =HLOOKUP(C202,Depreciação!$F$4:$AN$27,24,FALSE) -> 46949119.63
A203: 6 | B203: =HLOOKUP(A203,Depreciação!$F$4:$AN$27,24,FALSE) -> 36528274.19 | C203: 24 | D203: =HLOOKUP(C203,Depreciação!$F$4:$AN$27,24,FALSE) -> 44783028.52
A204: 7 | B204: =HLOOKUP(A204,Depreciação!$F$4:$AN$27,24,FALSE) -> 38985025.42 | C204: 25 | D204: =HLOOKUP(C204,Depreciação!$F$4:$AN$27,24,FALSE) -> 44054783.1
A205: 8 | B205: =HLOOKUP(A205,Depreciação!$F$4:$AN$27,24,FALSE) -> 40306371.72 | C205: 26 | D205: =HLOOKUP(C205,Depreciação!$F$4:$AN$27,24,FALSE) -> 43326537.68
A206: 9 | B206: =HLOOKUP(A206,Depreciação!$F$4:$AN$27,24,FALSE) -> 37201246.2 | C206: 27 | D206: =HLOOKUP(C206,Depreciação!$F$4:$AN$27,24,FALSE) -> 43149443.51
A207: 10 | B207: =HLOOKUP(A207,Depreciação!$F$4:$AN$27,24,FALSE) -> 34993497.2 | C207: 28 | D207: =HLOOKUP(C207,Depreciação!$F$4:$AN$27,24,FALSE) -> 42441066.84
A208: 11 | B208: =HLOOKUP(A208,Depreciação!$F$4:$AN$27,24,FALSE) -> 33317034.82 | C208: 29 | D208: =HLOOKUP(C208,Depreciação!$F$4:$AN$27,24,FALSE) -> 41998331.43
A209: 12 | B209: =HLOOKUP(A209,Depreciação!$F$4:$AN$27,24,FALSE) -> 35239516.74 | C209: 30 | D209: =HLOOKUP(C209,Depreciação!$F$4:$AN$27,24,FALSE) -> 44450725.05
A210: 13 | B210: =HLOOKUP(A210,Depreciação!$F$4:$AN$27,24,FALSE) -> 37472638.25 | C210: 31 | D210: =HLOOKUP(C210,Depreciação!$F$4:$AN$27,24,FALSE) -> 46903118.68
... 276 more rows

Sheet Gráficos
A1: Gráfico 1 - Ocupação da Área
A14: Gráfico 2 - Investimento
A27: Gráfico 7 - Fluxo de Caixa Operacional
A41: Gráfico 8 - Fluxo de Caixa do Projeto Acumulado
A55: Gráfico 9 - Fluxo de Caixa do Acionista Acumulado

Sheet Painel de Controle
B2: PAINEL DE CONTROLE
B4: Área Concedida | C4: Área Irrigável (ha) | D4: Área Total (ha) | F4: Tributos | I4: Outros Parâmetros | L4: Parcelas de Outorga | P4: Resultados
B5: Área Sul | C5: =C14 -> 3739.57 | D5: =C5/$C$7*$D$7 -> 5640.206249 | F5: Tributos | G5: Parâmetros | I5: Tarifas de Energia | J5: Valor | L5: Parcela | M5: Valor Presente (R$) | N5: Valor a Pagar (R$) | P5: Fluxo de Caixa do Projeto
B6: Área Norte | C6: =SUM(C15:C18) -> 6498.61 | D6: =C6/$C$7*$D$7 -> 9801.528178 | F6: PIS | G6: 0.0165 | I6: Tarifa de Consumo (R$/kWh) | J6: 0.12 | L6: 1 | M6: =20%*J32 -> 39649479.1 | N6: =M6*(1+WACC!$D$22)^(L6-1) -> 39649479.1 | P6: TIR | Q6: ='FC Projeto'!C64 -> 0.09179745716
B7: Área Total | C7: =C5+C6 -> 10238.18 | D7: =J29 -> 15441.73443 | F7: COFINS | G7: 0.076 | I7: Tarifa de Demanda (R$/kW) | J7: 42.380871 | L7: 2 | M7: 0 | N7: =M7*(1+WACC!$D$22)^(L7-1) -> 0 | P7: VPL 35 anos (R$ mil) | Q7: ='FC Projeto'!C61 -> -40474.58966
F8: FUNRURAL | G8: 0.0205 | I8: NCG (dias) | J8: 120 | L8: 3 | M8: 0 | N8: =M8*(1+WACC!$D$22)^(L8-1) -> 0 | P8: VPL Perpetuidade (R$ mil) | Q8: ='FC Projeto'!C62 -> 39800.54875
B9: Ocupação Agrícola | F9: IRPJ | G9: 0.15 | L9: 4 | M9: 0 | N9: =M9*(1+WACC!$D$22)^(L9-1) -> 0 | P9: VPL Total (R$ mil) | Q9: ='FC Projeto'!C63 -> -674.040906
B10: Ano | C10: Área SAU (ha) | D10: Setores | F10: IRPJ Alíquota Adicional | G10: 0.1 | I10: Financiamento | L10: 5 | M10: =30%*J32 -> 59474218.64 | N10: =M10*(1+WACC!$D$22)^(L10-1) -> 84537503.38 | P10: Payback | Q10: ='FC Projeto'!C65 -> 14
B11: 1 | F11: Limite Alíquota Adic (R$ mil) | G11: 240 | I11: Alavancagem CaPex | J11: 0.6 | L11: 6 | M11: =50%*$J$32/31 -> 3197538.637 | N11: =M11*(1+WACC!$D$22)^(L11-1) -> 4962684.222 | P11: Fluxo de Caixa do Acionista
B12: 2 | F12: CSLL | G12: 0.09 | I12: Alavancagem Outorga | J12: 0.7 | L12: 7 | M12: =50%*$J$32/31 -> 3197538.637 | N12: =M12*(1+WACC!$D$22)^(L12-1) -> 5418721.241 | P12: TIR | Q12: ='FC Acionista'!C73 -> 0.121117069
B13: 3 | F13: Aplicação de benefício SUDENE | G13: S | I13: Juros | J13: =WACC!D20 -> 0.06798317143 | L13: 8 | M13: 3197538.637 | N13: =M13*(1+WACC!$D$22)^(L13-1) -> 5916664.969 | P13: VPL 35 anos (R$ mil) | Q13: ='FC Acionista'!C70 -> -29354.93034
B14: 4 | C14: 3739.57 | D14: 9, 10, 11 e 12 | F14: Benefício Sudene | G14: 0.75 | I14: Prazo | J14: 20 | L14: 9 | M14: =J32-SUM(M6:M13) -> 89531081.83 | N14: =M14*(1+WACC!$D$22)^(L14-1) -> 180890257.8 | P14: VPL Perpetuidade (R$ mil) | Q14: ='FC Acionista'!C71 -> 13032.45854
B15: 5 | C15: 2658.84 | D15: 1, 2 e 3 | F15: Prazo Benefício Sudene (anos) | G15: 10 | I15: Carência | J15: 3 | L15: 10 | N15: =M15*(1+WACC!$D$22)^(L15-1) -> 0 | P15: VPL Total (R$ mil) | Q15: ='FC Acionista'!C72 -> -16322.4718
B16: 6 | C16: 2019 | D16: 4, 5 e 6 | F16: Aplicação de desconto do REIDI | G16: S | I16: Financiamento da outorga? | J16: Sim | L16: 11 | N16: =M16*(1+WACC!$D$22)^(L16-1) -> 0 | P16: Payback | Q16: ='FC Acionista'!C74 -> 12
B17: 7 | C17: 1097.44 | D17: 7 | F17: Desconto REIDI | G17: 0.0365 | I17: Financiamento de reinvestimento? | J17: Sim | L17: 12 | N17: =M17*(1+WACC!$D$22)^(L17-1) -> 0
B18: 8 | C18: 723.33 | D18: 8 | F18: ITR (% do valor da terra nua) | G18: 0.05 | L18: 13 | N18: =M18*(1+WACC!$D$22)^(L18-1) -> 0 | P18: Sensibilidade
B19: 9 | F19: ITR (R$ /ha) | G19: =G18*J28 -> 161.778 | L19: 14 | N19: =M19*(1+WACC!$D$22)^(L19-1) -> 0 | P19: Variável | Q19: Variação
B20: 10 | L20: 15 | N20: =M20*(1+WACC!$D$22)^(L20-1) -> 0 | P20: Receita Agrícola | Q20: 0.1
B21: Total | C21: =SUM(C14:C18) -> 10238.18 | F21: Seguros e Garantias | L21: 16 | N21: =M21*(1+WACC!$D$22)^(L21-1) -> 0 | P21: Capex | Q21: 0.1
F22: Seguros / Garantias | G22: Parâmetros | L22: 17 | N22: =M22*(1+WACC!$D$22)^(L22-1) -> 0 | P22: Opex | Q22: 0.05
B23: Distribuição da Área por Cultivo | F23: Garantia de Execução | L23: 18 | N23: =M23*(1+WACC!$D$22)^(L23-1) -> 0
B24: Cultivo | C24: % Área | D24: Área (ha) | F24: CAPEX implantação IUC | G24: =CAPEX!E49/1000 -> 574430.0191 | L24: 19 | N24: =M24*(1+WACC!$D$22)^(L24-1) -> 0
B25: Melancia | C25: 0.025 | D25: =$C$21*C25 -> 255.9545 | F25: Valor IUC compartilhada 1a Etapa | G25: ='Base Ativos'!D43/1000*20% -> 240268.9262 | L25: 20 | N25: =M25*(1+WACC!$D$22)^(L25-1) -> 0
B26: Melão | C26: 0.025 | D26: =$C$21*C26 -> 255.9545 | F26: % Cobertura | G26: 0.05 | L26: 21 | N26: =M26*(1+WACC!$D$22)^(L26-1) -> 0
B27: Tomate | C27: 0.05 | D27: 511.909 | F27: Prêmio | G27: 0.0025 | I27: Valor da Terra | L27: 22 | N27: =M27*(1+WACC!$D$22)^(L27-1) -> 0
B28: Feijão | C28: 0.1 | D28: 1023.818 | F28: IOF | G28: 0.0738 | I28: Preço da terra nua (R$/hectare) | J28: 3235.56 | L28: 23 | N28: =M28*(1+WACC!$D$22)^(L28-1) -> 0
B29: Abacaxi | C29: 0.025 | D29: 255.9545 | F29: Responsabilidade civil | I29: Área CDRU (hectare) | J29: 15441.73443 | L29: 24 | N29: =M29*(1+WACC!$D$22)^(L29-1) -> 0
B30: Acerola | C30: 0.1 | D30: 1023.818 | F30: Opex Médio | G30: =-SUM('FC Projeto'!$C$25:$C$31)/35 -> 250719.2342 | I30: Preço da terra nua (R$) | J30: =J29*J28 -> 49962658.24 | L30: 25 | N30: =M30*(1+WACC!$D$22)^(L30-1) -> 0
B31: Banana | C31: 0.4 | D31: 4095.272 | F31: % Cobertura | G31: 0.1 | I31: Valor da Infraestrutura (R$) | J31: 148284737.2 | L31: 26 | N31: =M31*(1+WACC!$D$22)^(L31-1) -> 0
B32: Coco | C32: 0.1 | D32: 1023.818 | F32: Prêmio | G32: 0.002 | I32: Preço da área com Infraestrutura (R$) | J32: =J30+J31 -> 198247395.5 | L32: 27 | N32: =M32*(1+WACC!$D$22)^(L32-1) -> 0
B33: Goiaba | C33: 0.1 | D33: 1023.818 | F33: IOF | G33: 0.0738 | I33: Preço da área com Infraestrutura (R$/ha) | J33: =J32/J29 -> 12838.41504 | L33: 28 | N33: =M33*(1+WACC!$D$22)^(L33-1) -> 0
B34: Laranja | C34: 0.1 | D34: 1023.818 | F34: Risco de Engenharia | L34: 29 | N34: =M34*(1+WACC!$D$22)^(L34-1) -> 0
B35: Mamão | C35: 0.025 | D35: 255.9545 | F35: % Cobertura (CAPEX anual) | G35: 0.15 | L35: 30 | N35: =M35*(1+WACC!$D$22)^(L35-1) -> 0
B36: Maracujá | C36: 0.025 | D36: 255.9545 | F36: Prêmio | G36: 0.002 | L36: 31 | N36: =M36*(1+WACC!$D$22)^(L36-1) -> 0
B37: Uva | C37: 0.025 | D37: 255.9545 | F37: IOF | G37: 0.0738 | L37: 32 | N37: =M37*(1+WACC!$D$22)^(L37-1) -> 0
L38: 33 | N38: =M38*(1+WACC!$D$22)^(L38-1) -> 0
L39: 34 | N39: =M39*(1+WACC!$D$22)^(L39-1) -> 0
L40: 35 | N40: =M40*(1+WACC!$D$22)^(L40-1) -> 0
L41: Total | M41: =SUM(M6:M40) -> 198247395.5 | N41: =SUM(N6:N40) -> 321375310.7

Sheet DRE >>>>

Sheet FC Projeto
B2: FLUXO DE CAIXA DO PROJETO
D4: 2025 | E4: 2026 | F4: 2027 | G4: 2028 | H4: 2029 | I4: 2030 | J4: 2031 | K4: 2032 | L4: 2033 | M4: 2034 | N4: 2035 | O4: 2036 | P4: 2037 | Q4: 2038 | R4: 2039 | S4: 2040 | T4: 2041 | U4: 2042 | V4: 2043 | W4: 2044 | X4: 2045 | Y4: 2046 | Z4: 2047 | AA4: 2048 | AB4: 2049 | AC4: 2050 | AD4: 2051 | AE4: 2052 | AF4: 2053 | AG4: 2054 | AH4: 2055 | AI4: 2056 | AJ4: 2057 | AK4: 2058 | AL4: 2059
D5: 1 | E5: =D5+1 -> 2 | F5: =E5+1 -> 3 | G5: =F5+1 -> 4 | H5: =G5+1 -> 5 | I5: =H5+1 -> 6 | J5: =I5+1 -> 7 | K5: =J5+1 -> 8 | L5: =K5+1 -> 9 | M5: =L5+1 -> 10 | N5: =M5+1 -> 11 | O5: =N5+1 -> 12 | P5: =O5+1 -> 13 | Q5: =P5+1 -> 14 | R5: =Q5+1 -> 15 | S5: =R5+1 -> 16 | T5: =S5+1 -> 17 | U5: =T5+1 -> 18 | V5: =U5+1 -> 19 | W5: =V5+1 -> 20 | X5: =W5+1 -> 21 | Y5: =X5+1 -> 22 | Z5: =Y5+1 -> 23 | AA5: =Z5+1 -> 24 | AB5: =AA5+1 -> 25 | AC5: =AB5+1 -> 26 | AD5: =AC5+1 -> 27 | AE5: =AD5+1 -> 28 | AF5: =AE5+1 -> 29 | AG5: =AF5+1 -> 30 | AH5: =AG5+1 -> 31 | AI5: =AH5+1 -> 32 | AJ5: =AI5+1 -> 33 | AK5: =AJ5+1 -> 34 | AL5: =AK5+1 -> 35
B6: Área com início de cultivo no ano | D6: =IF(D5<10,VLOOKUP(D5,'Painel de Controle'!$B$10:$C$20,2,FALSE),0) -> 0 | E6: =IF(E5<10,VLOOKUP(E5,'Painel de Controle'!$B$10:$C$20,2,FALSE),0) -> 0 | F6: =IF(F5<10,VLOOKUP(F5,'Painel de Controle'!$B$10:$C$20,2,FALSE),0) -> 0 | G6: =IF(G5<10,VLOOKUP(G5,'Painel de Controle'!$B$10:$C$20,2,FALSE),0) -> 3739.57 | H6: =IF(H5<10,VLOOKUP(H5,'Painel de Controle'!$B$10:$C$20,2,FALSE),0) -> 2658.84 | I6: =IF(I5<10,VLOOKUP(I5,'Painel de Controle'!$B$10:$C$20,2,FALSE),0) -> 2019 | J6: =IF(J5<10,VLOOKUP(J5,'Painel de Controle'!$B$10:$C$20,2,FALSE),0) -> 1097.44 | K6: =IF(K5<10,VLOOKUP(K5,'Painel de Controle'!$B$10:$C$20,2,FALSE),0) -> 723.33 | L6: =IF(L5<10,VLOOKUP(L5,'Painel de Controle'!$B$10:$C$20,2,FALSE),0) -> 0 | M6: =IF(M5<10,VLOOKUP(M5,'Painel de Controle'!$B$10:$C$20,2,FALSE),0) -> 0 | N6: =IF(N5<10,VLOOKUP(N5,'Painel de Controle'!$B$10:$C$20,2,FALSE),0) -> 0 | O6: =IF(O5<10,VLOOKUP(O5,'Painel de Controle'!$B$10:$C$20,2,FALSE),0) -> 0 | P6: =IF(P5<10,VLOOKUP(P5,'Painel de Controle'!$B$10:$C$20,2,FALSE),0) -> 0 | Q6: =IF(Q5<10,VLOOKUP(Q5,'Painel de Controle'!$B$10:$C$20,2,FALSE),0) -> 0 | R6: =IF(R5<10,VLOOKUP(R5,'Painel de Controle'!$B$10:$C$20,2,FALSE),0) -> 0 | S6: =IF(S5<10,VLOOKUP(S5,'Painel de Controle'!$B$10:$C$20,2,FALSE),0) -> 0 | T6: =IF(T5<10,VLOOKUP(T5,'Painel de Controle'!$B$10:$C$20,2,FALSE),0) -> 0 | U6: =IF(U5<10,VLOOKUP(U5,'Painel de Controle'!$B$10:$C$20,2,FALSE),0) -> 0 | V6: =IF(V5<10,VLOOKUP(V5,'Painel de Controle'!$B$10:$C$20,2,FALSE),0) -> 0 | W6: =IF(W5<10,VLOOKUP(W5,'Painel de Controle'!$B$10:$C$20,2,FALSE),0) -> 0 | X6: =IF(X5<10,VLOOKUP(X5,'Painel de Controle'!$B$10:$C$20,2,FALSE),0) -> 0 | Y6: =IF(Y5<10,VLOOKUP(Y5,'Painel de Controle'!$B$10:$C$20,2,FALSE),0) -> 0 | Z6: =IF(Z5<10,VLOOKUP(Z5,'Painel de Controle'!$B$10:$C$20,2,FALSE),0) -> 0 | AA6: =IF(AA5<10,VLOOKUP(AA5,'Painel de Controle'!$B$10:$C$20,2,FALSE),0) -> 0 | AB6: =IF(AB5<10,VLOOKUP(AB5,'Painel de Controle'!$B$10:$C$20,2,FALSE),0) -> 0 | AC6: =IF(AC5<10,VLOOKUP(AC5,'Painel de Controle'!$B$10:$C$20,2,FALSE),0) -> 0 | AD6: =IF(AD5<10,VLOOKUP(AD5,'Painel de Controle'!$B$10:$C$20,2,FALSE),0) -> 0 | AE6: =IF(AE5<10,VLOOKUP(AE5,'Painel de Controle'!$B$10:$C$20,2,FALSE),0) -> 0 | AF6: =IF(AF5<10,VLOOKUP(AF5,'Painel de Controle'!$B$10:$C$20,2,FALSE),0) -> 0 | AG6: =IF(AG5<10,VLOOKUP(AG5,'Painel de Controle'!$B$10:$C$20,2,FALSE),0) -> 0 | AH6: =IF(AH5<10,VLOOKUP(AH5,'Painel de Controle'!$B$10:$C$20,2,FALSE),0) -> 0 | AI6: =IF(AI5<10,VLOOKUP(AI5,'Painel de Controle'!$B$10:$C$20,2,FALSE),0) -> 0 | AJ6: =IF(AJ5<10,VLOOKUP(AJ5,'Painel de Controle'!$B$10:$C$20,2,FALSE),0) -> 0 | AK6: =IF(AK5<10,VLOOKUP(AK5,'Painel de Controle'!$B$10:$C$20,2,FALSE),0) -> 0 | AL6: =IF(AL5<10,VLOOKUP(AL5,'Painel de Controle'!$B$10:$C$20,2,FALSE),0) -> 0
B7: Área Cultivada | D7: =D6 -> 0 | E7: =D7+E6 -> 0 | F7: =E7+F6 -> 0 | G7: 3739.57 | H7: 6398.41 | I7: 8417.41 | J7: 9514.85 | K7: 10238.18 | L7: 10238.18 | M7: 10238.18 | N7: 10238.18 | O7: 10238.18 | P7: 10238.18 | Q7: 10238.18 | R7: 10238.18 | S7: 10238.18 | T7: 10238.18 | U7: 10238.18 | V7: 10238.18 | W7: 10238.18 | X7: 10238.18 | Y7: 10238.18 | Z7: 10238.18 | AA7: 10238.18 | AB7: 10238.18 | AC7: 10238.18 | AD7: 10238.18 | AE7: 10238.18 | AF7: 10238.18 | AG7: 10238.18 | AH7: 10238.18 | AI7: 10238.18 | AJ7: 10238.18 | AK7: 10238.18 | AL7: 10238.18
B8: % Área Cultivada | D8: =D7/SUM($D$6:$AL$6) -> 0 | E8: =E7/SUM($D$6:$AL$6) -> 0 | F8: 0 | G8: 0.3652573016 | H8: 0.6249558027 | I8: 0.8221588212 | J8: 0.9293497477 | K8: 1 | L8: 1 | M8: 1 | N8: 1 | O8: 1 | P8: 1 | Q8: 1 | R8: 1 | S8: 1 | T8: 1 | U8: 1 | V8: 1 | W8: 1 | X8: 1 | Y8: 1 | Z8: 1 | AA8: 1 | AB8: 1 | AC8: 1 | AD8: 1 | AE8: 1 | AF8: 1 | AG8: 1 | AH8: 1 | AI8: 1 | AJ8: 1 | AK8: 1 | AL8: 1
B9: % CAPEX Infraestrutura de Irrigação | D9: =SUM(CAPEX!F$20:F$48)/SUM(CAPEX!$E$20:$E$48) -> 0 | E9: =SUM(CAPEX!G$20:G$48)/SUM(CAPEX!$E$20:$E$48) -> 0.1516939285 | F9: =SUM(CAPEX!H$20:H$48)/SUM(CAPEX!$E$20:$E$48) -> 0.4384239708 | G9: =SUM(CAPEX!I$20:I$48)/SUM(CAPEX!$E$20:$E$48) -> 0.2273736749 | H9: =SUM(CAPEX!J$20:J$48)/SUM(CAPEX!$E$20:$E$48) -> 0.1011923544 | I9: =SUM(CAPEX!K$20:K$48)/SUM(CAPEX!$E$20:$E$48) -> 0.08131607148 | J9: =SUM(CAPEX!L$20:L$48)/SUM(CAPEX!$E$20:$E$48) -> 0
B10: % Implantação Infraestrutura de Irrigação | D10: =D9 -> 0 | E10: =D10+E9 -> 0.1516939285 | F10: =E10+F9 -> 0.5901178993 | G10: 0.8174915741 | H10: 0.9186839285 | I10: 1 | J10: 1 | K10: =J10 -> 1 | L10: =K10 -> 1 | M10: 1 | N10: 1 | O10: 1 | P10: 1 | Q10: 1 | R10: 1 | S10: 1 | T10: 1 | U10: 1 | V10: 1 | W10: 1 | X10: 1 | Y10: 1 | Z10: 1 | AA10: 1 | AB10: 1 | AC10: 1 | AD10: 1 | AE10: 1 | AF10: 1 | AG10: 1 | AH10: 1 | AI10: 1 | AJ10: 1 | AK10: 1 | AL10: 1
B12: Demonstração de Resultados do Exercício (R$ mil) | C12: TOTAL | D12: 1 | E12: =D12+1 -> 2 | F12: =E12+1 -> 3 | G12: 4 | H12: 5 | I12: 6 | J12: 7 | K12: 8 | L12: 9 | M12: 10 | N12: 11 | O12: 12 | P12: 13 | Q12: 14 | R12: 15 | S12: 16 | T12: 17 | U12: 18 | V12: 19 | W12: 20 | X12: 21 | Y12: 22 | Z12: 23 | AA12: 24 | AB12: 25 | AC12: 26 | AD12: 27 | AE12: 28 | AF12: 29 | AG12: 30 | AH12: 31 | AI12: 32 | AJ12: 33 | AK12: 34 | AL12: 35
B14: Receita Operacional Bruta | C14: =SUM(D14:AL14) -> 14597616.2 | D14: ='Resultados Cultivos'!D6*(1+Sensibilidade!$D3) -> 0 | E14: ='Resultados Cultivos'!E6*(1+Sensibilidade!$D3) -> 0 | F14: ='Resultados Cultivos'!F6*(1+Sensibilidade!$D3) -> 0 | G14: ='Resultados Cultivos'!G6*(1+Sensibilidade!$D3) -> 173441.3563 | H14: ='Resultados Cultivos'!H6*(1+Sensibilidade!$D3) -> 296758.4264 | I14: ='Resultados Cultivos'!I6*(1+Sensibilidade!$D3) -> 390399.7003 | J14: ='Resultados Cultivos'!J6*(1+Sensibilidade!$D3) -> 441298.9967 | K14: ='Resultados Cultivos'!K6*(1+Sensibilidade!$D3) -> 474847.0614 | L14: ='Resultados Cultivos'!L6*(1+Sensibilidade!$D3) -> 474847.0614 | M14: ='Resultados Cultivos'!M6*(1+Sensibilidade!$D3) -> 474847.0614 | N14: ='Resultados Cultivos'!N6*(1+Sensibilidade!$D3) -> 474847.0614 | O14: ='Resultados Cultivos'!O6*(1+Sensibilidade!$D3) -> 474847.0614 | P14: ='Resultados Cultivos'!P6*(1+Sensibilidade!$D3) -> 474847.0614 | Q14: ='Resultados Cultivos'!Q6*(1+Sensibilidade!$D3) -> 474847.0614 | R14: ='Resultados Cultivos'!R6*(1+Sensibilidade!$D3) -> 474847.0614 | S14: ='Resultados Cultivos'!S6*(1+Sensibilidade!$D3) -> 474847.0614 | T14: ='Resultados Cultivos'!T6*(1+Sensibilidade!$D3) -> 474847.0614 | U14: ='Resultados Cultivos'!U6*(1+Sensibilidade!$D3) -> 474847.0614 | V14: ='Resultados Cultivos'!V6*(1+Sensibilidade!$D3) -> 474847.0614 | W14: ='Resultados Cultivos'!W6*(1+Sensibilidade!$D3) -> 474847.0614 | X14: ='Resultados Cultivos'!X6*(1+Sensibilidade!$D3) -> 474847.0614 | Y14: ='Resultados Cultivos'!Y6*(1+Sensibilidade!$D3) -> 474847.0614 | Z14: ='Resultados Cultivos'!Z6*(1+Sensibilidade!$D3) -> 474847.0614 | AA14: ='Resultados Cultivos'!AA6*(1+Sensibilidade!$D3) -> 474847.0614 | AB14: ='Resultados Cultivos'!AB6*(1+Sensibilidade!$D3) -> 474847.0614 | AC14: ='Resultados Cultivos'!AC6*(1+Sensibilidade!$D3) -> 474847.0614 | AD14: ='Resultados Cultivos'!AD6*(1+Sensibilidade!$D3) -> 474847.0614 | AE14: ='Resultados Cultivos'!AE6*(1+Sensibilidade!$D3) -> 474847.0614 | AF14: ='Resultados Cultivos'!AF6*(1+Sensibilidade!$D3) -> 474847.0614 | AG14: ='Resultados Cultivos'!AG6*(1+Sensibilidade!$D3) -> 474847.0614 | AH14: ='Resultados Cultivos'!AH6*(1+Sensibilidade!$D3) -> 474847.0614 | AI14: ='Resultados Cultivos'!AI6*(1+Sensibilidade!$D3) -> 474847.0614 | AJ14: ='Resultados Cultivos'!AJ6*(1+Sensibilidade!$D3) -> 474847.0614 | AK14: ='Resultados Cultivos'!AK6*(1+Sensibilidade!$D3) -> 474847.0614 | AL14: ='Resultados Cultivos'!AL6*(1+Sensibilidade!$D3) -> 474847.0614
B16: Deduções sobre a Receita Operacional | C16: =SUM(D16:AL16) -> -941400.3096 | D16: =SUM(D17:D20) -> -2498.132912 | E16: =SUM(E17:E20) -> -2498.132912 | F16: -2498.132912 | G16: -12644.51297 | H16: -19858.60474 | I16: -25336.65204 | J16: -28314.2787 | K16: -30276.85223 | L16: -30276.85223 | M16: -30276.85223 | N16: -30276.85223 | O16: -30276.85223 | P16: -30276.85223 | Q16: -30276.85223 | R16: -30276.85223 | S16: -30276.85223 | T16: -30276.85223 | U16: -30276.85223 | V16: -30276.85223 | W16: -30276.85223 | X16: -30276.85223 | Y16: -30276.85223 | Z16: -30276.85223 | AA16: -30276.85223 | AB16: -30276.85223 | AC16: -30276.85223 | AD16: -30276.85223 | AE16: -30276.85223 | AF16: -30276.85223 | AG16: -30276.85223 | AH16: -30276.85223 | AI16: -30276.85223 | AJ16: -30276.85223 | AK16: -30276.85223 | AL16: -30276.85223
B17: PIS | C17: =SUM(D17:AL17) -> -98949.07754 | D17: =-Tributação!D16 -> 0 | E17: =-Tributação!E16 -> 0 | F17: =-Tributação!F16 -> 0 | G17: =-Tributação!G16 -> -1175.66197 | H17: =-Tributação!H16 -> -2011.559432 | I17: =-Tributação!I16 -> -2646.301265 | J17: =-Tributação!J16 -> -2991.319134 | K17: =-Tributação!K16 -> -3218.722705 | L17: =-Tributação!L16 -> -3218.722705 | M17: =-Tributação!M16 -> -3218.722705 | N17: =-Tributação!N16 -> -3218.722705 | O17: =-Tributação!O16 -> -3218.722705 | P17: =-Tributação!P16 -> -3218.722705 | Q17: =-Tributação!Q16 -> -3218.722705 | R17: =-Tributação!R16 -> -3218.722705 | S17: =-Tributação!S16 -> -3218.722705 | T17: =-Tributação!T16 -> -3218.722705 | U17: =-Tributação!U16 -> -3218.722705 | V17: =-Tributação!V16 -> -3218.722705 | W17: =-Tributação!W16 -> -3218.722705 | X17: =-Tributação!X16 -> -3218.722705 | Y17: =-Tributação!Y16 -> -3218.722705 | Z17: =-Tributação!Z16 -> -3218.722705 | AA17: =-Tributação!AA16 -> -3218.722705 | AB17: =-Tributação!AB16 -> -3218.722705 | AC17: =-Tributação!AC16 -> -3218.722705 | AD17: =-Tributação!AD16 -> -3218.722705 | AE17: =-Tributação!AE16 -> -3218.722705 | AF17: =-Tributação!AF16 -> -3218.722705 | AG17: =-Tributação!AG16 -> -3218.722705 | AH17: =-Tributação!AH16 -> -3218.722705 | AI17: =-Tributação!AI16 -> -3218.722705 | AJ17: =-Tributação!AJ16 -> -3218.722705 | AK17: =-Tributação!AK16 -> -3218.722705 | AL17: =-Tributação!AL16 -> -3218.722705
B18: COFINS | C18: -455765.4481 | D18: =-Tributação!D17 -> 0 | E18: =-Tributação!E17 -> 0 | F18: =-Tributação!F17 -> 0 | G18: =-Tributação!G17 -> -5415.170285 | H18: =-Tributação!H17 -> -9265.364655 | I18: =-Tributação!I17 -> -12189.02401 | J18: =-Tributação!J17 -> -13778.19722 | K18: =-Tributação!K17 -> -14825.63185 | L18: =-Tributação!L17 -> -14825.63185 | M18: =-Tributação!M17 -> -14825.63185 | N18: =-Tributação!N17 -> -14825.63185 | O18: =-Tributação!O17 -> -14825.63185 | P18: =-Tributação!P17 -> -14825.63185 | Q18: =-Tributação!Q17 -> -14825.63185 | R18: =-Tributação!R17 -> -14825.63185 | S18: =-Tributação!S17 -> -14825.63185 | T18: =-Tributação!T17 -> -14825.63185 | U18: =-Tributação!U17 -> -14825.63185 | V18: =-Tributação!V17 -> -14825.63185 | W18: =-Tributação!W17 -> -14825.63185 | X18: =-Tributação!X17 -> -14825.63185 | Y18: =-Tributação!Y17 -> -14825.63185 | Z18: =-Tributação!Z17 -> -14825.63185 | AA18: =-Tributação!AA17 -> -14825.63185 | AB18: =-Tributação!AB17 -> -14825.63185 | AC18: =-Tributação!AC17 -> -14825.63185 | AD18: =-Tributação!AD17 -> -14825.63185 | AE18: =-Tributação!AE17 -> -14825.63185 | AF18: =-Tributação!AF17 -> -14825.63185 | AG18: =-Tributação!AG17 -> -14825.63185 | AH18: =-Tributação!AH17 -> -14825.63185 | AI18: =-Tributação!AI17 -> -14825.63185 | AJ18: =-Tributação!AJ17 -> -14825.63185 | AK18: =-Tributação!AK17 -> -14825.63185 | AL18: =-Tributação!AL17 -> -14825.63185
B19: FUNRURAL | C19: -299251.1321 | D19: =-'Painel de Controle'!$G$8*'FC Projeto'!D14 -> 0 | E19: =-'Painel de Controle'!$G$8*'FC Projeto'!E14 -> 0 | F19: =-'Painel de Controle'!$G$8*'FC Projeto'!F14 -> 0 | G19: =-'Painel de Controle'!$G$8*'FC Projeto'!G14 -> -3555.547805 | H19: =-'Painel de Controle'!$G$8*'FC Projeto'!H14 -> -6083.547742 | I19: =-'Painel de Controle'!$G$8*'FC Projeto'!I14 -> -8003.193855 | J19: =-'Painel de Controle'!$G$8*'FC Projeto'!J14 -> -9046.629433 | K19: =-'Painel de Controle'!$G$8*'FC Projeto'!K14 -> -9734.364759 | L19: =-'Painel de Controle'!$G$8*'FC Projeto'!L14 -> -9734.364759 | M19: =-'Painel de Controle'!$G$8*'FC Projeto'!M14 -> -9734.364759 | N19: =-'Painel de Controle'!$G$8*'FC Projeto'!N14 -> -9734.364759 | O19: =-'Painel de Controle'!$G$8*'FC Projeto'!O14 -> -9734.364759 | P19: =-'Painel de Controle'!$G$8*'FC Projeto'!P14 -> -9734.364759 | Q19: =-'Painel de Controle'!$G$8*'FC Projeto'!Q14 -> -9734.364759 | R19: =-'Painel de Controle'!$G$8*'FC Projeto'!R14 -> -9734.364759 | S19: =-'Painel de Controle'!$G$8*'FC Projeto'!S14 -> -9734.364759 | T19: =-'Painel de Controle'!$G$8*'FC Projeto'!T14 -> -9734.364759 | U19: =-'Painel de Controle'!$G$8*'FC Projeto'!U14 -> -9734.364759 | V19: =-'Painel de Controle'!$G$8*'FC Projeto'!V14 -> -9734.364759 | W19: =-'Painel de Controle'!$G$8*'FC Projeto'!W14 -> -9734.364759 | X19: =-'Painel de Controle'!$G$8*'FC Projeto'!X14 -> -9734.364759 | Y19: =-'Painel de Controle'!$G$8*'FC Projeto'!Y14 -> -9734.364759 | Z19: =-'Painel de Controle'!$G$8*'FC Projeto'!Z14 -> -9734.364759 | AA19: =-'Painel de Controle'!$G$8*'FC Projeto'!AA14 -> -9734.364759 | AB19: =-'Painel de Controle'!$G$8*'FC Projeto'!AB14 -> -9734.364759 | AC19: =-'Painel de Controle'!$G$8*'FC Projeto'!AC14 -> -9734.364759 | AD19: =-'Painel de Controle'!$G$8*'FC Projeto'!AD14 -> -9734.364759 | AE19: =-'Painel de Controle'!$G$8*'FC Projeto'!AE14 -> -9734.364759 | AF19: =-'Painel de Controle'!$G$8*'FC Projeto'!AF14 -> -9734.364759 | AG19: =-'Painel de Controle'!$G$8*'FC Projeto'!AG14 -> -9734.364759 | AH19: =-'Painel de Controle'!$G$8*'FC Projeto'!AH14 -> -9734.364759 | AI19: =-'Painel de Controle'!$G$8*'FC Projeto'!AI14 -> -9734.364759 | AJ19: =-'Painel de Controle'!$G$8*'FC Projeto'!AJ14 -> -9734.364759 | AK19: =-'Painel de Controle'!$G$8*'FC Projeto'!AK14 -> -9734.364759 | AL19: =-'Painel de Controle'!$G$8*'FC Projeto'!AL14 -> -9734.364759
B20: ITR | C20: =SUM(D20:AL20) -> -87434.65193 | D20: =-'Painel de Controle'!$D$7*'Painel de Controle'!$G$19/1000 -> -2498.132912 | E20: =-'Painel de Controle'!$D$7*'Painel de Controle'!$G$19/1000 -> -2498.132912 | F20: =-'Painel de Controle'!$D$7*'Painel de Controle'!$G$19/1000 -> -2498.132912 | G20: =-'Painel de Controle'!$D$7*'Painel de Controle'!$G$19/1000 -> -2498.132912 | H20: =-'Painel de Controle'!$D$7*'Painel de Controle'!$G$19/1000 -> -2498.132912 | I20: =-'Painel de Controle'!$D$7*'Painel de Controle'!$G$19/1000 -> -2498.132912 | J20: =-'Painel de Controle'!$D$7*'Painel de Controle'!$G$19/1000 -> -2498.132912 | K20: =-'Painel de Controle'!$D$7*'Painel de Controle'!$G$19/1000 -> -2498.132912 | L20: =-'Painel de Controle'!$D$7*'Painel de Controle'!$G$19/1000 -> -2498.132912 | M20: =-'Painel de Controle'!$D$7*'Painel de Controle'!$G$19/1000 -> -2498.132912 | N20: =-'Painel de Controle'!$D$7*'Painel de Controle'!$G$19/1000 -> -2498.132912 | O20: =-'Painel de Controle'!$D$7*'Painel de Controle'!$G$19/1000 -> -2498.132912 | P20: =-'Painel de Controle'!$D$7*'Painel de Controle'!$G$19/1000 -> -2498.132912 | Q20: =-'Painel de Controle'!$D$7*'Painel de Controle'!$G$19/1000 -> -2498.132912 | R20: =-'Painel de Controle'!$D$7*'Painel de Controle'!$G$19/1000 -> -2498.132912 | S20: =-'Painel de Controle'!$D$7*'Painel de Controle'!$G$19/1000 -> -2498.132912 | T20: =-'Painel de Controle'!$D$7*'Painel de Controle'!$G$19/1000 -> -2498.132912 | U20: =-'Painel de Controle'!$D$7*'Painel de Controle'!$G$19/1000 -> -2498.132912 | V20: =-'Painel de Controle'!$D$7*'Painel de Controle'!$G$19/1000 -> -2498.132912 | W20: =-'Painel de Controle'!$D$7*'Painel de Controle'!$G$19/1000 -> -2498.132912 | X20: =-'Painel de Controle'!$D$7*'Painel de Controle'!$G$19/1000 -> -2498.132912 | Y20: =-'Painel de Controle'!$D$7*'Painel de Controle'!$G$19/1000 -> -2498.132912 | Z20: =-'Painel de Controle'!$D$7*'Painel de Controle'!$G$19/1000 -> -2498.132912 | AA20: =-'Painel de Controle'!$D$7*'Painel de Controle'!$G$19/1000 -> -2498.132912 | AB20: =-'Painel de Controle'!$D$7*'Painel de Controle'!$G$19/1000 -> -2498.132912 | AC20: =-'Painel de Controle'!$D$7*'Painel de Controle'!$G$19/1000 -> -2498.132912 | AD20: =-'Painel de Controle'!$D$7*'Painel de Controle'!$G$19/1000 -> -2498.132912 | AE20: =-'Painel de Controle'!$D$7*'Painel de Controle'!$G$19/1000 -> -2498.132912 | AF20: =-'Painel de Controle'!$D$7*'Painel de Controle'!$G$19/1000 -> -2498.132912 | AG20: =-'Painel de Controle'!$D$7*'Painel de Controle'!$G$19/1000 -> -2498.132912 | AH20: =-'Painel de Controle'!$D$7*'Painel de Controle'!$G$19/1000 -> -2498.132912 | AI20: =-'Painel de Controle'!$D$7*'Painel de Controle'!$G$19/1000 -> -2498.132912 | AJ20: =-'Painel de Controle'!$D$7*'Painel de Controle'!$G$19/1000 -> -2498.132912 | AK20: =-'Painel de Controle'!$D$7*'Painel de Controle'!$G$19/1000 -> -2498.132912 | AL20: =-'Painel de Controle'!$D$7*'Painel de Controle'!$G$19/1000 -> -2498.132912
B22: Receita Operacional Líquida | C22: =C14+C16 -> 13656215.89 | D22: =D14+D16 -> -2498.132912 | E22: =E14+E16 -> -2498.132912 | F22: -2498.132912 | G22: 160796.8434 | H22: 276899.8217 | I22: 365063.0482 | J22: 412984.718 | K22: 444570.2092 | L22: 444570.2092 | M22: 444570.2092 | N22: 444570.2092 | O22: 444570.2092 | P22: 444570.2092 | Q22: 444570.2092 | R22: 444570.2092 | S22: 444570.2092 | T22: 444570.2092 | U22: 444570.2092 | V22: 444570.2092 | W22: 444570.2092 | X22: 444570.2092 | Y22: 444570.2092 | Z22: 444570.2092 | AA22: 444570.2092 | AB22: 444570.2092 | AC22: 444570.2092 | AD22: 444570.2092 | AE22: 444570.2092 | AF22: 444570.2092 | AG22: 444570.2092 | AH22: 444570.2092 | AI22: 444570.2092 | AJ22: 444570.2092 | AK22: 444570.2092 | AL22: 444570.2092
D23: 0 | E23: =E15 -> 0 | F23: 0 | G23: 0 | H23: 0 | I23: 0 | J23: 0 | K23: 0 | L23: 0 | M23: 0 | N23: 0 | P23: 0 | Q23: 0 | R23: 0 | S23: 0 | T23: 0 | U23: 0 | V23: 0 | W23: 0 | X23: 0 | Y23: 0 | Z23: 0 | AA23: 0 | AB23: 0 | AC23: 0 | AD23: 0 | AE23: 0 | AF23: 0 | AG23: 0 | AH23: 0 | AI23: 0 | AJ23: 0 | AK23: 0 | AL23: 0
B24: Custos e Despesas Operacionais | C24: =SUM(C25:C36) -> -9104340.77 | D24: =SUM(D25:D36)*(1+Sensibilidade!$D5) -> -39916.80824 | E24: =SUM(E25:E36)*(1+Sensibilidade!$D5) -> -1002.628639 | F24: =SUM(F25:F36)*(1+Sensibilidade!$D5) -> -3096.334235 | G24: =SUM(G25:G36)*(1+Sensibilidade!$D5) -> -106304.8831 | H24: =SUM(H25:H36)*(1+Sensibilidade!$D5) -> -263909.2607 | I24: =SUM(I25:I36)*(1+Sensibilidade!$D5) -> -239859.2196 | J24: =SUM(J25:J36)*(1+Sensibilidade!$D5) -> -270269.0403 | K24: =SUM(K25:K36)*(1+Sensibilidade!$D5) -> -293259.846 | L24: =SUM(L25:L36)*(1+Sensibilidade!$D5) -> -467981.9941 | M24: =SUM(M25:M36)*(1+Sensibilidade!$D5) -> -286838.6814 | N24: =SUM(N25:N36)*(1+Sensibilidade!$D5) -> -286153.4876 | O24: =SUM(O25:O36)*(1+Sensibilidade!$D5) -> -286162.6162 | P24: =SUM(P25:P36)*(1+Sensibilidade!$D5) -> -285368.0588 | Q24: =SUM(Q25:Q36)*(1+Sensibilidade!$D5) -> -285115.0039 | R24: =SUM(R25:R36)*(1+Sensibilidade!$D5) -> -285138.7382 | S24: =SUM(S25:S36)*(1+Sensibilidade!$D5) -> -285138.7382 | T24: =SUM(T25:T36)*(1+Sensibilidade!$D5) -> -285400.9218 | U24: =SUM(U25:U36)*(1+Sensibilidade!$D5) -> -285115.0039 | V24: =SUM(V25:V36)*(1+Sensibilidade!$D5) -> -285115.0039 | W24: =SUM(W25:W36)*(1+Sensibilidade!$D5) -> -285158.1322 | X24: =SUM(X25:X36)*(1+Sensibilidade!$D5) -> -285411.1871 | Y24: =SUM(Y25:Y36)*(1+Sensibilidade!$D5) -> -285167.2608 | Z24: =SUM(Z25:Z36)*(1+Sensibilidade!$D5) -> -285115.0039 | AA24: =SUM(AA25:AA36)*(1+Sensibilidade!$D5) -> -285115.0039 | AB24: =SUM(AB25:AB36)*(1+Sensibilidade!$D5) -> -285358.9302 | AC24: =SUM(AC25:AC36)*(1+Sensibilidade!$D5) -> -285105.8753 | AD24: =SUM(AD25:AD36)*(1+Sensibilidade!$D5) -> -285115.0039 | AE24: =SUM(AE25:AE36)*(1+Sensibilidade!$D5) -> -285115.0039 | AF24: =SUM(AF25:AF36)*(1+Sensibilidade!$D5) -> -285368.0588 | AG24: =SUM(AG25:AG36)*(1+Sensibilidade!$D5) -> -285188.9915 | AH24: =SUM(AH25:AH36)*(1+Sensibilidade!$D5) -> -285188.9915 | AI24: =SUM(AI25:AI36)*(1+Sensibilidade!$D5) -> -285198.1201 | AJ24: =SUM(AJ25:AJ36)*(1+Sensibilidade!$D5) -> -285368.0588 | AK24: =SUM(AK25:AK36)*(1+Sensibilidade!$D5) -> -285115.0039 | AL24: =SUM(AL25:AL36)*(1+Sensibilidade!$D5) -> -285105.8753
B25: Despesas Agrícolas | C25: =SUM(D25:AL25) -> -7732262.71 | D25: =-'Resultados Cultivos'!D7 -> 0 | E25: =-'Resultados Cultivos'!E7 -> 0 | F25: =-'Resultados Cultivos'!F7 -> 0 | G25: =-'Resultados Cultivos'!G7 -> -91870.76257 | H25: =-'Resultados Cultivos'!H7 -> -157191.0155 | I25: =-'Resultados Cultivos'!I7 -> -206792.1915 | J25: =-'Resultados Cultivos'!J7 -> -233753.219 | K25: =-'Resultados Cultivos'!K7 -> -251523.4115 | L25: =-'Resultados Cultivos'!L7 -> -251523.4115 | M25: =-'Resultados Cultivos'!M7 -> -251523.4115 | N25: =-'Resultados Cultivos'!N7 -> -251523.4115 | O25: =-'Resultados Cultivos'!O7 -> -251523.4115 | P25: =-'Resultados Cultivos'!P7 -> -251523.4115 | Q25: =-'Resultados Cultivos'!Q7 -> -251523.4115 | R25: =-'Resultados Cultivos'!R7 -> -251523.4115 | S25: =-'Resultados Cultivos'!S7 -> -251523.4115 | T25: =-'Resultados Cultivos'!T7 -> -251523.4115 | U25: =-'Resultados Cultivos'!U7 -> -251523.4115 | V25: =-'Resultados Cultivos'!V7 -> -251523.4115 | W25: =-'Resultados Cultivos'!W7 -> -251523.4115 | X25: =-'Resultados Cultivos'!X7 -> -251523.4115 | Y25: =-'Resultados Cultivos'!Y7 -> -251523.4115 | Z25: =-'Resultados Cultivos'!Z7 -> -251523.4115 | AA25: =-'Resultados Cultivos'!AA7 -> -251523.4115 | AB25: =-'Resultados Cultivos'!AB7 -> -251523.4115 | AC25: =-'Resultados Cultivos'!AC7 -> -251523.4115 | AD25: =-'Resultados Cultivos'!AD7 -> -251523.4115 | AE25: =-'Resultados Cultivos'!AE7 -> -251523.4115 | AF25: =-'Resultados Cultivos'!AF7 -> -251523.4115 | AG25: =-'Resultados Cultivos'!AG7 -> -251523.4115 | AH25: =-'Resultados Cultivos'!AH7 -> -251523.4115 | AI25: =-'Resultados Cultivos'!AI7 -> -251523.4115 | AJ25: =-'Resultados Cultivos'!AJ7 -> -251523.4115 | AK25: =-'Resultados Cultivos'!AK7 -> -251523.4115 | AL25: =-'Resultados Cultivos'!AL7 -> -251523.4115
B26: Energia | C26: =SUM(D26:AL26) -> -633080.0714 | D26: =-D7*Energia!$I$26/1000 -> 0 | E26: =-E7*Energia!$I$26/1000 -> 0 | F26: =-F7*Energia!$I$26/1000 -> 0 | G26: =-G7*Energia!$I$26/1000 -> -7521.931303 | H26: =-H7*Energia!$I$26/1000 -> -12870.03598 | I26: =-I7*Energia!$I$26/1000 -> -16931.13908 | J26: =-J7*Energia!$I$26/1000 -> -19138.57691 | K26: =-K7*Energia!$I$26/1000 -> -20593.51386 | L26: =-L7*Energia!$I$26/1000 -> -20593.51386 | M26: =-M7*Energia!$I$26/1000 -> -20593.51386 | N26: =-N7*Energia!$I$26/1000 -> -20593.51386 | O26: =-O7*Energia!$I$26/1000 -> -20593.51386 | P26: =-P7*Energia!$I$26/1000 -> -20593.51386 | Q26: =-Q7*Energia!$I$26/1000 -> -20593.51386 | R26: =-R7*Energia!$I$26/1000 -> -20593.51386 | S26: =-S7*Energia!$I$26/1000 -> -20593.51386 | T26: =-T7*Energia!$I$26/1000 -> -20593.51386 | U26: =-U7*Energia!$I$26/1000 -> -20593.51386 | V26: =-V7*Energia!$I$26/1000 -> -20593.51386 | W26: =-W7*Energia!$I$26/1000 -> -20593.51386 | X26: =-X7*Energia!$I$26/1000 -> -20593.51386 | Y26: =-Y7*Energia!$I$26/1000 -> -20593.51386 | Z26: =-Z7*Energia!$I$26/1000 -> -20593.51386 | AA26: =-AA7*Energia!$I$26/1000 -> -20593.51386 | AB26: =-AB7*Energia!$I$26/1000 -> -20593.51386 | AC26: =-AC7*Energia!$I$26/1000 -> -20593.51386 | AD26: =-AD7*Energia!$I$26/1000 -> -20593.51386 | AE26: =-AE7*Energia!$I$26/1000 -> -20593.51386 | AF26: =-AF7*Energia!$I$26/1000 -> -20593.51386 | AG26: =-AG7*Energia!$I$26/1000 -> -20593.51386 | AH26: =-AH7*Energia!$I$26/1000 -> -20593.51386 | AI26: =-AI7*Energia!$I$26/1000 -> -20593.51386 | AJ26: =-AJ7*Energia!$I$26/1000 -> -20593.51386 | AK26: =-AK7*Energia!$I$26/1000 -> -20593.51386 | AL26: =-AL7*Energia!$I$26/1000 -> -20593.51386
B27: Manutenção de Equipamentos | C27: =SUM(D27:AL27) -> -145375.65 | D27: =-D8*'Base Ativos'!$K$6/1000 -> 0 | E27: =-E8*'Base Ativos'!$K$6/1000 -> 0 | F27: =-F8*'Base Ativos'!$K$6/1000 -> 0 | G27: =-G8*'Base Ativos'!$K$6/1000 -> -1727.278589 | H27: =-H8*'Base Ativos'!$K$6/1000 -> -2955.376312 | I27: =-I8*'Base Ativos'!$K$6/1000 -> -3887.936866 | J27: =-J8*'Base Ativos'!$K$6/1000 -> -4394.835951 | K27: =-K8*'Base Ativos'!$K$6/1000 -> -4728.936509 | L27: =-L8*'Base Ativos'!$K$6/1000 -> -4728.936509 | M27: =-M8*'Base Ativos'!$K$6/1000 -> -4728.936509 | N27: =-N8*'Base Ativos'!$K$6/1000 -> -4728.936509 | O27: =-O8*'Base Ativos'!$K$6/1000 -> -4728.936509 | P27: =-P8*'Base Ativos'!$K$6/1000 -> -4728.936509 | Q27: =-Q8*'Base Ativos'!$K$6/1000 -> -4728.936509 | R27: =-R8*'Base Ativos'!$K$6/1000 -> -4728.936509 | S27: =-S8*'Base Ativos'!$K$6/1000 -> -4728.936509 | T27: =-T8*'Base Ativos'!$K$6/1000 -> -4728.936509 | U27: =-U8*'Base Ativos'!$K$6/1000 -> -4728.936509 | V27: =-V8*'Base Ativos'!$K$6/1000 -> -4728.936509 | W27: =-W8*'Base Ativos'!$K$6/1000 -> -4728.936509 | X27: =-X8*'Base Ativos'!$K$6/1000 -> -4728.936509 | Y27: =-Y8*'Base Ativos'!$K$6/1000 -> -4728.936509 | Z27: =-Z8*'Base Ativos'!$K$6/1000 -> -4728.936509 | AA27: =-AA8*'Base Ativos'!$K$6/1000 -> -4728.936509 | AB27: =-AB8*'Base Ativos'!$K$6/1000 -> -4728.936509 | AC27: =-AC8*'Base Ativos'!$K$6/1000 -> -4728.936509 | AD27: =-AD8*'Base Ativos'!$K$6/1000 -> -4728.936509 | AE27: =-AE8*'Base Ativos'!$K$6/1000 -> -4728.936509 | AF27: =-AF8*'Base Ativos'!$K$6/1000 -> -4728.936509 | AG27: =-AG8*'Base Ativos'!$K$6/1000 -> -4728.936509 | AH27: =-AH8*'Base Ativos'!$K$6/1000 -> -4728.936509 | AI27: =-AI8*'Base Ativos'!$K$6/1000 -> -4728.936509 | AJ27: =-AJ8*'Base Ativos'!$K$6/1000 -> -4728.936509 | AK27: =-AK8*'Base Ativos'!$K$6/1000 -> -4728.936509 | AL27: =-AL8*'Base Ativos'!$K$6/1000 -> -4728.936509
B28: Manutenção de Obras Civis | C28: -89983.97738 | D28: =-D8*'Base Ativos'!$K$7/1000 -> 0 | E28: =-E8*'Base Ativos'!$K$7/1000 -> 0 | F28: =-F8*'Base Ativos'!$K$7/1000 -> 0 | G28: =-G8*'Base Ativos'!$K$7/1000 -> -1069.143268 | H28: =-H8*'Base Ativos'!$K$7/1000 -> -1829.305769 | I28: =-I8*'Base Ativos'!$K$7/1000 -> -2406.53798 | J28: =-J8*'Base Ativos'!$K$7/1000 -> -2720.296136 | K28: =-K8*'Base Ativos'!$K$7/1000 -> -2927.096222 | L28: =-L8*'Base Ativos'!$K$7/1000 -> -2927.096222 | M28: =-M8*'Base Ativos'!$K$7/1000 -> -2927.096222 | N28: =-N8*'Base Ativos'!$K$7/1000 -> -2927.096222 | O28: =-O8*'Base Ativos'!$K$7/1000 -> -2927.096222 | P28: =-P8*'Base Ativos'!$K$7/1000 -> -2927.096222 | Q28: =-Q8*'Base Ativos'!$K$7/1000 -> -2927.096222 | R28: =-R8*'Base Ativos'!$K$7/1000 -> -2927.096222 | S28: =-S8*'Base Ativos'!$K$7/1000 -> -2927.096222 | T28: =-T8*'Base Ativos'!$K$7/1000 -> -2927.096222 | U28: =-U8*'Base Ativos'!$K$7/1000 -> -2927.096222 | V28: =-V8*'Base Ativos'!$K$7/1000 -> -2927.096222 | W28: =-W8*'Base Ativos'!$K$7/1000 -> -2927.096222 | X28: =-X8*'Base Ativos'!$K$7/1000 -> -2927.096222 | Y28: =-Y8*'Base Ativos'!$K$7/1000 -> -2927.096222 | Z28: =-Z8*'Base Ativos'!$K$7/1000 -> -2927.096222 | AA28: =-AA8*'Base Ativos'!$K$7/1000 -> -2927.096222 | AB28: =-AB8*'Base Ativos'!$K$7/1000 -> -2927.096222 | AC28: =-AC8*'Base Ativos'!$K$7/1000 -> -2927.096222 | AD28: =-AD8*'Base Ativos'!$K$7/1000 -> -2927.096222 | AE28: =-AE8*'Base Ativos'!$K$7/1000 -> -2927.096222 | AF28: =-AF8*'Base Ativos'!$K$7/1000 -> -2927.096222 | AG28: =-AG8*'Base Ativos'!$K$7/1000 -> -2927.096222 | AH28: =-AH8*'Base Ativos'!$K$7/1000 -> -2927.096222 | AI28: =-AI8*'Base Ativos'!$K$7/1000 -> -2927.096222 | AJ28: =-AJ8*'Base Ativos'!$K$7/1000 -> -2927.096222 | AK28: =-AK8*'Base Ativos'!$K$7/1000 -> -2927.096222 | AL28: =-AL8*'Base Ativos'!$K$7/1000 -> -2927.096222
B29: Despesas de Pessoal | C29: -116993.7851 | D29: =-D10*Despesas!$I$25/1000 -> 0 | E29: =-E10*Despesas!$I$25/1000 -> -546.4392447 | F29: =-F10*Despesas!$I$25/1000 -> -2125.751389 | G29: =-G10*Despesas!$I$25/1000 -> -2944.807896 | H29: =-H10*Despesas!$I$25/1000 -> -3309.327915 | I29: =-I10*Despesas!$I$25/1000 -> -3602.248621 | J29: =-J10*Despesas!$I$25/1000 -> -3602.248621 | K29: =-K10*Despesas!$I$25/1000 -> -3602.248621 | L29: =-L10*Despesas!$I$25/1000 -> -3602.248621 | M29: =-M10*Despesas!$I$25/1000 -> -3602.248621 | N29: =-N10*Despesas!$I$25/1000 -> -3602.248621 | O29: =-O10*Despesas!$I$25/1000 -> -3602.248621 | P29: =-P10*Despesas!$I$25/1000 -> -3602.248621 | Q29: =-Q10*Despesas!$I$25/1000 -> -3602.248621 | R29: =-R10*Despesas!$I$25/1000 -> -3602.248621 | S29: =-S10*Despesas!$I$25/1000 -> -3602.248621 | T29: =-T10*Despesas!$I$25/1000 -> -3602.248621 | U29: =-U10*Despesas!$I$25/1000 -> -3602.248621 | V29: =-V10*Despesas!$I$25/1000 -> -3602.248621 | W29: =-W10*Despesas!$I$25/1000 -> -3602.248621 | X29: =-X10*Despesas!$I$25/1000 -> -3602.248621 | Y29: =-Y10*Despesas!$I$25/1000 -> -3602.248621 | Z29: =-Z10*Despesas!$I$25/1000 -> -3602.248621 | AA29: =-AA10*Despesas!$I$25/1000 -> -3602.248621 | AB29: =-AB10*Despesas!$I$25/1000 -> -3602.248621 | AC29: =-AC10*Despesas!$I$25/1000 -> -3602.248621 | AD29: =-AD10*Despesas!$I$25/1000 -> -3602.248621 | AE29: =-AE10*Despesas!$I$25/1000 -> -3602.248621 | AF29: =-AF10*Despesas!$I$25/1000 -> -3602.248621 | AG29: =-AG10*Despesas!$I$25/1000 -> -3602.248621 | AH29: =-AH10*Despesas!$I$25/1000 -> -3602.248621 | AI29: =-AI10*Despesas!$I$25/1000 -> -3602.248621 | AJ29: =-AJ10*Despesas!$I$25/1000 -> -3602.248621 | AK29: =-AK10*Despesas!$I$25/1000 -> -3602.248621 | AL29: =-AL10*Despesas!$I$25/1000 -> -3602.248621
B30: Meio Ambiente | C30: =SUM(D30:AL30) -> -26442.59685 | D30: 0 | E30: 0 | F30: 0 | G30: 0 | H30: 0 | I30: 0 | J30: 0 | K30: =-IF('Painel de Controle'!$G$16="S",CAPEX!M76*(1-'Painel de Controle'!$G$17),CAPEX!M76)/1000 -> -2831.333103 | L30: =-IF('Painel de Controle'!$G$16="S",CAPEX!N76*(1-'Painel de Controle'!$G$17),CAPEX!N76)/1000 -> -2588.788589 | M30: =-IF('Painel de Controle'!$G$16="S",CAPEX!O76*(1-'Painel de Controle'!$G$17),CAPEX!O76)/1000 -> -2335.733638 | N30: =-IF('Painel de Controle'!$G$16="S",CAPEX!P76*(1-'Painel de Controle'!$G$17),CAPEX!P76)/1000 -> -1650.539823 | O30: =-IF('Painel de Controle'!$G$16="S",CAPEX!Q76*(1-'Painel de Controle'!$G$17),CAPEX!Q76)/1000 -> -1650.539823 | P30: =-IF('Painel de Controle'!$G$16="S",CAPEX!R76*(1-'Painel de Controle'!$G$17),CAPEX!R76)/1000 -> -855.9824376 | Q30: =-IF('Painel de Controle'!$G$16="S",CAPEX!S76*(1-'Painel de Controle'!$G$17),CAPEX!S76)/1000 -> -602.9274873 | R30: =-IF('Painel de Controle'!$G$16="S",CAPEX!T76*(1-'Painel de Controle'!$G$17),CAPEX!T76)/1000 -> -602.9274873 | S30: =-IF('Painel de Controle'!$G$16="S",CAPEX!U76*(1-'Painel de Controle'!$G$17),CAPEX!U76)/1000 -> -602.9274873 | T30: =-IF('Painel de Controle'!$G$16="S",CAPEX!V76*(1-'Painel de Controle'!$G$17),CAPEX!V76)/1000 -> -855.9824376 | U30: =-IF('Painel de Controle'!$G$16="S",CAPEX!W76*(1-'Painel de Controle'!$G$17),CAPEX!W76)/1000 -> -602.9274873 | V30: =-IF('Painel de Controle'!$G$16="S",CAPEX!X76*(1-'Painel de Controle'!$G$17),CAPEX!X76)/1000 -> -602.9274873 | W30: =-IF('Painel de Controle'!$G$16="S",CAPEX!Y76*(1-'Painel de Controle'!$G$17),CAPEX!Y76)/1000 -> -602.9274873 | X30: =-IF('Painel de Controle'!$G$16="S",CAPEX!Z76*(1-'Painel de Controle'!$G$17),CAPEX!Z76)/1000 -> -855.9824376 | Y30: =-IF('Painel de Controle'!$G$16="S",CAPEX!AA76*(1-'Painel de Controle'!$G$17),CAPEX!AA76)/1000 -> -602.9274873 | Z30: =-IF('Painel de Controle'!$G$16="S",CAPEX!AB76*(1-'Painel de Controle'!$G$17),CAPEX!AB76)/1000 -> -602.9274873 | AA30: =-IF('Painel de Controle'!$G$16="S",CAPEX!AC76*(1-'Painel de Controle'!$G$17),CAPEX!AC76)/1000 -> -602.9274873 | AB30: =-IF('Painel de Controle'!$G$16="S",CAPEX!AD76*(1-'Painel de Controle'!$G$17),CAPEX!AD76)/1000 -> -855.9824345 | AC30: =-IF('Painel de Controle'!$G$16="S",CAPEX!AE76*(1-'Painel de Controle'!$G$17),CAPEX!AE76)/1000 -> -602.9274842 | AD30: =-IF('Painel de Controle'!$G$16="S",CAPEX!AF76*(1-'Painel de Controle'!$G$17),CAPEX!AF76)/1000 -> -602.9274842 | AE30: =-IF('Painel de Controle'!$G$16="S",CAPEX!AG76*(1-'Painel de Controle'!$G$17),CAPEX!AG76)/1000 -> -602.9274842 | AF30: =-IF('Painel de Controle'!$G$16="S",CAPEX!AH76*(1-'Painel de Controle'!$G$17),CAPEX!AH76)/1000 -> -855.9824345 | AG30: =-IF('Painel de Controle'!$G$16="S",CAPEX!AI76*(1-'Painel de Controle'!$G$17),CAPEX!AI76)/1000 -> -602.9274842 | AH30: =-IF('Painel de Controle'!$G$16="S",CAPEX!AJ76*(1-'Painel de Controle'!$G$17),CAPEX!AJ76)/1000 -> -602.9274842 | AI30: =-IF('Painel de Controle'!$G$16="S",CAPEX!AK76*(1-'Painel de Controle'!$G$17),CAPEX!AK76)/1000 -> -602.9274842 | AJ30: =-IF('Painel de Controle'!$G$16="S",CAPEX!AL76*(1-'Painel de Controle'!$G$17),CAPEX!AL76)/1000 -> -855.9824345 | AK30: =-IF('Painel de Controle'!$G$16="S",CAPEX!AM76*(1-'Painel de Controle'!$G$17),CAPEX!AM76)/1000 -> -602.9274842 | AL30: =-IF('Painel de Controle'!$G$16="S",CAPEX!AN76*(1-'Painel de Controle'!$G$17),CAPEX!AN76)/1000 -> -602.9274842
B31: Outras Despesas | C31: =SUM(D31:AL31) -> -31034.40524 | D31: =-D10*(Despesas!$I$38+Despesas!$I$46)/1000 -> 0 | E31: =-E10*(Despesas!$I$38+Despesas!$I$46)/1000 -> -144.9514344 | F31: =-F10*(Despesas!$I$38+Despesas!$I$46)/1000 -> -563.8883297 | G31: =-G10*(Despesas!$I$38+Despesas!$I$46)/1000 -> -781.155696 | H31: =-H10*(Despesas!$I$38+Despesas!$I$46)/1000 -> -877.850251 | I31: =-I10*(Despesas!$I$38+Despesas!$I$46)/1000 -> -955.5519845 | J31: =-J10*(Despesas!$I$38+Despesas!$I$46)/1000 -> -955.5519845 | K31: =-K10*(Despesas!$I$38+Despesas!$I$46)/1000 -> -955.5519845 | L31: =-L10*(Despesas!$I$38+Despesas!$I$46)/1000 -> -955.5519845 | M31: =-M10*(Despesas!$I$38+Despesas!$I$46)/1000 -> -955.5519845 | N31: =-N10*(Despesas!$I$38+Despesas!$I$46)/1000 -> -955.5519845 | O31: =-O10*(Despesas!$I$38+Despesas!$I$46)/1000 -> -955.5519845 | P31: =-P10*(Despesas!$I$38+Despesas!$I$46)/1000 -> -955.5519845 | Q31: =-Q10*(Despesas!$I$38+Despesas!$I$46)/1000 -> -955.5519845 | R31: =-R10*(Despesas!$I$38+Despesas!$I$46)/1000 -> -955.5519845 | S31: =-S10*(Despesas!$I$38+Despesas!$I$46)/1000 -> -955.5519845 | T31: =-T10*(Despesas!$I$38+Despesas!$I$46)/1000 -> -955.5519845 | U31: =-U10*(Despesas!$I$38+Despesas!$I$46)/1000 -> -955.5519845 | V31: =-V10*(Despesas!$I$38+Despesas!$I$46)/1000 -> -955.5519845 | W31: =-W10*(Despesas!$I$38+Despesas!$I$46)/1000 -> -955.5519845 | X31: =-X10*(Despesas!$I$38+Despesas!$I$46)/1000 -> -955.5519845 | Y31: =-Y10*(Despesas!$I$38+Despesas!$I$46)/1000 -> -955.5519845 | Z31: =-Z10*(Despesas!$I$38+Despesas!$I$46)/1000 -> -955.5519845 | AA31: =-AA10*(Despesas!$I$38+Despesas!$I$46)/1000 -> -955.5519845 | AB31: =-AB10*(Despesas!$I$38+Despesas!$I$46)/1000 -> -955.5519845 | AC31: =-AC10*(Despesas!$I$38+Despesas!$I$46)/1000 -> -955.5519845 | AD31: =-AD10*(Despesas!$I$38+Despesas!$I$46)/1000 -> -955.5519845 | AE31: =-AE10*(Despesas!$I$38+Despesas!$I$46)/1000 -> -955.5519845 | AF31: =-AF10*(Despesas!$I$38+Despesas!$I$46)/1000 -> -955.5519845 | AG31: =-AG10*(Despesas!$I$38+Despesas!$I$46)/1000 -> -955.5519845 | AH31: =-AH10*(Despesas!$I$38+Despesas!$I$46)/1000 -> -955.5519845 | AI31: =-AI10*(Despesas!$I$38+Despesas!$I$46)/1000 -> -955.5519845 | AJ31: =-AJ10*(Despesas!$I$38+Despesas!$I$46)/1000 -> -955.5519845 | AK31: =-AK10*(Despesas!$I$38+Despesas!$I$46)/1000 -> -955.5519845 | AL31: =-AL10*(Despesas!$I$38+Despesas!$I$46)/1000 -> -955.5519845
B32: Outorga da Terra | C32: =SUM(D32:AL32) -> -321375.3107 | D32: =-VLOOKUP(D12,'Painel de Controle'!$L$6:$N$41,3,FALSE)/1000 -> -39649.4791 | E32: =-VLOOKUP(E12,'Painel de Controle'!$L$6:$N$41,3,FALSE)/1000 -> 0 | F32: =-VLOOKUP(F12,'Painel de Controle'!$L$6:$N$41,3,FALSE)/1000 -> 0 | G32: =-VLOOKUP(G12,'Painel de Controle'!$L$6:$N$41,3,FALSE)/1000 -> 0 | H32: =-VLOOKUP(H12,'Painel de Controle'!$L$6:$N$41,3,FALSE)/1000 -> -84537.50338 | I32: =-VLOOKUP(I12,'Painel de Controle'!$L$6:$N$41,3,FALSE)/1000 -> -4962.684222 | J32: =-VLOOKUP(J12,'Painel de Controle'!$L$6:$N$41,3,FALSE)/1000 -> -5418.721241 | K32: =-VLOOKUP(K12,'Painel de Controle'!$L$6:$N$41,3,FALSE)/1000 -> -5916.664969 | L32: =-VLOOKUP(L12,'Painel de Controle'!$L$6:$N$41,3,FALSE)/1000 -> -180890.2578 | M32: =-VLOOKUP(M12,'Painel de Controle'!$L$6:$N$41,3,FALSE)/1000 -> 0 | N32: =-VLOOKUP(N12,'Painel de Controle'!$L$6:$N$41,3,FALSE)/1000 -> 0 | O32: =-VLOOKUP(O12,'Painel de Controle'!$L$6:$N$41,3,FALSE)/1000 -> 0 | P32: =-VLOOKUP(P12,'Painel de Controle'!$L$6:$N$41,3,FALSE)/1000 -> 0 | Q32: =-VLOOKUP(Q12,'Painel de Controle'!$L$6:$N$41,3,FALSE)/1000 -> 0 | R32: =-VLOOKUP(R12,'Painel de Controle'!$L$6:$N$41,3,FALSE)/1000 -> 0 | S32: =-VLOOKUP(S12,'Painel de Controle'!$L$6:$N$41,3,FALSE)/1000 -> 0 | T32: =-VLOOKUP(T12,'Painel de Controle'!$L$6:$N$41,3,FALSE)/1000 -> 0 | U32: =-VLOOKUP(U12,'Painel de Controle'!$L$6:$N$41,3,FALSE)/1000 -> 0 | V32: =-VLOOKUP(V12,'Painel de Controle'!$L$6:$N$41,3,FALSE)/1000 -> 0 | W32: =-VLOOKUP(W12,'Painel de Controle'!$L$6:$N$41,3,FALSE)/1000 -> 0 | X32: =-VLOOKUP(X12,'Painel de Controle'!$L$6:$N$41,3,FALSE)/1000 -> 0 | Y32: =-VLOOKUP(Y12,'Painel de Controle'!$L$6:$N$41,3,FALSE)/1000 -> 0 | Z32: =-VLOOKUP(Z12,'Painel de Controle'!$L$6:$N$41,3,FALSE)/1000 -> 0 | AA32: =-VLOOKUP(AA12,'Painel de Controle'!$L$6:$N$41,3,FALSE)/1000 -> 0 | AB32: =-VLOOKUP(AB12,'Painel de Controle'!$L$6:$N$41,3,FALSE)/1000 -> 0 | AC32: =-VLOOKUP(AC12,'Painel de Controle'!$L$6:$N$41,3,FALSE)/1000 -> 0 | AD32: =-VLOOKUP(AD12,'Painel de Controle'!$L$6:$N$41,3,FALSE)/1000 -> 0 | AE32: =-VLOOKUP(AE12,'Painel de Controle'!$L$6:$N$41,3,FALSE)/1000 -> 0 | AF32: =-VLOOKUP(AF12,'Painel de Controle'!$L$6:$N$41,3,FALSE)/1000 -> 0 | AG32: =-VLOOKUP(AG12,'Painel de Controle'!$L$6:$N$41,3,FALSE)/1000 -> 0 | AH32: =-VLOOKUP(AH12,'Painel de Controle'!$L$6:$N$41,3,FALSE)/1000 -> 0 | AI32: =-VLOOKUP(AI12,'Painel de Controle'!$L$6:$N$41,3,FALSE)/1000 -> 0 | AJ32: =-VLOOKUP(AJ12,'Painel de Controle'!$L$6:$N$41,3,FALSE)/1000 -> 0 | AK32: =-VLOOKUP(AK12,'Painel de Controle'!$L$6:$N$41,3,FALSE)/1000 -> 0 | AL32: =-VLOOKUP(AL12,'Painel de Controle'!$L$6:$N$41,3,FALSE)/1000 -> 0
B33: Seguros e Garantias | C33: -3896.131615 | D33: =SUM(D34:D36) -> -133.6645729 | E33: =SUM(E34:E36) -> -155.6189798 | F33: -203.3472581 | G33: -194.901894 | H33: -169.4227806 | I33: -160.4646977 | J33: -142.7952255 | K33: -90.54462545 | L33: -86.09455936 | M33: -86.09455936 | N33: -86.09455936 | O33: -90.65885385 | P33: -90.65885385 | Q33: -90.65885385 | R33: -102.5260195 | S33: -102.5260195 | T33: -107.090314 | U33: -90.65885385 | V33: -90.65885385 | W33: -112.2230088 | X33: -112.2230088 | Y33: -116.7873033 | Z33: -90.65885385 | AA33: -90.65885385 | AB33: -86.09455936 | AC33: -86.09455936 | AD33: -90.65885385 | AE33: -90.65885385 | AF33: -90.65885385 | AG33: -127.6526699 | AH33: -127.6526699 | AI33: -132.2169644 | AJ33: -90.65885385 | AK33: -90.65885385 | AL33: -86.09455936
B34: Garantia de Execução | C34: -1442.722791 | D34: =-IF(D5<=7,'Painel de Controle'!$G$24,'Painel de Controle'!$G$25)*'Painel de Controle'!$G$26*'Painel de Controle'!$G$27*(1+'Painel de Controle'!$G$28) -> -77.10286932 | E34: =-IF(E5<=7,'Painel de Controle'!$G$24,'Painel de Controle'!$G$25)*'Painel de Controle'!$G$26*'Painel de Controle'!$G$27*(1+'Painel de Controle'!$G$28) -> -77.10286932 | F34: =-IF(F5<=7,'Painel de Controle'!$G$24,'Painel de Controle'!$G$25)*'Painel de Controle'!$G$26*'Painel de Controle'!$G$27*(1+'Painel de Controle'!$G$28) -> -77.10286932 | G34: =-IF(G5<=7,'Painel de Controle'!$G$24,'Painel de Controle'!$G$25)*'Painel de Controle'!$G$26*'Painel de Controle'!$G$27*(1+'Painel de Controle'!$G$28) -> -77.10286932 | H34: =-IF(H5<=7,'Painel de Controle'!$G$24,'Painel de Controle'!$G$25)*'Painel de Controle'!$G$26*'Painel de Controle'!$G$27*(1+'Painel de Controle'!$G$28) -> -77.10286932 | I34: =-IF(I5<=7,'Painel de Controle'!$G$24,'Painel de Controle'!$G$25)*'Painel de Controle'!$G$26*'Painel de Controle'!$G$27*(1+'Painel de Controle'!$G$28) -> -77.10286932 | J34: =-IF(J5<=7,'Painel de Controle'!$G$24,'Painel de Controle'!$G$25)*'Painel de Controle'!$G$26*'Painel de Controle'!$G$27*(1+'Painel de Controle'!$G$28) -> -77.10286932 | K34: =-IF(K5<=7,'Painel de Controle'!$G$24,'Painel de Controle'!$G$25)*'Painel de Controle'!$G$26*'Painel de Controle'!$G$27*(1+'Painel de Controle'!$G$28) -> -32.25009662 | L34: =-IF(L5<=7,'Painel de Controle'!$G$24,'Painel de Controle'!$G$25)*'Painel de Controle'!$G$26*'Painel de Controle'!$G$27*(1+'Painel de Controle'!$G$28) -> -32.25009662 | M34: =-IF(M5<=7,'Painel de Controle'!$G$24,'Painel de Controle'!$G$25)*'Painel de Controle'!$G$26*'Painel de Controle'!$G$27*(1+'Painel de Controle'!$G$28) -> -32.25009662 | N34: =-IF(N5<=7,'Painel de Controle'!$G$24,'Painel de Controle'!$G$25)*'Painel de Controle'!$G$26*'Painel de Controle'!$G$27*(1+'Painel de Controle'!$G$28) -> -32.25009662 | O34: =-IF(O5<=7,'Painel de Controle'!$G$24,'Painel de Controle'!$G$25)*'Painel de Controle'!$G$26*'Painel de Controle'!$G$27*(1+'Painel de Controle'!$G$28) -> -32.25009662 | P34: =-IF(P5<=7,'Painel de Controle'!$G$24,'Painel de Controle'!$G$25)*'Painel de Controle'!$G$26*'Painel de Controle'!$G$27*(1+'Painel de Controle'!$G$28) -> -32.25009662 | Q34: =-IF(Q5<=7,'Painel de Controle'!$G$24,'Painel de Controle'!$G$25)*'Painel de Controle'!$G$26*'Painel de Controle'!$G$27*(1+'Painel de Controle'!$G$28) -> -32.25009662 | R34: =-IF(R5<=7,'Painel de Controle'!$G$24,'Painel de Controle'!$G$25)*'Painel de Controle'!$G$26*'Painel de Controle'!$G$27*(1+'Painel de Controle'!$G$28) -> -32.25009662 | S34: =-IF(S5<=7,'Painel de Controle'!$G$24,'Painel de Controle'!$G$25)*'Painel de Controle'!$G$26*'Painel de Controle'!$G$27*(1+'Painel de Controle'!$G$28) -> -32.25009662 | T34: =-IF(T5<=7,'Painel de Controle'!$G$24,'Painel de Controle'!$G$25)*'Painel de Controle'!$G$26*'Painel de Controle'!$G$27*(1+'Painel de Controle'!$G$28) -> -32.25009662 | U34: =-IF(U5<=7,'Painel de Controle'!$G$24,'Painel de Controle'!$G$25)*'Painel de Controle'!$G$26*'Painel de Controle'!$G$27*(1+'Painel de Controle'!$G$28) -> -32.25009662 | V34: =-IF(V5<=7,'Painel de Controle'!$G$24,'Painel de Controle'!$G$25)*'Painel de Controle'!$G$26*'Painel de Controle'!$G$27*(1+'Painel de Controle'!$G$28) -> -32.25009662 | W34: =-IF(W5<=7,'Painel de Controle'!$G$24,'Painel de Controle'!$G$25)*'Painel de Controle'!$G$26*'Painel de Controle'!$G$27*(1+'Painel de Controle'!$G$28) -> -32.25009662 | X34: =-IF(X5<=7,'Painel de Controle'!$G$24,'Painel de Controle'!$G$25)*'Painel de Controle'!$G$26*'Painel de Controle'!$G$27*(1+'Painel de Controle'!$G$28) -> -32.25009662 | Y34: =-IF(Y5<=7,'Painel de Controle'!$G$24,'Painel de Controle'!$G$25)*'Painel de Controle'!$G$26*'Painel de Controle'!$G$27*(1+'Painel de Controle'!$G$28) -> -32.25009662 | Z34: =-IF(Z5<=7,'Painel de Controle'!$G$24,'Painel de Controle'!$G$25)*'Painel de Controle'!$G$26*'Painel de Controle'!$G$27*(1+'Painel de Controle'!$G$28) -> -32.25009662 | AA34: =-IF(AA5<=7,'Painel de Controle'!$G$24,'Painel de Controle'!$G$25)*'Painel de Controle'!$G$26*'Painel de Controle'!$G$27*(1+'Painel de Controle'!$G$28) -> -32.25009662 | AB34: =-IF(AB5<=7,'Painel de Controle'!$G$24,'Painel de Controle'!$G$25)*'Painel de Controle'!$G$26*'Painel de Controle'!$G$27*(1+'Painel de Controle'!$G$28) -> -32.25009662 | AC34: =-IF(AC5<=7,'Painel de Controle'!$G$24,'Painel de Controle'!$G$25)*'Painel de Controle'!$G$26*'Painel de Controle'!$G$27*(1+'Painel de Controle'!$G$28) -> -32.25009662 | AD34: =-IF(AD5<=7,'Painel de Controle'!$G$24,'Painel de Controle'!$G$25)*'Painel de Controle'!$G$26*'Painel de Controle'!$G$27*(1+'Painel de Controle'!$G$28) -> -32.25009662 | AE34: =-IF(AE5<=7,'Painel de Controle'!$G$24,'Painel de Controle'!$G$25)*'Painel de Controle'!$G$26*'Painel de Controle'!$G$27*(1+'Painel de Controle'!$G$28) -> -32.25009662 | AF34: =-IF(AF5<=7,'Painel de Controle'!$G$24,'Painel de Controle'!$G$25)*'Painel de Controle'!$G$26*'Painel de Controle'!$G$27*(1+'Painel de Controle'!$G$28) -> -32.25009662 | AG34: =-IF(AG5<=7,'Painel de Controle'!$G$24,'Painel de Controle'!$G$25)*'Painel de Controle'!$G$26*'Painel de Controle'!$G$27*(1+'Painel de Controle'!$G$28) -> -32.25009662 | AH34: =-IF(AH5<=7,'Painel de Controle'!$G$24,'Painel de Controle'!$G$25)*'Painel de Controle'!$G$26*'Painel de Controle'!$G$27*(1+'Painel de Controle'!$G$28) -> -32.25009662 | AI34: =-IF(AI5<=7,'Painel de Controle'!$G$24,'Painel de Controle'!$G$25)*'Painel de Controle'!$G$26*'Painel de Controle'!$G$27*(1+'Painel de Controle'!$G$28) -> -32.25009662 | AJ34: =-IF(AJ5<=7,'Painel de Controle'!$G$24,'Painel de Controle'!$G$25)*'Painel de Controle'!$G$26*'Painel de Controle'!$G$27*(1+'Painel de Controle'!$G$28) -> -32.25009662 | AK34: =-IF(AK5<=7,'Painel de Controle'!$G$24,'Painel de Controle'!$G$25)*'Painel de Controle'!$G$26*'Painel de Controle'!$G$27*(1+'Painel de Controle'!$G$28) -> -32.25009662 | AL34: =-IF(AL5<=7,'Painel de Controle'!$G$24,'Painel de Controle'!$G$25)*'Painel de Controle'!$G$26*'Painel de Controle'!$G$27*(1+'Painel de Controle'!$G$28) -> -32.25009662
B35: Seguro de Responsabilidade Civil | C35: -1884.556196 | D35: =-'Painel de Controle'!$G$30*'Painel de Controle'!$G$31*'Painel de Controle'!$G$32*(1+'Painel de Controle'!$G$33) -> -53.84446273 | E35: =-'Painel de Controle'!$G$30*'Painel de Controle'!$G$31*'Painel de Controle'!$G$32*(1+'Painel de Controle'!$G$33) -> -53.84446273 | F35: =-'Painel de Controle'!$G$30*'Painel de Controle'!$G$31*'Painel de Controle'!$G$32*(1+'Painel de Controle'!$G$33) -> -53.84446273 | G35: =-'Painel de Controle'!$G$30*'Painel de Controle'!$G$31*'Painel de Controle'!$G$32*(1+'Painel de Controle'!$G$33) -> -53.84446273 | H35: =-'Painel de Controle'!$G$30*'Painel de Controle'!$G$31*'Painel de Controle'!$G$32*(1+'Painel de Controle'!$G$33) -> -53.84446273 | I35: =-'Painel de Controle'!$G$30*'Painel de Controle'!$G$31*'Painel de Controle'!$G$32*(1+'Painel de Controle'!$G$33) -> -53.84446273 | J35: =-'Painel de Controle'!$G$30*'Painel de Controle'!$G$31*'Painel de Controle'!$G$32*(1+'Painel de Controle'!$G$33) -> -53.84446273 | K35: =-'Painel de Controle'!$G$30*'Painel de Controle'!$G$31*'Painel de Controle'!$G$32*(1+'Painel de Controle'!$G$33) -> -53.84446273 | L35: =-'Painel de Controle'!$G$30*'Painel de Controle'!$G$31*'Painel de Controle'!$G$32*(1+'Painel de Controle'!$G$33) -> -53.84446273 | M35: =-'Painel de Controle'!$G$30*'Painel de Controle'!$G$31*'Painel de Controle'!$G$32*(1+'Painel de Controle'!$G$33) -> -53.84446273 | N35: =-'Painel de Controle'!$G$30*'Painel de Controle'!$G$31*'Painel de Controle'!$G$32*(1+'Painel de Controle'!$G$33) -> -53.84446273 | O35: =-'Painel de Controle'!$G$30*'Painel de Controle'!$G$31*'Painel de Controle'!$G$32*(1+'Painel de Controle'!$G$33) -> -53.84446273 | P35: =-'Painel de Controle'!$G$30*'Painel de Controle'!$G$31*'Painel de Controle'!$G$32*(1+'Painel de Controle'!$G$33) -> -53.84446273 | Q35: =-'Painel de Controle'!$G$30*'Painel de Controle'!$G$31*'Painel de Controle'!$G$32*(1+'Painel de Controle'!$G$33) -> -53.84446273 | R35: =-'Painel de Controle'!$G$30*'Painel de Controle'!$G$31*'Painel de Controle'!$G$32*(1+'Painel de Controle'!$G$33) -> -53.84446273 | S35: =-'Painel de Controle'!$G$30*'Painel de Controle'!$G$31*'Painel de Controle'!$G$32*(1+'Painel de Controle'!$G$33) -> -53.84446273 | T35: =-'Painel de Controle'!$G$30*'Painel de Controle'!$G$31*'Painel de Controle'!$G$32*(1+'Painel de Controle'!$G$33) -> -53.84446273 | U35: =-'Painel de Controle'!$G$30*'Painel de Controle'!$G$31*'Painel de Controle'!$G$32*(1+'Painel de Controle'!$G$33) -> -53.84446273 | V35: =-'Painel de Controle'!$G$30*'Painel de Controle'!$G$31*'Painel de Controle'!$G$32*(1+'Painel de Controle'!$G$33) -> -53.84446273 | W35: =-'Painel de Controle'!$G$30*'Painel de Controle'!$G$31*'Painel de Controle'!$G$32*(1+'Painel de Controle'!$G$33) -> -53.84446273 | X35: =-'Painel de Controle'!$G$30*'Painel de Controle'!$G$31*'Painel de Controle'!$G$32*(1+'Painel de Controle'!$G$33) -> -53.84446273 | Y35: =-'Painel de Controle'!$G$30*'Painel de Controle'!$G$31*'Painel de Controle'!$G$32*(1+'Painel de Controle'!$G$33) -> -53.84446273 | Z35: =-'Painel de Controle'!$G$30*'Painel de Controle'!$G$31*'Painel de Controle'!$G$32*(1+'Painel de Controle'!$G$33) -> -53.84446273 | AA35: =-'Painel de Controle'!$G$30*'Painel de Controle'!$G$31*'Painel de Controle'!$G$32*(1+'Painel de Controle'!$G$33) -> -53.84446273 | AB35: =-'Painel de Controle'!$G$30*'Painel de Controle'!$G$31*'Painel de Controle'!$G$32*(1+'Painel de Controle'!$G$33) -> -53.84446273 | AC35: =-'Painel de Controle'!$G$30*'Painel de Controle'!$G$31*'Painel de Controle'!$G$32*(1+'Painel de Controle'!$G$33) -> -53.84446273 | AD35: =-'Painel de Controle'!$G$30*'Painel de Controle'!$G$31*'Painel de Controle'!$G$32*(1+'Painel de Controle'!$G$33) -> -53.84446273 | AE35: =-'Painel de Controle'!$G$30*'Painel de Controle'!$G$31*'Painel de Controle'!$G$32*(1+'Painel de Controle'!$G$33) -> -53.84446273 | AF35: =-'Painel de Controle'!$G$30*'Painel de Controle'!$G$31*'Painel de Controle'!$G$32*(1+'Painel de Controle'!$G$33) -> -53.84446273 | AG35: =-'Painel de Controle'!$G$30*'Painel de Controle'!$G$31*'Painel de Controle'!$G$32*(1+'Painel de Controle'!$G$33) -> -53.84446273 | AH35: =-'Painel de Controle'!$G$30*'Painel de Controle'!$G$31*'Painel de Controle'!$G$32*(1+'Painel de Controle'!$G$33) -> -53.84446273 | AI35: =-'Painel de Controle'!$G$30*'Painel de Controle'!$G$31*'Painel de Controle'!$G$32*(1+'Painel de Controle'!$G$33) -> -53.84446273 | AJ35: =-'Painel de Controle'!$G$30*'Painel de Controle'!$G$31*'Painel de Controle'!$G$32*(1+'Painel de Controle'!$G$33) -> -53.84446273 | AK35: =-'Painel de Controle'!$G$30*'Painel de Controle'!$G$31*'Painel de Controle'!$G$32*(1+'Painel de Controle'!$G$33) -> -53.84446273 | AL35: =-'Painel de Controle'!$G$30*'Painel de Controle'!$G$31*'Painel de Controle'!$G$32*(1+'Painel de Controle'!$G$33) -> -53.84446273
B36: Seguro de Engenharia | C36: -568.8526282 | D36: ='Painel de Controle'!$G$35*'FC Projeto'!D57*'Painel de Controle'!$G$36*(1+'Painel de Controle'!$G$37) -> -2.717240838 | E36: ='Painel de Controle'!$G$35*'FC Projeto'!E57*'Painel de Controle'!$G$36*(1+'Painel de Controle'!$G$37) -> -24.67164776 | F36: ='Painel de Controle'!$G$35*'FC Projeto'!F57*'Painel de Controle'!$G$36*(1+'Painel de Controle'!$G$37) -> -72.39992601 | G36: ='Painel de Controle'!$G$35*'FC Projeto'!G57*'Painel de Controle'!$G$36*(1+'Painel de Controle'!$G$37) -> -63.95456195 | H36: ='Painel de Controle'!$G$35*'FC Projeto'!H57*'Painel de Controle'!$G$36*(1+'Painel de Controle'!$G$37) -> -38.47544858 | I36: ='Painel de Controle'!$G$35*'FC Projeto'!I57*'Painel de Controle'!$G$36*(1+'Painel de Controle'!$G$37) -> -29.51736563 | J36: ='Painel de Controle'!$G$35*'FC Projeto'!J57*'Painel de Controle'!$G$36*(1+'Painel de Controle'!$G$37) -> -11.84789349 | K36: ='Painel de Controle'!$G$35*'FC Projeto'!K57*'Painel de Controle'!$G$36*(1+'Painel de Controle'!$G$37) -> -4.450066092 | L36: ='Painel de Controle'!$G$35*'FC Projeto'!L57*'Painel de Controle'!$G$36*(1+'Painel de Controle'!$G$37) -> 0 | M36: ='Painel de Controle'!$G$35*'FC Projeto'!M57*'Painel de Controle'!$G$36*(1+'Painel de Controle'!$G$37) -> 0 | N36: ='Painel de Controle'!$G$35*'FC Projeto'!N57*'Painel de Controle'!$G$36*(1+'Painel de Controle'!$G$37) -> 0 | O36: ='Painel de Controle'!$G$35*'FC Projeto'!O57*'Painel de Controle'!$G$36*(1+'Painel de Controle'!$G$37) -> -4.564294492 | P36: ='Painel de Controle'!$G$35*'FC Projeto'!P57*'Painel de Controle'!$G$36*(1+'Painel de Controle'!$G$37) -> -4.564294492 | Q36: ='Painel de Controle'!$G$35*'FC Projeto'!Q57*'Painel de Controle'!$G$36*(1+'Painel de Controle'!$G$37) -> -4.564294492 | R36: ='Painel de Controle'!$G$35*'FC Projeto'!R57*'Painel de Controle'!$G$36*(1+'Painel de Controle'!$G$37) -> -16.43146017 | S36: ='Painel de Controle'!$G$35*'FC Projeto'!S57*'Painel de Controle'!$G$36*(1+'Painel de Controle'!$G$37) -> -16.43146017 | T36: ='Painel de Controle'!$G$35*'FC Projeto'!T57*'Painel de Controle'!$G$36*(1+'Painel de Controle'!$G$37) -> -20.99575466 | U36: ='Painel de Controle'!$G$35*'FC Projeto'!U57*'Painel de Controle'!$G$36*(1+'Painel de Controle'!$G$37) -> -4.564294492 | V36: ='Painel de Controle'!$G$35*'FC Projeto'!V57*'Painel de Controle'!$G$36*(1+'Painel de Controle'!$G$37) -> -4.564294492 | W36: ='Painel de Controle'!$G$35*'FC Projeto'!W57*'Painel de Controle'!$G$36*(1+'Painel de Controle'!$G$37) -> -26.12844945 | X36: ='Painel de Controle'!$G$35*'FC Projeto'!X57*'Painel de Controle'!$G$36*(1+'Painel de Controle'!$G$37) -> -26.12844945 | Y36: ='Painel de Controle'!$G$35*'FC Projeto'!Y57*'Painel de Controle'!$G$36*(1+'Painel de Controle'!$G$37) -> -30.69274395 | Z36: ='Painel de Controle'!$G$35*'FC Projeto'!Z57*'Painel de Controle'!$G$36*(1+'Painel de Controle'!$G$37) -> -4.564294492 | AA36: ='Painel de Controle'!$G$35*'FC Projeto'!AA57*'Painel de Controle'!$G$36*(1+'Painel de Controle'!$G$37) -> -4.564294492 | AB36: ='Painel de Controle'!$G$35*'FC Projeto'!AB57*'Painel de Controle'!$G$36*(1+'Painel de Controle'!$G$37) -> 0 | AC36: ='Painel de Controle'!$G$35*'FC Projeto'!AC57*'Painel de Controle'!$G$36*(1+'Painel de Controle'!$G$37) -> 0 | AD36: ='Painel de Controle'!$G$35*'FC Projeto'!AD57*'Painel de Controle'!$G$36*(1+'Painel de Controle'!$G$37) -> -4.564294492 | AE36: ='Painel de Controle'!$G$35*'FC Projeto'!AE57*'Painel de Controle'!$G$36*(1+'Painel de Controle'!$G$37) -> -4.564294492 | AF36: ='Painel de Controle'!$G$35*'FC Projeto'!AF57*'Painel de Controle'!$G$36*(1+'Painel de Controle'!$G$37) -> -4.564294492 | AG36: ='Painel de Controle'!$G$35*'FC Projeto'!AG57*'Painel de Controle'!$G$36*(1+'Painel de Controle'!$G$37) -> -41.55811051 | AH36: ='Painel de Controle'!$G$35*'FC Projeto'!AH57*'Painel de Controle'!$G$36*(1+'Painel de Controle'!$G$37) -> -41.55811051 | AI36: ='Painel de Controle'!$G$35*'FC Projeto'!AI57*'Painel de Controle'!$G$36*(1+'Painel de Controle'!$G$37) -> -46.122405 | AJ36: ='Painel de Controle'!$G$35*'FC Projeto'!AJ57*'Painel de Controle'!$G$36*(1+'Painel de Controle'!$G$37) -> -4.564294492 | AK36: ='Painel de Controle'!$G$35*'FC Projeto'!AK57*'Painel de Controle'!$G$36*(1+'Painel de Controle'!$G$37) -> -4.564294492 | AL36: ='Painel de Controle'!$G$35*'FC Projeto'!AL57*'Painel de Controle'!$G$36*(1+'Painel de Controle'!$G$37) -> 0
B38: EBITDA | C38: =C22+C24 -> 4551875.12 | D38: =D22+D24 -> -42414.94115 | E38: -3500.761551 | F38: -5594.467147 | G38: 54491.96024 | H38: 12990.56099 | I38: 125203.8286 | J38: 142715.6777 | K38: 151310.3632 | L38: -23411.78496 | M38: 157731.5277 | N38: 158416.7216 | O38: 158407.593 | P38: 159202.1504 | Q38: 159455.2053 | R38: 159431.471 | S38: 159431.471 | T38: 159169.2874 | U38: 159455.2053 | V38: 159455.2053 | W38: 159412.077 | X38: 159159.022 | Y38: 159402.9484 | Z38: 159455.2053 | AA38: 159455.2053 | AB38: 159211.2789 | AC38: 159464.3339 | AD38: 159455.2053 | AE38: 159455.2053 | AF38: 159202.1504 | AG38: 159381.2177 | AH38: 159381.2177 | AI38: 159372.0891 | AJ38: 159202.1504 | AK38: 159455.2053 | AL38: 159464.3339
B39: Margem EBITDA | C39: =C38/C22 -> 0.3333189191 | D39: =IFERROR(D38/D22,0) -> 16.97865672 | E39: 1.401351199 | F39: 2.239459366 | G39: 0.3388870024 | H39: 0.04691429886 | I39: 0.3429649459 | J39: 0.3455713286 | K39: 0.3403520075 | L39: -0.05266161447 | M39: 0.3547955407 | N39: 0.3563367906 | O39: 0.3563162571 | P39: 0.3581035055 | Q39: 0.3586727181 | R39: 0.3586193309 | S39: 0.3586193309 | T39: 0.3580295849 | U39: 0.3586727181 | V39: 0.3586727181 | W39: 0.3585757068 | X39: 0.3580064943 | Y39: 0.3585551733 | Z39: 0.3586727181 | AA39: 0.3586727181 | AB39: 0.358124039 | AC39: 0.3586932516 | AD39: 0.3586727181 | AE39: 0.3586727181 | AF39: 0.3581035055 | AG39: 0.358506293 | AH39: 0.358506293 | AI39: 0.3584857595 | AJ39: 0.3581035055 | AK39: 0.3586727181 | AL39: 0.3586932516
B41: Depreciação | C41: =SUM(D41:AL41) -> -1374936.513 | D41: =-Depreciação!F27/1000 -> -240.9991076 | E41: =-Depreciação!G27/1000 -> -3244.990002 | F41: =-Depreciação!H27/1000 -> -11963.66236 | G41: =-Depreciação!I27/1000 -> -23662.99928 | H41: =-Depreciação!J27/1000 -> -30915.48438 | I41: =-Depreciação!K27/1000 -> -36528.27419 | J41: =-Depreciação!L27/1000 -> -38985.02542 | K41: =-Depreciação!M27/1000 -> -40306.37172 | L41: =-Depreciação!N27/1000 -> -37201.2462 | M41: =-Depreciação!O27/1000 -> -34993.4972 | N41: =-Depreciação!P27/1000 -> -33317.03482 | O41: =-Depreciação!Q27/1000 -> -35239.51674 | P41: =-Depreciação!R27/1000 -> -37472.63825 | Q41: =-Depreciação!S27/1000 -> -40306.37172 | R41: =-Depreciação!T27/1000 -> -43706.85188 | S41: =-Depreciação!U27/1000 -> -47107.33203 | T41: =-Depreciação!V27/1000 -> -50507.81219 | U41: =-Depreciação!W27/1000 -> -50507.81219 | V41: =-Depreciação!X27/1000 -> -46781.66157 | W41: =-Depreciação!Y27/1000 -> -48187.81218 | X41: =-Depreciação!Z27/1000 -> -50231.50674 | Y41: =-Depreciação!AA27/1000 -> -51658.73784 | Z41: =-Depreciação!AB27/1000 -> -46949.11963 | AA41: =-Depreciação!AC27/1000 -> -44783.02852 | AB41: =-Depreciação!AD27/1000 -> -44054.7831 | AC41: =-Depreciação!AE27/1000 -> -43326.53768 | AD41: =-Depreciação!AF27/1000 -> -43149.44351 | AE41: =-Depreciação!AG27/1000 -> -42441.06684 | AF41: =-Depreciação!AH27/1000 -> -41998.33143 | AG41: =-Depreciação!AI27/1000 -> -44450.72505 | AH41: =-Depreciação!AJ27/1000 -> -46903.11868 | AI41: =-Depreciação!AK27/1000 -> -48750.83728 | AJ41: =-Depreciação!AL27/1000 -> -46052.89071 | AK41: =-Depreciação!AM27/1000 -> -44782.69891 | AL41: =-Depreciação!AN27/1000 -> -44226.2939
D42: 0 | E42: =E15 -> 0 | F42: 0 | G42: 0 | H42: 0 | I42: 0 | J42: 0 | K42: 0 | L42: 0 | M42: 0 | N42: 0 | O42: 0 | P42: 0 | Q42: 0 | R42: 0 | S42: 0 | T42: 0 | U42: 0 | V42: 0 | W42: 0 | X42: 0 | Y42: 0 | Z42: 0 | AA42: 0 | AB42: 0 | AC42: 0 | AD42: 0 | AE42: 0 | AF42: 0 | AG42: 0 | AH42: 0 | AI42: 0 | AJ42: 0 | AK42: 0 | AL42: 0
B43: EBIT | C43: =SUM(D43:AL43) -> 3176938.606 | D43: =D38+D41 -> -42655.94026 | E43: =E38+E41 -> -6745.751553 | F43: =F38+F41 -> -17558.1295 | G43: =G38+G41 -> 30828.96097 | H43: =H38+H41 -> -17924.92339 | I43: 88675.55439 | J43: 103730.6523 | K43: 111003.9915 | L43: -60613.03116 | M43: 122738.0305 | N43: 125099.6867 | O43: 123168.0762 | P43: 121729.5121 | Q43: 119148.8336 | R43: 115724.6191 | S43: 112324.1389 | T43: 108661.4752 | U43: 108947.3931 | V43: 112673.5437 | W43: 111224.2648 | X43: 108927.5153 | Y43: 107744.2106 | Z43: 112506.0857 | AA43: 114672.1768 | AB43: 115156.4958 | AC43: 116137.7962 | AD43: 116305.7618 | AE43: 117014.1385 | AF43: 117203.8189 | AG43: 114930.4926 | AH43: 112478.099 | AI43: 110621.2518 | AJ43: 113149.2597 | AK43: 114672.5064 | AL43: 115238.04
B44: Margem EBIT | C44: =IFERROR(C43/C22,0) -> 0.2326368177 | D44: 17.07512841 | E44: 2.700317313 | F44: 7.028500933 | G44: 0.1917261578 | H44: -0.06473432624 | I44: 0.2429047662 | J44: 0.251173101 | K44: 0.2496883263 | L44: -0.1363407397 | M44: 0.2760824455 | N44: 0.2813946687 | O44: 0.2770497746 | P44: 0.2738139209 | Q44: 0.2680090369 | R44: 0.2603067338 | S44: 0.2526578179 | T44: 0.2444191558 | U44: 0.2450622891 | V44: 0.2534437562 | W44: 0.2501838012 | X44: 0.2450175767 | Y44: 0.2423558942 | Z44: 0.2530670822 | AA44: 0.2579394085 | AB44: 0.2590288181 | AC44: 0.2612361193 | AD44: 0.261613935 | AE44: 0.2632073316 | AF44: 0.2636339919 | AG44: 0.2585204547 | AH44: 0.25300413 | AI44: 0.2488274057 | AJ44: 0.2545138143 | AK44: 0.2579401499 | AL44: 0.2592122405
B46: Tributos Sobre o Lucro | C46: =SUM(D46:AL46) -> -1016665.807 | D46: =D47+D48 -> 0 | E46: =E47+E48 -> 0 | F46: 0 | G46: -3284.991583 | H46: 0 | I46: -9460.115431 | J46: -11067.24713 | K46: -14190.19405 | L46: 0 | M46: -13096.28476 | N46: -34420.74201 | O46: -41853.14592 | P46: -41364.03411 | Q46: -40486.60342 | R46: -39322.37049 | S46: -38166.20724 | T46: -36920.90158 | U46: -37018.11366 | V46: -38285.00487 | W46: -37792.25004 | X46: -37011.35521 | Y46: -36609.03159 | Z46: -38228.06913 | AA46: -38964.54011 | AB46: -39129.20859 | AC46: -39462.85071 | AD46: -39519.95901 | AE46: -39760.80708 | AF46: -39825.29844 | AG46: -39052.36749 | AH46: -38218.55366 | AI46: -37587.22561 | AJ46: -38446.74828 | AK46: -38964.65218 | AL46: -39156.9336
B47: IRPJ | C47: =SUM(E47:AL47) -> -730741.3324 | D47: =-Tributação!D26 -> 0 | E47: =-Tributação!E26 -> 0 | F47: =-Tributação!F26 -> 0 | G47: =-Tributação!G26 -> -1342.767042 | H47: =-Tributação!H26 -> 0 | I47: =-Tributação!I26 -> -3873.555505 | J47: =-Tributação!J26 -> -4532.216038 | K47: =-Tributação!K26 -> -5812.112315 | L47: =-Tributação!L26 -> 0 | M47: =-Tributação!M26 -> -5363.788836 | N47: =-Tributação!N26 -> -25303.01618 | O47: =-Tributação!O26 -> -30768.01906 | P47: =-Tributação!P26 -> -30408.37803 | Q47: =-Tributação!Q26 -> -29763.2084 | R47: =-Tributação!R26 -> -28907.15477 | S47: =-Tributação!S26 -> -28057.03473 | T47: =-Tributação!T26 -> -27141.36881 | U47: =-Tributação!U26 -> -27212.84828 | V47: =-Tributação!V26 -> -28144.38593 | W47: =-Tributação!W26 -> -27782.0662 | X47: =-Tributação!X26 -> -27207.87883 | Y47: =-Tributação!Y26 -> -26912.05264 | Z47: =-Tributação!Z26 -> -28102.52142 | AA47: =-Tributação!AA26 -> -28644.0442 | AB47: =-Tributação!AB26 -> -28765.12396 | AC47: =-Tributação!AC26 -> -29010.44905 | AD47: =-Tributação!AD26 -> -29052.44045 | AE47: =-Tributação!AE26 -> -29229.53462 | AF47: =-Tributação!AF26 -> -29276.95473 | AG47: =-Tributação!AG26 -> -28708.62316 | AH47: =-Tributação!AH26 -> -28095.52475 | AI47: =-Tributação!AI26 -> -27631.31295 | AJ47: =-Tributação!AJ26 -> -28263.31491 | AK47: =-Tributação!AK26 -> -28644.1266 | AL47: =-Tributação!AL26 -> -28785.51
B48: CSLL | C48: =SUM(E48:AL48) -> -285924.4746 | D48: =-Tributação!D25 -> 0 | E48: =-Tributação!E25 -> 0 | F48: =-Tributação!F25 -> 0 | G48: =-Tributação!G25 -> -1942.224541 | H48: =-Tributação!H25 -> 0 | I48: =-Tributação!I25 -> -5586.559927 | J48: =-Tributação!J25 -> -6535.031095 | K48: =-Tributação!K25 -> -8378.081734 | L48: =-Tributação!L25 -> 0 | M48: =-Tributação!M25 -> -7732.495924 | N48: =-Tributação!N25 -> -9117.725827 | O48: =-Tributação!O25 -> -11085.12686 | P48: =-Tributação!P25 -> -10955.65609 | Q48: =-Tributação!Q25 -> -10723.39502 | R48: =-Tributação!R25 -> -10415.21572 | S48: =-Tributação!S25 -> -10109.1725 | T48: =-Tributação!T25 -> -9779.532772 | U48: =-Tributação!U25 -> -9805.26538 | V48: =-Tributação!V25 -> -10140.61894 | W48: =-Tributação!W25 -> -10010.18383 | X48: =-Tributação!X25 -> -9803.476378 | Y48: =-Tributação!Y25 -> -9696.97895 | Z48: =-Tributação!Z25 -> -10125.54771 | AA48: =-Tributação!AA25 -> -10320.49591 | AB48: =-Tributação!AB25 -> -10364.08463 | AC48: =-Tributação!AC25 -> -10452.40166 | AD48: =-Tributação!AD25 -> -10467.51856 | AE48: =-Tributação!AE25 -> -10531.27246 | AF48: =-Tributação!AF25 -> -10548.3437 | AG48: =-Tributação!AG25 -> -10343.74434 | AH48: =-Tributação!AH25 -> -10123.02891 | AI48: =-Tributação!AI25 -> -9955.912662 | AJ48: =-Tributação!AJ25 -> -10183.43337 | AK48: =-Tributação!AK25 -> -10320.52558 | AL48: =-Tributação!AL25 -> -10371.4236
B50: LLE | C50: =SUM(D50:AL50) -> 2160272.799 | D50: =D43+D46 -> -42655.94026 | E50: =E43+E46 -> -6745.751553 | F50: -17558.1295 | G50: 27543.96938 | H50: -17924.92339 | I50: 79215.43896 | J50: 92663.40517 | K50: 96813.79741 | L50: -60613.03116 | M50: 109641.7458 | N50: 90678.94472 | O50: 81314.93031 | P50: 80365.47799 | Q50: 78662.23017 | R50: 76402.2486 | S50: 74157.9317 | T50: 71740.57366 | U50: 71929.27945 | V50: 74388.53886 | W50: 73432.01478 | X50: 71916.1601 | Y50: 71135.17897 | Z50: 74278.01655 | AA50: 75707.63668 | AB50: 76027.28726 | AC50: 76674.9455 | AD50: 76785.80279 | AE50: 77253.33139 | AF50: 77378.52049 | AG50: 75878.12513 | AH50: 74259.54534 | AI50: 73034.02619 | AJ50: 74702.51137 | AK50: 75707.85422 | AL50: 76081.1064
B52: Fluxo de Caixa do Projeto | C52: TOTAL | D52: 1 | E52: =D52+1 -> 2 | F52: =E52+1 -> 3 | G52: =F52+1 -> 4 | H52: =G52+1 -> 5 | I52: =H52+1 -> 6 | J52: =I52+1 -> 7 | K52: =J52+1 -> 8 | L52: =K52+1 -> 9 | M52: =L52+1 -> 10 | N52: =M52+1 -> 11 | O52: =N52+1 -> 12 | P52: =O52+1 -> 13 | Q52: =P52+1 -> 14 | R52: =Q52+1 -> 15 | S52: =R52+1 -> 16 | T52: =S52+1 -> 17 | U52: =T52+1 -> 18 | V52: =U52+1 -> 19 | W52: =V52+1 -> 20 | X52: =W52+1 -> 21 | Y52: =X52+1 -> 22 | Z52: =Y52+1 -> 23 | AA52: =Z52+1 -> 24 | AB52: =AA52+1 -> 25 | AC52: =AB52+1 -> 26 | AD52: =AC52+1 -> 27 | AE52: =AD52+1 -> 28 | AF52: =AE52+1 -> 29 | AG52: =AF52+1 -> 30 | AH52: =AG52+1 -> 31 | AI52: =AH52+1 -> 32 | AJ52: =AI52+1 -> 33 | AK52: =AJ52+1 -> 34 | AL52: =AK52+1 -> 35
B53: (+) EBITDA | C53: =SUM(D53:AL53) -> 4551875.12 | D53: =D38 -> -42414.94115 | E53: =E38 -> -3500.761551 | F53: -5594.467147 | G53: 54491.96024 | H53: 12990.56099 | I53: 125203.8286 | J53: 142715.6777 | K53: 151310.3632 | L53: -23411.78496 | M53: 157731.5277 | N53: 158416.7216 | O53: 158407.593 | P53: 159202.1504 | Q53: 159455.2053 | R53: 159431.471 | S53: 159431.471 | T53: 159169.2874 | U53: 159455.2053 | V53: 159455.2053 | W53: 159412.077 | X53: 159159.022 | Y53: 159402.9484 | Z53: 159455.2053 | AA53: 159455.2053 | AB53: 159211.2789 | AC53: 159464.3339 | AD53: 159455.2053 | AE53: 159455.2053 | AF53: 159202.1504 | AG53: 159381.2177 | AH53: 159381.2177 | AI53: 159372.0891 | AJ53: 159202.1504 | AK53: 159455.2053 | AL53: 159464.3339
B54: (-) Tributos Sobre o Lucro | C54: -1016665.807 | D54: =D46 -> 0 | E54: =E46 -> 0 | F54: =F46 -> 0 | G54: =G46 -> -3284.991583 | H54: 0 | I54: -9460.115431 | J54: -11067.24713 | K54: -14190.19405 | L54: 0 | M54: -13096.28476 | N54: -34420.74201 | O54: -41853.14592 | P54: -41364.03411 | Q54: -40486.60342 | R54: -39322.37049 | S54: -38166.20724 | T54: -36920.90158 | U54: -37018.11366 | V54: -38285.00487 | W54: -37792.25004 | X54: -37011.35521 | Y54: -36609.03159 | Z54: -38228.06913 | AA54: -38964.54011 | AB54: -39129.20859 | AC54: -39462.85071 | AD54: -39519.95901 | AE54: -39760.80708 | AF54: -39825.29844 | AG54: -39052.36749 | AH54: -38218.55366 | AI54: -37587.22561 | AJ54: -38446.74828 | AK54: -38964.65218 | AL54: -39156.9336
B55: (+/-) Variação da NCG | C55: -156114.1024 | D55: =-D14/365*'Painel de Controle'!$J$8 -> 0 | E55: =-('Painel de Controle'!$J$8/365*'FC Projeto'!E14-'FC Projeto'!D55) -> 0 | F55: =-('Painel de Controle'!$J$8/365*'FC Projeto'!F14-'FC Projeto'!E55) -> 0 | G55: =-(G14-F14)*'Painel de Controle'!$J$8/365 -> -57021.81578 | H55: =-(H14-G14)*'Painel de Controle'!$J$8/365 -> -40542.59839 | I55: =-(I14-H14)*'Painel de Controle'!$J$8/365 -> -30786.17222 | J55: =-(J14-I14)*'Painel de Controle'!$J$8/365 -> -16734.01528 | K55: =-(K14-J14)*'Painel de Controle'!$J$8/365 -> -11029.50072 | L55: =-(L14-K14)*'Painel de Controle'!$J$8/365 -> 0 | M55: =-(M14-L14)*'Painel de Controle'!$J$8/365 -> 0 | N55: =-(N14-M14)*'Painel de Controle'!$J$8/365 -> 0 | O55: =-(O14-N14)*'Painel de Controle'!$J$8/365 -> 0 | P55: =-(P14-O14)*'Painel de Controle'!$J$8/365 -> 0 | Q55: =-(Q14-P14)*'Painel de Controle'!$J$8/365 -> 0 | R55: =-(R14-Q14)*'Painel de Controle'!$J$8/365 -> 0 | S55: =-(S14-R14)*'Painel de Controle'!$J$8/365 -> 0 | T55: =-(T14-S14)*'Painel de Controle'!$J$8/365 -> 0 | U55: =-(U14-T14)*'Painel de Controle'!$J$8/365 -> 0 | V55: =-(V14-U14)*'Painel de Controle'!$J$8/365 -> 0 | W55: =-(W14-V14)*'Painel de Controle'!$J$8/365 -> 0 | X55: =-(X14-W14)*'Painel de Controle'!$J$8/365 -> 0 | Y55: =-(Y14-X14)*'Painel de Controle'!$J$8/365 -> 0 | Z55: =-(Z14-Y14)*'Painel de Controle'!$J$8/365 -> 0 | AA55: =-(AA14-Z14)*'Painel de Controle'!$J$8/365 -> 0 | AB55: =-(AB14-AA14)*'Painel de Controle'!$J$8/365 -> 0 | AC55: =-(AC14-AB14)*'Painel de Controle'!$J$8/365 -> 0 | AD55: =-(AD14-AC14)*'Painel de Controle'!$J$8/365 -> 0 | AE55: =-(AE14-AD14)*'Painel de Controle'!$J$8/365 -> 0 | AF55: =-(AF14-AE14)*'Painel de Controle'!$J$8/365 -> 0 | AG55: =-(AG14-AF14)*'Painel de Controle'!$J$8/365 -> 0 | AH55: =-(AH14-AG14)*'Painel de Controle'!$J$8/365 -> 0 | AI55: =-(AI14-AH14)*'Painel de Controle'!$J$8/365 -> 0 | AJ55: =-(AJ14-AI14)*'Painel de Controle'!$J$8/365 -> 0 | AK55: =-(AK14-AJ14)*'Painel de Controle'!$J$8/365 -> 0 | AL55: =-(AL14-AK14)*'Painel de Controle'!$J$8/365 -> 0
B56: (=) Fluxo de Caixa Operacional | C56: 3379095.21 | D56: =SUM(D53:D55) -> -42414.94115 | E56: =SUM(E53:E55) -> -3500.761551 | F56: -5594.467147 | G56: -5814.847118 | H56: -27552.0374 | I56: 84957.54093 | J56: 114914.4153 | K56: 126090.6684 | L56: -23411.78496 | M56: 144635.243 | N56: 123995.9795 | O56: 116554.4471 | P56: 117838.1162 | Q56: 118968.6019 | R56: 120109.1005 | S56: 121265.2637 | T56: 122248.3859 | U56: 122437.0916 | V56: 121170.2004 | W56: 121619.827 | X56: 122147.6668 | Y56: 122793.9168 | Z56: 121227.1362 | AA56: 120490.6652 | AB56: 120082.0704 | AC56: 120001.4832 | AD56: 119935.2463 | AE56: 119694.3982 | AF56: 119376.8519 | AG56: 120328.8502 | AH56: 121162.664 | AI56: 121784.8635 | AJ56: 120755.4021 | AK56: 120490.5531 | AL56: 120307.4003 | AM56: =AVERAGE(K56:AL56) -> 116575.011
B57: (-) Fluxo de Caixa de Investimento | C57: -1765855.306 | D57: =(-CAPEX!F70/1000)*(1+Sensibilidade!$D4) -> -8434.968766 | E57: =(-CAPEX!G70/1000)*(1+Sensibilidade!$D4) -> -76586.72553 | F57: =(-CAPEX!H70/1000)*(1+Sensibilidade!$D4) -> -224746.7747 | G57: =(-CAPEX!I70/1000)*(1+Sensibilidade!$D4) -> -198530.3345 | H57: =(-CAPEX!J70/1000)*(1+Sensibilidade!$D4) -> -119437.0416 | I57: =(-CAPEX!K70/1000)*(1+Sensibilidade!$D4) -> -91628.99865 | J57: =(-CAPEX!L70/1000)*(1+Sensibilidade!$D4) -> -36778.70955 | K57: =(-CAPEX!M70/1000)*(1+Sensibilidade!$D4) -> -13814.07491 | L57: =(-CAPEX!N70/1000)*(1+Sensibilidade!$D4) -> 0 | M57: =(-CAPEX!O70/1000)*(1+Sensibilidade!$D4) -> 0 | N57: =(-CAPEX!P70/1000)*(1+Sensibilidade!$D4) -> 0 | O57: =(-CAPEX!Q70/1000)*(1+Sensibilidade!$D4) -> -14168.66733 | P57: =(-CAPEX!R70/1000)*(1+Sensibilidade!$D4) -> -14168.66733 | Q57: =(-CAPEX!S70/1000)*(1+Sensibilidade!$D4) -> -14168.66733 | R57: =(-CAPEX!T70/1000)*(1+Sensibilidade!$D4) -> -51007.20237 | S57: =(-CAPEX!U70/1000)*(1+Sensibilidade!$D4) -> -51007.20237 | T57: =(-CAPEX!V70/1000)*(1+Sensibilidade!$D4) -> -65175.8697 | U57: =(-CAPEX!W70/1000)*(1+Sensibilidade!$D4) -> -14168.66733 | V57: =(-CAPEX!X70/1000)*(1+Sensibilidade!$D4) -> -14168.66733 | W57: =(-CAPEX!Y70/1000)*(1+Sensibilidade!$D4) -> -81108.98819 | X57: =(-CAPEX!Z70/1000)*(1+Sensibilidade!$D4) -> -81108.98819 | Y57: =(-CAPEX!AA70/1000)*(1+Sensibilidade!$D4) -> -95277.65551 | Z57: =(-CAPEX!AB70/1000)*(1+Sensibilidade!$D4) -> -14168.66733 | AA57: =(-CAPEX!AC70/1000)*(1+Sensibilidade!$D4) -> -14168.66733 | AB57: =(-CAPEX!AD70/1000)*(1+Sensibilidade!$D4) -> 0 | AC57: =(-CAPEX!AE70/1000)*(1+Sensibilidade!$D4) -> 0 | AD57: =(-CAPEX!AF70/1000)*(1+Sensibilidade!$D4) -> -14168.66733 | AE57: =(-CAPEX!AG70/1000)*(1+Sensibilidade!$D4) -> -14168.66733 | AF57: =(-CAPEX!AH70/1000)*(1+Sensibilidade!$D4) -> -14168.66733 | AG57: =(-CAPEX!AI70/1000)*(1+Sensibilidade!$D4) -> -129006.3653 | AH57: =(-CAPEX!AJ70/1000)*(1+Sensibilidade!$D4) -> -129006.3653 | AI57: =(-CAPEX!AK70/1000)*(1+Sensibilidade!$D4) -> -143175.0326 | AJ57: =(-CAPEX!AL70/1000)*(1+Sensibilidade!$D4) -> -14168.66733 | AK57: =(-CAPEX!AM70/1000)*(1+Sensibilidade!$D4) -> -14168.66733 | AL57: =(-CAPEX!AN70/1000)*(1+Sensibilidade!$D4) -> 0 | AM57: =AVERAGE(K57:AL57) -> -36061.13401
B58: (+/-) Fluxo de Caixa do Projeto | C58: 1613239.905 | D58: =D56+D57 -> -50849.90992 | E58: =E56+E57 -> -80087.48708 | F58: -230341.2419 | G58: -204345.1816 | H58: -146989.079 | I58: -6671.457727 | J58: 78135.70576 | K58: 112276.5935 | L58: -23411.78496 | M58: 144635.243 | N58: 123995.9795 | O58: 102385.7797 | P58: 103669.4489 | Q58: 104799.9346 | R58: 69101.89811 | S58: 70258.06136 | T58: 57072.51615 | U58: 108268.4243 | V58: 107001.5331 | W58: 40510.83877 | X58: 41038.67865 | Y58: 27516.2613 | Z58: 107058.4688 | AA58: 106321.9979 | AB58: 120082.0704 | AC58: 120001.4832 | AD58: 105766.579 | AE58: 105525.7309 | AF58: 105208.1846 | AG58: -8677.515101 | AH58: -7843.701269 | AI58: -21390.16914 | AJ58: 106586.7348 | AK58: 106321.8858 | AL58: 120307.4003 | AM58: =AVERAGE(L58:AL58)/WACC!D22 -> 863366.0082
B59: (=) Fluxo de Caixa do Projeto Acumulado | D59: =D58 -> -50849.90992 | E59: =D59+E58 -> -130937.397 | F59: =E59+F58 -> -361278.6389 | G59: =F59+G58 -> -565623.8205 | H59: =G59+H58 -> -712612.8995 | I59: -719284.3572 | J59: -641148.6515 | K59: -528872.058 | L59: -552283.8429 | M59: -407648.5999 | N59: -283652.6204 | O59: -181266.8407 | P59: -77597.39176 | Q59: 27202.5428 | R59: 96304.44091 | S59: 166562.5023 | T59: 223635.0184 | U59: 331903.4427 | V59: 438904.9758 | W59: 479415.8146 | X59: 520454.4933 | Y59: 547970.7546 | Z59: 655029.2234 | AA59: 761351.2213 | AB59: 881433.2917 | AC59: 1001434.775 | AD59: 1107201.354 | AE59: 1212727.085 | AF59: 1317935.269 | AG59: 1309257.754 | AH59: 1301414.053 | AI59: 1280023.884 | AJ59: 1386610.619 | AK59: 1492932.504 | AL59: 1613239.905
E60: =IF(AND(E59>0,D59<0),E52,"") ->  | F60: =IF(AND(F59>0,E59<0),F52,"") ->  | Q60: 14
B61: VPL 35 anos | C61: =D58+NPV(WACC!D22,'FC Projeto'!E58:AL58) -> -40474.58966
B62: VPL Perpetuidade | C62: =AM58/((1+WACC!$D$22)^35) -> 39800.54875
B63: VPL Total | C63: =C61+C62 -> -674.040906
B64: TIR | C64: =IRR(D58:AM58) -> 0.09179745716
B65: Payback | C65: =SUM(D60:AL60) -> 14
C68: Fluxo de Caixa Operacional | D68: =D56 -> -42414.94115 | E68: =E56 -> -3500.761551 | F68: -5594.467147 | G68: -5814.847118 | H68: -27552.0374 | I68: 84957.54093 | J68: 114914.4153 | K68: 126090.6684 | L68: -23411.78496 | M68: 144635.243 | N68: 123995.9795 | O68: 116554.4471 | P68: 117838.1162 | Q68: 118968.6019 | R68: 120109.1005 | S68: 121265.2637 | T68: 122248.3859 | U68: 122437.0916 | V68: 121170.2004 | W68: 121619.827 | X68: 122147.6668 | Y68: 122793.9168 | Z68: 121227.1362 | AA68: 120490.6652 | AB68: 120082.0704 | AC68: 120001.4832 | AD68: 119935.2463 | AE68: 119694.3982 | AF68: 119376.8519 | AG68: 120328.8502 | AH68: 121162.664 | AI68: 121784.8635 | AJ68: 120755.4021 | AK68: 120490.5531 | AL68: 120307.4003
C69: Investimento | D69: =-D57 -> 8434.968766 | E69: =-E57 -> 76586.72553 | F69: =-F57 -> 224746.7747 | G69: 198530.3345 | H69: 119437.0416 | I69: 91628.99865 | J69: 36778.70955 | K69: 13814.07491 | L69: 0 | M69: 0 | N69: 0 | O69: 14168.66733 | P69: 14168.66733 | Q69: 14168.66733 | R69: 51007.20237 | S69: 51007.20237 | T69: 65175.8697 | U69: 14168.66733 | V69: 14168.66733 | W69: 81108.98819 | X69: 81108.98819 | Y69: 95277.65551 | Z69: 14168.66733 | AA69: 14168.66733 | AB69: 0 | AC69: 0 | AD69: 14168.66733 | AE69: 14168.66733 | AF69: 14168.66733 | AG69: 129006.3653 | AH69: 129006.3653 | AI69: 143175.0326 | AJ69: 14168.66733 | AK69: 14168.66733 | AL69: 0
B71: Capex VPL | C71: =SUM(D71:AL71) -> -739753.8837 | D71: =D57/((1+WACC!$D$22)^(D12-1)) -> -8434.968766 | E71: =E57/((1+WACC!$D$22)^(E12-1)) -> -70141.2229 | F71: =F57/((1+WACC!$D$22)^(F12-1)) -> -188509.4523 | G71: =G57/((1+WACC!$D$22)^(G12-1)) -> -152505.8032 | H71: =H57/((1+WACC!$D$22)^(H12-1)) -> -84026.90454 | I71: =I57/((1+WACC!$D$22)^(I12-1)) -> -59038.06294 | J71: =J57/((1+WACC!$D$22)^(J12-1)) -> -21702.7855 | K71: =K57/((1+WACC!$D$22)^(K12-1)) -> -7465.529736 | L71: =L57/((1+WACC!$D$22)^(L12-1)) -> 0 | M71: =M57/((1+WACC!$D$22)^(M12-1)) -> 0 | N71: =N57/((1+WACC!$D$22)^(N12-1)) -> 0 | O71: =O57/((1+WACC!$D$22)^(O12-1)) -> -5387.002207 | P71: =P57/((1+WACC!$D$22)^(P12-1)) -> -4933.634647 | Q71: =Q57/((1+WACC!$D$22)^(Q12-1)) -> -4518.422287 | R71: =R57/((1+WACC!$D$22)^(R12-1)) -> -14897.35441 | S71: =S57/((1+WACC!$D$22)^(S12-1)) -> -13643.6001 | T71: =T57/((1+WACC!$D$22)^(T12-1)) -> -15966.29482 | U71: =U57/((1+WACC!$D$22)^(U12-1)) -> -3178.82152 | V71: =V57/((1+WACC!$D$22)^(V12-1)) -> -2911.293403 | W71: =W57/((1+WACC!$D$22)^(W12-1)) -> -15263.2068 | X71: =X57/((1+WACC!$D$22)^(X12-1)) -> -13978.66253 | Y71: =Y57/((1+WACC!$D$22)^(Y12-1)) -> -15038.60424 | Z71: =Z57/((1+WACC!$D$22)^(Z12-1)) -> -2048.166713 | AA71: =AA57/((1+WACC!$D$22)^(AA12-1)) -> -1875.79397 | AB71: =AB57/((1+WACC!$D$22)^(AB12-1)) -> 0 | AC71: =AC57/((1+WACC!$D$22)^(AC12-1)) -> 0 | AD71: =AD57/((1+WACC!$D$22)^(AD12-1)) -> -1440.935798 | AE71: =AE57/((1+WACC!$D$22)^(AE12-1)) -> -1319.667322 | AF71: =AF57/((1+WACC!$D$22)^(AF12-1)) -> -1208.604744 | AG71: =AG57/((1+WACC!$D$22)^(AG12-1)) -> -10078.27634 | AH71: =AH57/((1+WACC!$D$22)^(AH12-1)) -> -9230.093368 | AI71: =AI57/((1+WACC!$D$22)^(AI12-1)) -> -9381.711581 | AJ71: =AJ57/((1+WACC!$D$22)^(AJ12-1)) -> -850.2832462 | AK71: =AK57/((1+WACC!$D$22)^(AK12-1)) -> -778.72381 | AL71: =AL57/((1+WACC!$D$22)^(AL12-1)) -> 0
B72: Opex VPL | C72: -2396317.372 | D72: =D24/((1+WACC!$D$22)^(D12-1)) -> -39916.80824 | E72: =E24/((1+WACC!$D$22)^(E12-1)) -> -918.2478863 | F72: =F24/((1+WACC!$D$22)^(F12-1)) -> -2597.09298 | G72: =G24/((1+WACC!$D$22)^(G12-1)) -> -81660.62692 | H72: =H24/((1+WACC!$D$22)^(H12-1)) -> -185666.6739 | I72: =I24/((1+WACC!$D$22)^(I12-1)) -> -154545.2194 | J72: =J24/((1+WACC!$D$22)^(J12-1)) -> -159483.3283 | K72: =K24/((1+WACC!$D$22)^(K12-1)) -> -158486.19 | L72: =L24/((1+WACC!$D$22)^(L12-1)) -> -231626.2619 | M72: =M24/((1+WACC!$D$22)^(M12-1)) -> -130021.8089 | N72: =N24/((1+WACC!$D$22)^(N12-1)) -> -118794.7811 | O72: =O24/((1+WACC!$D$22)^(O12-1)) -> -108800.5392 | P72: =P24/((1+WACC!$D$22)^(P12-1)) -> -99367.26651 | Q72: =Q24/((1+WACC!$D$22)^(Q12-1)) -> -90923.86448 | R72: =R24/((1+WACC!$D$22)^(R12-1)) -> -83278.68695 | S72: =S24/((1+WACC!$D$22)^(S12-1)) -> -76269.99201 | T72: =T24/((1+WACC!$D$22)^(T12-1)) -> -69915.37328 | U72: =U24/((1+WACC!$D$22)^(U12-1)) -> -63967.18119 | V72: =V24/((1+WACC!$D$22)^(V12-1)) -> -58583.73345 | W72: =W24/((1+WACC!$D$22)^(W12-1)) -> -53661.47008 | X72: =X24/((1+WACC!$D$22)^(X12-1)) -> -49188.95866 | Y72: =Y24/((1+WACC!$D$22)^(Y12-1)) -> -45010.73786 | Z72: =Z24/((1+WACC!$D$22)^(Z12-1)) -> -41215.10138 | AA72: =AA24/((1+WACC!$D$22)^(AA12-1)) -> -37746.45793 | AB72: =AB24/((1+WACC!$D$22)^(AB12-1)) -> -34599.30954 | AC72: =AC24/((1+WACC!$D$22)^(AC12-1)) -> -31659.34772 | AD72: =AD24/((1+WACC!$D$22)^(AD12-1)) -> -28995.84034 | AE72: =AE24/((1+WACC!$D$22)^(AE12-1)) -> -26555.56412 | AF72: =AF24/((1+WACC!$D$22)^(AF12-1)) -> -24342.24629 | AG72: =AG24/((1+WACC!$D$22)^(AG12-1)) -> -22279.62519 | AH72: =AH24/((1+WACC!$D$22)^(AH12-1)) -> -20404.58247 | AI72: =AI24/((1+WACC!$D$22)^(AI12-1)) -> -18687.94061 | AJ72: =AJ24/((1+WACC!$D$22)^(AJ12-1)) -> -17125.37064 | AK72: =AK24/((1+WACC!$D$22)^(AK12-1)) -> -15670.19939 | AL72: =AL24/((1+WACC!$D$22)^(AL12-1)) -> -14350.94332
B73: Receita VPL | C73: 3643078.646 | D73: =D14/((1+WACC!$D$22)^(D12-1)) -> 0 | E73: =E14/((1+WACC!$D$22)^(E12-1)) -> 0 | F73: =F14/((1+WACC!$D$22)^(F12-1)) -> 0 | G73: =G14/((1+WACC!$D$22)^(G12-1)) -> 133233.1072 | H73: =H14/((1+WACC!$D$22)^(H12-1)) -> 208776.8722 | I73: =I14/((1+WACC!$D$22)^(I12-1)) -> 251540.914 | J73: =J14/((1+WACC!$D$22)^(J12-1)) -> 260406.5663 | K73: =K14/((1+WACC!$D$22)^(K12-1)) -> 256621.2272 | L73: =L14/((1+WACC!$D$22)^(L12-1)) -> 235024.106 | M73: =M14/((1+WACC!$D$22)^(M12-1)) -> 215244.5883 | N73: =N14/((1+WACC!$D$22)^(N12-1)) -> 197129.7055 | O73: =O14/((1+WACC!$D$22)^(O12-1)) -> 180539.3626 | P73: =P14/((1+WACC!$D$22)^(P12-1)) -> 165345.2552 | Q73: =Q14/((1+WACC!$D$22)^(Q12-1)) -> 151429.8766 | R73: =R14/((1+WACC!$D$22)^(R12-1)) -> 138685.6098 | S73: =S14/((1+WACC!$D$22)^(S12-1)) -> 127013.8944 | T73: =T14/((1+WACC!$D$22)^(T12-1)) -> 116324.4651 | U73: =U14/((1+WACC!$D$22)^(U12-1)) -> 106534.653 | V73: =V14/((1+WACC!$D$22)^(V12-1)) -> 97568.74699 | W73: =W14/((1+WACC!$D$22)^(W12-1)) -> 89357.40735 | X73: =X14/((1+WACC!$D$22)^(X12-1)) -> 81837.13017 | Y73: =Y14/((1+WACC!$D$22)^(Y12-1)) -> 74949.75597 | Z73: =Z14/((1+WACC!$D$22)^(Z12-1)) -> 68642.01992 | AA73: =AA14/((1+WACC!$D$22)^(AA12-1)) -> 62865.13996 | AB73: =AB14/((1+WACC!$D$22)^(AB12-1)) -> 57574.43949 | AC73: =AC14/((1+WACC!$D$22)^(AC12-1)) -> 52729.00187 | AD73: =AD14/((1+WACC!$D$22)^(AD12-1)) -> 48291.35399 | AE73: =AE14/((1+WACC!$D$22)^(AE12-1)) -> 44227.17646 | AF73: =AF14/((1+WACC!$D$22)^(AF12-1)) -> 40505.03819 | AG73: =AG14/((1+WACC!$D$22)^(AG12-1)) -> 37096.15331 | AH73: =AH14/((1+WACC!$D$22)^(AH12-1)) -> 33974.15858 | AI73: =AI14/((1+WACC!$D$22)^(AI12-1)) -> 31114.90945 | AJ73: =AJ14/((1+WACC!$D$22)^(AJ12-1)) -> 28496.29337 | AK73: =AK14/((1+WACC!$D$22)^(AK12-1)) -> 26098.05879 | AL73: =AL14/((1+WACC!$D$22)^(AL12-1)) -> 23901.65849
B74: NCG VPL | C74: -107996.674 | D74: =D55/((1+WACC!$D$22)^(D12-1)) -> 0 | E74: =E55/((1+WACC!$D$22)^(E12-1)) -> 0 | F74: =F55/((1+WACC!$D$22)^(F12-1)) -> 0 | G74: =G55/((1+WACC!$D$22)^(G12-1)) -> -43802.6654 | H74: =H55/((1+WACC!$D$22)^(H12-1)) -> -28522.7179 | I74: =I55/((1+WACC!$D$22)^(I12-1)) -> -19836.03444 | J74: =J55/((1+WACC!$D$22)^(J12-1)) -> -9874.591811 | K74: =K55/((1+WACC!$D$22)^(K12-1)) -> -5960.664475 | L74: =L55/((1+WACC!$D$22)^(L12-1)) -> 0 | M74: =M55/((1+WACC!$D$22)^(M12-1)) -> 0 | N74: =N55/((1+WACC!$D$22)^(N12-1)) -> 0 | O74: =O55/((1+WACC!$D$22)^(O12-1)) -> 0 | P74: =P55/((1+WACC!$D$22)^(P12-1)) -> 0 | Q74: =Q55/((1+WACC!$D$22)^(Q12-1)) -> 0 | R74: =R55/((1+WACC!$D$22)^(R12-1)) -> 0 | S74: =S55/((1+WACC!$D$22)^(S12-1)) -> 0 | T74: =T55/((1+WACC!$D$22)^(T12-1)) -> 0 | U74: =U55/((1+WACC!$D$22)^(U12-1)) -> 0 | V74: =V55/((1+WACC!$D$22)^(V12-1)) -> 0 | W74: =W55/((1+WACC!$D$22)^(W12-1)) -> 0 | X74: =X55/((1+WACC!$D$22)^(X12-1)) -> 0 | Y74: =Y55/((1+WACC!$D$22)^(Y12-1)) -> 0 | Z74: =Z55/((1+WACC!$D$22)^(Z12-1)) -> 0 | AA74: =AA55/((1+WACC!$D$22)^(AA12-1)) -> 0 | AB74: =AB55/((1+WACC!$D$22)^(AB12-1)) -> 0 | AC74: =AC55/((1+WACC!$D$22)^(AC12-1)) -> 0 | AD74: =AD55/((1+WACC!$D$22)^(AD12-1)) -> 0 | AE74: =AE55/((1+WACC!$D$22)^(AE12-1)) -> 0 | AF74: =AF55/((1+WACC!$D$22)^(AF12-1)) -> 0 | AG74: =AG55/((1+WACC!$D$22)^(AG12-1)) -> 0 | AH74: =AH55/((1+WACC!$D$22)^(AH12-1)) -> 0 | AI74: =AI55/((1+WACC!$D$22)^(AI12-1)) -> 0 | AJ74: =AJ55/((1+WACC!$D$22)^(AJ12-1)) -> 0 | AK74: =AK55/((1+WACC!$D$22)^(AK12-1)) -> 0 | AL74: =AL55/((1+WACC!$D$22)^(AL12-1)) -> 0
B75: Tributação VPL | C75: -439485.3055 | D75: =(D54+D16)/((1+WACC!$D$22)^(D12-1)) -> -2498.132912 | E75: =(E54+E16)/((1+WACC!$D$22)^(E12-1)) -> -2287.891227 | F75: =(F54+F16)/((1+WACC!$D$22)^(F12-1)) -> -2095.343382 | G75: =(G54+G16)/((1+WACC!$D$22)^(G12-1)) -> -12236.62818 | H75: =(H54+H16)/((1+WACC!$D$22)^(H12-1)) -> -13971.01822 | I75: =(I54+I16)/((1+WACC!$D$22)^(I12-1)) -> -22420.12658 | J75: =(J54+J16)/((1+WACC!$D$22)^(J12-1)) -> -23238.68397 | K75: =(K54+K16)/((1+WACC!$D$22)^(K12-1)) -> -24031.29115 | L75: =(L54+L16)/((1+WACC!$D$22)^(L12-1)) -> -14985.43575 | M75: =(M54+M16)/((1+WACC!$D$22)^(M12-1)) -> -19660.71557 | N75: =(N54+N16)/((1+WACC!$D$22)^(N12-1)) -> -26858.79041 | O75: =(O54+O16)/((1+WACC!$D$22)^(O12-1)) -> -27424.20655 | P75: =(P54+P16)/((1+WACC!$D$22)^(P12-1)) -> -24945.88594 | Q75: =(Q54+Q16)/((1+WACC!$D$22)^(Q12-1)) -> -22566.6372 | R75: =(R54+R16)/((1+WACC!$D$22)^(R12-1)) -> -20327.40945 | S75: =(S54+S16)/((1+WACC!$D$22)^(S12-1)) -> -18307.40934 | T75: =(T54+T16)/((1+WACC!$D$22)^(T12-1)) -> -16461.6008 | U75: =(U54+U16)/((1+WACC!$D$22)^(U12-1)) -> -15098.01034 | V75: =(V54+V16)/((1+WACC!$D$22)^(V12-1)) -> -14087.68219 | W75: =(W54+W16)/((1+WACC!$D$22)^(W12-1)) -> -12809.34219 | X75: =(X54+X16)/((1+WACC!$D$22)^(X12-1)) -> -11596.73132 | Y75: =(Y54+Y16)/((1+WACC!$D$22)^(Y12-1)) -> -10557.25322 | Z75: =(Z54+Z16)/((1+WACC!$D$22)^(Z12-1)) -> -9902.801468 | AA75: =(AA54+AA16)/((1+WACC!$D$22)^(AA12-1)) -> -9166.887982 | AB75: =(AB54+AB16)/((1+WACC!$D$22)^(AB12-1)) -> -8415.372809 | AC75: =(AC54+AC16)/((1+WACC!$D$22)^(AC12-1)) -> -7744.188026 | AD75: =(AD54+AD16)/((1+WACC!$D$22)^(AD12-1)) -> -7098.248663 | AE75: =(AE54+AE16)/((1+WACC!$D$22)^(AE12-1)) -> -6523.295959 | AF75: =(AF54+AF16)/((1+WACC!$D$22)^(AF12-1)) -> -5979.799646 | AG75: =(AG54+AG16)/((1+WACC!$D$22)^(AG12-1)) -> -5416.159376 | AH75: =(AH54+AH16)/((1+WACC!$D$22)^(AH12-1)) -> -4900.6806 | AI75: =(AI54+AI16)/((1+WACC!$D$22)^(AI12-1)) -> -4446.873127 | AJ75: =(AJ54+AJ16)/((1+WACC!$D$22)^(AJ12-1)) -> -4124.207647 | AK75: =(AK54+AK16)/((1+WACC!$D$22)^(AK12-1)) -> -3805.580785 | AL75: =(AL54+AL16)/((1+WACC!$D$22)^(AL12-1)) -> -3494.983484
B76: Fluxo de Caixa VPL | C76: -40474.58966 | D76: =D58/((1+WACC!$D$22)^(D12-1)) -> -50849.90992 | E76: =E58/((1+WACC!$D$22)^(E12-1)) -> -73347.36201 | F76: =F58/((1+WACC!$D$22)^(F12-1)) -> -193201.8887 | G76: =G58/((1+WACC!$D$22)^(G12-1)) -> -156972.6164 | H76: =H58/((1+WACC!$D$22)^(H12-1)) -> -103410.4424 | I76: =I58/((1+WACC!$D$22)^(I12-1)) -> -4298.529362 | J76: =J58/((1+WACC!$D$22)^(J12-1)) -> 46107.17676 | K76: =K58/((1+WACC!$D$22)^(K12-1)) -> 60677.55189 | L76: =L58/((1+WACC!$D$22)^(L12-1)) -> -11587.59162 | M76: =M58/((1+WACC!$D$22)^(M12-1)) -> 65562.06379 | N76: =N58/((1+WACC!$D$22)^(N12-1)) -> 51476.13392 | O76: =O58/((1+WACC!$D$22)^(O12-1)) -> 38927.61462 | P76: =P58/((1+WACC!$D$22)^(P12-1)) -> 36098.46807 | Q76: =Q58/((1+WACC!$D$22)^(Q12-1)) -> 33420.95266 | R76: =R58/((1+WACC!$D$22)^(R12-1)) -> 20182.15896 | S76: =S58/((1+WACC!$D$22)^(S12-1)) -> 18792.89293 | T76: =T58/((1+WACC!$D$22)^(T12-1)) -> 13981.19616 | U76: =U58/((1+WACC!$D$22)^(U12-1)) -> 24290.63999 | V76: =V58/((1+WACC!$D$22)^(V12-1)) -> 21986.03795 | W76: =W58/((1+WACC!$D$22)^(W12-1)) -> 7623.388279 | X76: =X58/((1+WACC!$D$22)^(X12-1)) -> 7072.777658 | Y76: =Y58/((1+WACC!$D$22)^(Y12-1)) -> 4343.160646 | Z76: =Z58/((1+WACC!$D$22)^(Z12-1)) -> 15475.95036 | AA76: =AA58/((1+WACC!$D$22)^(AA12-1)) -> 14076.00009 | AB76: =AB58/((1+WACC!$D$22)^(AB12-1)) -> 14559.75714 | AC76: =AC58/((1+WACC!$D$22)^(AC12-1)) -> 13325.46612 | AD76: =AD58/((1+WACC!$D$22)^(AD12-1)) -> 10756.32919 | AE76: =AE58/((1+WACC!$D$22)^(AE12-1)) -> 9828.649055 | AF76: =AF58/((1+WACC!$D$22)^(AF12-1)) -> 8974.387505 | AG76: =AG58/((1+WACC!$D$22)^(AG12-1)) -> -677.9075975 | AH76: =AH58/((1+WACC!$D$22)^(AH12-1)) -> -561.1978517 | AI76: =AI58/((1+WACC!$D$22)^(AI12-1)) -> -1401.615867 | AJ76: =AJ58/((1+WACC!$D$22)^(AJ12-1)) -> 6396.431841 | AK76: =AK58/((1+WACC!$D$22)^(AK12-1)) -> 5843.554803 | AL76: =AL58/((1+WACC!$D$22)^(AL12-1)) -> 6055.731687
B77: Fluxo de Caixa Acumulado VPL | D77: =D76 -> -50849.90992 | E77: =D77+E76 -> -124197.2719 | F77: =E77+F76 -> -317399.1606 | G77: -474371.777 | H77: -577782.2194 | I77: -582080.7488 | J77: -535973.572 | K77: -475296.0201 | L77: -486883.6118 | M77: -421321.548 | N77: -369845.4141 | O77: -330917.7994 | P77: -294819.3314 | Q77: -261398.3787 | R77: -241216.2197 | S77: -222423.3268 | T77: -208442.1307 | U77: -184151.4907 | V77: -162165.4527 | W77: -154542.0644 | X77: -147469.2868 | Y77: -143126.1261 | Z77: -127650.1758 | AA77: -113574.1757 | AB77: -99014.41854 | AC77: -85688.95242 | AD77: -74932.62323 | AE77: -65103.97418 | AF77: -56129.58667 | AG77: -56807.49427 | AH77: -57368.69212 | AI77: -58770.30799 | AJ77: -52373.87615 | AK77: -46530.32135 | AL77: -40474.58966
B78: Payback VPL | E78: =IF(AND(E77>0,D77<0),E52,"") ->  | F78: =IF(AND(F77>0,E77<0),F52,"") -> 

Sheet FC Acionista
B2: FLUXO DE CAIXA DO ACIONISTA
D4: 2025 | E4: 2026 | F4: 2027 | G4: 2028 | H4: 2029 | I4: 2030 | J4: 2031 | K4: 2032 | L4: 2033 | M4: 2034 | N4: 2035 | O4: 2036 | P4: 2037 | Q4: 2038 | R4: 2039 | S4: 2040 | T4: 2041 | U4: 2042 | V4: 2043 | W4: 2044 | X4: 2045 | Y4: 2046 | Z4: 2047 | AA4: 2048 | AB4: 2049 | AC4: 2050 | AD4: 2051 | AE4: 2052 | AF4: 2053 | AG4: 2054 | AH4: 2055 | AI4: 2056 | AJ4: 2057 | AK4: 2058 | AL4: 2059
D5: 1 | E5: =D5+1 -> 2 | F5: =E5+1 -> 3 | G5: 4 | H5: 5 | I5: 6 | J5: 7 | K5: 8 | L5: 9 | M5: 10 | N5: 11 | O5: 12 | P5: 13 | Q5: 14 | R5: 15 | S5: 16 | T5: 17 | U5: 18 | V5: 19 | W5: 20 | X5: 21 | Y5: 22 | Z5: 23 | AA5: 24 | AB5: 25 | AC5: 26 | AD5: 27 | AE5: 28 | AF5: 29 | AG5: 30 | AH5: 31 | AI5: 32 | AJ5: 33 | AK5: 34 | AL5: 35
B6: Área com início de cultivo no ano | D6: =IF(D5<10,VLOOKUP(D5,'Painel de Controle'!$B$10:$C$20,2,FALSE),0) -> 0 | E6: =IF(E5<10,VLOOKUP(E5,'Painel de Controle'!$B$10:$C$20,2,FALSE),0) -> 0 | F6: =IF(F5<10,VLOOKUP(F5,'Painel de Controle'!$B$10:$C$20,2,FALSE),0) -> 0 | G6: =IF(G5<10,VLOOKUP(G5,'Painel de Controle'!$B$10:$C$20,2,FALSE),0) -> 3739.57 | H6: =IF(H5<10,VLOOKUP(H5,'Painel de Controle'!$B$10:$C$20,2,FALSE),0) -> 2658.84 | I6: =IF(I5<10,VLOOKUP(I5,'Painel de Controle'!$B$10:$C$20,2,FALSE),0) -> 2019 | J6: =IF(J5<10,VLOOKUP(J5,'Painel de Controle'!$B$10:$C$20,2,FALSE),0) -> 1097.44 | K6: =IF(K5<10,VLOOKUP(K5,'Painel de Controle'!$B$10:$C$20,2,FALSE),0) -> 723.33 | L6: =IF(L5<10,VLOOKUP(L5,'Painel de Controle'!$B$10:$C$20,2,FALSE),0) -> 0 | M6: =IF(M5<10,VLOOKUP(M5,'Painel de Controle'!$B$10:$C$20,2,FALSE),0) -> 0 | N6: =IF(N5<10,VLOOKUP(N5,'Painel de Controle'!$B$10:$C$20,2,FALSE),0) -> 0 | O6: =IF(O5<10,VLOOKUP(O5,'Painel de Controle'!$B$10:$C$20,2,FALSE),0) -> 0 | P6: =IF(P5<10,VLOOKUP(P5,'Painel de Controle'!$B$10:$C$20,2,FALSE),0) -> 0 | Q6: =IF(Q5<10,VLOOKUP(Q5,'Painel de Controle'!$B$10:$C$20,2,FALSE),0) -> 0 | R6: =IF(R5<10,VLOOKUP(R5,'Painel de Controle'!$B$10:$C$20,2,FALSE),0) -> 0 | S6: =IF(S5<10,VLOOKUP(S5,'Painel de Controle'!$B$10:$C$20,2,FALSE),0) -> 0 | T6: =IF(T5<10,VLOOKUP(T5,'Painel de Controle'!$B$10:$C$20,2,FALSE),0) -> 0 | U6: =IF(U5<10,VLOOKUP(U5,'Painel de Controle'!$B$10:$C$20,2,FALSE),0) -> 0 | V6: =IF(V5<10,VLOOKUP(V5,'Painel de Controle'!$B$10:$C$20,2,FALSE),0) -> 0 | W6: =IF(W5<10,VLOOKUP(W5,'Painel de Controle'!$B$10:$C$20,2,FALSE),0) -> 0 | X6: =IF(X5<10,VLOOKUP(X5,'Painel de Controle'!$B$10:$C$20,2,FALSE),0) -> 0 | Y6: =IF(Y5<10,VLOOKUP(Y5,'Painel de Controle'!$B$10:$C$20,2,FALSE),0) -> 0 | Z6: =IF(Z5<10,VLOOKUP(Z5,'Painel de Controle'!$B$10:$C$20,2,FALSE),0) -> 0 | AA6: =IF(AA5<10,VLOOKUP(AA5,'Painel de Controle'!$B$10:$C$20,2,FALSE),0) -> 0 | AB6: =IF(AB5<10,VLOOKUP(AB5,'Painel de Controle'!$B$10:$C$20,2,FALSE),0) -> 0 | AC6: =IF(AC5<10,VLOOKUP(AC5,'Painel de Controle'!$B$10:$C$20,2,FALSE),0) -> 0 | AD6: =IF(AD5<10,VLOOKUP(AD5,'Painel de Controle'!$B$10:$C$20,2,FALSE),0) -> 0 | AE6: =IF(AE5<10,VLOOKUP(AE5,'Painel de Controle'!$B$10:$C$20,2,FALSE),0) -> 0 | AF6: =IF(AF5<10,VLOOKUP(AF5,'Painel de Controle'!$B$10:$C$20,2,FALSE),0) -> 0 | AG6: =IF(AG5<10,VLOOKUP(AG5,'Painel de Controle'!$B$10:$C$20,2,FALSE),0) -> 0 | AH6: =IF(AH5<10,VLOOKUP(AH5,'Painel de Controle'!$B$10:$C$20,2,FALSE),0) -> 0 | AI6: =IF(AI5<10,VLOOKUP(AI5,'Painel de Controle'!$B$10:$C$20,2,FALSE),0) -> 0 | AJ6: =IF(AJ5<10,VLOOKUP(AJ5,'Painel de Controle'!$B$10:$C$20,2,FALSE),0) -> 0 | AK6: =IF(AK5<10,VLOOKUP(AK5,'Painel de Controle'!$B$10:$C$20,2,FALSE),0) -> 0 | AL6: =IF(AL5<10,VLOOKUP(AL5,'Painel de Controle'!$B$10:$C$20,2,FALSE),0) -> 0
B7: Área Cultivada | D7: =D6 -> 0 | E7: =D7+E6 -> 0 | F7: =E7+F6 -> 0 | G7: 3739.57 | H7: 6398.41 | I7: 8417.41 | J7: 9514.85 | K7: 10238.18 | L7: 10238.18 | M7: 10238.18 | N7: 10238.18 | O7: 10238.18 | P7: 10238.18 | Q7: 10238.18 | R7: 10238.18 | S7: 10238.18 | T7: 10238.18 | U7: 10238.18 | V7: 10238.18 | W7: 10238.18 | X7: 10238.18 | Y7: 10238.18 | Z7: 10238.18 | AA7: 10238.18 | AB7: 10238.18 | AC7: 10238.18 | AD7: 10238.18 | AE7: 10238.18 | AF7: 10238.18 | AG7: 10238.18 | AH7: 10238.18 | AI7: 10238.18 | AJ7: 10238.18 | AK7: 10238.18 | AL7: 10238.18
B8: % Área Cultiva | D8: =D7/SUM($D$6:$AL$6) -> 0 | E8: =E7/SUM($D$6:$AL$6) -> 0 | F8: 0 | G8: 0.3652573016 | H8: 0.6249558027 | I8: 0.8221588212 | J8: 0.9293497477 | K8: 1 | L8: 1 | M8: 1 | N8: 1 | O8: 1 | P8: 1 | Q8: 1 | R8: 1 | S8: 1 | T8: 1 | U8: 1 | V8: 1 | W8: 1 | X8: 1 | Y8: 1 | Z8: 1 | AA8: 1 | AB8: 1 | AC8: 1 | AD8: 1 | AE8: 1 | AF8: 1 | AG8: 1 | AH8: 1 | AI8: 1 | AJ8: 1 | AK8: 1 | AL8: 1
B9: % CAPEX Infraestrutura de Irrigação | D9: =SUM(CAPEX!F$20:F$48)/SUM(CAPEX!$E$20:$E$48) -> 0 | E9: =SUM(CAPEX!G$20:G$48)/SUM(CAPEX!$E$20:$E$48) -> 0.1516939285 | F9: =SUM(CAPEX!H$20:H$48)/SUM(CAPEX!$E$20:$E$48) -> 0.4384239708 | G9: =SUM(CAPEX!I$20:I$48)/SUM(CAPEX!$E$20:$E$48) -> 0.2273736749 | H9: =SUM(CAPEX!J$20:J$48)/SUM(CAPEX!$E$20:$E$48) -> 0.1011923544 | I9: =SUM(CAPEX!K$20:K$48)/SUM(CAPEX!$E$20:$E$48) -> 0.08131607148 | J9: =SUM(CAPEX!L$20:L$48)/SUM(CAPEX!$E$20:$E$48) -> 0
B10: % Implantação Infraestrutura de Irrigação | D10: =D9 -> 0 | E10: =D10+E9 -> 0.1516939285 | F10: =E10+F9 -> 0.5901178993 | G10: 0.8174915741 | H10: 0.9186839285 | I10: 1 | J10: 1 | K10: =J10 -> 1 | L10: =K10 -> 1 | M10: 1 | N10: 1 | O10: 1 | P10: 1 | Q10: 1 | R10: 1 | S10: 1 | T10: 1 | U10: 1 | V10: 1 | W10: 1 | X10: 1 | Y10: 1 | Z10: 1 | AA10: 1 | AB10: 1 | AC10: 1 | AD10: 1 | AE10: 1 | AF10: 1 | AG10: 1 | AH10: 1 | AI10: 1 | AJ10: 1 | AK10: 1 | AL10: 1
B12: Demonstração de Resultados do Exercício (R$ mil) | C12: TOTAL | D12: 1 | E12: =D12+1 -> 2 | F12: =E12+1 -> 3 | G12: 4 | H12: 5 | I12: 6 | J12: 7 | K12: 8 | L12: 9 | M12: 10 | N12: 11 | O12: 12 | P12: 13 | Q12: 14 | R12: 15 | S12: 16 | T12: 17 | U12: 18 | V12: 19 | W12: 20 | X12: 21 | Y12: 22 | Z12: 23 | AA12: 24 | AB12: 25 | AC12: 26 | AD12: 27 | AE12: 28 | AF12: 29 | AG12: 30 | AH12: 31 | AI12: 32 | AJ12: 33 | AK12: 34 | AL12: 35
B14: Receita Operacional Bruta | C14: =SUM(D14:AL14) -> 14597616.2 | D14: ='FC Projeto'!D14 -> 0 | E14: ='FC Projeto'!E14 -> 0 | F14: ='FC Projeto'!F14 -> 0 | G14: ='FC Projeto'!G14 -> 173441.3563 | H14: ='FC Projeto'!H14 -> 296758.4264 | I14: ='FC Projeto'!I14 -> 390399.7003 | J14: ='FC Projeto'!J14 -> 441298.9967 | K14: ='FC Projeto'!K14 -> 474847.0614 | L14: ='FC Projeto'!L14 -> 474847.0614 | M14: ='FC Projeto'!M14 -> 474847.0614 | N14: ='FC Projeto'!N14 -> 474847.0614 | O14: ='FC Projeto'!O14 -> 474847.0614 | P14: ='FC Projeto'!P14 -> 474847.0614 | Q14: ='FC Projeto'!Q14 -> 474847.0614 | R14: ='FC Projeto'!R14 -> 474847.0614 | S14: ='FC Projeto'!S14 -> 474847.0614 | T14: ='FC Projeto'!T14 -> 474847.0614 | U14: ='FC Projeto'!U14 -> 474847.0614 | V14: ='FC Projeto'!V14 -> 474847.0614 | W14: ='FC Projeto'!W14 -> 474847.0614 | X14: ='FC Projeto'!X14 -> 474847.0614 | Y14: ='FC Projeto'!Y14 -> 474847.0614 | Z14: ='FC Projeto'!Z14 -> 474847.0614 | AA14: ='FC Projeto'!AA14 -> 474847.0614 | AB14: ='FC Projeto'!AB14 -> 474847.0614 | AC14: ='FC Projeto'!AC14 -> 474847.0614 | AD14: ='FC Projeto'!AD14 -> 474847.0614 | AE14: ='FC Projeto'!AE14 -> 474847.0614 | AF14: ='FC Projeto'!AF14 -> 474847.0614 | AG14: ='FC Projeto'!AG14 -> 474847.0614 | AH14: ='FC Projeto'!AH14 -> 474847.0614 | AI14: ='FC Projeto'!AI14 -> 474847.0614 | AJ14: ='FC Projeto'!AJ14 -> 474847.0614 | AK14: ='FC Projeto'!AK14 -> 474847.0614 | AL14: ='FC Projeto'!AL14 -> 474847.0614
B16: Deduções sobre a Receita Operacional | C16: =SUM(D16:AL16) -> -941400.3096 | D16: =SUM(D17:D20) -> -2498.132912 | E16: =SUM(E17:E20) -> -2498.132912 | F16: -2498.132912 | G16: -12644.51297 | H16: -19858.60474 | I16: -25336.65204 | J16: -28314.2787 | K16: -30276.85223 | L16: -30276.85223 | M16: -30276.85223 | N16: -30276.85223 | O16: -30276.85223 | P16: -30276.85223 | Q16: -30276.85223 | R16: -30276.85223 | S16: -30276.85223 | T16: -30276.85223 | U16: -30276.85223 | V16: -30276.85223 | W16: -30276.85223 | X16: -30276.85223 | Y16: -30276.85223 | Z16: -30276.85223 | AA16: -30276.85223 | AB16: -30276.85223 | AC16: -30276.85223 | AD16: -30276.85223 | AE16: -30276.85223 | AF16: -30276.85223 | AG16: -30276.85223 | AH16: -30276.85223 | AI16: -30276.85223 | AJ16: -30276.85223 | AK16: -30276.85223 | AL16: -30276.85223
B17: PIS | C17: -98949.07754 | D17: =-Tributação!D16 -> 0 | E17: =-Tributação!E16 -> 0 | F17: =-Tributação!F16 -> 0 | G17: =-Tributação!G16 -> -1175.66197 | H17: =-Tributação!H16 -> -2011.559432 | I17: =-Tributação!I16 -> -2646.301265 | J17: =-Tributação!J16 -> -2991.319134 | K17: =-Tributação!K16 -> -3218.722705 | L17: =-Tributação!L16 -> -3218.722705 | M17: =-Tributação!M16 -> -3218.722705 | N17: =-Tributação!N16 -> -3218.722705 | O17: =-Tributação!O16 -> -3218.722705 | P17: =-Tributação!P16 -> -3218.722705 | Q17: =-Tributação!Q16 -> -3218.722705 | R17: =-Tributação!R16 -> -3218.722705 | S17: =-Tributação!S16 -> -3218.722705 | T17: =-Tributação!T16 -> -3218.722705 | U17: =-Tributação!U16 -> -3218.722705 | V17: =-Tributação!V16 -> -3218.722705 | W17: =-Tributação!W16 -> -3218.722705 | X17: =-Tributação!X16 -> -3218.722705 | Y17: =-Tributação!Y16 -> -3218.722705 | Z17: =-Tributação!Z16 -> -3218.722705 | AA17: =-Tributação!AA16 -> -3218.722705 | AB17: =-Tributação!AB16 -> -3218.722705 | AC17: =-Tributação!AC16 -> -3218.722705 | AD17: =-Tributação!AD16 -> -3218.722705 | AE17: =-Tributação!AE16 -> -3218.722705 | AF17: =-Tributação!AF16 -> -3218.722705 | AG17: =-Tributação!AG16 -> -3218.722705 | AH17: =-Tributação!AH16 -> -3218.722705 | AI17: =-Tributação!AI16 -> -3218.722705 | AJ17: =-Tributação!AJ16 -> -3218.722705 | AK17: =-Tributação!AK16 -> -3218.722705 | AL17: =-Tributação!AL16 -> -3218.722705
B18: COFINS | C18: -455765.4481 | D18: =-Tributação!D17 -> 0 | E18: =-Tributação!E17 -> 0 | F18: =-Tributação!F17 -> 0 | G18: =-Tributação!G17 -> -5415.170285 | H18: =-Tributação!H17 -> -9265.364655 | I18: =-Tributação!I17 -> -12189.02401 | J18: =-Tributação!J17 -> -13778.19722 | K18: =-Tributação!K17 -> -14825.63185 | L18: =-Tributação!L17 -> -14825.63185 | M18: =-Tributação!M17 -> -14825.63185 | N18: =-Tributação!N17 -> -14825.63185 | O18: =-Tributação!O17 -> -14825.63185 | P18: =-Tributação!P17 -> -14825.63185 | Q18: =-Tributação!Q17 -> -14825.63185 | R18: =-Tributação!R17 -> -14825.63185 | S18: =-Tributação!S17 -> -14825.63185 | T18: =-Tributação!T17 -> -14825.63185 | U18: =-Tributação!U17 -> -14825.63185 | V18: =-Tributação!V17 -> -14825.63185 | W18: =-Tributação!W17 -> -14825.63185 | X18: =-Tributação!X17 -> -14825.63185 | Y18: =-Tributação!Y17 -> -14825.63185 | Z18: =-Tributação!Z17 -> -14825.63185 | AA18: =-Tributação!AA17 -> -14825.63185 | AB18: =-Tributação!AB17 -> -14825.63185 | AC18: =-Tributação!AC17 -> -14825.63185 | AD18: =-Tributação!AD17 -> -14825.63185 | AE18: =-Tributação!AE17 -> -14825.63185 | AF18: =-Tributação!AF17 -> -14825.63185 | AG18: =-Tributação!AG17 -> -14825.63185 | AH18: =-Tributação!AH17 -> -14825.63185 | AI18: =-Tributação!AI17 -> -14825.63185 | AJ18: =-Tributação!AJ17 -> -14825.63185 | AK18: =-Tributação!AK17 -> -14825.63185 | AL18: =-Tributação!AL17 -> -14825.63185
B19: FUNRURAL | C19: -299251.1321 | D19: =-'Painel de Controle'!$G$8*'FC Acionista'!D14 -> 0 | E19: =-'Painel de Controle'!$G$8*'FC Acionista'!E14 -> 0 | F19: =-'Painel de Controle'!$G$8*'FC Acionista'!F14 -> 0 | G19: =-'Painel de Controle'!$G$8*'FC Acionista'!G14 -> -3555.547805 | H19: =-'Painel de Controle'!$G$8*'FC Acionista'!H14 -> -6083.547742 | I19: =-'Painel de Controle'!$G$8*'FC Acionista'!I14 -> -8003.193855 | J19: =-'Painel de Controle'!$G$8*'FC Acionista'!J14 -> -9046.629433 | K19: =-'Painel de Controle'!$G$8*'FC Acionista'!K14 -> -9734.364759 | L19: =-'Painel de Controle'!$G$8*'FC Acionista'!L14 -> -9734.364759 | M19: =-'Painel de Controle'!$G$8*'FC Acionista'!M14 -> -9734.364759 | N19: =-'Painel de Controle'!$G$8*'FC Acionista'!N14 -> -9734.364759 | O19: =-'Painel de Controle'!$G$8*'FC Acionista'!O14 -> -9734.364759 | P19: =-'Painel de Controle'!$G$8*'FC Acionista'!P14 -> -9734.364759 | Q19: =-'Painel de Controle'!$G$8*'FC Acionista'!Q14 -> -9734.364759 | R19: =-'Painel de Controle'!$G$8*'FC Acionista'!R14 -> -9734.364759 | S19: =-'Painel de Controle'!$G$8*'FC Acionista'!S14 -> -9734.364759 | T19: =-'Painel de Controle'!$G$8*'FC Acionista'!T14 -> -9734.364759 | U19: =-'Painel de Controle'!$G$8*'FC Acionista'!U14 -> -9734.364759 | V19: =-'Painel de Controle'!$G$8*'FC Acionista'!V14 -> -9734.364759 | W19: =-'Painel de Controle'!$G$8*'FC Acionista'!W14 -> -9734.364759 | X19: =-'Painel de Controle'!$G$8*'FC Acionista'!X14 -> -9734.364759 | Y19: =-'Painel de Controle'!$G$8*'FC Acionista'!Y14 -> -9734.364759 | Z19: =-'Painel de Controle'!$G$8*'FC Acionista'!Z14 -> -9734.364759 | AA19: =-'Painel de Controle'!$G$8*'FC Acionista'!AA14 -> -9734.364759 | AB19: =-'Painel de Controle'!$G$8*'FC Acionista'!AB14 -> -9734.364759 | AC19: =-'Painel de Controle'!$G$8*'FC Acionista'!AC14 -> -9734.364759 | AD19: =-'Painel de Controle'!$G$8*'FC Acionista'!AD14 -> -9734.364759 | AE19: =-'Painel de Controle'!$G$8*'FC Acionista'!AE14 -> -9734.364759 | AF19: =-'Painel de Controle'!$G$8*'FC Acionista'!AF14 -> -9734.364759 | AG19: =-'Painel de Controle'!$G$8*'FC Acionista'!AG14 -> -9734.364759 | AH19: =-'Painel de Controle'!$G$8*'FC Acionista'!AH14 -> -9734.364759 | AI19: =-'Painel de Controle'!$G$8*'FC Acionista'!AI14 -> -9734.364759 | AJ19: =-'Painel de Controle'!$G$8*'FC Acionista'!AJ14 -> -9734.364759 | AK19: =-'Painel de Controle'!$G$8*'FC Acionista'!AK14 -> -9734.364759 | AL19: =-'Painel de Controle'!$G$8*'FC Acionista'!AL14 -> -9734.364759
B20: ITR | C20: =SUM(D20:AL20) -> -87434.65193 | D20: =-'Painel de Controle'!$D$7*'Painel de Controle'!$G$19/1000 -> -2498.132912 | E20: =-'Painel de Controle'!$D$7*'Painel de Controle'!$G$19/1000 -> -2498.132912 | F20: =-'Painel de Controle'!$D$7*'Painel de Controle'!$G$19/1000 -> -2498.132912 | G20: =-'Painel de Controle'!$D$7*'Painel de Controle'!$G$19/1000 -> -2498.132912 | H20: =-'Painel de Controle'!$D$7*'Painel de Controle'!$G$19/1000 -> -2498.132912 | I20: =-'Painel de Controle'!$D$7*'Painel de Controle'!$G$19/1000 -> -2498.132912 | J20: =-'Painel de Controle'!$D$7*'Painel de Controle'!$G$19/1000 -> -2498.132912 | K20: =-'Painel de Controle'!$D$7*'Painel de Controle'!$G$19/1000 -> -2498.132912 | L20: =-'Painel de Controle'!$D$7*'Painel de Controle'!$G$19/1000 -> -2498.132912 | M20: =-'Painel de Controle'!$D$7*'Painel de Controle'!$G$19/1000 -> -2498.132912 | N20: =-'Painel de Controle'!$D$7*'Painel de Controle'!$G$19/1000 -> -2498.132912 | O20: =-'Painel de Controle'!$D$7*'Painel de Controle'!$G$19/1000 -> -2498.132912 | P20: =-'Painel de Controle'!$D$7*'Painel de Controle'!$G$19/1000 -> -2498.132912 | Q20: =-'Painel de Controle'!$D$7*'Painel de Controle'!$G$19/1000 -> -2498.132912 | R20: =-'Painel de Controle'!$D$7*'Painel de Controle'!$G$19/1000 -> -2498.132912 | S20: =-'Painel de Controle'!$D$7*'Painel de Controle'!$G$19/1000 -> -2498.132912 | T20: =-'Painel de Controle'!$D$7*'Painel de Controle'!$G$19/1000 -> -2498.132912 | U20: =-'Painel de Controle'!$D$7*'Painel de Controle'!$G$19/1000 -> -2498.132912 | V20: =-'Painel de Controle'!$D$7*'Painel de Controle'!$G$19/1000 -> -2498.132912 | W20: =-'Painel de Controle'!$D$7*'Painel de Controle'!$G$19/1000 -> -2498.132912 | X20: =-'Painel de Controle'!$D$7*'Painel de Controle'!$G$19/1000 -> -2498.132912 | Y20: =-'Painel de Controle'!$D$7*'Painel de Controle'!$G$19/1000 -> -2498.132912 | Z20: =-'Painel de Controle'!$D$7*'Painel de Controle'!$G$19/1000 -> -2498.132912 | AA20: =-'Painel de Controle'!$D$7*'Painel de Controle'!$G$19/1000 -> -2498.132912 | AB20: =-'Painel de Controle'!$D$7*'Painel de Controle'!$G$19/1000 -> -2498.132912 | AC20: =-'Painel de Controle'!$D$7*'Painel de Controle'!$G$19/1000 -> -2498.132912 | AD20: =-'Painel de Controle'!$D$7*'Painel de Controle'!$G$19/1000 -> -2498.132912 | AE20: =-'Painel de Controle'!$D$7*'Painel de Controle'!$G$19/1000 -> -2498.132912 | AF20: =-'Painel de Controle'!$D$7*'Painel de Controle'!$G$19/1000 -> -2498.132912 | AG20: =-'Painel de Controle'!$D$7*'Painel de Controle'!$G$19/1000 -> -2498.132912 | AH20: =-'Painel de Controle'!$D$7*'Painel de Controle'!$G$19/1000 -> -2498.132912 | AI20: =-'Painel de Controle'!$D$7*'Painel de Controle'!$G$19/1000 -> -2498.132912 | AJ20: =-'Painel de Controle'!$D$7*'Painel de Controle'!$G$19/1000 -> -2498.132912 | AK20: =-'Painel de Controle'!$D$7*'Painel de Controle'!$G$19/1000 -> -2498.132912 | AL20: =-'Painel de Controle'!$D$7*'Painel de Controle'!$G$19/1000 -> -2498.132912
B22: Receita Operacional Líquida | C22: =C14+C16 -> 13656215.89 | D22: =D14+D16 -> -2498.132912 | E22: =E14+E16 -> -2498.132912 | F22: -2498.132912 | G22: 160796.8434 | H22: 276899.8217 | I22: 365063.0482 | J22: 412984.718 | K22: 444570.2092 | L22: 444570.2092 | M22: 444570.2092 | N22: 444570.2092 | O22: 444570.2092 | P22: 444570.2092 | Q22: 444570.2092 | R22: 444570.2092 | S22: 444570.2092 | T22: 444570.2092 | U22: 444570.2092 | V22: 444570.2092 | W22: 444570.2092 | X22: 444570.2092 | Y22: 444570.2092 | Z22: 444570.2092 | AA22: 444570.2092 | AB22: 444570.2092 | AC22: 444570.2092 | AD22: 444570.2092 | AE22: 444570.2092 | AF22: 444570.2092 | AG22: 444570.2092 | AH22: 444570.2092 | AI22: 444570.2092 | AJ22: 444570.2092 | AK22: 444570.2092 | AL22: 444570.2092
D23: 0 | E23: =E15 -> 0 | F23: 0 | G23: 0 | H23: 0 | I23: 0 | J23: 0 | K23: 0 | L23: 0 | M23: 0 | N23: 0 | O23: 0 | P23: 0 | Q23: 0 | R23: 0 | S23: 0 | T23: 0 | U23: 0 | V23: 0 | W23: 0 | X23: 0 | Y23: 0 | Z23: 0 | AA23: 0 | AB23: 0 | AC23: 0 | AD23: 0 | AE23: 0 | AF23: 0 | AG23: 0 | AH23: 0 | AI23: 0 | AJ23: 0 | AK23: 0 | AL23: 0
B24: Custos e Despesas Operacionais | C24: =SUM(C25:C36) -> -9104340.77 | D24: =SUM(D25:D36)*(1+Sensibilidade!$D5) -> -39916.80824 | E24: =SUM(E25:E36)*(1+Sensibilidade!$D5) -> -1002.628639 | F24: =SUM(F25:F36)*(1+Sensibilidade!$D5) -> -3096.334235 | G24: =SUM(G25:G36)*(1+Sensibilidade!$D5) -> -106304.8831 | H24: =SUM(H25:H36)*(1+Sensibilidade!$D5) -> -263909.2607 | I24: =SUM(I25:I36)*(1+Sensibilidade!$D5) -> -239859.2196 | J24: =SUM(J25:J36)*(1+Sensibilidade!$D5) -> -270269.0403 | K24: =SUM(K25:K36)*(1+Sensibilidade!$D5) -> -293259.846 | L24: =SUM(L25:L36)*(1+Sensibilidade!$D5) -> -467981.9941 | M24: =SUM(M25:M36)*(1+Sensibilidade!$D5) -> -286838.6814 | N24: =SUM(N25:N36)*(1+Sensibilidade!$D5) -> -286153.4876 | O24: =SUM(O25:O36)*(1+Sensibilidade!$D5) -> -286162.6162 | P24: =SUM(P25:P36)*(1+Sensibilidade!$D5) -> -285368.0588 | Q24: =SUM(Q25:Q36)*(1+Sensibilidade!$D5) -> -285115.0039 | R24: =SUM(R25:R36)*(1+Sensibilidade!$D5) -> -285138.7382 | S24: =SUM(S25:S36)*(1+Sensibilidade!$D5) -> -285138.7382 | T24: =SUM(T25:T36)*(1+Sensibilidade!$D5) -> -285400.9218 | U24: =SUM(U25:U36)*(1+Sensibilidade!$D5) -> -285115.0039 | V24: =SUM(V25:V36)*(1+Sensibilidade!$D5) -> -285115.0039 | W24: =SUM(W25:W36)*(1+Sensibilidade!$D5) -> -285158.1322 | X24: =SUM(X25:X36)*(1+Sensibilidade!$D5) -> -285411.1871 | Y24: =SUM(Y25:Y36)*(1+Sensibilidade!$D5) -> -285167.2608 | Z24: =SUM(Z25:Z36)*(1+Sensibilidade!$D5) -> -285115.0039 | AA24: =SUM(AA25:AA36)*(1+Sensibilidade!$D5) -> -285115.0039 | AB24: =SUM(AB25:AB36)*(1+Sensibilidade!$D5) -> -285358.9302 | AC24: =SUM(AC25:AC36)*(1+Sensibilidade!$D5) -> -285105.8753 | AD24: =SUM(AD25:AD36)*(1+Sensibilidade!$D5) -> -285115.0039 | AE24: =SUM(AE25:AE36)*(1+Sensibilidade!$D5) -> -285115.0039 | AF24: =SUM(AF25:AF36)*(1+Sensibilidade!$D5) -> -285368.0588 | AG24: =SUM(AG25:AG36)*(1+Sensibilidade!$D5) -> -285188.9915 | AH24: =SUM(AH25:AH36)*(1+Sensibilidade!$D5) -> -285188.9915 | AI24: =SUM(AI25:AI36)*(1+Sensibilidade!$D5) -> -285198.1201 | AJ24: =SUM(AJ25:AJ36)*(1+Sensibilidade!$D5) -> -285368.0588 | AK24: =SUM(AK25:AK36)*(1+Sensibilidade!$D5) -> -285115.0039 | AL24: =SUM(AL25:AL36)*(1+Sensibilidade!$D5) -> -285105.8753
B25: Despesas Agrícolas | C25: =SUM(D25:AL25) -> -7732262.71 | D25: =-'Resultados Cultivos'!D7 -> 0 | E25: =-'Resultados Cultivos'!E7 -> 0 | F25: =-'Resultados Cultivos'!F7 -> 0 | G25: =-'Resultados Cultivos'!G7 -> -91870.76257 | H25: =-'Resultados Cultivos'!H7 -> -157191.0155 | I25: =-'Resultados Cultivos'!I7 -> -206792.1915 | J25: =-'Resultados Cultivos'!J7 -> -233753.219 | K25: =-'Resultados Cultivos'!K7 -> -251523.4115 | L25: =-'Resultados Cultivos'!L7 -> -251523.4115 | M25: =-'Resultados Cultivos'!M7 -> -251523.4115 | N25: =-'Resultados Cultivos'!N7 -> -251523.4115 | O25: =-'Resultados Cultivos'!O7 -> -251523.4115 | P25: =-'Resultados Cultivos'!P7 -> -251523.4115 | Q25: =-'Resultados Cultivos'!Q7 -> -251523.4115 | R25: =-'Resultados Cultivos'!R7 -> -251523.4115 | S25: =-'Resultados Cultivos'!S7 -> -251523.4115 | T25: =-'Resultados Cultivos'!T7 -> -251523.4115 | U25: =-'Resultados Cultivos'!U7 -> -251523.4115 | V25: =-'Resultados Cultivos'!V7 -> -251523.4115 | W25: =-'Resultados Cultivos'!W7 -> -251523.4115 | X25: =-'Resultados Cultivos'!X7 -> -251523.4115 | Y25: =-'Resultados Cultivos'!Y7 -> -251523.4115 | Z25: =-'Resultados Cultivos'!Z7 -> -251523.4115 | AA25: =-'Resultados Cultivos'!AA7 -> -251523.4115 | AB25: =-'Resultados Cultivos'!AB7 -> -251523.4115 | AC25: =-'Resultados Cultivos'!AC7 -> -251523.4115 | AD25: =-'Resultados Cultivos'!AD7 -> -251523.4115 | AE25: =-'Resultados Cultivos'!AE7 -> -251523.4115 | AF25: =-'Resultados Cultivos'!AF7 -> -251523.4115 | AG25: =-'Resultados Cultivos'!AG7 -> -251523.4115 | AH25: =-'Resultados Cultivos'!AH7 -> -251523.4115 | AI25: =-'Resultados Cultivos'!AI7 -> -251523.4115 | AJ25: =-'Resultados Cultivos'!AJ7 -> -251523.4115 | AK25: =-'Resultados Cultivos'!AK7 -> -251523.4115 | AL25: =-'Resultados Cultivos'!AL7 -> -251523.4115
B26: Energia | C26: =SUM(D26:AL26) -> -633080.0714 | D26: =-D7*Energia!$I$26/1000 -> 0 | E26: =-E7*Energia!$I$26/1000 -> 0 | F26: =-F7*Energia!$I$26/1000 -> 0 | G26: =-G7*Energia!$I$26/1000 -> -7521.931303 | H26: =-H7*Energia!$I$26/1000 -> -12870.03598 | I26: =-I7*Energia!$I$26/1000 -> -16931.13908 | J26: =-J7*Energia!$I$26/1000 -> -19138.57691 | K26: =-K7*Energia!$I$26/1000 -> -20593.51386 | L26: =-L7*Energia!$I$26/1000 -> -20593.51386 | M26: =-M7*Energia!$I$26/1000 -> -20593.51386 | N26: =-N7*Energia!$I$26/1000 -> -20593.51386 | O26: =-O7*Energia!$I$26/1000 -> -20593.51386 | P26: =-P7*Energia!$I$26/1000 -> -20593.51386 | Q26: =-Q7*Energia!$I$26/1000 -> -20593.51386 | R26: =-R7*Energia!$I$26/1000 -> -20593.51386 | S26: =-S7*Energia!$I$26/1000 -> -20593.51386 | T26: =-T7*Energia!$I$26/1000 -> -20593.51386 | U26: =-U7*Energia!$I$26/1000 -> -20593.51386 | V26: =-V7*Energia!$I$26/1000 -> -20593.51386 | W26: =-W7*Energia!$I$26/1000 -> -20593.51386 | X26: =-X7*Energia!$I$26/1000 -> -20593.51386 | Y26: =-Y7*Energia!$I$26/1000 -> -20593.51386 | Z26: =-Z7*Energia!$I$26/1000 -> -20593.51386 | AA26: =-AA7*Energia!$I$26/1000 -> -20593.51386 | AB26: =-AB7*Energia!$I$26/1000 -> -20593.51386 | AC26: =-AC7*Energia!$I$26/1000 -> -20593.51386 | AD26: =-AD7*Energia!$I$26/1000 -> -20593.51386 | AE26: =-AE7*Energia!$I$26/1000 -> -20593.51386 | AF26: =-AF7*Energia!$I$26/1000 -> -20593.51386 | AG26: =-AG7*Energia!$I$26/1000 -> -20593.51386 | AH26: =-AH7*Energia!$I$26/1000 -> -20593.51386 | AI26: =-AI7*Energia!$I$26/1000 -> -20593.51386 | AJ26: =-AJ7*Energia!$I$26/1000 -> -20593.51386 | AK26: =-AK7*Energia!$I$26/1000 -> -20593.51386 | AL26: =-AL7*Energia!$I$26/1000 -> -20593.51386
B27: Manutenção de Equipamentos | C27: =SUM(D27:AL27) -> -145375.65 | D27: =-D8*'Base Ativos'!$K$6/1000 -> 0 | E27: =-E8*'Base Ativos'!$K$6/1000 -> 0 | F27: =-F8*'Base Ativos'!$K$6/1000 -> 0 | G27: =-G8*'Base Ativos'!$K$6/1000 -> -1727.278589 | H27: =-H8*'Base Ativos'!$K$6/1000 -> -2955.376312 | I27: =-I8*'Base Ativos'!$K$6/1000 -> -3887.936866 | J27: =-J8*'Base Ativos'!$K$6/1000 -> -4394.835951 | K27: =-K8*'Base Ativos'!$K$6/1000 -> -4728.936509 | L27: =-L8*'Base Ativos'!$K$6/1000 -> -4728.936509 | M27: =-M8*'Base Ativos'!$K$6/1000 -> -4728.936509 | N27: =-N8*'Base Ativos'!$K$6/1000 -> -4728.936509 | O27: =-O8*'Base Ativos'!$K$6/1000 -> -4728.936509 | P27: =-P8*'Base Ativos'!$K$6/1000 -> -4728.936509 | Q27: =-Q8*'Base Ativos'!$K$6/1000 -> -4728.936509 | R27: =-R8*'Base Ativos'!$K$6/1000 -> -4728.936509 | S27: =-S8*'Base Ativos'!$K$6/1000 -> -4728.936509 | T27: =-T8*'Base Ativos'!$K$6/1000 -> -4728.936509 | U27: =-U8*'Base Ativos'!$K$6/1000 -> -4728.936509 | V27: =-V8*'Base Ativos'!$K$6/1000 -> -4728.936509 | W27: =-W8*'Base Ativos'!$K$6/1000 -> -4728.936509 | X27: =-X8*'Base Ativos'!$K$6/1000 -> -4728.936509 | Y27: =-Y8*'Base Ativos'!$K$6/1000 -> -4728.936509 | Z27: =-Z8*'Base Ativos'!$K$6/1000 -> -4728.936509 | AA27: =-AA8*'Base Ativos'!$K$6/1000 -> -4728.936509 | AB27: =-AB8*'Base Ativos'!$K$6/1000 -> -4728.936509 | AC27: =-AC8*'Base Ativos'!$K$6/1000 -> -4728.936509 | AD27: =-AD8*'Base Ativos'!$K$6/1000 -> -4728.936509 | AE27: =-AE8*'Base Ativos'!$K$6/1000 -> -4728.936509 | AF27: =-AF8*'Base Ativos'!$K$6/1000 -> -4728.936509 | AG27: =-AG8*'Base Ativos'!$K$6/1000 -> -4728.936509 | AH27: =-AH8*'Base Ativos'!$K$6/1000 -> -4728.936509 | AI27: =-AI8*'Base Ativos'!$K$6/1000 -> -4728.936509 | AJ27: =-AJ8*'Base Ativos'!$K$6/1000 -> -4728.936509 | AK27: =-AK8*'Base Ativos'!$K$6/1000 -> -4728.936509 | AL27: =-AL8*'Base Ativos'!$K$6/1000 -> -4728.936509
B28: Manutenção de Obras Civis | C28: -89983.97738 | D28: =-D8*'Base Ativos'!$K$7/1000 -> 0 | E28: =-E8*'Base Ativos'!$K$7/1000 -> 0 | F28: =-F8*'Base Ativos'!$K$7/1000 -> 0 | G28: =-G8*'Base Ativos'!$K$7/1000 -> -1069.143268 | H28: =-H8*'Base Ativos'!$K$7/1000 -> -1829.305769 | I28: =-I8*'Base Ativos'!$K$7/1000 -> -2406.53798 | J28: =-J8*'Base Ativos'!$K$7/1000 -> -2720.296136 | K28: =-K8*'Base Ativos'!$K$7/1000 -> -2927.096222 | L28: =-L8*'Base Ativos'!$K$7/1000 -> -2927.096222 | M28: =-M8*'Base Ativos'!$K$7/1000 -> -2927.096222 | N28: =-N8*'Base Ativos'!$K$7/1000 -> -2927.096222 | O28: =-O8*'Base Ativos'!$K$7/1000 -> -2927.096222 | P28: =-P8*'Base Ativos'!$K$7/1000 -> -2927.096222 | Q28: =-Q8*'Base Ativos'!$K$7/1000 -> -2927.096222 | R28: =-R8*'Base Ativos'!$K$7/1000 -> -2927.096222 | S28: =-S8*'Base Ativos'!$K$7/1000 -> -2927.096222 | T28: =-T8*'Base Ativos'!$K$7/1000 -> -2927.096222 | U28: =-U8*'Base Ativos'!$K$7/1000 -> -2927.096222 | V28: =-V8*'Base Ativos'!$K$7/1000 -> -2927.096222 | W28: =-W8*'Base Ativos'!$K$7/1000 -> -2927.096222 | X28: =-X8*'Base Ativos'!$K$7/1000 -> -2927.096222 | Y28: =-Y8*'Base Ativos'!$K$7/1000 -> -2927.096222 | Z28: =-Z8*'Base Ativos'!$K$7/1000 -> -2927.096222 | AA28: =-AA8*'Base Ativos'!$K$7/1000 -> -2927.096222 | AB28: =-AB8*'Base Ativos'!$K$7/1000 -> -2927.096222 | AC28: =-AC8*'Base Ativos'!$K$7/1000 -> -2927.096222 | AD28: =-AD8*'Base Ativos'!$K$7/1000 -> -2927.096222 | AE28: =-AE8*'Base Ativos'!$K$7/1000 -> -2927.096222 | AF28: =-AF8*'Base Ativos'!$K$7/1000 -> -2927.096222 | AG28: =-AG8*'Base Ativos'!$K$7/1000 -> -2927.096222 | AH28: =-AH8*'Base Ativos'!$K$7/1000 -> -2927.096222 | AI28: =-AI8*'Base Ativos'!$K$7/1000 -> -2927.096222 | AJ28: =-AJ8*'Base Ativos'!$K$7/1000 -> -2927.096222 | AK28: =-AK8*'Base Ativos'!$K$7/1000 -> -2927.096222 | AL28: =-AL8*'Base Ativos'!$K$7/1000 -> -2927.096222
B29: Despesas de Pessoal | C29: -116993.7851 | D29: =-D10*Despesas!$I$25/1000 -> 0 | E29: =-E10*Despesas!$I$25/1000 -> -546.4392447 | F29: =-F10*Despesas!$I$25/1000 -> -2125.751389 | G29: =-G10*Despesas!$I$25/1000 -> -2944.807896 | H29: =-H10*Despesas!$I$25/1000 -> -3309.327915 | I29: =-I10*Despesas!$I$25/1000 -> -3602.248621 | J29: =-J10*Despesas!$I$25/1000 -> -3602.248621 | K29: =-K10*Despesas!$I$25/1000 -> -3602.248621 | L29: =-L10*Despesas!$I$25/1000 -> -3602.248621 | M29: =-M10*Despesas!$I$25/1000 -> -3602.248621 | N29: =-N10*Despesas!$I$25/1000 -> -3602.248621 | O29: =-O10*Despesas!$I$25/1000 -> -3602.248621 | P29: =-P10*Despesas!$I$25/1000 -> -3602.248621 | Q29: =-Q10*Despesas!$I$25/1000 -> -3602.248621 | R29: =-R10*Despesas!$I$25/1000 -> -3602.248621 | S29: =-S10*Despesas!$I$25/1000 -> -3602.248621 | T29: =-T10*Despesas!$I$25/1000 -> -3602.248621 | U29: =-U10*Despesas!$I$25/1000 -> -3602.248621 | V29: =-V10*Despesas!$I$25/1000 -> -3602.248621 | W29: =-W10*Despesas!$I$25/1000 -> -3602.248621 | X29: =-X10*Despesas!$I$25/1000 -> -3602.248621 | Y29: =-Y10*Despesas!$I$25/1000 -> -3602.248621 | Z29: =-Z10*Despesas!$I$25/1000 -> -3602.248621 | AA29: =-AA10*Despesas!$I$25/1000 -> -3602.248621 | AB29: =-AB10*Despesas!$I$25/1000 -> -3602.248621 | AC29: =-AC10*Despesas!$I$25/1000 -> -3602.248621 | AD29: =-AD10*Despesas!$I$25/1000 -> -3602.248621 | AE29: =-AE10*Despesas!$I$25/1000 -> -3602.248621 | AF29: =-AF10*Despesas!$I$25/1000 -> -3602.248621 | AG29: =-AG10*Despesas!$I$25/1000 -> -3602.248621 | AH29: =-AH10*Despesas!$I$25/1000 -> -3602.248621 | AI29: =-AI10*Despesas!$I$25/1000 -> -3602.248621 | AJ29: =-AJ10*Despesas!$I$25/1000 -> -3602.248621 | AK29: =-AK10*Despesas!$I$25/1000 -> -3602.248621 | AL29: =-AL10*Despesas!$I$25/1000 -> -3602.248621
B30: Meio Ambiente | C30: -26442.59685 | K30: ='FC Projeto'!K30 -> -2831.333103 | L30: ='FC Projeto'!L30 -> -2588.788589 | M30: ='FC Projeto'!M30 -> -2335.733638 | N30: ='FC Projeto'!N30 -> -1650.539823 | O30: ='FC Projeto'!O30 -> -1650.539823 | P30: ='FC Projeto'!P30 -> -855.9824376 | Q30: ='FC Projeto'!Q30 -> -602.9274873 | R30: ='FC Projeto'!R30 -> -602.9274873 | S30: ='FC Projeto'!S30 -> -602.9274873 | T30: ='FC Projeto'!T30 -> -855.9824376 | U30: ='FC Projeto'!U30 -> -602.9274873 | V30: ='FC Projeto'!V30 -> -602.9274873 | W30: ='FC Projeto'!W30 -> -602.9274873 | X30: ='FC Projeto'!X30 -> -855.9824376 | Y30: ='FC Projeto'!Y30 -> -602.9274873 | Z30: ='FC Projeto'!Z30 -> -602.9274873 | AA30: ='FC Projeto'!AA30 -> -602.9274873 | AB30: ='FC Projeto'!AB30 -> -855.9824345 | AC30: ='FC Projeto'!AC30 -> -602.9274842 | AD30: ='FC Projeto'!AD30 -> -602.9274842 | AE30: ='FC Projeto'!AE30 -> -602.9274842 | AF30: ='FC Projeto'!AF30 -> -855.9824345 | AG30: ='FC Projeto'!AG30 -> -602.9274842 | AH30: ='FC Projeto'!AH30 -> -602.9274842 | AI30: ='FC Projeto'!AI30 -> -602.9274842 | AJ30: ='FC Projeto'!AJ30 -> -855.9824345 | AK30: ='FC Projeto'!AK30 -> -602.9274842 | AL30: ='FC Projeto'!AL30 -> -602.9274842
B31: Outras Despesas | C31: =SUM(D31:AL31) -> -31034.40524 | D31: =-D10*(Despesas!$I$38+Despesas!$I$46)/1000 -> 0 | E31: =-E10*(Despesas!$I$38+Despesas!$I$46)/1000 -> -144.9514344 | F31: =-F10*(Despesas!$I$38+Despesas!$I$46)/1000 -> -563.8883297 | G31: =-G10*(Despesas!$I$38+Despesas!$I$46)/1000 -> -781.155696 | H31: =-H10*(Despesas!$I$38+Despesas!$I$46)/1000 -> -877.850251 | I31: =-I10*(Despesas!$I$38+Despesas!$I$46)/1000 -> -955.5519845 | J31: =-J10*(Despesas!$I$38+Despesas!$I$46)/1000 -> -955.5519845 | K31: =-K10*(Despesas!$I$38+Despesas!$I$46)/1000 -> -955.5519845 | L31: =-L10*(Despesas!$I$38+Despesas!$I$46)/1000 -> -955.5519845 | M31: =-M10*(Despesas!$I$38+Despesas!$I$46)/1000 -> -955.5519845 | N31: =-N10*(Despesas!$I$38+Despesas!$I$46)/1000 -> -955.5519845 | O31: =-O10*(Despesas!$I$38+Despesas!$I$46)/1000 -> -955.5519845 | P31: =-P10*(Despesas!$I$38+Despesas!$I$46)/1000 -> -955.5519845 | Q31: =-Q10*(Despesas!$I$38+Despesas!$I$46)/1000 -> -955.5519845 | R31: =-R10*(Despesas!$I$38+Despesas!$I$46)/1000 -> -955.5519845 | S31: =-S10*(Despesas!$I$38+Despesas!$I$46)/1000 -> -955.5519845 | T31: =-T10*(Despesas!$I$38+Despesas!$I$46)/1000 -> -955.5519845 | U31: =-U10*(Despesas!$I$38+Despesas!$I$46)/1000 -> -955.5519845 | V31: =-V10*(Despesas!$I$38+Despesas!$I$46)/1000 -> -955.5519845 | W31: =-W10*(Despesas!$I$38+Despesas!$I$46)/1000 -> -955.5519845 | X31: =-X10*(Despesas!$I$38+Despesas!$I$46)/1000 -> -955.5519845 | Y31: =-Y10*(Despesas!$I$38+Despesas!$I$46)/1000 -> -955.5519845 | Z31: =-Z10*(Despesas!$I$38+Despesas!$I$46)/1000 -> -955.5519845 | AA31: =-AA10*(Despesas!$I$38+Despesas!$I$46)/1000 -> -955.5519845 | AB31: =-AB10*(Despesas!$I$38+Despesas!$I$46)/1000 -> -955.5519845 | AC31: =-AC10*(Despesas!$I$38+Despesas!$I$46)/1000 -> -955.5519845 | AD31: =-AD10*(Despesas!$I$38+Despesas!$I$46)/1000 -> -955.5519845 | AE31: =-AE10*(Despesas!$I$38+Despesas!$I$46)/1000 -> -955.5519845 | AF31: =-AF10*(Despesas!$I$38+Despesas!$I$46)/1000 -> -955.5519845 | AG31: =-AG10*(Despesas!$I$38+Despesas!$I$46)/1000 -> -955.5519845 | AH31: =-AH10*(Despesas!$I$38+Despesas!$I$46)/1000 -> -955.5519845 | AI31: =-AI10*(Despesas!$I$38+Despesas!$I$46)/1000 -> -955.5519845 | AJ31: =-AJ10*(Despesas!$I$38+Despesas!$I$46)/1000 -> -955.5519845 | AK31: =-AK10*(Despesas!$I$38+Despesas!$I$46)/1000 -> -955.5519845 | AL31: =-AL10*(Despesas!$I$38+Despesas!$I$46)/1000 -> -955.5519845
B32: Outorga da Terra | C32: ='FC Projeto'!C32 -> -321375.3107 | D32: ='FC Projeto'!D32 -> -39649.4791 | E32: ='FC Projeto'!E32 -> 0 | F32: ='FC Projeto'!F32 -> 0 | G32: ='FC Projeto'!G32 -> 0 | H32: ='FC Projeto'!H32 -> -84537.50338 | I32: ='FC Projeto'!I32 -> -4962.684222 | J32: ='FC Projeto'!J32 -> -5418.721241 | K32: ='FC Projeto'!K32 -> -5916.664969 | L32: ='FC Projeto'!L32 -> -180890.2578 | M32: ='FC Projeto'!M32 -> 0 | N32: ='FC Projeto'!N32 -> 0 | O32: ='FC Projeto'!O32 -> 0 | P32: ='FC Projeto'!P32 -> 0 | Q32: ='FC Projeto'!Q32 -> 0 | R32: ='FC Projeto'!R32 -> 0 | S32: ='FC Projeto'!S32 -> 0 | T32: ='FC Projeto'!T32 -> 0 | U32: ='FC Projeto'!U32 -> 0 | V32: ='FC Projeto'!V32 -> 0 | W32: ='FC Projeto'!W32 -> 0 | X32: ='FC Projeto'!X32 -> 0 | Y32: ='FC Projeto'!Y32 -> 0 | Z32: ='FC Projeto'!Z32 -> 0 | AA32: ='FC Projeto'!AA32 -> 0 | AB32: ='FC Projeto'!AB32 -> 0 | AC32: ='FC Projeto'!AC32 -> 0 | AD32: ='FC Projeto'!AD32 -> 0 | AE32: ='FC Projeto'!AE32 -> 0 | AF32: ='FC Projeto'!AF32 -> 0 | AG32: ='FC Projeto'!AG32 -> 0 | AH32: ='FC Projeto'!AH32 -> 0 | AI32: ='FC Projeto'!AI32 -> 0 | AJ32: ='FC Projeto'!AJ32 -> 0 | AK32: ='FC Projeto'!AK32 -> 0 | AL32: ='FC Projeto'!AL32 -> 0
B33: Seguros e Garantias | C33: -3896.131615 | D33: =SUM(D34:D36) -> -133.6645729 | E33: =SUM(E34:E36) -> -155.6189798 | F33: -203.3472581 | G33: -194.901894 | H33: -169.4227806 | I33: -160.4646977 | J33: -142.7952255 | K33: -90.54462545 | L33: -86.09455936 | M33: -86.09455936 | N33: -86.09455936 | O33: -90.65885385 | P33: -90.65885385 | Q33: -90.65885385 | R33: -102.5260195 | S33: -102.5260195 | T33: -107.090314 | U33: -90.65885385 | V33: -90.65885385 | W33: -112.2230088 | X33: -112.2230088 | Y33: -116.7873033 | Z33: -90.65885385 | AA33: -90.65885385 | AB33: -86.09455936 | AC33: -86.09455936 | AD33: -90.65885385 | AE33: -90.65885385 | AF33: -90.65885385 | AG33: -127.6526699 | AH33: -127.6526699 | AI33: -132.2169644 | AJ33: -90.65885385 | AK33: -90.65885385 | AL33: -86.09455936
B34: Garantia de Execução | C34: -1442.722791 | D34: =-IF(D5<=7,'Painel de Controle'!$G$24,'Painel de Controle'!$G$25)*'Painel de Controle'!$G$26*'Painel de Controle'!$G$27*(1+'Painel de Controle'!$G$28) -> -77.10286932 | E34: =-IF(E5<=7,'Painel de Controle'!$G$24,'Painel de Controle'!$G$25)*'Painel de Controle'!$G$26*'Painel de Controle'!$G$27*(1+'Painel de Controle'!$G$28) -> -77.10286932 | F34: =-IF(F5<=7,'Painel de Controle'!$G$24,'Painel de Controle'!$G$25)*'Painel de Controle'!$G$26*'Painel de Controle'!$G$27*(1+'Painel de Controle'!$G$28) -> -77.10286932 | G34: =-IF(G5<=7,'Painel de Controle'!$G$24,'Painel de Controle'!$G$25)*'Painel de Controle'!$G$26*'Painel de Controle'!$G$27*(1+'Painel de Controle'!$G$28) -> -77.10286932 | H34: =-IF(H5<=7,'Painel de Controle'!$G$24,'Painel de Controle'!$G$25)*'Painel de Controle'!$G$26*'Painel de Controle'!$G$27*(1+'Painel de Controle'!$G$28) -> -77.10286932 | I34: =-IF(I5<=7,'Painel de Controle'!$G$24,'Painel de Controle'!$G$25)*'Painel de Controle'!$G$26*'Painel de Controle'!$G$27*(1+'Painel de Controle'!$G$28) -> -77.10286932 | J34: =-IF(J5<=7,'Painel de Controle'!$G$24,'Painel de Controle'!$G$25)*'Painel de Controle'!$G$26*'Painel de Controle'!$G$27*(1+'Painel de Controle'!$G$28) -> -77.10286932 | K34: =-IF(K5<=7,'Painel de Controle'!$G$24,'Painel de Controle'!$G$25)*'Painel de Controle'!$G$26*'Painel de Controle'!$G$27*(1+'Painel de Controle'!$G$28) -> -32.25009662 | L34: =-IF(L5<=7,'Painel de Controle'!$G$24,'Painel de Controle'!$G$25)*'Painel de Controle'!$G$26*'Painel de Controle'!$G$27*(1+'Painel de Controle'!$G$28) -> -32.25009662 | M34: =-IF(M5<=7,'Painel de Controle'!$G$24,'Painel de Controle'!$G$25)*'Painel de Controle'!$G$26*'Painel de Controle'!$G$27*(1+'Painel de Controle'!$G$28) -> -32.25009662 | N34: =-IF(N5<=7,'Painel de Controle'!$G$24,'Painel de Controle'!$G$25)*'Painel de Controle'!$G$26*'Painel de Controle'!$G$27*(1+'Painel de Controle'!$G$28) -> -32.25009662 | O34: =-IF(O5<=7,'Painel de Controle'!$G$24,'Painel de Controle'!$G$25)*'Painel de Controle'!$G$26*'Painel de Controle'!$G$27*(1+'Painel de Controle'!$G$28) -> -32.25009662 | P34: =-IF(P5<=7,'Painel de Controle'!$G$24,'Painel de Controle'!$G$25)*'Painel de Controle'!$G$26*'Painel de Controle'!$G$27*(1+'Painel de Controle'!$G$28) -> -32.25009662 | Q34: =-IF(Q5<=7,'Painel de Controle'!$G$24,'Painel de Controle'!$G$25)*'Painel de Controle'!$G$26*'Painel de Controle'!$G$27*(1+'Painel de Controle'!$G$28) -> -32.25009662 | R34: =-IF(R5<=7,'Painel de Controle'!$G$24,'Painel de Controle'!$G$25)*'Painel de Controle'!$G$26*'Painel de Controle'!$G$27*(1+'Painel de Controle'!$G$28) -> -32.25009662 | S34: =-IF(S5<=7,'Painel de Controle'!$G$24,'Painel de Controle'!$G$25)*'Painel de Controle'!$G$26*'Painel de Controle'!$G$27*(1+'Painel de Controle'!$G$28) -> -32.25009662 | T34: =-IF(T5<=7,'Painel de Controle'!$G$24,'Painel de Controle'!$G$25)*'Painel de Controle'!$G$26*'Painel de Controle'!$G$27*(1+'Painel de Controle'!$G$28) -> -32.25009662 | U34: =-IF(U5<=7,'Painel de Controle'!$G$24,'Painel de Controle'!$G$25)*'Painel de Controle'!$G$26*'Painel de Controle'!$G$27*(1+'Painel de Controle'!$G$28) -> -32.25009662 | V34: =-IF(V5<=7,'Painel de Controle'!$G$24,'Painel de Controle'!$G$25)*'Painel de Controle'!$G$26*'Painel de Controle'!$G$27*(1+'Painel de Controle'!$G$28) -> -32.25009662 | W34: =-IF(W5<=7,'Painel de Controle'!$G$24,'Painel de Controle'!$G$25)*'Painel de Controle'!$G$26*'Painel de Controle'!$G$27*(1+'Painel de Controle'!$G$28) -> -32.25009662 | X34: =-IF(X5<=7,'Painel de Controle'!$G$24,'Painel de Controle'!$G$25)*'Painel de Controle'!$G$26*'Painel de Controle'!$G$27*(1+'Painel de Controle'!$G$28) -> -32.25009662 | Y34: =-IF(Y5<=7,'Painel de Controle'!$G$24,'Painel de Controle'!$G$25)*'Painel de Controle'!$G$26*'Painel de Controle'!$G$27*(1+'Painel de Controle'!$G$28) -> -32.25009662 | Z34: =-IF(Z5<=7,'Painel de Controle'!$G$24,'Painel de Controle'!$G$25)*'Painel de Controle'!$G$26*'Painel de Controle'!$G$27*(1+'Painel de Controle'!$G$28) -> -32.25009662 | AA34: =-IF(AA5<=7,'Painel de Controle'!$G$24,'Painel de Controle'!$G$25)*'Painel de Controle'!$G$26*'Painel de Controle'!$G$27*(1+'Painel de Controle'!$G$28) -> -32.25009662 | AB34: =-IF(AB5<=7,'Painel de Controle'!$G$24,'Painel de Controle'!$G$25)*'Painel de Controle'!$G$26*'Painel de Controle'!$G$27*(1+'Painel de Controle'!$G$28) -> -32.25009662 | AC34: =-IF(AC5<=7,'Painel de Controle'!$G$24,'Painel de Controle'!$G$25)*'Painel de Controle'!$G$26*'Painel de Controle'!$G$27*(1+'Painel de Controle'!$G$28) -> -32.25009662 | AD34: =-IF(AD5<=7,'Painel de Controle'!$G$24,'Painel de Controle'!$G$25)*'Painel de Controle'!$G$26*'Painel de Controle'!$G$27*(1+'Painel de Controle'!$G$28) -> -32.25009662 | AE34: =-IF(AE5<=7,'Painel de Controle'!$G$24,'Painel de Controle'!$G$25)*'Painel de Controle'!$G$26*'Painel de Controle'!$G$27*(1+'Painel de Controle'!$G$28) -> -32.25009662 | AF34: =-IF(AF5<=7,'Painel de Controle'!$G$24,'Painel de Controle'!$G$25)*'Painel de Controle'!$G$26*'Painel de Controle'!$G$27*(1+'Painel de Controle'!$G$28) -> -32.25009662 | AG34: =-IF(AG5<=7,'Painel de Controle'!$G$24,'Painel de Controle'!$G$25)*'Painel de Controle'!$G$26*'Painel de Controle'!$G$27*(1+'Painel de Controle'!$G$28) -> -32.25009662 | AH34: =-IF(AH5<=7,'Painel de Controle'!$G$24,'Painel de Controle'!$G$25)*'Painel de Controle'!$G$26*'Painel de Controle'!$G$27*(1+'Painel de Controle'!$G$28) -> -32.25009662 | AI34: =-IF(AI5<=7,'Painel de Controle'!$G$24,'Painel de Controle'!$G$25)*'Painel de Controle'!$G$26*'Painel de Controle'!$G$27*(1+'Painel de Controle'!$G$28) -> -32.25009662 | AJ34: =-IF(AJ5<=7,'Painel de Controle'!$G$24,'Painel de Controle'!$G$25)*'Painel de Controle'!$G$26*'Painel de Controle'!$G$27*(1+'Painel de Controle'!$G$28) -> -32.25009662 | AK34: =-IF(AK5<=7,'Painel de Controle'!$G$24,'Painel de Controle'!$G$25)*'Painel de Controle'!$G$26*'Painel de Controle'!$G$27*(1+'Painel de Controle'!$G$28) -> -32.25009662 | AL34: =-IF(AL5<=7,'Painel de Controle'!$G$24,'Painel de Controle'!$G$25)*'Painel de Controle'!$G$26*'Painel de Controle'!$G$27*(1+'Painel de Controle'!$G$28) -> -32.25009662
B35: Seguro de Responsabilidade Civil | C35: -1884.556196 | D35: =-'Painel de Controle'!$G$30*'Painel de Controle'!$G$31*'Painel de Controle'!$G$32*(1+'Painel de Controle'!$G$33) -> -53.84446273 | E35: =-'Painel de Controle'!$G$30*'Painel de Controle'!$G$31*'Painel de Controle'!$G$32*(1+'Painel de Controle'!$G$33) -> -53.84446273 | F35: =-'Painel de Controle'!$G$30*'Painel de Controle'!$G$31*'Painel de Controle'!$G$32*(1+'Painel de Controle'!$G$33) -> -53.84446273 | G35: =-'Painel de Controle'!$G$30*'Painel de Controle'!$G$31*'Painel de Controle'!$G$32*(1+'Painel de Controle'!$G$33) -> -53.84446273 | H35: =-'Painel de Controle'!$G$30*'Painel de Controle'!$G$31*'Painel de Controle'!$G$32*(1+'Painel de Controle'!$G$33) -> -53.84446273 | I35: =-'Painel de Controle'!$G$30*'Painel de Controle'!$G$31*'Painel de Controle'!$G$32*(1+'Painel de Controle'!$G$33) -> -53.84446273 | J35: =-'Painel de Controle'!$G$30*'Painel de Controle'!$G$31*'Painel de Controle'!$G$32*(1+'Painel de Controle'!$G$33) -> -53.84446273 | K35: =-'Painel de Controle'!$G$30*'Painel de Controle'!$G$31*'Painel de Controle'!$G$32*(1+'Painel de Controle'!$G$33) -> -53.84446273 | L35: =-'Painel de Controle'!$G$30*'Painel de Controle'!$G$31*'Painel de Controle'!$G$32*(1+'Painel de Controle'!$G$33) -> -53.84446273 | M35: =-'Painel de Controle'!$G$30*'Painel de Controle'!$G$31*'Painel de Controle'!$G$32*(1+'Painel de Controle'!$G$33) -> -53.84446273 | N35: =-'Painel de Controle'!$G$30*'Painel de Controle'!$G$31*'Painel de Controle'!$G$32*(1+'Painel de Controle'!$G$33) -> -53.84446273 | O35: =-'Painel de Controle'!$G$30*'Painel de Controle'!$G$31*'Painel de Controle'!$G$32*(1+'Painel de Controle'!$G$33) -> -53.84446273 | P35: =-'Painel de Controle'!$G$30*'Painel de Controle'!$G$31*'Painel de Controle'!$G$32*(1+'Painel de Controle'!$G$33) -> -53.84446273 | Q35: =-'Painel de Controle'!$G$30*'Painel de Controle'!$G$31*'Painel de Controle'!$G$32*(1+'Painel de Controle'!$G$33) -> -53.84446273 | R35: =-'Painel de Controle'!$G$30*'Painel de Controle'!$G$31*'Painel de Controle'!$G$32*(1+'Painel de Controle'!$G$33) -> -53.84446273 | S35: =-'Painel de Controle'!$G$30*'Painel de Controle'!$G$31*'Painel de Controle'!$G$32*(1+'Painel de Controle'!$G$33) -> -53.84446273 | T35: =-'Painel de Controle'!$G$30*'Painel de Controle'!$G$31*'Painel de Controle'!$G$32*(1+'Painel de Controle'!$G$33) -> -53.84446273 | U35: =-'Painel de Controle'!$G$30*'Painel de Controle'!$G$31*'Painel de Controle'!$G$32*(1+'Painel de Controle'!$G$33) -> -53.84446273 | V35: =-'Painel de Controle'!$G$30*'Painel de Controle'!$G$31*'Painel de Controle'!$G$32*(1+'Painel de Controle'!$G$33) -> -53.84446273 | W35: =-'Painel de Controle'!$G$30*'Painel de Controle'!$G$31*'Painel de Controle'!$G$32*(1+'Painel de Controle'!$G$33) -> -53.84446273 | X35: =-'Painel de Controle'!$G$30*'Painel de Controle'!$G$31*'Painel de Controle'!$G$32*(1+'Painel de Controle'!$G$33) -> -53.84446273 | Y35: =-'Painel de Controle'!$G$30*'Painel de Controle'!$G$31*'Painel de Controle'!$G$32*(1+'Painel de Controle'!$G$33) -> -53.84446273 | Z35: =-'Painel de Controle'!$G$30*'Painel de Controle'!$G$31*'Painel de Controle'!$G$32*(1+'Painel de Controle'!$G$33) -> -53.84446273 | AA35: =-'Painel de Controle'!$G$30*'Painel de Controle'!$G$31*'Painel de Controle'!$G$32*(1+'Painel de Controle'!$G$33) -> -53.84446273 | AB35: =-'Painel de Controle'!$G$30*'Painel de Controle'!$G$31*'Painel de Controle'!$G$32*(1+'Painel de Controle'!$G$33) -> -53.84446273 | AC35: =-'Painel de Controle'!$G$30*'Painel de Controle'!$G$31*'Painel de Controle'!$G$32*(1+'Painel de Controle'!$G$33) -> -53.84446273 | AD35: =-'Painel de Controle'!$G$30*'Painel de Controle'!$G$31*'Painel de Controle'!$G$32*(1+'Painel de Controle'!$G$33) -> -53.84446273 | AE35: =-'Painel de Controle'!$G$30*'Painel de Controle'!$G$31*'Painel de Controle'!$G$32*(1+'Painel de Controle'!$G$33) -> -53.84446273 | AF35: =-'Painel de Controle'!$G$30*'Painel de Controle'!$G$31*'Painel de Controle'!$G$32*(1+'Painel de Controle'!$G$33) -> -53.84446273 | AG35: =-'Painel de Controle'!$G$30*'Painel de Controle'!$G$31*'Painel de Controle'!$G$32*(1+'Painel de Controle'!$G$33) -> -53.84446273 | AH35: =-'Painel de Controle'!$G$30*'Painel de Controle'!$G$31*'Painel de Controle'!$G$32*(1+'Painel de Controle'!$G$33) -> -53.84446273 | AI35: =-'Painel de Controle'!$G$30*'Painel de Controle'!$G$31*'Painel de Controle'!$G$32*(1+'Painel de Controle'!$G$33) -> -53.84446273 | AJ35: =-'Painel de Controle'!$G$30*'Painel de Controle'!$G$31*'Painel de Controle'!$G$32*(1+'Painel de Controle'!$G$33) -> -53.84446273 | AK35: =-'Painel de Controle'!$G$30*'Painel de Controle'!$G$31*'Painel de Controle'!$G$32*(1+'Painel de Controle'!$G$33) -> -53.84446273 | AL35: =-'Painel de Controle'!$G$30*'Painel de Controle'!$G$31*'Painel de Controle'!$G$32*(1+'Painel de Controle'!$G$33) -> -53.84446273
B36: Seguro de Engenharia | C36: -568.8526282 | D36: ='Painel de Controle'!$G$35*'FC Acionista'!D62*'Painel de Controle'!$G$36*(1+'Painel de Controle'!$G$37) -> -2.717240838 | E36: ='Painel de Controle'!$G$35*'FC Acionista'!E62*'Painel de Controle'!$G$36*(1+'Painel de Controle'!$G$37) -> -24.67164776 | F36: ='Painel de Controle'!$G$35*'FC Acionista'!F62*'Painel de Controle'!$G$36*(1+'Painel de Controle'!$G$37) -> -72.39992601 | G36: ='Painel de Controle'!$G$35*'FC Acionista'!G62*'Painel de Controle'!$G$36*(1+'Painel de Controle'!$G$37) -> -63.95456195 | H36: ='Painel de Controle'!$G$35*'FC Acionista'!H62*'Painel de Controle'!$G$36*(1+'Painel de Controle'!$G$37) -> -38.47544858 | I36: ='Painel de Controle'!$G$35*'FC Acionista'!I62*'Painel de Controle'!$G$36*(1+'Painel de Controle'!$G$37) -> -29.51736563 | J36: ='Painel de Controle'!$G$35*'FC Acionista'!J62*'Painel de Controle'!$G$36*(1+'Painel de Controle'!$G$37) -> -11.84789349 | K36: ='Painel de Controle'!$G$35*'FC Acionista'!K62*'Painel de Controle'!$G$36*(1+'Painel de Controle'!$G$37) -> -4.450066092 | L36: ='Painel de Controle'!$G$35*'FC Acionista'!L62*'Painel de Controle'!$G$36*(1+'Painel de Controle'!$G$37) -> 0 | M36: ='Painel de Controle'!$G$35*'FC Acionista'!M62*'Painel de Controle'!$G$36*(1+'Painel de Controle'!$G$37) -> 0 | N36: ='Painel de Controle'!$G$35*'FC Acionista'!N62*'Painel de Controle'!$G$36*(1+'Painel de Controle'!$G$37) -> 0 | O36: ='Painel de Controle'!$G$35*'FC Acionista'!O62*'Painel de Controle'!$G$36*(1+'Painel de Controle'!$G$37) -> -4.564294492 | P36: ='Painel de Controle'!$G$35*'FC Acionista'!P62*'Painel de Controle'!$G$36*(1+'Painel de Controle'!$G$37) -> -4.564294492 | Q36: ='Painel de Controle'!$G$35*'FC Acionista'!Q62*'Painel de Controle'!$G$36*(1+'Painel de Controle'!$G$37) -> -4.564294492 | R36: ='Painel de Controle'!$G$35*'FC Acionista'!R62*'Painel de Controle'!$G$36*(1+'Painel de Controle'!$G$37) -> -16.43146017 | S36: ='Painel de Controle'!$G$35*'FC Acionista'!S62*'Painel de Controle'!$G$36*(1+'Painel de Controle'!$G$37) -> -16.43146017 | T36: ='Painel de Controle'!$G$35*'FC Acionista'!T62*'Painel de Controle'!$G$36*(1+'Painel de Controle'!$G$37) -> -20.99575466 | U36: ='Painel de Controle'!$G$35*'FC Acionista'!U62*'Painel de Controle'!$G$36*(1+'Painel de Controle'!$G$37) -> -4.564294492 | V36: ='Painel de Controle'!$G$35*'FC Acionista'!V62*'Painel de Controle'!$G$36*(1+'Painel de Controle'!$G$37) -> -4.564294492 | W36: ='Painel de Controle'!$G$35*'FC Acionista'!W62*'Painel de Controle'!$G$36*(1+'Painel de Controle'!$G$37) -> -26.12844945 | X36: ='Painel de Controle'!$G$35*'FC Acionista'!X62*'Painel de Controle'!$G$36*(1+'Painel de Controle'!$G$37) -> -26.12844945 | Y36: ='Painel de Controle'!$G$35*'FC Acionista'!Y62*'Painel de Controle'!$G$36*(1+'Painel de Controle'!$G$37) -> -30.69274395 | Z36: ='Painel de Controle'!$G$35*'FC Acionista'!Z62*'Painel de Controle'!$G$36*(1+'Painel de Controle'!$G$37) -> -4.564294492 | AA36: ='Painel de Controle'!$G$35*'FC Acionista'!AA62*'Painel de Controle'!$G$36*(1+'Painel de Controle'!$G$37) -> -4.564294492 | AB36: ='Painel de Controle'!$G$35*'FC Acionista'!AB62*'Painel de Controle'!$G$36*(1+'Painel de Controle'!$G$37) -> 0 | AC36: ='Painel de Controle'!$G$35*'FC Acionista'!AC62*'Painel de Controle'!$G$36*(1+'Painel de Controle'!$G$37) -> 0 | AD36: ='Painel de Controle'!$G$35*'FC Acionista'!AD62*'Painel de Controle'!$G$36*(1+'Painel de Controle'!$G$37) -> -4.564294492 | AE36: ='Painel de Controle'!$G$35*'FC Acionista'!AE62*'Painel de Controle'!$G$36*(1+'Painel de Controle'!$G$37) -> -4.564294492 | AF36: ='Painel de Controle'!$G$35*'FC Acionista'!AF62*'Painel de Controle'!$G$36*(1+'Painel de Controle'!$G$37) -> -4.564294492 | AG36: ='Painel de Controle'!$G$35*'FC Acionista'!AG62*'Painel de Controle'!$G$36*(1+'Painel de Controle'!$G$37) -> -41.55811051 | AH36: ='Painel de Controle'!$G$35*'FC Acionista'!AH62*'Painel de Controle'!$G$36*(1+'Painel de Controle'!$G$37) -> -41.55811051 | AI36: ='Painel de Controle'!$G$35*'FC Acionista'!AI62*'Painel de Controle'!$G$36*(1+'Painel de Controle'!$G$37) -> -46.122405 | AJ36: ='Painel de Controle'!$G$35*'FC Acionista'!AJ62*'Painel de Controle'!$G$36*(1+'Painel de Controle'!$G$37) -> -4.564294492 | AK36: ='Painel de Controle'!$G$35*'FC Acionista'!AK62*'Painel de Controle'!$G$36*(1+'Painel de Controle'!$G$37) -> -4.564294492 | AL36: ='Painel de Controle'!$G$35*'FC Acionista'!AL62*'Painel de Controle'!$G$36*(1+'Painel de Controle'!$G$37) -> 0
B38: EBITDA | C38: =C22+C24 -> 4551875.12 | D38: -42414.94115 | E38: -3500.761551 | F38: -5594.467147 | G38: 54491.96024 | H38: 12990.56099 | I38: 125203.8286 | J38: 142715.6777 | K38: 151310.3632 | L38: -23411.78496 | M38: 157731.5277 | N38: 158416.7216 | O38: 158407.593 | P38: 159202.1504 | Q38: 159455.2053 | R38: 159431.471 | S38: 159431.471 | T38: 159169.2874 | U38: 159455.2053 | V38: 159455.2053 | W38: 159412.077 | X38: 159159.022 | Y38: 159402.9484 | Z38: 159455.2053 | AA38: 159455.2053 | AB38: 159211.2789 | AC38: 159464.3339 | AD38: 159455.2053 | AE38: 159455.2053 | AF38: 159202.1504 | AG38: 159381.2177 | AH38: 159381.2177 | AI38: 159372.0891 | AJ38: 159202.1504 | AK38: 159455.2053 | AL38: 159464.3339
B39: Margem EBITDA | C39: =C38/C22 -> 0.3333189191 | D39: =IFERROR(D38/D22,0) -> 16.97865672 | E39: 1.401351199 | F39: 2.239459366 | G39: 0.3388870024 | H39: 0.04691429886 | I39: 0.3429649459 | J39: 0.3455713286 | K39: 0.3403520075 | L39: -0.05266161447 | M39: 0.3547955407 | N39: 0.3563367906 | O39: 0.3563162571 | P39: 0.3581035055 | Q39: 0.3586727181 | R39: 0.3586193309 | S39: 0.3586193309 | T39: 0.3580295849 | U39: 0.3586727181 | V39: 0.3586727181 | W39: 0.3585757068 | X39: 0.3580064943 | Y39: 0.3585551733 | Z39: 0.3586727181 | AA39: 0.3586727181 | AB39: 0.358124039 | AC39: 0.3586932516 | AD39: 0.3586727181 | AE39: 0.3586727181 | AF39: 0.3581035055 | AG39: 0.358506293 | AH39: 0.358506293 | AI39: 0.3584857595 | AJ39: 0.3581035055 | AK39: 0.3586727181 | AL39: 0.3586932516
B41: Depreciação | C41: =SUM(D41:AL41) -> -1374936.513 | D41: =-Depreciação!F27/1000 -> -240.9991076 | E41: =-Depreciação!G27/1000 -> -3244.990002 | F41: =-Depreciação!H27/1000 -> -11963.66236 | G41: =-Depreciação!I27/1000 -> -23662.99928 | H41: =-Depreciação!J27/1000 -> -30915.48438 | I41: =-Depreciação!K27/1000 -> -36528.27419 | J41: =-Depreciação!L27/1000 -> -38985.02542 | K41: =-Depreciação!M27/1000 -> -40306.37172 | L41: =-Depreciação!N27/1000 -> -37201.2462 | M41: =-Depreciação!O27/1000 -> -34993.4972 | N41: =-Depreciação!P27/1000 -> -33317.03482 | O41: =-Depreciação!Q27/1000 -> -35239.51674 | P41: =-Depreciação!R27/1000 -> -37472.63825 | Q41: =-Depreciação!S27/1000 -> -40306.37172 | R41: =-Depreciação!T27/1000 -> -43706.85188 | S41: =-Depreciação!U27/1000 -> -47107.33203 | T41: =-Depreciação!V27/1000 -> -50507.81219 | U41: =-Depreciação!W27/1000 -> -50507.81219 | V41: =-Depreciação!X27/1000 -> -46781.66157 | W41: =-Depreciação!Y27/1000 -> -48187.81218 | X41: =-Depreciação!Z27/1000 -> -50231.50674 | Y41: =-Depreciação!AA27/1000 -> -51658.73784 | Z41: =-Depreciação!AB27/1000 -> -46949.11963 | AA41: =-Depreciação!AC27/1000 -> -44783.02852 | AB41: =-Depreciação!AD27/1000 -> -44054.7831 | AC41: =-Depreciação!AE27/1000 -> -43326.53768 | AD41: =-Depreciação!AF27/1000 -> -43149.44351 | AE41: =-Depreciação!AG27/1000 -> -42441.06684 | AF41: =-Depreciação!AH27/1000 -> -41998.33143 | AG41: =-Depreciação!AI27/1000 -> -44450.72505 | AH41: =-Depreciação!AJ27/1000 -> -46903.11868 | AI41: =-Depreciação!AK27/1000 -> -48750.83728 | AJ41: =-Depreciação!AL27/1000 -> -46052.89071 | AK41: =-Depreciação!AM27/1000 -> -44782.69891 | AL41: =-Depreciação!AN27/1000 -> -44226.2939
D42: 0 | E42: =E15 -> 0 | F42: 0 | G42: 0 | H42: 0 | I42: 0 | J42: 0 | K42: 0 | L42: 0 | M42: 0 | N42: 0 | O42: 0 | P42: 0 | Q42: 0 | R42: 0 | S42: 0 | T42: 0 | U42: 0 | V42: 0 | W42: 0 | X42: 0 | Y42: 0 | Z42: 0 | AA42: 0 | AB42: 0 | AC42: 0 | AD42: 0 | AE42: 0 | AF42: 0 | AG42: 0 | AH42: 0 | AI42: 0 | AJ42: 0 | AK42: 0 | AL42: 0
B43: EBIT | C43: =SUM(D43:AL43) -> 3176938.606 | D43: =D38+D41 -> -42655.94026 | E43: =E38+E41 -> -6745.751553 | F43: =F38+F41 -> -17558.1295 | G43: =G38+G41 -> 30828.96097 | H43: =H38+H41 -> -17924.92339 | I43: 88675.55439 | J43: 103730.6523 | K43: 111003.9915 | L43: -60613.03116 | M43: 122738.0305 | N43: 125099.6867 | O43: 123168.0762 | P43: 121729.5121 | Q43: 119148.8336 | R43: 115724.6191 | S43: 112324.1389 | T43: 108661.4752 | U43: 108947.3931 | V43: 112673.5437 | W43: 111224.2648 | X43: 108927.5153 | Y43: 107744.2106 | Z43: 112506.0857 | AA43: 114672.1768 | AB43: 115156.4958 | AC43: 116137.7962 | AD43: 116305.7618 | AE43: 117014.1385 | AF43: 117203.8189 | AG43: 114930.4926 | AH43: 112478.099 | AI43: 110621.2518 | AJ43: 113149.2597 | AK43: 114672.5064 | AL43: 115238.04
B44: Margem EBIT | C44: =IFERROR(C43/C22,0) -> 0.2326368177 | D44: 17.07512841 | E44: 2.700317313 | F44: 7.028500933 | G44: 0.1917261578 | H44: -0.06473432624 | I44: 0.2429047662 | J44: 0.251173101 | K44: 0.2496883263 | L44: -0.1363407397 | M44: 0.2760824455 | N44: 0.2813946687 | O44: 0.2770497746 | P44: 0.2738139209 | Q44: 0.2680090369 | R44: 0.2603067338 | S44: 0.2526578179 | T44: 0.2444191558 | U44: 0.2450622891 | V44: 0.2534437562 | W44: 0.2501838012 | X44: 0.2450175767 | Y44: 0.2423558942 | Z44: 0.2530670822 | AA44: 0.2579394085 | AB44: 0.2590288181 | AC44: 0.2612361193 | AD44: 0.261613935 | AE44: 0.2632073316 | AF44: 0.2636339919 | AG44: 0.2585204547 | AH44: 0.25300413 | AI44: 0.2488274057 | AJ44: 0.2545138143 | AK44: 0.2579401499 | AL44: 0.2592122405
B46: Despesas Financeiras | D46: =-Financiamento!E21 -> -2230.909691 | E46: =-Financiamento!F21 -> -5354.874785 | F46: =-Financiamento!G21 -> -14522.27389 | G46: =-Financiamento!H21 -> -22620.30695 | H46: =-Financiamento!I21 -> -31383.8916 | I46: =-Financiamento!J21 -> -35042.60223 | J46: =-Financiamento!K21 -> -35946.41811 | K46: =-Financiamento!L21 -> -35460.85015 | L46: =-Financiamento!M21 -> -42215.26485 | M46: =-Financiamento!N21 -> -40127.68692 | N46: =-Financiamento!O21 -> -37936.69326 | O46: =-Financiamento!P21 -> -35695.99147 | P46: =-Financiamento!Q21 -> -32948.9223 | Q46: =-Financiamento!R21 -> -30201.85314 | R46: =-Financiamento!S21 -> -29535.3628 | S46: =-Financiamento!T21 -> -28868.87246 | T46: =-Financiamento!U21 -> -28780.32069 | U46: =-Financiamento!V21 -> -26033.25152 | V46: =-Financiamento!W21 -> -23112.80078 | W46: =-Financiamento!X21 -> -23327.39623 | X46: =-Financiamento!Y21 -> -23320.44855 | Y46: =-Financiamento!Z21 -> -24022.66943 | Z46: =-Financiamento!AA21 -> -21022.28664 | AA46: =-Financiamento!AB21 -> -18088.53009 | AB46: =-Financiamento!AC21 -> -15158.49589 | AC46: =-Financiamento!AD21 -> -12196.49089 | AD46: =-Financiamento!AE21 -> -9468.233139 | AE46: =-Financiamento!AF21 -> -6843.391114 | AF46: =-Financiamento!AG21 -> -4268.257225 | AG46: =-Financiamento!AH21 -> -2199.490712 | AH46: =-Financiamento!AI21 -> -776.7383037 | AI46: =-Financiamento!AJ21 -> -4.467241648e-12 | AJ46: =-Financiamento!AK21 -> -4.467241648e-12 | AK46: =-Financiamento!AL21 -> -4.467241648e-12 | AL46: =-Financiamento!AM21 -> -4.467241648e-12
B48: EBT | C48: =SUM(D48:AL48) -> 2478227.031 | D48: =D43+D46 -> -44886.84995 | E48: =E43+E46 -> -12100.62634 | F48: -32080.4034 | G48: =G43+G46 -> 8208.654014 | H48: -49308.815 | I48: 53632.95216 | J48: 67784.23418 | K48: 75543.14131 | L48: -102828.296 | M48: 82610.34362 | N48: 87162.99347 | O48: 87472.08476 | P48: 88780.5898 | Q48: 88946.98045 | R48: 86189.2563 | S48: 83455.26648 | T48: 79881.15455 | U48: 82914.14159 | V48: 89560.74295 | W48: 87896.86859 | X48: 85607.06675 | Y48: 83721.54113 | Z48: 91483.79904 | AA48: 96583.6467 | AB48: 99997.99996 | AC48: 103941.3053 | AD48: 106837.5287 | AE48: 110170.7474 | AF48: 112935.5617 | AG48: 112731.0019 | AH48: 111701.3607 | AI48: 110621.2518 | AJ48: 113149.2597 | AK48: 114672.5064 | AL48: 115238.04
B49: Margem EBT | C49: =IFERROR(C48/C22,0) -> 0.1814724555 | D49: 17.96815923 | E49: 4.843868106 | F49: 12.84175203 | G49: 0.05104984553 | H49: -0.1780745639 | I49: 0.1469142177 | J49: 0.1641325483 | K49: 0.1699239844 | L49: -0.2312982154 | M49: 0.1858206913 | N49: 0.1960612557 | O49: 0.1967565144 | P49: 0.1996998179 | Q49: 0.2000740909 | R49: 0.1938709669 | S49: 0.18772123 | T49: 0.1796817531 | U49: 0.1865040434 | V49: 0.2014546659 | W49: 0.1977120076 | X49: 0.192561411 | Y49: 0.1883201785 | Z49: 0.205780318 | AA49: 0.2172517292 | AB49: 0.2249318508 | AC49: 0.2338017779 | AD49: 0.240316437 | AE49: 0.2478140574 | AF49: 0.2540331299 | AG49: 0.2535730006 | AH49: 0.2512569632 | AI49: 0.2488274057 | AJ49: 0.2545138143 | AK49: 0.2579401499 | AL49: 0.2592122405
B51: Tributos Sobre o Lucro | C51: =SUM(D51:AL51) -> -804196.154 | D51: =D52+D53 -> 0 | E51: =E52+E53 -> 0 | F51: 0 | G51: -870.273816 | H51: 0 | I51: -5719.317643 | J51: -7229.966999 | K51: -8058.230335 | L51: 0 | M51: -8812.654182 | N51: -20720.79245 | O51: -20794.35617 | P51: -21105.78037 | Q51: -21145.38135 | R51: -20489.043 | S51: -20426.87923 | T51: -27135.59255 | U51: -28166.80814 | V51: -30426.6526 | W51: -29860.93532 | X51: -29082.4027 | Y51: -28441.32399 | Z51: -31080.49167 | AA51: -32814.43988 | AB51: -33975.31999 | AC51: -35316.04381 | AD51: -36300.75974 | AE51: -37434.0541 | AF51: -38374.09098 | AG51: -38304.54065 | AH51: -37954.46264 | AI51: -37587.22561 | AJ51: -38446.74828 | AK51: -38964.65218 | AL51: -39156.9336
B52: IRPJ | C52: =SUM(E52:AL52) -> -581155.7212 | D52: =-Tributação!D34 -> 0 | E52: =-Tributação!E34 -> 0 | F52: =-Tributação!F34 -> 0 | G52: =-Tributação!G34 -> -353.1286131 | H52: =-Tributação!H34 -> 0 | I52: =-Tributação!I34 -> -2340.441657 | J52: =-Tributação!J34 -> -2959.560246 | K52: =-Tributação!K34 -> -3299.012432 | L52: =-Tributação!L34 -> 0 | M52: =-Tributação!M34 -> -3608.202534 | N52: =-Tributação!N34 -> -15229.52386 | O52: =-Tributação!O34 -> -15283.61483 | P52: =-Tributação!P34 -> -15512.60321 | Q52: =-Tributação!Q34 -> -15541.72158 | R52: =-Tributação!R34 -> -15059.11985 | S52: =-Tributação!S34 -> -15013.4112 | T52: =-Tributação!T34 -> -19946.28864 | U52: =-Tributação!U34 -> -20704.5354 | V52: =-Tributação!V34 -> -22366.18574 | W52: =-Tributação!W34 -> -21950.21715 | X52: =-Tributação!X34 -> -21377.76669 | Y52: =-Tributação!Y34 -> -20906.38528 | Z52: =-Tributação!Z34 -> -22846.94976 | AA52: =-Tributação!AA34 -> -24121.91167 | AB52: =-Tributação!AB34 -> -24975.49999 | AC52: =-Tributação!AC34 -> -25961.32633 | AD52: =-Tributação!AD34 -> -26685.38216 | AE52: =-Tributação!AE34 -> -27518.68684 | AF52: =-Tributação!AF34 -> -28209.89043 | AG52: =-Tributação!AG34 -> -28158.75048 | AH52: =-Tributação!AH34 -> -27901.34017 | AI52: =-Tributação!AI34 -> -27631.31295 | AJ52: =-Tributação!AJ34 -> -28263.31491 | AK52: =-Tributação!AK34 -> -28644.1266 | AL52: =-Tributação!AL34 -> -28785.51
B53: CSLL | C53: =SUM(E53:AL53) -> -223040.4328 | D53: =-Tributação!D33 -> 0 | E53: =-Tributação!E33 -> 0 | F53: =-Tributação!F33 -> 0 | G53: =-Tributação!G33 -> -517.1452029 | H53: =-Tributação!H33 -> 0 | I53: =-Tributação!I33 -> -3378.875986 | J53: =-Tributação!J33 -> -4270.406754 | K53: =-Tributação!K33 -> -4759.217902 | L53: =-Tributação!L33 -> 0 | M53: =-Tributação!M33 -> -5204.451648 | N53: =-Tributação!N33 -> -5491.268589 | O53: =-Tributação!O33 -> -5510.74134 | P53: =-Tributação!P33 -> -5593.177157 | Q53: =-Tributação!Q33 -> -5603.659768 | R53: =-Tributação!R33 -> -5429.923147 | S53: =-Tributação!S33 -> -5413.468032 | T53: =-Tributação!T33 -> -7189.30391 | U53: =-Tributação!U33 -> -7462.272743 | V53: =-Tributação!V33 -> -8060.466865 | W53: =-Tributação!W33 -> -7910.718173 | X53: =-Tributação!X33 -> -7704.636008 | Y53: =-Tributação!Y33 -> -7534.938702 | Z53: =-Tributação!Z33 -> -8233.541914 | AA53: =-Tributação!AA33 -> -8692.528203 | AB53: =-Tributação!AB33 -> -8999.819997 | AC53: =-Tributação!AC33 -> -9354.71748 | AD53: =-Tributação!AD33 -> -9615.377579 | AE53: =-Tributação!AE33 -> -9915.367262 | AF53: =-Tributação!AF33 -> -10164.20055 | AG53: =-Tributação!AG33 -> -10145.79017 | AH53: =-Tributação!AH33 -> -10053.12246 | AI53: =-Tributação!AI33 -> -9955.912662 | AJ53: =-Tributação!AJ33 -> -10183.43337 | AK53: =-Tributação!AK33 -> -10320.52558 | AL53: =-Tributação!AL33 -> -10371.4236
B55: LLE | C55: =SUM(D55:AL55) -> 2372742.452 | D55: =D43+D51 -> -42655.94026 | E55: -6745.751553 | F55: -17558.1295 | G55: 29958.68715 | H55: -17924.92339 | I55: 82956.23675 | J55: 96500.6853 | K55: 102945.7611 | L55: -60613.03116 | M55: 113925.3764 | N55: 104378.8943 | O55: 102373.7201 | P55: 100623.7317 | Q55: 98003.45224 | R55: 95235.5761 | S55: 91897.25971 | T55: 81525.88269 | U55: 80780.58497 | V55: 82246.89113 | W55: 81363.32949 | X55: 79845.11261 | Y55: 79302.88658 | Z55: 81425.59401 | AA55: 81857.73691 | AB55: 81181.17586 | AC55: 80821.75241 | AD55: 80005.00205 | AE55: 79580.08436 | AF55: 78829.72795 | AG55: 76625.95197 | AH55: 74523.63636 | AI55: 73034.02619 | AJ55: 74702.51137 | AK55: 75707.85422 | AL55: 76081.1064
B57: Fluxo de Caixa do Acionista | C57: TOTAL | D57: 1 | E57: =D57+1 -> 2 | F57: =E57+1 -> 3 | G57: =F57+1 -> 4 | H57: =G57+1 -> 5 | I57: =H57+1 -> 6 | J57: =I57+1 -> 7 | K57: =J57+1 -> 8 | L57: =K57+1 -> 9 | M57: =L57+1 -> 10 | N57: =M57+1 -> 11 | O57: =N57+1 -> 12 | P57: =O57+1 -> 13 | Q57: =P57+1 -> 14 | R57: =Q57+1 -> 15 | S57: =R57+1 -> 16 | T57: =S57+1 -> 17 | U57: =T57+1 -> 18 | V57: =U57+1 -> 19 | W57: =V57+1 -> 20 | X57: =W57+1 -> 21 | Y57: =X57+1 -> 22 | Z57: =Y57+1 -> 23 | AA57: =Z57+1 -> 24 | AB57: =AA57+1 -> 25 | AC57: =AB57+1 -> 26 | AD57: =AC57+1 -> 27 | AE57: =AD57+1 -> 28 | AF57: =AE57+1 -> 29 | AG57: =AF57+1 -> 30 | AH57: =AG57+1 -> 31 | AI57: =AH57+1 -> 32 | AJ57: =AI57+1 -> 33 | AK57: =AJ57+1 -> 34 | AL57: =AK57+1 -> 35
B58: (+) EBITDA | C58: =SUM(D58:AL58) -> 4551875.12 | D58: =D38 -> -42414.94115 | E58: =E38 -> -3500.761551 | F58: -5594.467147 | G58: 54491.96024 | H58: 12990.56099 | I58: 125203.8286 | J58: 142715.6777 | K58: 151310.3632 | L58: -23411.78496 | M58: 157731.5277 | N58: 158416.7216 | O58: 158407.593 | P58: 159202.1504 | Q58: 159455.2053 | R58: 159431.471 | S58: 159431.471 | T58: 159169.2874 | U58: 159455.2053 | V58: 159455.2053 | W58: 159412.077 | X58: 159159.022 | Y58: 159402.9484 | Z58: 159455.2053 | AA58: 159455.2053 | AB58: 159211.2789 | AC58: 159464.3339 | AD58: 159455.2053 | AE58: 159455.2053 | AF58: 159202.1504 | AG58: 159381.2177 | AH58: 159381.2177 | AI58: 159372.0891 | AJ58: 159202.1504 | AK58: 159455.2053 | AL58: 159464.3339
B59: (-) Tributos Sobre o Lucro | C59: =SUM(D59:AL59) -> -804196.154 | D59: =D51 -> 0 | E59: =E51 -> 0 | F59: 0 | G59: -870.273816 | H59: 0 | I59: -5719.317643 | J59: -7229.966999 | K59: -8058.230335 | L59: 0 | M59: -8812.654182 | N59: -20720.79245 | O59: -20794.35617 | P59: -21105.78037 | Q59: -21145.38135 | R59: -20489.043 | S59: -20426.87923 | T59: -27135.59255 | U59: -28166.80814 | V59: -30426.6526 | W59: -29860.93532 | X59: -29082.4027 | Y59: -28441.32399 | Z59: -31080.49167 | AA59: -32814.43988 | AB59: -33975.31999 | AC59: -35316.04381 | AD59: -36300.75974 | AE59: -37434.0541 | AF59: -38374.09098 | AG59: -38304.54065 | AH59: -37954.46264 | AI59: -37587.22561 | AJ59: -38446.74828 | AK59: -38964.65218 | AL59: -39156.9336
B60: (+/-) Variação da NCG | C60: =SUM(D60:AL60) -> -156114.1024 | D60: =-D14/365*'Painel de Controle'!$J$8 -> 0 | E60: =-('Painel de Controle'!$J$8/365*'FC Acionista'!E14-'FC Acionista'!D60) -> 0 | F60: =-('Painel de Controle'!$J$8/365*'FC Acionista'!F14-'FC Acionista'!E60) -> 0 | G60: =-(G14-F14)*'Painel de Controle'!$J$8/365 -> -57021.81578 | H60: =-(H14-G14)*'Painel de Controle'!$J$8/365 -> -40542.59839 | I60: =-(I14-H14)*'Painel de Controle'!$J$8/365 -> -30786.17222 | J60: =-(J14-I14)*'Painel de Controle'!$J$8/365 -> -16734.01528 | K60: =-(K14-J14)*'Painel de Controle'!$J$8/365 -> -11029.50072 | L60: =-(L14-K14)*'Painel de Controle'!$J$8/365 -> 0 | M60: =-(M14-L14)*'Painel de Controle'!$J$8/365 -> 0 | N60: =-(N14-M14)*'Painel de Controle'!$J$8/365 -> 0 | O60: =-(O14-N14)*'Painel de Controle'!$J$8/365 -> 0 | P60: =-(P14-O14)*'Painel de Controle'!$J$8/365 -> 0 | Q60: =-(Q14-P14)*'Painel de Controle'!$J$8/365 -> 0 | R60: =-(R14-Q14)*'Painel de Controle'!$J$8/365 -> 0 | S60: =-(S14-R14)*'Painel de Controle'!$J$8/365 -> 0 | T60: =-(T14-S14)*'Painel de Controle'!$J$8/365 -> 0 | U60: =-(U14-T14)*'Painel de Controle'!$J$8/365 -> 0 | V60: =-(V14-U14)*'Painel de Controle'!$J$8/365 -> 0 | W60: =-(W14-V14)*'Painel de Controle'!$J$8/365 -> 0 | X60: =-(X14-W14)*'Painel de Controle'!$J$8/365 -> 0 | Y60: =-(Y14-X14)*'Painel de Controle'!$J$8/365 -> 0 | Z60: =-(Z14-Y14)*'Painel de Controle'!$J$8/365 -> 0 | AA60: =-(AA14-Z14)*'Painel de Controle'!$J$8/365 -> 0 | AB60: =-(AB14-AA14)*'Painel de Controle'!$J$8/365 -> 0 | AC60: =-(AC14-AB14)*'Painel de Controle'!$J$8/365 -> 0 | AD60: =-(AD14-AC14)*'Painel de Controle'!$J$8/365 -> 0 | AE60: =-(AE14-AD14)*'Painel de Controle'!$J$8/365 -> 0 | AF60: =-(AF14-AE14)*'Painel de Controle'!$J$8/365 -> 0 | AG60: =-(AG14-AF14)*'Painel de Controle'!$J$8/365 -> 0 | AH60: =-(AH14-AG14)*'Painel de Controle'!$J$8/365 -> 0 | AI60: =-(AI14-AH14)*'Painel de Controle'!$J$8/365 -> 0 | AJ60: =-(AJ14-AI14)*'Painel de Controle'!$J$8/365 -> 0 | AK60: =-(AK14-AJ14)*'Painel de Controle'!$J$8/365 -> 0 | AL60: =-(AL14-AK14)*'Painel de Controle'!$J$8/365 -> 0
B61: (=) Fluxo de Caixa Operacional | C61: =SUM(D61:AL61) -> 3591564.863 | D61: =SUM(D58:D60) -> -42414.94115 | E61: =SUM(E58:E60) -> -3500.761551 | F61: -5594.467147 | G61: -3400.12935 | H61: -27552.0374 | I61: 88698.33872 | J61: 118751.6954 | K61: 132222.6321 | L61: -23411.78496 | M61: 148918.8736 | N61: 137695.9291 | O61: 137613.2368 | P61: 138096.37 | Q61: 138309.824 | R61: 138942.428 | S61: 139004.5917 | T61: 132033.6949 | U61: 131288.3972 | V61: 129028.5527 | W61: 129551.1417 | X61: 130076.6193 | Y61: 130961.6244 | Z61: 128374.7136 | AA61: 126640.7654 | AB61: 125235.959 | AC61: 124148.2901 | AD61: 123154.4456 | AE61: 122021.1512 | AF61: 120828.0594 | AG61: 121076.677 | AH61: 121426.755 | AI61: 121784.8635 | AJ61: 120755.4021 | AK61: 120490.5531 | AL61: 120307.4003
B62: (-) Fluxo de Caixa de Investimento | C62: -1765855.306 | D62: =(-CAPEX!F70/1000)*(1+Sensibilidade!$D4) -> -8434.968766 | E62: =(-CAPEX!G70/1000)*(1+Sensibilidade!$D4) -> -76586.72553 | F62: =(-CAPEX!H70/1000)*(1+Sensibilidade!$D4) -> -224746.7747 | G62: =(-CAPEX!I70/1000)*(1+Sensibilidade!$D4) -> -198530.3345 | H62: =(-CAPEX!J70/1000)*(1+Sensibilidade!$D4) -> -119437.0416 | I62: =(-CAPEX!K70/1000)*(1+Sensibilidade!$D4) -> -91628.99865 | J62: =(-CAPEX!L70/1000)*(1+Sensibilidade!$D4) -> -36778.70955 | K62: =(-CAPEX!M70/1000)*(1+Sensibilidade!$D4) -> -13814.07491 | L62: =(-CAPEX!N70/1000)*(1+Sensibilidade!$D4) -> 0 | M62: =(-CAPEX!O70/1000)*(1+Sensibilidade!$D4) -> 0 | N62: =(-CAPEX!P70/1000)*(1+Sensibilidade!$D4) -> 0 | O62: =(-CAPEX!Q70/1000)*(1+Sensibilidade!$D4) -> -14168.66733 | P62: =(-CAPEX!R70/1000)*(1+Sensibilidade!$D4) -> -14168.66733 | Q62: =(-CAPEX!S70/1000)*(1+Sensibilidade!$D4) -> -14168.66733 | R62: =(-CAPEX!T70/1000)*(1+Sensibilidade!$D4) -> -51007.20237 | S62: =(-CAPEX!U70/1000)*(1+Sensibilidade!$D4) -> -51007.20237 | T62: =(-CAPEX!V70/1000)*(1+Sensibilidade!$D4) -> -65175.8697 | U62: =(-CAPEX!W70/1000)*(1+Sensibilidade!$D4) -> -14168.66733 | V62: =(-CAPEX!X70/1000)*(1+Sensibilidade!$D4) -> -14168.66733 | W62: =(-CAPEX!Y70/1000)*(1+Sensibilidade!$D4) -> -81108.98819 | X62: =(-CAPEX!Z70/1000)*(1+Sensibilidade!$D4) -> -81108.98819 | Y62: =(-CAPEX!AA70/1000)*(1+Sensibilidade!$D4) -> -95277.65551 | Z62: =(-CAPEX!AB70/1000)*(1+Sensibilidade!$D4) -> -14168.66733 | AA62: =(-CAPEX!AC70/1000)*(1+Sensibilidade!$D4) -> -14168.66733 | AB62: =(-CAPEX!AD70/1000)*(1+Sensibilidade!$D4) -> 0 | AC62: =(-CAPEX!AE70/1000)*(1+Sensibilidade!$D4) -> 0 | AD62: =(-CAPEX!AF70/1000)*(1+Sensibilidade!$D4) -> -14168.66733 | AE62: =(-CAPEX!AG70/1000)*(1+Sensibilidade!$D4) -> -14168.66733 | AF62: =(-CAPEX!AH70/1000)*(1+Sensibilidade!$D4) -> -14168.66733 | AG62: =(-CAPEX!AI70/1000)*(1+Sensibilidade!$D4) -> -129006.3653 | AH62: =(-CAPEX!AJ70/1000)*(1+Sensibilidade!$D4) -> -129006.3653 | AI62: =(-CAPEX!AK70/1000)*(1+Sensibilidade!$D4) -> -143175.0326 | AJ62: =(-CAPEX!AL70/1000)*(1+Sensibilidade!$D4) -> -14168.66733 | AK62: =(-CAPEX!AM70/1000)*(1+Sensibilidade!$D4) -> -14168.66733 | AL62: =(-CAPEX!AN70/1000)*(1+Sensibilidade!$D4) -> 0
B63: (+/-) Fluxo de Caixa de Financiamento | C63: =SUM(D63:AL63) -> -698711.5758 | D63: =SUM(D64:D66) -> 30584.70694 | E63: =SUM(E64:E66) -> 40597.16053 | F63: 120325.7909 | G63: 94567.56335 | H63: 94821.19443 | I63: 10843.04552 | J63: =SUM(J64:J66) -> -29658.6709 | K63: -50299.70413 | L63: 53700.64069 | M63: -72356.15772 | N63: -70896.34703 | O63: -76104.06761 | P63: -73356.99845 | Q63: -70609.92928 | R63: -39339.11752 | S63: -38672.62718 | T63: -30082.87501 | U63: -68991.68778 | V63: -68621.59716 | W63: -23429.59318 | X63: -21492.31512 | Y63: -10990.27469 | Z63: -64176.44509 | AA63: -61187.93455 | AB63: -58728.17551 | AC63: -52327.86003 | AD63: -48078.40637 | AE63: -44722.38138 | AF63: -34698.82511 | AG63: -23127.49949 | AH63: -12202.18798 | AI63: -4.467241648e-12 | AJ63: -4.467241648e-12 | AK63: -4.467241648e-12 | AL63: -4.467241648e-12
B64: (+) Liberações | C64: =SUM(D64:AL64) -> 941748.8382 | D64: =Financiamento!E20 -> 32815.61663 | E64: =Financiamento!F20 -> 45952.03532 | F64: =Financiamento!G20 -> 134848.0648 | G64: =Financiamento!H20 -> 119118.2007 | H64: =Financiamento!I20 -> 130838.4773 | I64: =Financiamento!J20 -> 58451.27815 | J64: =Financiamento!K20 -> 25860.3306 | K64: =Financiamento!L20 -> 12430.11043 | L64: =Financiamento!M20 -> 126623.1804 | M64: =Financiamento!N20 -> 0 | N64: =Financiamento!O20 -> 0 | O64: =Financiamento!P20 -> 0 | P64: =Financiamento!Q20 -> 0 | Q64: =Financiamento!R20 -> 0 | R64: =Financiamento!S20 -> 30604.32142 | S64: =Financiamento!T20 -> 30604.32142 | T64: =Financiamento!U20 -> 39105.52182 | U64: =Financiamento!V20 -> 0 | V64: =Financiamento!W20 -> 0 | W64: =Financiamento!X20 -> 48665.39291 | X64: =Financiamento!Y20 -> 48665.39291 | Y64: =Financiamento!Z20 -> 57166.59331 | Z64: =Financiamento!AA20 -> 0 | AA64: =Financiamento!AB20 -> 0 | AB64: =Financiamento!AC20 -> 0 | AC64: =Financiamento!AD20 -> 0 | AD64: =Financiamento!AE20 -> 0 | AE64: =Financiamento!AF20 -> 0 | AF64: =Financiamento!AG20 -> 0 | AG64: =Financiamento!AH20 -> 0 | AH64: =Financiamento!AI20 -> 0 | AI64: =Financiamento!AJ20 -> 0 | AJ64: =Financiamento!AK20 -> 0 | AK64: =Financiamento!AL20 -> 0 | AL64: =Financiamento!AM20 -> 0
B65: (-) Juros Pagos | C65: -698711.5758 | D65: =Financiamento!E22 -> -2230.909691 | E65: =Financiamento!F22 -> -5354.874785 | F65: =Financiamento!G22 -> -14522.27389 | G65: =Financiamento!H22 -> -22620.30695 | H65: =Financiamento!I22 -> -31383.8916 | I65: =Financiamento!J22 -> -35042.60223 | J65: =Financiamento!K22 -> -35946.41811 | K65: =Financiamento!L22 -> -35460.85015 | L65: =Financiamento!M22 -> -42215.26485 | M65: =Financiamento!N22 -> -40127.68692 | N65: =Financiamento!O22 -> -37936.69326 | O65: =Financiamento!P22 -> -35695.99147 | P65: =Financiamento!Q22 -> -32948.9223 | Q65: =Financiamento!R22 -> -30201.85314 | R65: =Financiamento!S22 -> -29535.3628 | S65: =Financiamento!T22 -> -28868.87246 | T65: =Financiamento!U22 -> -28780.32069 | U65: =Financiamento!V22 -> -26033.25152 | V65: =Financiamento!W22 -> -23112.80078 | W65: =Financiamento!X22 -> -23327.39623 | X65: =Financiamento!Y22 -> -23320.44855 | Y65: =Financiamento!Z22 -> -24022.66943 | Z65: =Financiamento!AA22 -> -21022.28664 | AA65: =Financiamento!AB22 -> -18088.53009 | AB65: =Financiamento!AC22 -> -15158.49589 | AC65: =Financiamento!AD22 -> -12196.49089 | AD65: =Financiamento!AE22 -> -9468.233139 | AE65: =Financiamento!AF22 -> -6843.391114 | AF65: =Financiamento!AG22 -> -4268.257225 | AG65: =Financiamento!AH22 -> -2199.490712 | AH65: =Financiamento!AI22 -> -776.7383037 | AI65: =Financiamento!AJ22 -> -4.467241648e-12 | AJ65: =Financiamento!AK22 -> -4.467241648e-12 | AK65: =Financiamento!AL22 -> -4.467241648e-12 | AL65: =Financiamento!AM22 -> -4.467241648e-12
B66: (-) Amortizações | C66: -941748.8382 | D66: =Financiamento!E23 -> 0 | E66: =Financiamento!F23 -> 0 | F66: =Financiamento!G23 -> 0 | G66: =Financiamento!H23 -> -1930.33039 | H66: =Financiamento!I23 -> -4633.391291 | I66: =Financiamento!J23 -> -12565.6304 | J66: =Financiamento!K23 -> -19572.58338 | K66: =Financiamento!L23 -> -27268.9644 | L66: =Financiamento!M23 -> -30707.27488 | M66: =Financiamento!N23 -> -32228.4708 | N66: =Financiamento!O23 -> -32959.65376 | O66: =Financiamento!P23 -> -40408.07614 | P66: =Financiamento!Q23 -> -40408.07614 | Q66: =Financiamento!R23 -> -40408.07614 | R66: =Financiamento!S23 -> -40408.07614 | S66: =Financiamento!T23 -> -40408.07614 | T66: =Financiamento!U23 -> -40408.07614 | U66: =Financiamento!V23 -> -42958.43626 | V66: =Financiamento!W23 -> -45508.79638 | W66: =Financiamento!X23 -> -48767.58986 | X66: =Financiamento!Y23 -> -46837.25947 | Y66: =Financiamento!Z23 -> -44134.19857 | Z66: =Financiamento!AA23 -> -43154.15845 | AA66: =Financiamento!AB23 -> -43099.40446 | AB66: =Financiamento!AC23 -> -43569.67962 | AC66: =Financiamento!AD23 -> -40131.36915 | AD66: =Financiamento!AE23 -> -38610.17323 | AE66: =Financiamento!AF23 -> -37878.99026 | AF66: =Financiamento!AG23 -> -30430.56788 | AG66: =Financiamento!AH23 -> -20928.00878 | AH66: =Financiamento!AI23 -> -11425.44967 | AI66: =Financiamento!AJ23 -> 0 | AJ66: =Financiamento!AK23 -> 0 | AK66: =Financiamento!AL23 -> 0 | AL66: =Financiamento!AM23 -> 0
B67: (=) Fluxo de Caixa do Acionista | C67: =SUM(D67:AL67) -> 1126997.982 | D67: =D61+D62+D63 -> -20265.20298 | E67: =E61+E62+E63 -> -39490.32655 | F67: -110015.4509 | G67: -107362.9005 | H67: -52167.88457 | I67: 7912.385578 | J67: 52314.315 | K67: 68108.85308 | L67: 30288.85574 | M67: 76562.71584 | N67: 66799.58208 | O67: 47340.50186 | P67: 50570.70421 | Q67: 53531.22735 | R67: 48596.10808 | S67: 49324.76219 | T67: 36774.95018 | U67: 48128.04206 | V67: 46238.28821 | W67: 25012.56031 | X67: 27475.31604 | Y67: 24693.69421 | Z67: 50029.60121 | AA67: 51284.16356 | AB67: 66507.78345 | AC67: 71820.43005 | AD67: 60907.37187 | AE67: 63130.10251 | AF67: 71960.56694 | AG67: -31057.18775 | AH67: -19781.79822 | AI67: -21390.16914 | AJ67: 106586.7348 | AK67: 106321.8858 | AL67: 120307.4003 | AM67: =('FC Projeto'!AM56+'FC Projeto'!AM57)/WACC!D22 -> 876167.7899
B68: Fluxo de Caixa do Projeto Acumulado | D68: =D67 -> -20265.20298 | E68: =D68+E67 -> -59755.52953 | F68: =E68+F67 -> -169770.9805 | G68: -277133.881 | H68: -329301.7655 | I68: -321389.38 | J68: -269075.065 | K68: -200966.2119 | L68: -170677.3561 | M68: -94114.64029 | N68: -27315.05821 | O68: 20025.44365 | P68: 70596.14786 | Q68: 124127.3752 | R68: 172723.4833 | S68: 222048.2455 | T68: 258823.1957 | U68: 306951.2377 | V68: 353189.5259 | W68: 378202.0862 | X68: 405677.4023 | Y68: 430371.0965 | Z68: 480400.6977 | AA68: 531684.8613 | AB68: 598192.6447 | AC68: 670013.0748 | AD68: 730920.4466 | AE68: 794050.5491 | AF68: 866011.1161 | AG68: 834953.9283 | AH68: 815172.1301 | AI68: 793781.961 | AJ68: 900368.6957 | AK68: 1006690.582 | AL68: 1126997.982
E69: =IF(AND(E68>0,D68<0),E57,"") ->  | F69: =IF(AND(F68>0,E68<0),F57,"") ->  | O69: 12
B70: VPL 35 anos | C70: =D67+NPV(WACC!D18,'FC Acionista'!E67:AL67) -> -29354.93034
B71: VPL Perpetuidade | C71: =AM67/((1+WACC!$D$18)^35) -> 13032.45854
B72: VPL Total | C72: =C70+C71 -> -16322.4718
B73: TIR | C73: =IRR(D67:AM67) -> 0.121117069
B74: Payback | C74: =SUM(D69:AL69) -> 12
B78: Receita Financeira VPL | C78: =SUM(D78:AL78) -> 547140.6485 | D78: =D64/((1+WACC!$D$22)^(D12-1)) -> 32815.61663 | E78: =E64/((1+WACC!$D$22)^(E12-1)) -> 42084.73374 | F78: =F64/((1+WACC!$D$22)^(F12-1)) -> 113105.6714 | G78: =G64/((1+WACC!$D$22)^(G12-1)) -> 91503.4819 | H78: =H64/((1+WACC!$D$22)^(H12-1)) -> 92048.09578 | I78: =I64/((1+WACC!$D$22)^(I12-1)) -> 37661.11481 | J78: =J64/((1+WACC!$D$22)^(J12-1)) -> 15259.94835 | K78: =K64/((1+WACC!$D$22)^(K12-1)) -> 6717.594887 | L78: =L64/((1+WACC!$D$22)^(L12-1)) -> 62671.75728 | M78: =M64/((1+WACC!$D$22)^(M12-1)) -> 0 | N78: =N64/((1+WACC!$D$22)^(N12-1)) -> 0 | O78: =O64/((1+WACC!$D$22)^(O12-1)) -> 0 | P78: =P64/((1+WACC!$D$22)^(P12-1)) -> 0 | Q78: =Q64/((1+WACC!$D$22)^(Q12-1)) -> 0 | R78: =R64/((1+WACC!$D$22)^(R12-1)) -> 8938.412645 | S78: =S64/((1+WACC!$D$22)^(S12-1)) -> 8186.160061 | T78: =T64/((1+WACC!$D$22)^(T12-1)) -> 9579.776892 | U78: =U64/((1+WACC!$D$22)^(U12-1)) -> 0 | V78: =V64/((1+WACC!$D$22)^(V12-1)) -> 0 | W78: =W64/((1+WACC!$D$22)^(W12-1)) -> 9157.92408 | X78: =X64/((1+WACC!$D$22)^(X12-1)) -> 8387.197517 | Y78: =Y64/((1+WACC!$D$22)^(Y12-1)) -> 9023.162542 | Z78: =Z64/((1+WACC!$D$22)^(Z12-1)) -> 0 | AA78: =AA64/((1+WACC!$D$22)^(AA12-1)) -> 0 | AB78: =AB64/((1+WACC!$D$22)^(AB12-1)) -> 0 | AC78: =AC64/((1+WACC!$D$22)^(AC12-1)) -> 0 | AD78: =AD64/((1+WACC!$D$22)^(AD12-1)) -> 0 | AE78: =AE64/((1+WACC!$D$22)^(AE12-1)) -> 0 | AF78: =AF64/((1+WACC!$D$22)^(AF12-1)) -> 0 | AG78: =AG64/((1+WACC!$D$22)^(AG12-1)) -> 0 | AH78: =AH64/((1+WACC!$D$22)^(AH12-1)) -> 0 | AI78: =AI64/((1+WACC!$D$22)^(AI12-1)) -> 0 | AJ78: =AJ64/((1+WACC!$D$22)^(AJ12-1)) -> 0 | AK78: =AK64/((1+WACC!$D$22)^(AK12-1)) -> 0 | AL78: =AL64/((1+WACC!$D$22)^(AL12-1)) -> 0
B79: Despesa Financeira VPL | C79: =SUM(D79:AL79) -> -503077.0457 | D79: =(D65+D66)/((1+WACC!$D$22)^(D12-1)) -> -2230.909691 | E79: =(E65+E66)/((1+WACC!$D$22)^(E12-1)) -> -4904.211054 | F79: =(F65+F66)/((1+WACC!$D$22)^(F12-1)) -> -12180.75722 | G79: =(G65+G66)/((1+WACC!$D$22)^(G12-1)) -> -18859.15659 | H79: =(H65+H66)/((1+WACC!$D$22)^(H12-1)) -> -25339.04684 | I79: =(I65+I66)/((1+WACC!$D$22)^(I12-1)) -> -30674.76318 | J79: =(J65+J66)/((1+WACC!$D$22)^(J12-1)) -> -32761.26312 | K79: =(K65+K66)/((1+WACC!$D$22)^(K12-1)) -> -33901.02477 | L79: =(L65+L66)/((1+WACC!$D$22)^(L12-1)) -> -36092.78882 | M79: =(M65+M66)/((1+WACC!$D$22)^(M12-1)) -> -32798.50007 | N79: =(N65+N66)/((1+WACC!$D$22)^(N12-1)) -> -29432.16278 | O79: =(O65+O66)/((1+WACC!$D$22)^(O12-1)) -> -28935.16876 | P79: =(P65+P66)/((1+WACC!$D$22)^(P12-1)) -> -25543.44885 | Q79: =(Q65+Q66)/((1+WACC!$D$22)^(Q12-1)) -> -22517.67726 | R79: =(R65+R66)/((1+WACC!$D$22)^(R12-1)) -> -20427.94252 | S79: =(S65+S66)/((1+WACC!$D$22)^(S12-1)) -> -18530.46117 | T79: =(T65+T66)/((1+WACC!$D$22)^(T12-1)) -> -16949.25357 | U79: =(U65+U66)/((1+WACC!$D$22)^(U12-1)) -> -15478.6796 | V79: =(V65+V66)/((1+WACC!$D$22)^(V12-1)) -> -14099.95722 | W79: =(W65+W66)/((1+WACC!$D$22)^(W12-1)) -> -13566.93884 | X79: =(X65+X66)/((1+WACC!$D$22)^(X12-1)) -> -12091.27307 | Y79: =(Y65+Y66)/((1+WACC!$D$22)^(Y12-1)) -> -10757.86509 | Z79: =(Z65+Z66)/((1+WACC!$D$22)^(Z12-1)) -> -9277.093996 | AA79: =(AA65+AA66)/((1+WACC!$D$22)^(AA12-1)) -> -8100.688373 | AB79: =(AB65+AB66)/((1+WACC!$D$22)^(AB12-1)) -> -7120.696456 | AC79: =(AC65+AC66)/((1+WACC!$D$22)^(AC12-1)) -> -5810.704233 | AD79: =(AD65+AD66)/((1+WACC!$D$22)^(AD12-1)) -> -4889.513972 | AE79: =(AE65+AE66)/((1+WACC!$D$22)^(AE12-1)) -> -4165.435176 | AF79: =(AF65+AF66)/((1+WACC!$D$22)^(AF12-1)) -> -2959.852446 | AG79: =(AG65+AG66)/((1+WACC!$D$22)^(AG12-1)) -> -1806.773879 | AH79: =(AH65+AH66)/((1+WACC!$D$22)^(AH12-1)) -> -873.0370324 | AI79: =(AI65+AI66)/((1+WACC!$D$22)^(AI12-1)) -> -2.927212373e-13 | AJ79: =(AJ65+AJ66)/((1+WACC!$D$22)^(AJ12-1)) -> -2.680859563e-13 | AK79: =(AK65+AK66)/((1+WACC!$D$22)^(AK12-1)) -> -2.455239689e-13 | AL79: =(AL65+AL66)/((1+WACC!$D$22)^(AL12-1)) -> -2.248607877e-13
B80: Tributação VPL | C80: =SUM(D80:AL80) -> -376714.5792 | D80: =(D16+D59)/((1+WACC!$D$22)^(D12-1)) -> -2498.132912 | E80: =(E16+E59)/((1+WACC!$D$22)^(E12-1)) -> -2287.891227 | F80: =(F16+F59)/((1+WACC!$D$22)^(F12-1)) -> -2095.343382 | G80: =(G16+G59)/((1+WACC!$D$22)^(G12-1)) -> -10381.70524 | H80: =(H16+H59)/((1+WACC!$D$22)^(H12-1)) -> -13971.01822 | I80: =(I16+I59)/((1+WACC!$D$22)^(I12-1)) -> -20009.86936 | J80: =(J16+J59)/((1+WACC!$D$22)^(J12-1)) -> -20974.33949 | K80: =(K16+K59)/((1+WACC!$D$22)^(K12-1)) -> -20717.39878 | L80: =(L16+L59)/((1+WACC!$D$22)^(L12-1)) -> -14985.43575 | M80: =(M16+M59)/((1+WACC!$D$22)^(M12-1)) -> -17718.97817 | N80: =(N16+N59)/((1+WACC!$D$22)^(N12-1)) -> -21171.3444 | O80: =(O16+O59)/((1+WACC!$D$22)^(O12-1)) -> -19417.54338 | P80: =(P16+P59)/((1+WACC!$D$22)^(P12-1)) -> -17891.81231 | Q80: =(Q16+Q59)/((1+WACC!$D$22)^(Q12-1)) -> -16398.67469 | R80: =(R16+R59)/((1+WACC!$D$22)^(R12-1)) -> -14826.87734 | S80: =(S16+S59)/((1+WACC!$D$22)^(S12-1)) -> -13562.42655 | T80: =(T16+T59)/((1+WACC!$D$22)^(T12-1)) -> -14064.46932 | U80: =(U16+U59)/((1+WACC!$D$22)^(U12-1)) -> -13112.16934 | V80: =(V16+V59)/((1+WACC!$D$22)^(V12-1)) -> -12472.99475 | W80: =(W16+W59)/((1+WACC!$D$22)^(W12-1)) -> -11316.81591 | X80: =(X16+X59)/((1+WACC!$D$22)^(X12-1)) -> -10230.22246 | Y80: =(Y16+Y59)/((1+WACC!$D$22)^(Y12-1)) -> -9268.064048 | Z80: =(Z16+Z59)/((1+WACC!$D$22)^(Z12-1)) -> -8869.575838 | AA80: =(AA16+AA59)/((1+WACC!$D$22)^(AA12-1)) -> -8352.674432 | AB80: =(AB16+AB59)/((1+WACC!$D$22)^(AB12-1)) -> -7790.472137 | AC80: =(AC16+AC59)/((1+WACC!$D$22)^(AC12-1)) -> -7283.70926 | AD80: =(AD16+AD59)/((1+WACC!$D$22)^(AD12-1)) -> -6770.860112 | AE80: =(AE16+AE59)/((1+WACC!$D$22)^(AE12-1)) -> -6306.582573 | AF80: =(AF16+AF59)/((1+WACC!$D$22)^(AF12-1)) -> -5856.009866 | AG80: =(AG16+AG59)/((1+WACC!$D$22)^(AG12-1)) -> -5357.73741 | AH80: =(AH16+AH59)/((1+WACC!$D$22)^(AH12-1)) -> -4881.785526 | AI80: =(AI16+AI59)/((1+WACC!$D$22)^(AI12-1)) -> -4446.873127 | AJ80: =(AJ16+AJ59)/((1+WACC!$D$22)^(AJ12-1)) -> -4124.207647 | AK80: =(AK16+AK59)/((1+WACC!$D$22)^(AK12-1)) -> -3805.580785 | AL80: =(AL16+AL59)/((1+WACC!$D$22)^(AL12-1)) -> -3494.983484
B81: Fluxo de Caixa VPL | C81: =SUM(D81:AL81) -> 66359.73942 | D81: =D67/((1+WACC!$D$22)^(D12-1)) -> -20265.20298 | E81: =E67/((1+WACC!$D$22)^(E12-1)) -> -36166.83933 | F81: =F67/((1+WACC!$D$22)^(F12-1)) -> -92276.97451 | G81: =G67/((1+WACC!$D$22)^(G12-1)) -> -82473.36817 | H81: =H67/((1+WACC!$D$22)^(H12-1)) -> -36701.39346 | I81: =I67/((1+WACC!$D$22)^(I12-1)) -> 5098.079479 | J81: =J67/((1+WACC!$D$22)^(J12-1)) -> 30870.20646 | K81: =K67/((1+WACC!$D$22)^(K12-1)) -> 36808.01438 | L81: =L67/((1+WACC!$D$22)^(L12-1)) -> 14991.37684 | M81: =M67/((1+WACC!$D$22)^(M12-1)) -> 34705.30112 | N81: =N67/((1+WACC!$D$22)^(N12-1)) -> 27731.41715 | O81: =O67/((1+WACC!$D$22)^(O12-1)) -> 17999.10903 | P81: =P67/((1+WACC!$D$22)^(P12-1)) -> 17609.09284 | Q81: =Q67/((1+WACC!$D$22)^(Q12-1)) -> 17071.2379 | R81: =R67/((1+WACC!$D$22)^(R12-1)) -> 14193.16119 | S81: =S67/((1+WACC!$D$22)^(S12-1)) -> 13193.57461 | T81: =T67/((1+WACC!$D$22)^(T12-1)) -> 9008.850963 | U81: =U67/((1+WACC!$D$22)^(U12-1)) -> 10797.80139 | V81: =V67/((1+WACC!$D$22)^(V12-1)) -> 9500.768164 | W81: =W67/((1+WACC!$D$22)^(W12-1)) -> 4706.899804 | X81: =X67/((1+WACC!$D$22)^(X12-1)) -> 4735.210973 | Y81: =Y67/((1+WACC!$D$22)^(Y12-1)) -> 3897.647276 | Z81: =Z67/((1+WACC!$D$22)^(Z12-1)) -> 7232.081995 | AA81: =AA67/((1+WACC!$D$22)^(AA12-1)) -> 6789.525264 | AB81: =AB67/((1+WACC!$D$22)^(AB12-1)) -> 8063.961357 | AC81: =AC67/((1+WACC!$D$22)^(AC12-1)) -> 7975.240658 | AD81: =AD67/((1+WACC!$D$22)^(AD12-1)) -> 6194.203765 | AE81: =AE67/((1+WACC!$D$22)^(AE12-1)) -> 5879.927266 | AF81: =AF67/((1+WACC!$D$22)^(AF12-1)) -> 6138.324839 | AG81: =AG67/((1+WACC!$D$22)^(AG12-1)) -> -2426.259509 | AH81: =AH67/((1+WACC!$D$22)^(AH12-1)) -> -1415.33981 | AI81: =AI67/((1+WACC!$D$22)^(AI12-1)) -> -1401.615867 | AJ81: =AJ67/((1+WACC!$D$22)^(AJ12-1)) -> 6396.431841 | AK81: =AK67/((1+WACC!$D$22)^(AK12-1)) -> 5843.554803 | AL81: =AL67/((1+WACC!$D$22)^(AL12-1)) -> 6055.731687
B82: Fluxo de Caixa Acumulado VPL | D82: =D81 -> -20265.20298 | E82: =D82+E81 -> -56432.04231 | F82: =E82+F81 -> -148709.0168 | G82: -231182.385 | H82: -267883.7784 | I82: -262785.699 | J82: -231915.4925 | K82: -195107.4781 | L82: -180116.1013 | M82: -145410.8002 | N82: -117679.383 | O82: -99680.274 | P82: -82071.18115 | Q82: -64999.94325 | R82: -50806.78206 | S82: -37613.20745 | T82: -28604.35648 | U82: -17806.55509 | V82: -8305.786923 | W82: -3598.887119 | X82: 1136.323854 | Y82: 5033.971129 | Z82: 12266.05312 | AA82: 19055.57839 | AB82: 27119.53975 | AC82: 35094.7804 | AD82: 41288.98417 | AE82: 47168.91143 | AF82: 53307.23627 | AG82: 50880.97676 | AH82: 49465.63695 | AI82: 48064.02109 | AJ82: 54460.45293 | AK82: 60304.00773 | AL82: 66359.73942
B83: Payback VPL | E83: =IF(AND(E82>0,D82<0),E57,"") ->  | F83: =IF(AND(F82>0,E82<0),F57,"") ->  | X83: 21
B85: EBITDA - IR/CS (exclui pagto outorga) | D85: =SUM(D58:D59)-D32 -> -2765.462058 | E85: =SUM(E58:E59)-E32 -> -3500.761551 | F85: -5594.467147 | G85: 53621.68643 | H85: 97528.06437 | I85: 124447.1952 | J85: 140904.432 | K85: 149168.7978 | L85: 157478.4728 | M85: 148918.8736 | N85: 137695.9291 | O85: 137613.2368 | P85: 138096.37 | Q85: 138309.824 | R85: 138942.428 | S85: 139004.5917 | T85: 132033.6949 | U85: 131288.3972 | V85: 129028.5527 | W85: 129551.1417 | X85: 130076.6193 | Y85: 130961.6244 | Z85: 128374.7136 | AA85: 126640.7654 | AB85: 125235.959 | AC85: 124148.2901 | AD85: 123154.4456 | AE85: 122021.1512 | AF85: 120828.0594 | AG85: 121076.677 | AH85: 121426.755 | AI85: 121784.8635 | AJ85: 120755.4021 | AK85: 120490.5531 | AL85: 120307.4003
B86: Serviço da Dívida | D86: =SUM(D65:D66) -> -2230.909691 | E86: =SUM(E65:E66) -> -5354.874785 | F86: -14522.27389 | G86: -24550.63734 | H86: -36017.28289 | I86: -47608.23263 | J86: -55519.0015 | K86: -62729.81455 | L86: -72922.53973 | M86: -72356.15772 | N86: -70896.34703 | O86: -76104.06761 | P86: -73356.99845 | Q86: -70609.92928 | R86: -69943.43894 | S86: -69276.9486 | T86: -69188.39683 | U86: -68991.68778 | V86: -68621.59716 | W86: -72094.98609 | X86: -70157.70803 | Y86: -68156.868 | Z86: -64176.44509 | AA86: -61187.93455 | AB86: -58728.17551 | AC86: -52327.86003 | AD86: -48078.40637 | AE86: -44722.38138 | AF86: -34698.82511 | AG86: -23127.49949 | AH86: -12202.18798 | AI86: -4.467241648e-12 | AJ86: -4.467241648e-12 | AK86: -4.467241648e-12 | AL86: -4.467241648e-12
B87: ICSD | H87: =H85/-H86 -> 2.707812931 | I87: =I85/-I86 -> 2.613984773 | J87: 2.537949678 | K87: 2.377956939 | L87: 2.159530831 | M87: 2.058136837 | N87: 1.942214725 | O87: 1.808224463 | P87: 1.882524816 | Q87: 1.958787176 | R87: 1.986496948 | S87: 2.006505693 | T87: 1.908321351 | U87: 1.902959637 | V87: 1.880290725 | W87: 1.796950783 | X87: 1.854060274 | Y87: 1.921473628 | Z87: 2.000340054 | AA87: 2.06970159 | AB87: 2.132468068 | AC87: 2.37250845 | AD87: 2.561533438 | AE87: 2.728413547 | AF87: 3.482194541 | AG87: 5.235182346 | AH87: 9.951228033

Sheet Sensibilidade
C2: Variação
C3: Receita | D3: 0
C4: Capex | D4: 0
C5: Opex | D5: 0
C7: TIR do Projeto | I7: TIR do Acionista
C8: Capex | I8: Capex
B9: O p e x | C9: ='Painel de Controle'!Q6 -> 0.09179745716 | D9: =-'Painel de Controle'!Q21 -> -0.1 | E9: 0 | F9: ='Painel de Controle'!Q21 -> 0.1 | H9: O p e x | I9: ='Painel de Controle'!Q12 -> 0.121117069 | J9: =D9 -> -0.1 | K9: =E9 -> 0 | L9: =F9 -> 0.1
C10: =-'Painel de Controle'!Q22 -> -0.05 | D10: 0.1172196654 | E10: 0.1050710896 | F10: 0.09420399984 | I10: =C10 -> -0.05 | J10: 0.1831845755 | K10: 0.1488075558 | L10: 0.1231890842
C11: 0 | D11: 0.1031655711 | E11: 0.09179745716 | F11: 0.08152593252 | I11: =C11 -> 0 | J11: 0.149591536 | K11: 0.121117069 | L11: 0.09942893303
C12: ='Painel de Controle'!Q22 -> 0.05 | D12: 0.08922707559 | E12: 0.07852177147 | F12: 0.06873126493 | I12: =C12 -> 0.05 | J12: 0.1178372751 | K12: 0.09459012822 | L12: 0.07627225119
C14: Receita Agrícola | I14: Receita Agrícola
B15: C a p e x | C15: ='Painel de Controle'!Q6 -> 0.09179745716 | D15: =-'Painel de Controle'!Q20 -> -0.1 | E15: 0 | F15: ='Painel de Controle'!Q20 -> 0.1 | H15: C a p e x | I15: ='Painel de Controle'!Q12 -> 0.121117069 | J15: =D15 -> -0.1 | K15: =E15 -> 0 | L15: =F15 -> 0.1
C16: =-'Painel de Controle'!Q21 -> -0.1 | D16: 0.06592862034 | E16: 0.1031655711 | F16: 0.1378576271 | I16: =C16 -> -0.1 | J16: 0.07081181246 | K16: 0.149591536 | L16: 0.226684887
C17: 0 | D17: 0.05558384161 | E17: 0.09179745716 | F17: 0.1248494172 | I17: =C17 -> 0 | J17: 0.05262431813 | K17: 0.121117069 | L17: 0.1870074926
C18: ='Painel de Controle'!Q21 -> 0.1 | D18: 0.04588465085 | E18: 0.08152593252 | F18: 0.1133097059 | I18: =C18 -> 0.1 | J18: 0.03730791777 | K18: 0.09942893303 | L18: 0.1573744613
C21: Receita Agrícola | I21: Receita Agrícola
B22: O p e x | C22: ='Painel de Controle'!Q6 -> 0.09179745716 | D22: =D15 -> -0.1 | E22: =E15 -> 0 | F22: 0.1 | H22: O p e x | I22: ='Painel de Controle'!Q12 -> 0.121117069 | J22: =J15 -> -0.1 | K22: =K15 -> 0 | L22: 0.1
C23: =C10 -> -0.05 | D23: 0.07002428352 | E23: 0.1050710896 | F23: 0.1379564795 | I23: =I10 -> -0.05 | J23: 0.07937928075 | K23: 0.1488075558 | L23: 0.2152995431
C24: =C11 -> 0 | D24: 0.05558384161 | E24: 0.09179745716 | F24: 0.1248494172 | I24: =I11 -> 0 | J24: 0.05262431813 | K24: 0.121117069 | L24: 0.1870074926
C25: =C12 -> 0.05 | D25: 0.04020321205 | E25: 0.07852177147 | F25: 0.1118155933 | I25: =I12 -> 0.05 | J25: 0.02618430022 | K25: 0.09459012822 | L25: 0.1597324181

Sheet Premissas >>>>

Sheet Tributação
B2: TRIBUTAÇÃO
D4: 1 | E4: =D4+1 -> 2 | F4: =E4+1 -> 3 | G4: 4 | H4: 5 | I4: 6 | J4: 7 | K4: 8 | L4: 9 | M4: 10 | N4: 11 | O4: 12 | P4: 13 | Q4: 14 | R4: 15 | S4: 16 | T4: 17 | U4: 18 | V4: 19 | W4: 20 | X4: 21 | Y4: 22 | Z4: 23 | AA4: 24 | AB4: 25 | AC4: 26 | AD4: 27 | AE4: 28 | AF4: 29 | AG4: 30 | AH4: 31 | AI4: 32 | AJ4: 33 | AK4: 34 | AL4: 35
B5: PIS-COFINS
B6: Receita Tributada | D6: ='FC Projeto'!D14 -> 0 | E6: ='FC Projeto'!E14 -> 0 | F6: ='FC Projeto'!F14 -> 0 | G6: ='FC Projeto'!G14 -> 173441.3563 | H6: ='FC Projeto'!H14 -> 296758.4264 | I6: ='FC Projeto'!I14 -> 390399.7003 | J6: ='FC Projeto'!J14 -> 441298.9967 | K6: ='FC Projeto'!K14 -> 474847.0614 | L6: ='FC Projeto'!L14 -> 474847.0614 | M6: ='FC Projeto'!M14 -> 474847.0614 | N6: ='FC Projeto'!N14 -> 474847.0614 | O6: ='FC Projeto'!O14 -> 474847.0614 | P6: ='FC Projeto'!P14 -> 474847.0614 | Q6: ='FC Projeto'!Q14 -> 474847.0614 | R6: ='FC Projeto'!R14 -> 474847.0614 | S6: ='FC Projeto'!S14 -> 474847.0614 | T6: ='FC Projeto'!T14 -> 474847.0614 | U6: ='FC Projeto'!U14 -> 474847.0614 | V6: ='FC Projeto'!V14 -> 474847.0614 | W6: ='FC Projeto'!W14 -> 474847.0614 | X6: ='FC Projeto'!X14 -> 474847.0614 | Y6: ='FC Projeto'!Y14 -> 474847.0614 | Z6: ='FC Projeto'!Z14 -> 474847.0614 | AA6: ='FC Projeto'!AA14 -> 474847.0614 | AB6: ='FC Projeto'!AB14 -> 474847.0614 | AC6: ='FC Projeto'!AC14 -> 474847.0614 | AD6: ='FC Projeto'!AD14 -> 474847.0614 | AE6: ='FC Projeto'!AE14 -> 474847.0614 | AF6: ='FC Projeto'!AF14 -> 474847.0614 | AG6: ='FC Projeto'!AG14 -> 474847.0614 | AH6: ='FC Projeto'!AH14 -> 474847.0614 | AI6: ='FC Projeto'!AI14 -> 474847.0614 | AJ6: ='FC Projeto'!AJ14 -> 474847.0614 | AK6: ='FC Projeto'!AK14 -> 474847.0614 | AL6: ='FC Projeto'!AL14 -> 474847.0614
B7: PIS | D7: ='Painel de Controle'!$G$6*Tributação!D$6 -> 0 | E7: ='Painel de Controle'!$G$6*Tributação!E$6 -> 0 | F7: ='Painel de Controle'!$G$6*Tributação!F$6 -> 0 | G7: ='Painel de Controle'!$G$6*Tributação!G$6 -> 2861.782379 | H7: ='Painel de Controle'!$G$6*Tributação!H$6 -> 4896.514036 | I7: ='Painel de Controle'!$G$6*Tributação!I$6 -> 6441.595054 | J7: ='Painel de Controle'!$G$6*Tributação!J$6 -> 7281.433446 | K7: ='Painel de Controle'!$G$6*Tributação!K$6 -> 7834.976513 | L7: ='Painel de Controle'!$G$6*Tributação!L$6 -> 7834.976513 | M7: ='Painel de Controle'!$G$6*Tributação!M$6 -> 7834.976513 | N7: ='Painel de Controle'!$G$6*Tributação!N$6 -> 7834.976513 | O7: ='Painel de Controle'!$G$6*Tributação!O$6 -> 7834.976513 | P7: ='Painel de Controle'!$G$6*Tributação!P$6 -> 7834.976513 | Q7: ='Painel de Controle'!$G$6*Tributação!Q$6 -> 7834.976513 | R7: ='Painel de Controle'!$G$6*Tributação!R$6 -> 7834.976513 | S7: ='Painel de Controle'!$G$6*Tributação!S$6 -> 7834.976513 | T7: ='Painel de Controle'!$G$6*Tributação!T$6 -> 7834.976513 | U7: ='Painel de Controle'!$G$6*Tributação!U$6 -> 7834.976513 | V7: ='Painel de Controle'!$G$6*Tributação!V$6 -> 7834.976513 | W7: ='Painel de Controle'!$G$6*Tributação!W$6 -> 7834.976513 | X7: ='Painel de Controle'!$G$6*Tributação!X$6 -> 7834.976513 | Y7: ='Painel de Controle'!$G$6*Tributação!Y$6 -> 7834.976513 | Z7: ='Painel de Controle'!$G$6*Tributação!Z$6 -> 7834.976513 | AA7: ='Painel de Controle'!$G$6*Tributação!AA$6 -> 7834.976513 | AB7: ='Painel de Controle'!$G$6*Tributação!AB$6 -> 7834.976513 | AC7: ='Painel de Controle'!$G$6*Tributação!AC$6 -> 7834.976513 | AD7: ='Painel de Controle'!$G$6*Tributação!AD$6 -> 7834.976513 | AE7: ='Painel de Controle'!$G$6*Tributação!AE$6 -> 7834.976513 | AF7: ='Painel de Controle'!$G$6*Tributação!AF$6 -> 7834.976513 | AG7: ='Painel de Controle'!$G$6*Tributação!AG$6 -> 7834.976513 | AH7: ='Painel de Controle'!$G$6*Tributação!AH$6 -> 7834.976513 | AI7: ='Painel de Controle'!$G$6*Tributação!AI$6 -> 7834.976513 | AJ7: ='Painel de Controle'!$G$6*Tributação!AJ$6 -> 7834.976513 | AK7: ='Painel de Controle'!$G$6*Tributação!AK$6 -> 7834.976513 | AL7: ='Painel de Controle'!$G$6*Tributação!AL$6 -> 7834.976513
B8: COFINS | D8: ='Painel de Controle'!$G$7*Tributação!D$6 -> 0 | E8: ='Painel de Controle'!$G$7*Tributação!E$6 -> 0 | F8: ='Painel de Controle'!$G$7*Tributação!F$6 -> 0 | G8: ='Painel de Controle'!$G$7*Tributação!G$6 -> 13181.54308 | H8: ='Painel de Controle'!$G$7*Tributação!H$6 -> 22553.64041 | I8: ='Painel de Controle'!$G$7*Tributação!I$6 -> 29670.37722 | J8: ='Painel de Controle'!$G$7*Tributação!J$6 -> 33538.72375 | K8: ='Painel de Controle'!$G$7*Tributação!K$6 -> 36088.37667 | L8: ='Painel de Controle'!$G$7*Tributação!L$6 -> 36088.37667 | M8: ='Painel de Controle'!$G$7*Tributação!M$6 -> 36088.37667 | N8: ='Painel de Controle'!$G$7*Tributação!N$6 -> 36088.37667 | O8: ='Painel de Controle'!$G$7*Tributação!O$6 -> 36088.37667 | P8: ='Painel de Controle'!$G$7*Tributação!P$6 -> 36088.37667 | Q8: ='Painel de Controle'!$G$7*Tributação!Q$6 -> 36088.37667 | R8: ='Painel de Controle'!$G$7*Tributação!R$6 -> 36088.37667 | S8: ='Painel de Controle'!$G$7*Tributação!S$6 -> 36088.37667 | T8: ='Painel de Controle'!$G$7*Tributação!T$6 -> 36088.37667 | U8: ='Painel de Controle'!$G$7*Tributação!U$6 -> 36088.37667 | V8: ='Painel de Controle'!$G$7*Tributação!V$6 -> 36088.37667 | W8: ='Painel de Controle'!$G$7*Tributação!W$6 -> 36088.37667 | X8: ='Painel de Controle'!$G$7*Tributação!X$6 -> 36088.37667 | Y8: ='Painel de Controle'!$G$7*Tributação!Y$6 -> 36088.37667 | Z8: ='Painel de Controle'!$G$7*Tributação!Z$6 -> 36088.37667 | AA8: ='Painel de Controle'!$G$7*Tributação!AA$6 -> 36088.37667 | AB8: ='Painel de Controle'!$G$7*Tributação!AB$6 -> 36088.37667 | AC8: ='Painel de Controle'!$G$7*Tributação!AC$6 -> 36088.37667 | AD8: ='Painel de Controle'!$G$7*Tributação!AD$6 -> 36088.37667 | AE8: ='Painel de Controle'!$G$7*Tributação!AE$6 -> 36088.37667 | AF8: ='Painel de Controle'!$G$7*Tributação!AF$6 -> 36088.37667 | AG8: ='Painel de Controle'!$G$7*Tributação!AG$6 -> 36088.37667 | AH8: ='Painel de Controle'!$G$7*Tributação!AH$6 -> 36088.37667 | AI8: ='Painel de Controle'!$G$7*Tributação!AI$6 -> 36088.37667 | AJ8: ='Painel de Controle'!$G$7*Tributação!AJ$6 -> 36088.37667 | AK8: ='Painel de Controle'!$G$7*Tributação!AK$6 -> 36088.37667 | AL8: ='Painel de Controle'!$G$7*Tributação!AL$6 -> 36088.37667
B9: Alíquota Base | D9: =IFERROR(SUM(D7:D8)/D6,0) -> 0 | E9: =IFERROR(SUM(E7:E8)/E6,0) -> 0 | F9: 0 | G9: 0.0925 | H9: 0.0925 | I9: 0.0925 | J9: 0.0925 | K9: 0.0925 | L9: 0.0925 | M9: 0.0925 | N9: 0.0925 | O9: 0.0925 | P9: 0.0925 | Q9: 0.0925 | R9: 0.0925 | S9: 0.0925 | T9: 0.0925 | U9: 0.0925 | V9: 0.0925 | W9: 0.0925 | X9: 0.0925 | Y9: 0.0925 | Z9: 0.0925 | AA9: 0.0925 | AB9: 0.0925 | AC9: 0.0925 | AD9: 0.0925 | AE9: 0.0925 | AF9: 0.0925 | AG9: 0.0925 | AH9: 0.0925 | AI9: 0.0925 | AJ9: 0.0925 | AK9: 0.0925 | AL9: 0.0925
B11: Custos Operacionais Tributados | D11: =-SUM('FC Projeto'!D25:D28) -> 0 | E11: =-SUM('FC Projeto'!E25:E28) -> 0 | F11: =-SUM('FC Projeto'!F25:F28) -> 0 | G11: =-SUM('FC Projeto'!G25:G28) -> 102189.1157 | H11: =-SUM('FC Projeto'!H25:H28) -> 174845.7336 | I11: =-SUM('FC Projeto'!I25:I28) -> 230017.8054 | J11: =-SUM('FC Projeto'!J25:J28) -> 260006.928 | K11: =-SUM('FC Projeto'!K25:K28) -> 279772.9581 | L11: =-SUM('FC Projeto'!L25:L28) -> 279772.9581 | M11: =-SUM('FC Projeto'!M25:M28) -> 279772.9581 | N11: =-SUM('FC Projeto'!N25:N28) -> 279772.9581 | O11: =-SUM('FC Projeto'!O25:O28) -> 279772.9581 | P11: =-SUM('FC Projeto'!P25:P28) -> 279772.9581 | Q11: =-SUM('FC Projeto'!Q25:Q28) -> 279772.9581 | R11: =-SUM('FC Projeto'!R25:R28) -> 279772.9581 | S11: =-SUM('FC Projeto'!S25:S28) -> 279772.9581 | T11: =-SUM('FC Projeto'!T25:T28) -> 279772.9581 | U11: =-SUM('FC Projeto'!U25:U28) -> 279772.9581 | V11: =-SUM('FC Projeto'!V25:V28) -> 279772.9581 | W11: =-SUM('FC Projeto'!W25:W28) -> 279772.9581 | X11: =-SUM('FC Projeto'!X25:X28) -> 279772.9581 | Y11: =-SUM('FC Projeto'!Y25:Y28) -> 279772.9581 | Z11: =-SUM('FC Projeto'!Z25:Z28) -> 279772.9581 | AA11: =-SUM('FC Projeto'!AA25:AA28) -> 279772.9581 | AB11: =-SUM('FC Projeto'!AB25:AB28) -> 279772.9581 | AC11: =-SUM('FC Projeto'!AC25:AC28) -> 279772.9581 | AD11: =-SUM('FC Projeto'!AD25:AD28) -> 279772.9581 | AE11: =-SUM('FC Projeto'!AE25:AE28) -> 279772.9581 | AF11: =-SUM('FC Projeto'!AF25:AF28) -> 279772.9581 | AG11: =-SUM('FC Projeto'!AG25:AG28) -> 279772.9581 | AH11: =-SUM('FC Projeto'!AH25:AH28) -> 279772.9581 | AI11: =-SUM('FC Projeto'!AI25:AI28) -> 279772.9581 | AJ11: =-SUM('FC Projeto'!AJ25:AJ28) -> 279772.9581 | AK11: =-SUM('FC Projeto'!AK25:AK28) -> 279772.9581 | AL11: =-SUM('FC Projeto'!AL25:AL28) -> 279772.9581
B12: PIS | D12: ='Painel de Controle'!$G$6*Tributação!D$11 -> 0 | E12: ='Painel de Controle'!$G$6*Tributação!E$11 -> 0 | F12: ='Painel de Controle'!$G$6*Tributação!F$11 -> 0 | G12: ='Painel de Controle'!$G$6*Tributação!G$11 -> 1686.12041 | H12: ='Painel de Controle'!$G$6*Tributação!H$11 -> 2884.954604 | I12: ='Painel de Controle'!$G$6*Tributação!I$11 -> 3795.293789 | J12: ='Painel de Controle'!$G$6*Tributação!J$11 -> 4290.114312 | K12: ='Painel de Controle'!$G$6*Tributação!K$11 -> 4616.253808 | L12: ='Painel de Controle'!$G$6*Tributação!L$11 -> 4616.253808 | M12: ='Painel de Controle'!$G$6*Tributação!M$11 -> 4616.253808 | N12: ='Painel de Controle'!$G$6*Tributação!N$11 -> 4616.253808 | O12: ='Painel de Controle'!$G$6*Tributação!O$11 -> 4616.253808 | P12: ='Painel de Controle'!$G$6*Tributação!P$11 -> 4616.253808 | Q12: ='Painel de Controle'!$G$6*Tributação!Q$11 -> 4616.253808 | R12: ='Painel de Controle'!$G$6*Tributação!R$11 -> 4616.253808 | S12: ='Painel de Controle'!$G$6*Tributação!S$11 -> 4616.253808 | T12: ='Painel de Controle'!$G$6*Tributação!T$11 -> 4616.253808 | U12: ='Painel de Controle'!$G$6*Tributação!U$11 -> 4616.253808 | V12: ='Painel de Controle'!$G$6*Tributação!V$11 -> 4616.253808 | W12: ='Painel de Controle'!$G$6*Tributação!W$11 -> 4616.253808 | X12: ='Painel de Controle'!$G$6*Tributação!X$11 -> 4616.253808 | Y12: ='Painel de Controle'!$G$6*Tributação!Y$11 -> 4616.253808 | Z12: ='Painel de Controle'!$G$6*Tributação!Z$11 -> 4616.253808 | AA12: ='Painel de Controle'!$G$6*Tributação!AA$11 -> 4616.253808 | AB12: ='Painel de Controle'!$G$6*Tributação!AB$11 -> 4616.253808 | AC12: ='Painel de Controle'!$G$6*Tributação!AC$11 -> 4616.253808 | AD12: ='Painel de Controle'!$G$6*Tributação!AD$11 -> 4616.253808 | AE12: ='Painel de Controle'!$G$6*Tributação!AE$11 -> 4616.253808 | AF12: ='Painel de Controle'!$G$6*Tributação!AF$11 -> 4616.253808 | AG12: ='Painel de Controle'!$G$6*Tributação!AG$11 -> 4616.253808 | AH12: ='Painel de Controle'!$G$6*Tributação!AH$11 -> 4616.253808 | AI12: ='Painel de Controle'!$G$6*Tributação!AI$11 -> 4616.253808 | AJ12: ='Painel de Controle'!$G$6*Tributação!AJ$11 -> 4616.253808 | AK12: ='Painel de Controle'!$G$6*Tributação!AK$11 -> 4616.253808 | AL12: ='Painel de Controle'!$G$6*Tributação!AL$11 -> 4616.253808
B13: COFINS | D13: ='Painel de Controle'!$G$7*Tributação!D$11 -> 0 | E13: ='Painel de Controle'!$G$7*Tributação!E$11 -> 0 | F13: ='Painel de Controle'!$G$7*Tributação!F$11 -> 0 | G13: ='Painel de Controle'!$G$7*Tributação!G$11 -> 7766.372795 | H13: ='Painel de Controle'!$G$7*Tributação!H$11 -> 13288.27575 | I13: ='Painel de Controle'!$G$7*Tributação!I$11 -> 17481.35321 | J13: ='Painel de Controle'!$G$7*Tributação!J$11 -> 19760.52653 | K13: ='Painel de Controle'!$G$7*Tributação!K$11 -> 21262.74481 | L13: ='Painel de Controle'!$G$7*Tributação!L$11 -> 21262.74481 | M13: ='Painel de Controle'!$G$7*Tributação!M$11 -> 21262.74481 | N13: ='Painel de Controle'!$G$7*Tributação!N$11 -> 21262.74481 | O13: ='Painel de Controle'!$G$7*Tributação!O$11 -> 21262.74481 | P13: ='Painel de Controle'!$G$7*Tributação!P$11 -> 21262.74481 | Q13: ='Painel de Controle'!$G$7*Tributação!Q$11 -> 21262.74481 | R13: ='Painel de Controle'!$G$7*Tributação!R$11 -> 21262.74481 | S13: ='Painel de Controle'!$G$7*Tributação!S$11 -> 21262.74481 | T13: ='Painel de Controle'!$G$7*Tributação!T$11 -> 21262.74481 | U13: ='Painel de Controle'!$G$7*Tributação!U$11 -> 21262.74481 | V13: ='Painel de Controle'!$G$7*Tributação!V$11 -> 21262.74481 | W13: ='Painel de Controle'!$G$7*Tributação!W$11 -> 21262.74481 | X13: ='Painel de Controle'!$G$7*Tributação!X$11 -> 21262.74481 | Y13: ='Painel de Controle'!$G$7*Tributação!Y$11 -> 21262.74481 | Z13: ='Painel de Controle'!$G$7*Tributação!Z$11 -> 21262.74481 | AA13: ='Painel de Controle'!$G$7*Tributação!AA$11 -> 21262.74481 | AB13: ='Painel de Controle'!$G$7*Tributação!AB$11 -> 21262.74481 | AC13: ='Painel de Controle'!$G$7*Tributação!AC$11 -> 21262.74481 | AD13: ='Painel de Controle'!$G$7*Tributação!AD$11 -> 21262.74481 | AE13: ='Painel de Controle'!$G$7*Tributação!AE$11 -> 21262.74481 | AF13: ='Painel de Controle'!$G$7*Tributação!AF$11 -> 21262.74481 | AG13: ='Painel de Controle'!$G$7*Tributação!AG$11 -> 21262.74481 | AH13: ='Painel de Controle'!$G$7*Tributação!AH$11 -> 21262.74481 | AI13: ='Painel de Controle'!$G$7*Tributação!AI$11 -> 21262.74481 | AJ13: ='Painel de Controle'!$G$7*Tributação!AJ$11 -> 21262.74481 | AK13: ='Painel de Controle'!$G$7*Tributação!AK$11 -> 21262.74481 | AL13: ='Painel de Controle'!$G$7*Tributação!AL$11 -> 21262.74481
B15: Tributação Cumulativa
B16: PIS | D16: =D7-D12 -> 0 | E16: =E7-E12 -> 0 | F16: 0 | G16: =G7-G12 -> 1175.66197 | H16: =H7-H12 -> 2011.559432 | I16: 2646.301265 | J16: 2991.319134 | K16: 3218.722705 | L16: 3218.722705 | M16: 3218.722705 | N16: 3218.722705 | O16: 3218.722705 | P16: 3218.722705 | Q16: 3218.722705 | R16: 3218.722705 | S16: 3218.722705 | T16: 3218.722705 | U16: 3218.722705 | V16: 3218.722705 | W16: 3218.722705 | X16: 3218.722705 | Y16: 3218.722705 | Z16: 3218.722705 | AA16: 3218.722705 | AB16: 3218.722705 | AC16: 3218.722705 | AD16: 3218.722705 | AE16: 3218.722705 | AF16: 3218.722705 | AG16: 3218.722705 | AH16: 3218.722705 | AI16: 3218.722705 | AJ16: 3218.722705 | AK16: 3218.722705 | AL16: 3218.722705
B17: COFINS | D17: =D8-D13 -> 0 | E17: =E8-E13 -> 0 | F17: 0 | G17: 5415.170285 | H17: 9265.364655 | I17: 12189.02401 | J17: 13778.19722 | K17: 14825.63185 | L17: 14825.63185 | M17: 14825.63185 | N17: 14825.63185 | O17: 14825.63185 | P17: 14825.63185 | Q17: 14825.63185 | R17: 14825.63185 | S17: 14825.63185 | T17: 14825.63185 | U17: 14825.63185 | V17: 14825.63185 | W17: 14825.63185 | X17: 14825.63185 | Y17: 14825.63185 | Z17: 14825.63185 | AA17: 14825.63185 | AB17: 14825.63185 | AC17: 14825.63185 | AD17: 14825.63185 | AE17: 14825.63185 | AF17: 14825.63185 | AG17: 14825.63185 | AH17: 14825.63185 | AI17: 14825.63185 | AJ17: 14825.63185 | AK17: 14825.63185 | AL17: 14825.63185
B18: Alíquota Efetiva | D18: =IFERROR(SUM(D16:D17)/D6,0) -> 0 | E18: =IFERROR(SUM(E16:E17)/E6,0) -> 0 | F18: 0 | G18: =IFERROR(SUM(G16:G17)/G6,0) -> 0.03800035006 | H18: 0.03800035006 | I18: 0.03800035006 | J18: 0.03800035006 | K18: 0.03800035006 | L18: 0.03800035006 | M18: 0.03800035006 | N18: 0.03800035006 | O18: 0.03800035006 | P18: 0.03800035006 | Q18: 0.03800035006 | R18: 0.03800035006 | S18: 0.03800035006 | T18: 0.03800035006 | U18: 0.03800035006 | V18: 0.03800035006 | W18: 0.03800035006 | X18: 0.03800035006 | Y18: 0.03800035006 | Z18: 0.03800035006 | AA18: 0.03800035006 | AB18: 0.03800035006 | AC18: 0.03800035006 | AD18: 0.03800035006 | AE18: 0.03800035006 | AF18: 0.03800035006 | AG18: 0.03800035006 | AH18: 0.03800035006 | AI18: 0.03800035006 | AJ18: 0.03800035006 | AK18: 0.03800035006 | AL18: 0.03800035006
B19: IRPJ/CSLL não alavancado
B20: EBIT | D20: ='FC Projeto'!D43 -> -42655.94026 | E20: ='FC Projeto'!E43 -> -6745.751553 | F20: ='FC Projeto'!F43 -> -17558.1295 | G20: ='FC Projeto'!G43 -> 30828.96097 | H20: ='FC Projeto'!H43 -> -17924.92339 | I20: ='FC Projeto'!I43 -> 88675.55439 | J20: ='FC Projeto'!J43 -> 103730.6523 | K20: ='FC Projeto'!K43 -> 111003.9915 | L20: ='FC Projeto'!L43 -> -60613.03116 | M20: ='FC Projeto'!M43 -> 122738.0305 | N20: ='FC Projeto'!N43 -> 125099.6867 | O20: ='FC Projeto'!O43 -> 123168.0762 | P20: ='FC Projeto'!P43 -> 121729.5121 | Q20: ='FC Projeto'!Q43 -> 119148.8336 | R20: ='FC Projeto'!R43 -> 115724.6191 | S20: ='FC Projeto'!S43 -> 112324.1389 | T20: ='FC Projeto'!T43 -> 108661.4752 | U20: ='FC Projeto'!U43 -> 108947.3931 | V20: ='FC Projeto'!V43 -> 112673.5437 | W20: ='FC Projeto'!W43 -> 111224.2648 | X20: ='FC Projeto'!X43 -> 108927.5153 | Y20: ='FC Projeto'!Y43 -> 107744.2106 | Z20: ='FC Projeto'!Z43 -> 112506.0857 | AA20: ='FC Projeto'!AA43 -> 114672.1768 | AB20: ='FC Projeto'!AB43 -> 115156.4958 | AC20: ='FC Projeto'!AC43 -> 116137.7962 | AD20: ='FC Projeto'!AD43 -> 116305.7618 | AE20: ='FC Projeto'!AE43 -> 117014.1385 | AF20: ='FC Projeto'!AF43 -> 117203.8189 | AG20: ='FC Projeto'!AG43 -> 114930.4926 | AH20: ='FC Projeto'!AH43 -> 112478.099 | AI20: ='FC Projeto'!AI43 -> 110621.2518 | AJ20: ='FC Projeto'!AJ43 -> 113149.2597 | AK20: ='FC Projeto'!AK43 -> 114672.5064 | AL20: ='FC Projeto'!AL43 -> 115238.04
B21: Prejuízo Acumulado | D21: =IF(D20<0,-D20) -> 42655.94026 | E21: =D21+IF(E20<0,-E20)-D22 -> 49401.69181 | F21: =E21+IF(F20<0,-F20)-E22 -> 66959.82132 | G21: 66959.82132 | H21: 75636.05642 | I21: 75636.05642 | J21: 49033.39011 | K21: 17914.19442 | L21: 60613.03116 | M21: 60613.03116 | N21: 23791.622 | O21: 0 | P21: 0 | Q21: 0 | R21: 0 | S21: 0 | T21: 0 | U21: 0 | V21: 0 | W21: 0 | X21: 0 | Y21: 0 | Z21: 0 | AA21: 0 | AB21: 0 | AC21: 0 | AD21: 0 | AE21: 0 | AF21: 0 | AG21: 0 | AH21: 0 | AI21: 0 | AJ21: 0 | AK21: 0 | AL21: 0
B22: Dedução da Base de Cálculo | D22: =IF(D20<0,0,IF(D21<=0,0,IF(D21<=0.3*D20,D21,0.3*D20))) -> 0 | E22: =IF(E20<0,0,IF(E21<=0,0,IF(E21<=0.3*E20,E21,0.3*E20))) -> 0 | F22: =IF(F20<0,0,IF(F21<=0,0,IF(F21<=0.3*F20,F21,0.3*F20))) -> 0 | G22: =IF(G20<0,0,IF(G21<=0,0,IF(G21<=0.3*G20,G21,0.3*G20))) -> 9248.68829 | H22: 0 | I22: 26602.66632 | J22: 31119.19569 | K22: 17914.19442 | L22: 0 | M22: 36821.40916 | N22: 23791.622 | O22: 0 | P22: 0 | Q22: 0 | R22: 0 | S22: 0 | T22: 0 | U22: 0 | V22: 0 | W22: 0 | X22: 0 | Y22: 0 | Z22: 0 | AA22: 0 | AB22: 0 | AC22: 0 | AD22: 0 | AE22: 0 | AF22: 0 | AG22: 0 | AH22: 0 | AI22: 0 | AJ22: 0 | AK22: 0 | AL22: 0
B23: Base de Cálculo | D23: =IF(D20<0,0,D20-D22) -> 0 | E23: =IF(E20<0,0,E20-E22) -> 0 | F23: 0 | G23: =IF(G20<0,0,G20-G22) -> 21580.27268 | H23: 0 | I23: 62072.88807 | J23: 72611.45661 | K23: 93089.79704 | L23: 0 | M23: 85916.62138 | N23: 101308.0647 | O23: 123168.0762 | P23: 121729.5121 | Q23: 119148.8336 | R23: 115724.6191 | S23: 112324.1389 | T23: 108661.4752 | U23: 108947.3931 | V23: 112673.5437 | W23: 111224.2648 | X23: 108927.5153 | Y23: 107744.2106 | Z23: 112506.0857 | AA23: 114672.1768 | AB23: 115156.4958 | AC23: 116137.7962 | AD23: 116305.7618 | AE23: 117014.1385 | AF23: 117203.8189 | AG23: 114930.4926 | AH23: 112478.099 | AI23: 110621.2518 | AJ23: 113149.2597 | AK23: 114672.5064 | AL23: 115238.04
B24: IRPJ | D24: =IF(D23<=0,0,'Painel de Controle'!$G$9*D23+'Painel de Controle'!$G$10*(D23-'Painel de Controle'!$G$11)) -> 0 | E24: =IF(E23<=0,0,'Painel de Controle'!$G$9*E23+'Painel de Controle'!$G$10*(E23-'Painel de Controle'!$G$11)) -> 0 | F24: =IF(F23<=0,0,'Painel de Controle'!$G$9*F23+'Painel de Controle'!$G$10*(F23-'Painel de Controle'!$G$11)) -> 0 | G24: =IF(G23<=0,0,'Painel de Controle'!$G$9*G23+'Painel de Controle'!$G$10*(G23-'Painel de Controle'!$G$11)) -> 5371.068169 | H24: =IF(H23<=0,0,'Painel de Controle'!$G$9*H23+'Painel de Controle'!$G$10*(H23-'Painel de Controle'!$G$11)) -> 0 | I24: =IF(I23<=0,0,'Painel de Controle'!$G$9*I23+'Painel de Controle'!$G$10*(I23-'Painel de Controle'!$G$11)) -> 15494.22202 | J24: =IF(J23<=0,0,'Painel de Controle'!$G$9*J23+'Painel de Controle'!$G$10*(J23-'Painel de Controle'!$G$11)) -> 18128.86415 | K24: =IF(K23<=0,0,'Painel de Controle'!$G$9*K23+'Painel de Controle'!$G$10*(K23-'Painel de Controle'!$G$11)) -> 23248.44926 | L24: =IF(L23<=0,0,'Painel de Controle'!$G$9*L23+'Painel de Controle'!$G$10*(L23-'Painel de Controle'!$G$11)) -> 0 | M24: =IF(M23<=0,0,'Painel de Controle'!$G$9*M23+'Painel de Controle'!$G$10*(M23-'Painel de Controle'!$G$11)) -> 21455.15534 | N24: =IF(N23<=0,0,'Painel de Controle'!$G$9*N23+'Painel de Controle'!$G$10*(N23-'Painel de Controle'!$G$11)) -> 25303.01618 | O24: =IF(O23<=0,0,'Painel de Controle'!$G$9*O23+'Painel de Controle'!$G$10*(O23-'Painel de Controle'!$G$11)) -> 30768.01906 | P24: =IF(P23<=0,0,'Painel de Controle'!$G$9*P23+'Painel de Controle'!$G$10*(P23-'Painel de Controle'!$G$11)) -> 30408.37803 | Q24: =IF(Q23<=0,0,'Painel de Controle'!$G$9*Q23+'Painel de Controle'!$G$10*(Q23-'Painel de Controle'!$G$11)) -> 29763.2084 | R24: =IF(R23<=0,0,'Painel de Controle'!$G$9*R23+'Painel de Controle'!$G$10*(R23-'Painel de Controle'!$G$11)) -> 28907.15477 | S24: =IF(S23<=0,0,'Painel de Controle'!$G$9*S23+'Painel de Controle'!$G$10*(S23-'Painel de Controle'!$G$11)) -> 28057.03473 | T24: =IF(T23<=0,0,'Painel de Controle'!$G$9*T23+'Painel de Controle'!$G$10*(T23-'Painel de Controle'!$G$11)) -> 27141.36881 | U24: =IF(U23<=0,0,'Painel de Controle'!$G$9*U23+'Painel de Controle'!$G$10*(U23-'Painel de Controle'!$G$11)) -> 27212.84828 | V24: =IF(V23<=0,0,'Painel de Controle'!$G$9*V23+'Painel de Controle'!$G$10*(V23-'Painel de Controle'!$G$11)) -> 28144.38593 | W24: =IF(W23<=0,0,'Painel de Controle'!$G$9*W23+'Painel de Controle'!$G$10*(W23-'Painel de Controle'!$G$11)) -> 27782.0662 | X24: =IF(X23<=0,0,'Painel de Controle'!$G$9*X23+'Painel de Controle'!$G$10*(X23-'Painel de Controle'!$G$11)) -> 27207.87883 | Y24: =IF(Y23<=0,0,'Painel de Controle'!$G$9*Y23+'Painel de Controle'!$G$10*(Y23-'Painel de Controle'!$G$11)) -> 26912.05264 | Z24: =IF(Z23<=0,0,'Painel de Controle'!$G$9*Z23+'Painel de Controle'!$G$10*(Z23-'Painel de Controle'!$G$11)) -> 28102.52142 | AA24: =IF(AA23<=0,0,'Painel de Controle'!$G$9*AA23+'Painel de Controle'!$G$10*(AA23-'Painel de Controle'!$G$11)) -> 28644.0442 | AB24: =IF(AB23<=0,0,'Painel de Controle'!$G$9*AB23+'Painel de Controle'!$G$10*(AB23-'Painel de Controle'!$G$11)) -> 28765.12396 | AC24: =IF(AC23<=0,0,'Painel de Controle'!$G$9*AC23+'Painel de Controle'!$G$10*(AC23-'Painel de Controle'!$G$11)) -> 29010.44905 | AD24: =IF(AD23<=0,0,'Painel de Controle'!$G$9*AD23+'Painel de Controle'!$G$10*(AD23-'Painel de Controle'!$G$11)) -> 29052.44045 | AE24: =IF(AE23<=0,0,'Painel de Controle'!$G$9*AE23+'Painel de Controle'!$G$10*(AE23-'Painel de Controle'!$G$11)) -> 29229.53462 | AF24: =IF(AF23<=0,0,'Painel de Controle'!$G$9*AF23+'Painel de Controle'!$G$10*(AF23-'Painel de Controle'!$G$11)) -> 29276.95473 | AG24: =IF(AG23<=0,0,'Painel de Controle'!$G$9*AG23+'Painel de Controle'!$G$10*(AG23-'Painel de Controle'!$G$11)) -> 28708.62316 | AH24: =IF(AH23<=0,0,'Painel de Controle'!$G$9*AH23+'Painel de Controle'!$G$10*(AH23-'Painel de Controle'!$G$11)) -> 28095.52475 | AI24: =IF(AI23<=0,0,'Painel de Controle'!$G$9*AI23+'Painel de Controle'!$G$10*(AI23-'Painel de Controle'!$G$11)) -> 27631.31295 | AJ24: =IF(AJ23<=0,0,'Painel de Controle'!$G$9*AJ23+'Painel de Controle'!$G$10*(AJ23-'Painel de Controle'!$G$11)) -> 28263.31491 | AK24: =IF(AK23<=0,0,'Painel de Controle'!$G$9*AK23+'Painel de Controle'!$G$10*(AK23-'Painel de Controle'!$G$11)) -> 28644.1266 | AL24: =IF(AL23<=0,0,'Painel de Controle'!$G$9*AL23+'Painel de Controle'!$G$10*(AL23-'Painel de Controle'!$G$11)) -> 28785.51
B25: CSLL | D25: ='Painel de Controle'!$G$12*Tributação!D23 -> 0 | E25: ='Painel de Controle'!$G$12*Tributação!E23 -> 0 | F25: ='Painel de Controle'!$G$12*Tributação!F23 -> 0 | G25: ='Painel de Controle'!$G$12*Tributação!G23 -> 1942.224541 | H25: ='Painel de Controle'!$G$12*Tributação!H23 -> 0 | I25: ='Painel de Controle'!$G$12*Tributação!I23 -> 5586.559927 | J25: ='Painel de Controle'!$G$12*Tributação!J23 -> 6535.031095 | K25: ='Painel de Controle'!$G$12*Tributação!K23 -> 8378.081734 | L25: ='Painel de Controle'!$G$12*Tributação!L23 -> 0 | M25: ='Painel de Controle'!$G$12*Tributação!M23 -> 7732.495924 | N25: ='Painel de Controle'!$G$12*Tributação!N23 -> 9117.725827 | O25: ='Painel de Controle'!$G$12*Tributação!O23 -> 11085.12686 | P25: ='Painel de Controle'!$G$12*Tributação!P23 -> 10955.65609 | Q25: ='Painel de Controle'!$G$12*Tributação!Q23 -> 10723.39502 | R25: ='Painel de Controle'!$G$12*Tributação!R23 -> 10415.21572 | S25: ='Painel de Controle'!$G$12*Tributação!S23 -> 10109.1725 | T25: ='Painel de Controle'!$G$12*Tributação!T23 -> 9779.532772 | U25: ='Painel de Controle'!$G$12*Tributação!U23 -> 9805.26538 | V25: ='Painel de Controle'!$G$12*Tributação!V23 -> 10140.61894 | W25: ='Painel de Controle'!$G$12*Tributação!W23 -> 10010.18383 | X25: ='Painel de Controle'!$G$12*Tributação!X23 -> 9803.476378 | Y25: ='Painel de Controle'!$G$12*Tributação!Y23 -> 9696.97895 | Z25: ='Painel de Controle'!$G$12*Tributação!Z23 -> 10125.54771 | AA25: ='Painel de Controle'!$G$12*Tributação!AA23 -> 10320.49591 | AB25: ='Painel de Controle'!$G$12*Tributação!AB23 -> 10364.08463 | AC25: ='Painel de Controle'!$G$12*Tributação!AC23 -> 10452.40166 | AD25: ='Painel de Controle'!$G$12*Tributação!AD23 -> 10467.51856 | AE25: ='Painel de Controle'!$G$12*Tributação!AE23 -> 10531.27246 | AF25: ='Painel de Controle'!$G$12*Tributação!AF23 -> 10548.3437 | AG25: ='Painel de Controle'!$G$12*Tributação!AG23 -> 10343.74434 | AH25: ='Painel de Controle'!$G$12*Tributação!AH23 -> 10123.02891 | AI25: ='Painel de Controle'!$G$12*Tributação!AI23 -> 9955.912662 | AJ25: ='Painel de Controle'!$G$12*Tributação!AJ23 -> 10183.43337 | AK25: ='Painel de Controle'!$G$12*Tributação!AK23 -> 10320.52558 | AL25: ='Painel de Controle'!$G$12*Tributação!AL23 -> 10371.4236
B26: IRPJ Sudene | D26: =IF('Painel de Controle'!$G$13="S",IF(Tributação!D4<=10,(1-'Painel de Controle'!$G$14),1),1)*Tributação!D24 -> 0 | E26: =IF('Painel de Controle'!$G$13="S",IF(Tributação!E4<=10,(1-'Painel de Controle'!$G$14),1),1)*Tributação!E24 -> 0 | F26: =IF('Painel de Controle'!$G$13="S",IF(Tributação!F4<=10,(1-'Painel de Controle'!$G$14),1),1)*Tributação!F24 -> 0 | G26: =IF('Painel de Controle'!$G$13="S",IF(Tributação!G4<=10,(1-'Painel de Controle'!$G$14),1),1)*Tributação!G24 -> 1342.767042 | H26: =IF('Painel de Controle'!$G$13="S",IF(Tributação!H4<=10,(1-'Painel de Controle'!$G$14),1),1)*Tributação!H24 -> 0 | I26: =IF('Painel de Controle'!$G$13="S",IF(Tributação!I4<=10,(1-'Painel de Controle'!$G$14),1),1)*Tributação!I24 -> 3873.555505 | J26: =IF('Painel de Controle'!$G$13="S",IF(Tributação!J4<=10,(1-'Painel de Controle'!$G$14),1),1)*Tributação!J24 -> 4532.216038 | K26: =IF('Painel de Controle'!$G$13="S",IF(Tributação!K4<=10,(1-'Painel de Controle'!$G$14),1),1)*Tributação!K24 -> 5812.112315 | L26: =IF('Painel de Controle'!$G$13="S",IF(Tributação!L4<=10,(1-'Painel de Controle'!$G$14),1),1)*Tributação!L24 -> 0 | M26: =IF('Painel de Controle'!$G$13="S",IF(Tributação!M4<=10,(1-'Painel de Controle'!$G$14),1),1)*Tributação!M24 -> 5363.788836 | N26: =IF('Painel de Controle'!$G$13="S",IF(Tributação!N4<=10,(1-'Painel de Controle'!$G$14),1),1)*Tributação!N24 -> 25303.01618 | O26: =IF('Painel de Controle'!$G$13="S",IF(Tributação!O4<=10,(1-'Painel de Controle'!$G$14),1),1)*Tributação!O24 -> 30768.01906 | P26: =IF('Painel de Controle'!$G$13="S",IF(Tributação!P4<=10,(1-'Painel de Controle'!$G$14),1),1)*Tributação!P24 -> 30408.37803 | Q26: =IF('Painel de Controle'!$G$13="S",IF(Tributação!Q4<=10,(1-'Painel de Controle'!$G$14),1),1)*Tributação!Q24 -> 29763.2084 | R26: =IF('Painel de Controle'!$G$13="S",IF(Tributação!R4<=10,(1-'Painel de Controle'!$G$14),1),1)*Tributação!R24 -> 28907.15477 | S26: =IF('Painel de Controle'!$G$13="S",IF(Tributação!S4<=10,(1-'Painel de Controle'!$G$14),1),1)*Tributação!S24 -> 28057.03473 | T26: =IF('Painel de Controle'!$G$13="S",IF(Tributação!T4<=10,(1-'Painel de Controle'!$G$14),1),1)*Tributação!T24 -> 27141.36881 | U26: =IF('Painel de Controle'!$G$13="S",IF(Tributação!U4<=10,(1-'Painel de Controle'!$G$14),1),1)*Tributação!U24 -> 27212.84828 | V26: =IF('Painel de Controle'!$G$13="S",IF(Tributação!V4<=10,(1-'Painel de Controle'!$G$14),1),1)*Tributação!V24 -> 28144.38593 | W26: =IF('Painel de Controle'!$G$13="S",IF(Tributação!W4<=10,(1-'Painel de Controle'!$G$14),1),1)*Tributação!W24 -> 27782.0662 | X26: =IF('Painel de Controle'!$G$13="S",IF(Tributação!X4<=10,(1-'Painel de Controle'!$G$14),1),1)*Tributação!X24 -> 27207.87883 | Y26: =IF('Painel de Controle'!$G$13="S",IF(Tributação!Y4<=10,(1-'Painel de Controle'!$G$14),1),1)*Tributação!Y24 -> 26912.05264 | Z26: =IF('Painel de Controle'!$G$13="S",IF(Tributação!Z4<=10,(1-'Painel de Controle'!$G$14),1),1)*Tributação!Z24 -> 28102.52142 | AA26: =IF('Painel de Controle'!$G$13="S",IF(Tributação!AA4<=10,(1-'Painel de Controle'!$G$14),1),1)*Tributação!AA24 -> 28644.0442 | AB26: =IF('Painel de Controle'!$G$13="S",IF(Tributação!AB4<=10,(1-'Painel de Controle'!$G$14),1),1)*Tributação!AB24 -> 28765.12396 | AC26: =IF('Painel de Controle'!$G$13="S",IF(Tributação!AC4<=10,(1-'Painel de Controle'!$G$14),1),1)*Tributação!AC24 -> 29010.44905 | AD26: =IF('Painel de Controle'!$G$13="S",IF(Tributação!AD4<=10,(1-'Painel de Controle'!$G$14),1),1)*Tributação!AD24 -> 29052.44045 | AE26: =IF('Painel de Controle'!$G$13="S",IF(Tributação!AE4<=10,(1-'Painel de Controle'!$G$14),1),1)*Tributação!AE24 -> 29229.53462 | AF26: =IF('Painel de Controle'!$G$13="S",IF(Tributação!AF4<=10,(1-'Painel de Controle'!$G$14),1),1)*Tributação!AF24 -> 29276.95473 | AG26: =IF('Painel de Controle'!$G$13="S",IF(Tributação!AG4<=10,(1-'Painel de Controle'!$G$14),1),1)*Tributação!AG24 -> 28708.62316 | AH26: =IF('Painel de Controle'!$G$13="S",IF(Tributação!AH4<=10,(1-'Painel de Controle'!$G$14),1),1)*Tributação!AH24 -> 28095.52475 | AI26: =IF('Painel de Controle'!$G$13="S",IF(Tributação!AI4<=10,(1-'Painel de Controle'!$G$14),1),1)*Tributação!AI24 -> 27631.31295 | AJ26: =IF('Painel de Controle'!$G$13="S",IF(Tributação!AJ4<=10,(1-'Painel de Controle'!$G$14),1),1)*Tributação!AJ24 -> 28263.31491 | AK26: =IF('Painel de Controle'!$G$13="S",IF(Tributação!AK4<=10,(1-'Painel de Controle'!$G$14),1),1)*Tributação!AK24 -> 28644.1266 | AL26: =IF('Painel de Controle'!$G$13="S",IF(Tributação!AL4<=10,(1-'Painel de Controle'!$G$14),1),1)*Tributação!AL24 -> 28785.51
B27: IRPJ/CSLL alavancado
B28: EBT | D28: ='FC Acionista'!D48 -> -44886.84995 | E28: ='FC Acionista'!E48 -> -12100.62634 | F28: ='FC Acionista'!F48 -> -32080.4034 | G28: ='FC Acionista'!G48 -> 8208.654014 | H28: ='FC Acionista'!H48 -> -49308.815 | I28: ='FC Acionista'!I48 -> 53632.95216 | J28: ='FC Acionista'!J48 -> 67784.23418 | K28: ='FC Acionista'!K48 -> 75543.14131 | L28: ='FC Acionista'!L48 -> -102828.296 | M28: ='FC Acionista'!M48 -> 82610.34362 | N28: ='FC Acionista'!N48 -> 87162.99347 | O28: ='FC Acionista'!O48 -> 87472.08476 | P28: ='FC Acionista'!P48 -> 88780.5898 | Q28: ='FC Acionista'!Q48 -> 88946.98045 | R28: ='FC Acionista'!R48 -> 86189.2563 | S28: ='FC Acionista'!S48 -> 83455.26648 | T28: ='FC Acionista'!T48 -> 79881.15455 | U28: ='FC Acionista'!U48 -> 82914.14159 | V28: ='FC Acionista'!V48 -> 89560.74295 | W28: ='FC Acionista'!W48 -> 87896.86859 | X28: ='FC Acionista'!X48 -> 85607.06675 | Y28: ='FC Acionista'!Y48 -> 83721.54113 | Z28: ='FC Acionista'!Z48 -> 91483.79904 | AA28: ='FC Acionista'!AA48 -> 96583.6467 | AB28: ='FC Acionista'!AB48 -> 99997.99996 | AC28: ='FC Acionista'!AC48 -> 103941.3053 | AD28: ='FC Acionista'!AD48 -> 106837.5287 | AE28: ='FC Acionista'!AE48 -> 110170.7474 | AF28: ='FC Acionista'!AF48 -> 112935.5617 | AG28: ='FC Acionista'!AG48 -> 112731.0019 | AH28: ='FC Acionista'!AH48 -> 111701.3607 | AI28: ='FC Acionista'!AI48 -> 110621.2518 | AJ28: ='FC Acionista'!AJ48 -> 113149.2597 | AK28: ='FC Acionista'!AK48 -> 114672.5064 | AL28: ='FC Acionista'!AL48 -> 115238.04
B29: Prejuízo Acumulado | D29: =IF(D28<0,-D28) -> 44886.84995 | E29: =D29+IF(E28<0,-E28)-D30 -> 56987.47629 | F29: =E29+IF(F28<0,-F28)-E30 -> 89067.87969 | G29: =F29+IF(G28<0,-G28)-F30 -> 89067.87969 | H29: =G29+IF(H28<0,-H28)-G30 -> 135914.0985 | I29: =H29+IF(I28<0,-I28)-H30 -> 135914.0985 | J29: =I29+IF(J28<0,-J28)-I30 -> 119824.2128 | K29: =J29+IF(K28<0,-K28)-J30 -> 99488.94258 | L29: =K29+IF(L28<0,-L28)-K30 -> 179654.2962 | M29: =L29+IF(M28<0,-M28)-L30 -> 179654.2962 | N29: =M29+IF(N28<0,-N28)-M30 -> 154871.1931 | O29: =N29+IF(O28<0,-O28)-N30 -> 128722.2951 | P29: =O29+IF(P28<0,-P28)-O30 -> 102480.6696 | Q29: =P29+IF(Q28<0,-Q28)-P30 -> 75846.4927 | R29: =Q29+IF(R28<0,-R28)-Q30 -> 49162.39857 | S29: =R29+IF(S28<0,-S28)-R30 -> 23305.62168 | T29: =S29+IF(T28<0,-T28)-S30 -> 0 | U29: =T29+IF(U28<0,-U28)-T30 -> 0 | V29: =U29+IF(V28<0,-V28)-U30 -> 0 | W29: =V29+IF(W28<0,-W28)-V30 -> 0 | X29: =W29+IF(X28<0,-X28)-W30 -> 0 | Y29: =X29+IF(Y28<0,-Y28)-X30 -> 0 | Z29: =Y29+IF(Z28<0,-Z28)-Y30 -> 0 | AA29: =Z29+IF(AA28<0,-AA28)-Z30 -> 0 | AB29: =AA29+IF(AB28<0,-AB28)-AA30 -> 0 | AC29: =AB29+IF(AC28<0,-AC28)-AB30 -> 0 | AD29: =AC29+IF(AD28<0,-AD28)-AC30 -> 0 | AE29: =AD29+IF(AE28<0,-AE28)-AD30 -> 0 | AF29: =AE29+IF(AF28<0,-AF28)-AE30 -> 0 | AG29: =AF29+IF(AG28<0,-AG28)-AF30 -> 0 | AH29: =AG29+IF(AH28<0,-AH28)-AG30 -> 0 | AI29: =AH29+IF(AI28<0,-AI28)-AH30 -> 0 | AJ29: =AI29+IF(AJ28<0,-AJ28)-AI30 -> 0 | AK29: =AJ29+IF(AK28<0,-AK28)-AJ30 -> 0 | AL29: =AK29+IF(AL28<0,-AL28)-AK30 -> 0
B30: Dedução da Base de Cálculo | D30: =IF(D28<0,0,IF(D29<=0,0,IF(D29<=0.3*D28,D29,0.3*D28))) -> 0 | E30: =IF(E28<0,0,IF(E29<=0,0,IF(E29<=0.3*E28,E29,0.3*E28))) -> 0 | F30: =IF(F28<0,0,IF(F29<=0,0,IF(F29<=0.3*F28,F29,0.3*F28))) -> 0 | G30: =IF(G28<0,0,IF(G29<=0,0,IF(G29<=0.3*G28,G29,0.3*G28))) -> 2462.596204 | H30: =IF(H28<0,0,IF(H29<=0,0,IF(H29<=0.3*H28,H29,0.3*H28))) -> 0 | I30: =IF(I28<0,0,IF(I29<=0,0,IF(I29<=0.3*I28,I29,0.3*I28))) -> 16089.88565 | J30: =IF(J28<0,0,IF(J29<=0,0,IF(J29<=0.3*J28,J29,0.3*J28))) -> 20335.27025 | K30: =IF(K28<0,0,IF(K29<=0,0,IF(K29<=0.3*K28,K29,0.3*K28))) -> 22662.94239 | L30: =IF(L28<0,0,IF(L29<=0,0,IF(L29<=0.3*L28,L29,0.3*L28))) -> 0 | M30: =IF(M28<0,0,IF(M29<=0,0,IF(M29<=0.3*M28,M29,0.3*M28))) -> 24783.10309 | N30: =IF(N28<0,0,IF(N29<=0,0,IF(N29<=0.3*N28,N29,0.3*N28))) -> 26148.89804 | O30: =IF(O28<0,0,IF(O29<=0,0,IF(O29<=0.3*O28,O29,0.3*O28))) -> 26241.62543 | P30: =IF(P28<0,0,IF(P29<=0,0,IF(P29<=0.3*P28,P29,0.3*P28))) -> 26634.17694 | Q30: =IF(Q28<0,0,IF(Q29<=0,0,IF(Q29<=0.3*Q28,Q29,0.3*Q28))) -> 26684.09413 | R30: =IF(R28<0,0,IF(R29<=0,0,IF(R29<=0.3*R28,R29,0.3*R28))) -> 25856.77689 | S30: =IF(S28<0,0,IF(S29<=0,0,IF(S29<=0.3*S28,S29,0.3*S28))) -> 23305.62168 | T30: =IF(T28<0,0,IF(T29<=0,0,IF(T29<=0.3*T28,T29,0.3*T28))) -> 0 | U30: =IF(U28<0,0,IF(U29<=0,0,IF(U29<=0.3*U28,U29,0.3*U28))) -> 0 | V30: =IF(V28<0,0,IF(V29<=0,0,IF(V29<=0.3*V28,V29,0.3*V28))) -> 0 | W30: =IF(W28<0,0,IF(W29<=0,0,IF(W29<=0.3*W28,W29,0.3*W28))) -> 0 | X30: =IF(X28<0,0,IF(X29<=0,0,IF(X29<=0.3*X28,X29,0.3*X28))) -> 0 | Y30: =IF(Y28<0,0,IF(Y29<=0,0,IF(Y29<=0.3*Y28,Y29,0.3*Y28))) -> 0 | Z30: =IF(Z28<0,0,IF(Z29<=0,0,IF(Z29<=0.3*Z28,Z29,0.3*Z28))) -> 0 | AA30: =IF(AA28<0,0,IF(AA29<=0,0,IF(AA29<=0.3*AA28,AA29,0.3*AA28))) -> 0 | AB30: =IF(AB28<0,0,IF(AB29<=0,0,IF(AB29<=0.3*AB28,AB29,0.3*AB28))) -> 0 | AC30: =IF(AC28<0,0,IF(AC29<=0,0,IF(AC29<=0.3*AC28,AC29,0.3*AC28))) -> 0 | AD30: =IF(AD28<0,0,IF(AD29<=0,0,IF(AD29<=0.3*AD28,AD29,0.3*AD28))) -> 0 | AE30: =IF(AE28<0,0,IF(AE29<=0,0,IF(AE29<=0.3*AE28,AE29,0.3*AE28))) -> 0 | AF30: =IF(AF28<0,0,IF(AF29<=0,0,IF(AF29<=0.3*AF28,AF29,0.3*AF28))) -> 0 | AG30: =IF(AG28<0,0,IF(AG29<=0,0,IF(AG29<=0.3*AG28,AG29,0.3*AG28))) -> 0 | AH30: =IF(AH28<0,0,IF(AH29<=0,0,IF(AH29<=0.3*AH28,AH29,0.3*AH28))) -> 0 | AI30: =IF(AI28<0,0,IF(AI29<=0,0,IF(AI29<=0.3*AI28,AI29,0.3*AI28))) -> 0 | AJ30: =IF(AJ28<0,0,IF(AJ29<=0,0,IF(AJ29<=0.3*AJ28,AJ29,0.3*AJ28))) -> 0 | AK30: =IF(AK28<0,0,IF(AK29<=0,0,IF(AK29<=0.3*AK28,AK29,0.3*AK28))) -> 0 | AL30: =IF(AL28<0,0,IF(AL29<=0,0,IF(AL29<=0.3*AL28,AL29,0.3*AL28))) -> 0
B31: Base de Cálculo | D31: =IF(D28<0,0,D28-D30) -> 0 | E31: =IF(E28<0,0,E28-E30) -> 0 | F31: =IF(F28<0,0,F28-F30) -> 0 | G31: =IF(G28<0,0,G28-G30) -> 5746.05781 | H31: =IF(H28<0,0,H28-H30) -> 0 | I31: =IF(I28<0,0,I28-I30) -> 37543.06651 | J31: =IF(J28<0,0,J28-J30) -> 47448.96393 | K31: =IF(K28<0,0,K28-K30) -> 52880.19892 | L31: =IF(L28<0,0,L28-L30) -> 0 | M31: =IF(M28<0,0,M28-M30) -> 57827.24054 | N31: =IF(N28<0,0,N28-N30) -> 61014.09543 | O31: =IF(O28<0,0,O28-O30) -> 61230.45933 | P31: =IF(P28<0,0,P28-P30) -> 62146.41286 | Q31: =IF(Q28<0,0,Q28-Q30) -> 62262.88631 | R31: =IF(R28<0,0,R28-R30) -> 60332.47941 | S31: =IF(S28<0,0,S28-S30) -> 60149.6448 | T31: =IF(T28<0,0,T28-T30) -> 79881.15455 | U31: =IF(U28<0,0,U28-U30) -> 82914.14159 | V31: =IF(V28<0,0,V28-V30) -> 89560.74295 | W31: =IF(W28<0,0,W28-W30) -> 87896.86859 | X31: =IF(X28<0,0,X28-X30) -> 85607.06675 | Y31: =IF(Y28<0,0,Y28-Y30) -> 83721.54113 | Z31: =IF(Z28<0,0,Z28-Z30) -> 91483.79904 | AA31: =IF(AA28<0,0,AA28-AA30) -> 96583.6467 | AB31: =IF(AB28<0,0,AB28-AB30) -> 99997.99996 | AC31: =IF(AC28<0,0,AC28-AC30) -> 103941.3053 | AD31: =IF(AD28<0,0,AD28-AD30) -> 106837.5287 | AE31: =IF(AE28<0,0,AE28-AE30) -> 110170.7474 | AF31: =IF(AF28<0,0,AF28-AF30) -> 112935.5617 | AG31: =IF(AG28<0,0,AG28-AG30) -> 112731.0019 | AH31: =IF(AH28<0,0,AH28-AH30) -> 111701.3607 | AI31: =IF(AI28<0,0,AI28-AI30) -> 110621.2518 | AJ31: =IF(AJ28<0,0,AJ28-AJ30) -> 113149.2597 | AK31: =IF(AK28<0,0,AK28-AK30) -> 114672.5064 | AL31: =IF(AL28<0,0,AL28-AL30) -> 115238.04
B32: IRPJ | D32: =IF(D31<=0,0,'Painel de Controle'!$G$9*D31+'Painel de Controle'!$G$10*(D31-'Painel de Controle'!$G$11)) -> 0 | E32: =IF(E31<=0,0,'Painel de Controle'!$G$9*E31+'Painel de Controle'!$G$10*(E31-'Painel de Controle'!$G$11)) -> 0 | F32: =IF(F31<=0,0,'Painel de Controle'!$G$9*F31+'Painel de Controle'!$G$10*(F31-'Painel de Controle'!$G$11)) -> 0 | G32: =IF(G31<=0,0,'Painel de Controle'!$G$9*G31+'Painel de Controle'!$G$10*(G31-'Painel de Controle'!$G$11)) -> 1412.514452 | H32: =IF(H31<=0,0,'Painel de Controle'!$G$9*H31+'Painel de Controle'!$G$10*(H31-'Painel de Controle'!$G$11)) -> 0 | I32: =IF(I31<=0,0,'Painel de Controle'!$G$9*I31+'Painel de Controle'!$G$10*(I31-'Painel de Controle'!$G$11)) -> 9361.766627 | J32: =IF(J31<=0,0,'Painel de Controle'!$G$9*J31+'Painel de Controle'!$G$10*(J31-'Painel de Controle'!$G$11)) -> 11838.24098 | K32: =IF(K31<=0,0,'Painel de Controle'!$G$9*K31+'Painel de Controle'!$G$10*(K31-'Painel de Controle'!$G$11)) -> 13196.04973 | L32: =IF(L31<=0,0,'Painel de Controle'!$G$9*L31+'Painel de Controle'!$G$10*(L31-'Painel de Controle'!$G$11)) -> 0 | M32: =IF(M31<=0,0,'Painel de Controle'!$G$9*M31+'Painel de Controle'!$G$10*(M31-'Painel de Controle'!$G$11)) -> 14432.81013 | N32: =IF(N31<=0,0,'Painel de Controle'!$G$9*N31+'Painel de Controle'!$G$10*(N31-'Painel de Controle'!$G$11)) -> 15229.52386 | O32: =IF(O31<=0,0,'Painel de Controle'!$G$9*O31+'Painel de Controle'!$G$10*(O31-'Painel de Controle'!$G$11)) -> 15283.61483 | P32: =IF(P31<=0,0,'Painel de Controle'!$G$9*P31+'Painel de Controle'!$G$10*(P31-'Painel de Controle'!$G$11)) -> 15512.60321 | Q32: =IF(Q31<=0,0,'Painel de Controle'!$G$9*Q31+'Painel de Controle'!$G$10*(Q31-'Painel de Controle'!$G$11)) -> 15541.72158 | R32: =IF(R31<=0,0,'Painel de Controle'!$G$9*R31+'Painel de Controle'!$G$10*(R31-'Painel de Controle'!$G$11)) -> 15059.11985 | S32: =IF(S31<=0,0,'Painel de Controle'!$G$9*S31+'Painel de Controle'!$G$10*(S31-'Painel de Controle'!$G$11)) -> 15013.4112 | T32: =IF(T31<=0,0,'Painel de Controle'!$G$9*T31+'Painel de Controle'!$G$10*(T31-'Painel de Controle'!$G$11)) -> 19946.28864 | U32: =IF(U31<=0,0,'Painel de Controle'!$G$9*U31+'Painel de Controle'!$G$10*(U31-'Painel de Controle'!$G$11)) -> 20704.5354 | V32: =IF(V31<=0,0,'Painel de Controle'!$G$9*V31+'Painel de Controle'!$G$10*(V31-'Painel de Controle'!$G$11)) -> 22366.18574 | W32: =IF(W31<=0,0,'Painel de Controle'!$G$9*W31+'Painel de Controle'!$G$10*(W31-'Painel de Controle'!$G$11)) -> 21950.21715 | X32: =IF(X31<=0,0,'Painel de Controle'!$G$9*X31+'Painel de Controle'!$G$10*(X31-'Painel de Controle'!$G$11)) -> 21377.76669 | Y32: =IF(Y31<=0,0,'Painel de Controle'!$G$9*Y31+'Painel de Controle'!$G$10*(Y31-'Painel de Controle'!$G$11)) -> 20906.38528 | Z32: =IF(Z31<=0,0,'Painel de Controle'!$G$9*Z31+'Painel de Controle'!$G$10*(Z31-'Painel de Controle'!$G$11)) -> 22846.94976 | AA32: =IF(AA31<=0,0,'Painel de Controle'!$G$9*AA31+'Painel de Controle'!$G$10*(AA31-'Painel de Controle'!$G$11)) -> 24121.91167 | AB32: =IF(AB31<=0,0,'Painel de Controle'!$G$9*AB31+'Painel de Controle'!$G$10*(AB31-'Painel de Controle'!$G$11)) -> 24975.49999 | AC32: =IF(AC31<=0,0,'Painel de Controle'!$G$9*AC31+'Painel de Controle'!$G$10*(AC31-'Painel de Controle'!$G$11)) -> 25961.32633 | AD32: =IF(AD31<=0,0,'Painel de Controle'!$G$9*AD31+'Painel de Controle'!$G$10*(AD31-'Painel de Controle'!$G$11)) -> 26685.38216 | AE32: =IF(AE31<=0,0,'Painel de Controle'!$G$9*AE31+'Painel de Controle'!$G$10*(AE31-'Painel de Controle'!$G$11)) -> 27518.68684 | AF32: =IF(AF31<=0,0,'Painel de Controle'!$G$9*AF31+'Painel de Controle'!$G$10*(AF31-'Painel de Controle'!$G$11)) -> 28209.89043 | AG32: =IF(AG31<=0,0,'Painel de Controle'!$G$9*AG31+'Painel de Controle'!$G$10*(AG31-'Painel de Controle'!$G$11)) -> 28158.75048 | AH32: =IF(AH31<=0,0,'Painel de Controle'!$G$9*AH31+'Painel de Controle'!$G$10*(AH31-'Painel de Controle'!$G$11)) -> 27901.34017 | AI32: =IF(AI31<=0,0,'Painel de Controle'!$G$9*AI31+'Painel de Controle'!$G$10*(AI31-'Painel de Controle'!$G$11)) -> 27631.31295 | AJ32: =IF(AJ31<=0,0,'Painel de Controle'!$G$9*AJ31+'Painel de Controle'!$G$10*(AJ31-'Painel de Controle'!$G$11)) -> 28263.31491 | AK32: =IF(AK31<=0,0,'Painel de Controle'!$G$9*AK31+'Painel de Controle'!$G$10*(AK31-'Painel de Controle'!$G$11)) -> 28644.1266 | AL32: =IF(AL31<=0,0,'Painel de Controle'!$G$9*AL31+'Painel de Controle'!$G$10*(AL31-'Painel de Controle'!$G$11)) -> 28785.51
B33: CSLL | D33: ='Painel de Controle'!$G$12*Tributação!D31 -> 0 | E33: ='Painel de Controle'!$G$12*Tributação!E31 -> 0 | F33: ='Painel de Controle'!$G$12*Tributação!F31 -> 0 | G33: ='Painel de Controle'!$G$12*Tributação!G31 -> 517.1452029 | H33: ='Painel de Controle'!$G$12*Tributação!H31 -> 0 | I33: ='Painel de Controle'!$G$12*Tributação!I31 -> 3378.875986 | J33: ='Painel de Controle'!$G$12*Tributação!J31 -> 4270.406754 | K33: ='Painel de Controle'!$G$12*Tributação!K31 -> 4759.217902 | L33: ='Painel de Controle'!$G$12*Tributação!L31 -> 0 | M33: ='Painel de Controle'!$G$12*Tributação!M31 -> 5204.451648 | N33: ='Painel de Controle'!$G$12*Tributação!N31 -> 5491.268589 | O33: ='Painel de Controle'!$G$12*Tributação!O31 -> 5510.74134 | P33: ='Painel de Controle'!$G$12*Tributação!P31 -> 5593.177157 | Q33: ='Painel de Controle'!$G$12*Tributação!Q31 -> 5603.659768 | R33: ='Painel de Controle'!$G$12*Tributação!R31 -> 5429.923147 | S33: ='Painel de Controle'!$G$12*Tributação!S31 -> 5413.468032 | T33: ='Painel de Controle'!$G$12*Tributação!T31 -> 7189.30391 | U33: ='Painel de Controle'!$G$12*Tributação!U31 -> 7462.272743 | V33: ='Painel de Controle'!$G$12*Tributação!V31 -> 8060.466865 | W33: ='Painel de Controle'!$G$12*Tributação!W31 -> 7910.718173 | X33: ='Painel de Controle'!$G$12*Tributação!X31 -> 7704.636008 | Y33: ='Painel de Controle'!$G$12*Tributação!Y31 -> 7534.938702 | Z33: ='Painel de Controle'!$G$12*Tributação!Z31 -> 8233.541914 | AA33: ='Painel de Controle'!$G$12*Tributação!AA31 -> 8692.528203 | AB33: ='Painel de Controle'!$G$12*Tributação!AB31 -> 8999.819997 | AC33: ='Painel de Controle'!$G$12*Tributação!AC31 -> 9354.71748 | AD33: ='Painel de Controle'!$G$12*Tributação!AD31 -> 9615.377579 | AE33: ='Painel de Controle'!$G$12*Tributação!AE31 -> 9915.367262 | AF33: ='Painel de Controle'!$G$12*Tributação!AF31 -> 10164.20055 | AG33: ='Painel de Controle'!$G$12*Tributação!AG31 -> 10145.79017 | AH33: ='Painel de Controle'!$G$12*Tributação!AH31 -> 10053.12246 | AI33: ='Painel de Controle'!$G$12*Tributação!AI31 -> 9955.912662 | AJ33: ='Painel de Controle'!$G$12*Tributação!AJ31 -> 10183.43337 | AK33: ='Painel de Controle'!$G$12*Tributação!AK31 -> 10320.52558 | AL33: ='Painel de Controle'!$G$12*Tributação!AL31 -> 10371.4236
B34: IRPJ Sudene | D34: =IF('Painel de Controle'!$G$13="S",IF(Tributação!D4<=10,(1-'Painel de Controle'!$G$14),1),1)*Tributação!D32 -> 0 | E34: =IF('Painel de Controle'!$G$13="S",IF(Tributação!E4<=10,(1-'Painel de Controle'!$G$14),1),1)*Tributação!E32 -> 0 | F34: =IF('Painel de Controle'!$G$13="S",IF(Tributação!F4<=10,(1-'Painel de Controle'!$G$14),1),1)*Tributação!F32 -> 0 | G34: =IF('Painel de Controle'!$G$13="S",IF(Tributação!G4<=10,(1-'Painel de Controle'!$G$14),1),1)*Tributação!G32 -> 353.1286131 | H34: =IF('Painel de Controle'!$G$13="S",IF(Tributação!H4<=10,(1-'Painel de Controle'!$G$14),1),1)*Tributação!H32 -> 0 | I34: =IF('Painel de Controle'!$G$13="S",IF(Tributação!I4<=10,(1-'Painel de Controle'!$G$14),1),1)*Tributação!I32 -> 2340.441657 | J34: =IF('Painel de Controle'!$G$13="S",IF(Tributação!J4<=10,(1-'Painel de Controle'!$G$14),1),1)*Tributação!J32 -> 2959.560246 | K34: =IF('Painel de Controle'!$G$13="S",IF(Tributação!K4<=10,(1-'Painel de Controle'!$G$14),1),1)*Tributação!K32 -> 3299.012432 | L34: =IF('Painel de Controle'!$G$13="S",IF(Tributação!L4<=10,(1-'Painel de Controle'!$G$14),1),1)*Tributação!L32 -> 0 | M34: =IF('Painel de Controle'!$G$13="S",IF(Tributação!M4<=10,(1-'Painel de Controle'!$G$14),1),1)*Tributação!M32 -> 3608.202534 | N34: =IF('Painel de Controle'!$G$13="S",IF(Tributação!N4<=10,(1-'Painel de Controle'!$G$14),1),1)*Tributação!N32 -> 15229.52386 | O34: =IF('Painel de Controle'!$G$13="S",IF(Tributação!O4<=10,(1-'Painel de Controle'!$G$14),1),1)*Tributação!O32 -> 15283.61483 | P34: =IF('Painel de Controle'!$G$13="S",IF(Tributação!P4<=10,(1-'Painel de Controle'!$G$14),1),1)*Tributação!P32 -> 15512.60321 | Q34: =IF('Painel de Controle'!$G$13="S",IF(Tributação!Q4<=10,(1-'Painel de Controle'!$G$14),1),1)*Tributação!Q32 -> 15541.72158 | R34: =IF('Painel de Controle'!$G$13="S",IF(Tributação!R4<=10,(1-'Painel de Controle'!$G$14),1),1)*Tributação!R32 -> 15059.11985 | S34: =IF('Painel de Controle'!$G$13="S",IF(Tributação!S4<=10,(1-'Painel de Controle'!$G$14),1),1)*Tributação!S32 -> 15013.4112 | T34: =IF('Painel de Controle'!$G$13="S",IF(Tributação!T4<=10,(1-'Painel de Controle'!$G$14),1),1)*Tributação!T32 -> 19946.28864 | U34: =IF('Painel de Controle'!$G$13="S",IF(Tributação!U4<=10,(1-'Painel de Controle'!$G$14),1),1)*Tributação!U32 -> 20704.5354 | V34: =IF('Painel de Controle'!$G$13="S",IF(Tributação!V4<=10,(1-'Painel de Controle'!$G$14),1),1)*Tributação!V32 -> 22366.18574 | W34: =IF('Painel de Controle'!$G$13="S",IF(Tributação!W4<=10,(1-'Painel de Controle'!$G$14),1),1)*Tributação!W32 -> 21950.21715 | X34: =IF('Painel de Controle'!$G$13="S",IF(Tributação!X4<=10,(1-'Painel de Controle'!$G$14),1),1)*Tributação!X32 -> 21377.76669 | Y34: =IF('Painel de Controle'!$G$13="S",IF(Tributação!Y4<=10,(1-'Painel de Controle'!$G$14),1),1)*Tributação!Y32 -> 20906.38528 | Z34: =IF('Painel de Controle'!$G$13="S",IF(Tributação!Z4<=10,(1-'Painel de Controle'!$G$14),1),1)*Tributação!Z32 -> 22846.94976 | AA34: =IF('Painel de Controle'!$G$13="S",IF(Tributação!AA4<=10,(1-'Painel de Controle'!$G$14),1),1)*Tributação!AA32 -> 24121.91167 | AB34: =IF('Painel de Controle'!$G$13="S",IF(Tributação!AB4<=10,(1-'Painel de Controle'!$G$14),1),1)*Tributação!AB32 -> 24975.49999 | AC34: =IF('Painel de Controle'!$G$13="S",IF(Tributação!AC4<=10,(1-'Painel de Controle'!$G$14),1),1)*Tributação!AC32 -> 25961.32633 | AD34: =IF('Painel de Controle'!$G$13="S",IF(Tributação!AD4<=10,(1-'Painel de Controle'!$G$14),1),1)*Tributação!AD32 -> 26685.38216 | AE34: =IF('Painel de Controle'!$G$13="S",IF(Tributação!AE4<=10,(1-'Painel de Controle'!$G$14),1),1)*Tributação!AE32 -> 27518.68684 | AF34: =IF('Painel de Controle'!$G$13="S",IF(Tributação!AF4<=10,(1-'Painel de Controle'!$G$14),1),1)*Tributação!AF32 -> 28209.89043 | AG34: =IF('Painel de Controle'!$G$13="S",IF(Tributação!AG4<=10,(1-'Painel de Controle'!$G$14),1),1)*Tributação!AG32 -> 28158.75048 | AH34: =IF('Painel de Controle'!$G$13="S",IF(Tributação!AH4<=10,(1-'Painel de Controle'!$G$14),1),1)*Tributação!AH32 -> 27901.34017 | AI34: =IF('Painel de Controle'!$G$13="S",IF(Tributação!AI4<=10,(1-'Painel de Controle'!$G$14),1),1)*Tributação!AI32 -> 27631.31295 | AJ34: =IF('Painel de Controle'!$G$13="S",IF(Tributação!AJ4<=10,(1-'Painel de Controle'!$G$14),1),1)*Tributação!AJ32 -> 28263.31491 | AK34: =IF('Painel de Controle'!$G$13="S",IF(Tributação!AK4<=10,(1-'Painel de Controle'!$G$14),1),1)*Tributação!AK32 -> 28644.1266 | AL34: =IF('Painel de Controle'!$G$13="S",IF(Tributação!AL4<=10,(1-'Painel de Controle'!$G$14),1),1)*Tributação!AL32 -> 28785.51

Sheet WACC
B2: WACC
B4: Estrutura de Capital
B5: (A) Participação Capital Próprio | D5: 0.4
B6: (B) Participação Capital Terceiros | D6: 0.6
B7: Custo do Capital Próprio (CAPM)
B8: (1) Taxa Livre de Risco | D8: 0.03706804644
B9: (2) Taxa de Retorno do Mercado | D9: 0.1008992758
B10: (3) Prêmio de Risco de Mercado | C10: (2) - (1) | D10: 0.06383122935
B11: (4) Beta Desalavancado | D11: 0.6699377565
B12: (5) IR + CSLL | D12: 0.34
B13: (6) Beta Alavancado | C13: {(A) + (B) * [1 - (5)]} / (A) * (4) | D13: =(D5+D6*(1-D12))/D5*D11 -> 1.333176136
B14: (7) Prêmio de Risco do Negócio | C14: (3) * (6) | D14: =D10*D13 -> 0.08509827166
B15: (8) Prêmio de Risco Brasil | D15: 0.02831941363
B16: (9) Custo de Capital Próprio Nominal (USD) | C16: (1) + (7) + (8) | D16: =D8+D14+D15 -> 0.1504857317
B17: (10) Taxa de Inflação Americana | D17: 0.02015276342
B18: (14) Custo Real do Capital Próprio (CAPM) | C18: [1+(13)]/[1+(11)]-1 | D18: =(1+D16)/(1+D17)-1 -> 0.1277582858
B19: Custo do Capital de Terceiros
B20: (15) Custo Real da Dívida Líquido de impostos | D20: 0.06798317143
B21: WACC
B22: (16) WACC = | C22: (A) x (14) + (B) x (16) | D22: =D5*D18+D6*D20 -> 0.09189321718

Sheet Investimentos >>>>

Sheet CAPEX
C2: INVESTIMENTOS
E4: Total | F4: 1 | G4: 2 | H4: 3 | I4: 4 | J4: 5 | K4: 6 | L4: 7 | M4: 8 | N4: 9 | O4: 10
C5: Ocupação da área (hectares) | E5: =SUM(F5:O5) -> 10238.18 | F5: =VLOOKUP(F4,'Painel de Controle'!$B$11:$C$20,2,FALSE) -> 0 | G5: =VLOOKUP(G4,'Painel de Controle'!$B$11:$C$20,2,FALSE) -> 0 | H5: =VLOOKUP(H4,'Painel de Controle'!$B$11:$C$20,2,FALSE) -> 0 | I5: =VLOOKUP(I4,'Painel de Controle'!$B$11:$C$20,2,FALSE) -> 3739.57 | J5: =VLOOKUP(J4,'Painel de Controle'!$B$11:$C$20,2,FALSE) -> 2658.84 | K5: =VLOOKUP(K4,'Painel de Controle'!$B$11:$C$20,2,FALSE) -> 2019 | L5: =VLOOKUP(L4,'Painel de Controle'!$B$11:$C$20,2,FALSE) -> 1097.44 | M5: =VLOOKUP(M4,'Painel de Controle'!$B$11:$C$20,2,FALSE) -> 723.33 | N5: =VLOOKUP(N4,'Painel de Controle'!$B$11:$C$20,2,FALSE) -> 0 | O5: =VLOOKUP(O4,'Painel de Controle'!$B$11:$C$20,2,FALSE) -> 0
C6: Área Total Ocupada (hectares) | F6: =F5 -> 0 | G6: =F6+G5 -> 0 | H6: =G6+H5 -> 0 | I6: 3739.57 | J6: 6398.41 | K6: 8417.41 | L6: 9514.85 | M6: 10238.18 | N6: 10238.18 | O6: 10238.18
I7: =I5/$E$5 -> 0.3652573016 | J7: =J5/$E$5 -> 0.2596985011 | K7: 0.1972030185 | L7: 0.1071909265 | M7: 0.07065025229 | N7: 0 | O7: 0
A8: Item | C8: CAPEX FINAL
C9: Discriminação | D9: Vida Útil (anos) | E9: Valores (R$) | F9: 1 | G9: 2 | H9: 3 | I9: 4 | J9: 5 | K9: 6 | L9: 7 | M9: 8 | N9: 9 | O9: 10 | P9: 11 | Q9: 12 | R9: 13 | S9: 14 | T9: 15 | U9: 16 | V9: 17 | W9: 18 | X9: 19 | Y9: 20 | Z9: 21 | AA9: 22 | AB9: 23 | AC9: 24 | AD9: 25 | AE9: 26 | AF9: 27 | AG9: 28 | AH9: 29 | AI9: 30 | AJ9: 31 | AK9: 32 | AL9: 33 | AM9: 34 | AN9: 35
C10: Custos diversos
C11: Desmatamento das áreas agrícolas (SAU) | D11: 35 | E11: =SUM(F11:O11) -> 60562555.13 | F11: =IF('Painel de Controle'!$G$16="S",CAPEX!F75*(1-'Painel de Controle'!$G$17),CAPEX!F75) -> 0 | G11: =IF('Painel de Controle'!$G$16="S",CAPEX!G75*(1-'Painel de Controle'!$G$17),CAPEX!G75) -> 0 | H11: =IF('Painel de Controle'!$G$16="S",CAPEX!H75*(1-'Painel de Controle'!$G$17),CAPEX!H75) -> 22120915.46 | I11: =IF('Painel de Controle'!$G$16="S",CAPEX!I75*(1-'Painel de Controle'!$G$17),CAPEX!I75) -> 15728004.79 | J11: =IF('Painel de Controle'!$G$16="S",CAPEX!J75*(1-'Painel de Controle'!$G$17),CAPEX!J75) -> 11943118.68 | K11: =IF('Painel de Controle'!$G$16="S",CAPEX!K75*(1-'Painel de Controle'!$G$17),CAPEX!K75) -> 6491756.396 | L11: =IF('Painel de Controle'!$G$16="S",CAPEX!L75*(1-'Painel de Controle'!$G$17),CAPEX!L75) -> 4278759.799 | M11: =IF('Painel de Controle'!$G$16="S",CAPEX!M75*(1-'Painel de Controle'!$G$17),CAPEX!M75) -> 0 | N11: =IF('Painel de Controle'!$G$16="S",CAPEX!N75*(1-'Painel de Controle'!$G$17),CAPEX!N75) -> 0 | O11: =IF('Painel de Controle'!$G$16="S",CAPEX!O75*(1-'Painel de Controle'!$G$17),CAPEX!O75) -> 0
C12: M. Ambiente (Estudos, Licenças e Exec. PBAs ) | D12: 35 | E12: =SUM(F12:AN12) -> 51989500.7 | F12: =IF('Painel de Controle'!$G$16="S",CAPEX!F76*(1-'Painel de Controle'!$G$17),CAPEX!F76) -> 3042292.989 | G12: =IF('Painel de Controle'!$G$16="S",CAPEX!G76*(1-'Painel de Controle'!$G$17),CAPEX!G76) -> 4869516.715 | H12: =IF('Painel de Controle'!$G$16="S",CAPEX!H76*(1-'Painel de Controle'!$G$17),CAPEX!H76) -> 9227865.415 | I12: =IF('Painel de Controle'!$G$16="S",CAPEX!I76*(1-'Painel de Controle'!$G$17),CAPEX!I76) -> 9373531.98 | J12: =IF('Painel de Controle'!$G$16="S",CAPEX!J76*(1-'Painel de Controle'!$G$17),CAPEX!J76) -> 9626586.93 | K12: =IF('Painel de Controle'!$G$16="S",CAPEX!K76*(1-'Painel de Controle'!$G$17),CAPEX!K76) -> 8261458.478 | L12: =IF('Painel de Controle'!$G$16="S",CAPEX!L76*(1-'Painel de Controle'!$G$17),CAPEX!L76) -> 7588248.194
C13: Consultoria (projetos) | D13: 35 | E13: =SUM(F13:O13) -> 5392675.777 | F13: =IF('Painel de Controle'!$G$16="S",CAPEX!F77*(1-'Painel de Controle'!$G$17),CAPEX!F77) -> 5392675.777 | G13: =IF('Painel de Controle'!$G$16="S",CAPEX!G77*(1-'Painel de Controle'!$G$17),CAPEX!G77) -> 0 | H13: =IF('Painel de Controle'!$G$16="S",CAPEX!H77*(1-'Painel de Controle'!$G$17),CAPEX!H77) -> 0 | I13: =IF('Painel de Controle'!$G$16="S",CAPEX!I77*(1-'Painel de Controle'!$G$17),CAPEX!I77) -> 0 | J13: =IF('Painel de Controle'!$G$16="S",CAPEX!J77*(1-'Painel de Controle'!$G$17),CAPEX!J77) -> 0 | K13: =IF('Painel de Controle'!$G$16="S",CAPEX!K77*(1-'Painel de Controle'!$G$17),CAPEX!K77) -> 0 | L13: =IF('Painel de Controle'!$G$16="S",CAPEX!L77*(1-'Painel de Controle'!$G$17),CAPEX!L77) -> 0 | M13: =IF('Painel de Controle'!$G$16="S",CAPEX!M77*(1-'Painel de Controle'!$G$17),CAPEX!M77) -> 0 | N13: =IF('Painel de Controle'!$G$16="S",CAPEX!N77*(1-'Painel de Controle'!$G$17),CAPEX!N77) -> 0 | O13: =IF('Painel de Controle'!$G$16="S",CAPEX!O77*(1-'Painel de Controle'!$G$17),CAPEX!O77) -> 0
C14: Consultoria (supervisão de obras) | D14: 35 | E14: =SUM(F14:O14) -> 5392675.778 | F14: =IF('Painel de Controle'!$G$16="S",CAPEX!F78*(1-'Painel de Controle'!$G$17),CAPEX!F78) -> 0 | G14: =IF('Painel de Controle'!$G$16="S",CAPEX!G78*(1-'Painel de Controle'!$G$17),CAPEX!G78) -> 1969714.203 | H14: =IF('Painel de Controle'!$G$16="S",CAPEX!H78*(1-'Painel de Controle'!$G$17),CAPEX!H78) -> 1400469.816 | I14: =IF('Painel de Controle'!$G$16="S",CAPEX!I78*(1-'Painel de Controle'!$G$17),CAPEX!I78) -> 1063451.941 | J14: =IF('Painel de Controle'!$G$16="S",CAPEX!J78*(1-'Painel de Controle'!$G$17),CAPEX!J78) -> 578045.913 | K14: =IF('Painel de Controle'!$G$16="S",CAPEX!K78*(1-'Painel de Controle'!$G$17),CAPEX!K78) -> 380993.9042 | L14: =IF('Painel de Controle'!$G$16="S",CAPEX!L78*(1-'Painel de Controle'!$G$17),CAPEX!L78) -> 0 | M14: =IF('Painel de Controle'!$G$16="S",CAPEX!M78*(1-'Painel de Controle'!$G$17),CAPEX!M78) -> 0 | N14: =IF('Painel de Controle'!$G$16="S",CAPEX!N78*(1-'Painel de Controle'!$G$17),CAPEX!N78) -> 0 | O14: =IF('Painel de Controle'!$G$16="S",CAPEX!O78*(1-'Painel de Controle'!$G$17),CAPEX!O78) -> 0
C15: Serviços preliminares
C16: Mobilização e desmobilização | D16: 35 | E16: =SUM(F16:O16) -> 2195314.783 | F16: =IF('Painel de Controle'!$G$16="S",CAPEX!F80*(1-'Painel de Controle'!$G$17),CAPEX!F80) -> 0 | G16: =IF('Painel de Controle'!$G$16="S",CAPEX!G80*(1-'Painel de Controle'!$G$17),CAPEX!G80) -> 1097657.392 | H16: =IF('Painel de Controle'!$G$16="S",CAPEX!H80*(1-'Painel de Controle'!$G$17),CAPEX!H80) -> 0 | I16: =IF('Painel de Controle'!$G$16="S",CAPEX!I80*(1-'Painel de Controle'!$G$17),CAPEX!I80) -> 0 | J16: =IF('Painel de Controle'!$G$16="S",CAPEX!J80*(1-'Painel de Controle'!$G$17),CAPEX!J80) -> 0 | K16: =IF('Painel de Controle'!$G$16="S",CAPEX!K80*(1-'Painel de Controle'!$G$17),CAPEX!K80) -> 0 | L16: =IF('Painel de Controle'!$G$16="S",CAPEX!L80*(1-'Painel de Controle'!$G$17),CAPEX!L80) -> 1097657.392 | M16: =IF('Painel de Controle'!$G$16="S",CAPEX!M80*(1-'Painel de Controle'!$G$17),CAPEX!M80) -> 0 | N16: =IF('Painel de Controle'!$G$16="S",CAPEX!N80*(1-'Painel de Controle'!$G$17),CAPEX!N80) -> 0 | O16: =IF('Painel de Controle'!$G$16="S",CAPEX!O80*(1-'Painel de Controle'!$G$17),CAPEX!O80) -> 0
C17: Administração direta | D17: 35 | E17: 17131551.49 | F17: =IF('Painel de Controle'!$G$16="S",CAPEX!F81*(1-'Painel de Controle'!$G$17),CAPEX!F81) -> 0 | G17: =IF('Painel de Controle'!$G$16="S",CAPEX!G81*(1-'Painel de Controle'!$G$17),CAPEX!G81) -> 2855258.582 | H17: =IF('Painel de Controle'!$G$16="S",CAPEX!H81*(1-'Painel de Controle'!$G$17),CAPEX!H81) -> 2855258.582 | I17: =IF('Painel de Controle'!$G$16="S",CAPEX!I81*(1-'Painel de Controle'!$G$17),CAPEX!I81) -> 2855258.582 | J17: =IF('Painel de Controle'!$G$16="S",CAPEX!J81*(1-'Painel de Controle'!$G$17),CAPEX!J81) -> 2855258.582 | K17: =IF('Painel de Controle'!$G$16="S",CAPEX!K81*(1-'Painel de Controle'!$G$17),CAPEX!K81) -> 2855258.582 | L17: =IF('Painel de Controle'!$G$16="S",CAPEX!L81*(1-'Painel de Controle'!$G$17),CAPEX!L81) -> 2855258.582 | M17: =IF('Painel de Controle'!$G$16="S",CAPEX!M81*(1-'Painel de Controle'!$G$17),CAPEX!M81) -> 0 | N17: =IF('Painel de Controle'!$G$16="S",CAPEX!N81*(1-'Painel de Controle'!$G$17),CAPEX!N81) -> 0 | O17: =IF('Painel de Controle'!$G$16="S",CAPEX!O81*(1-'Painel de Controle'!$G$17),CAPEX!O81) -> 0
C18: Implantação do canteiro de obras | D18: 35 | E18: 351684.9988 | F18: =IF('Painel de Controle'!$G$16="S",CAPEX!F82*(1-'Painel de Controle'!$G$17),CAPEX!F82) -> 0 | G18: =IF('Painel de Controle'!$G$16="S",CAPEX!G82*(1-'Painel de Controle'!$G$17),CAPEX!G82) -> 351684.9988 | H18: =IF('Painel de Controle'!$G$16="S",CAPEX!H82*(1-'Painel de Controle'!$G$17),CAPEX!H82) -> 0 | I18: =IF('Painel de Controle'!$G$16="S",CAPEX!I82*(1-'Painel de Controle'!$G$17),CAPEX!I82) -> 0 | J18: =IF('Painel de Controle'!$G$16="S",CAPEX!J82*(1-'Painel de Controle'!$G$17),CAPEX!J82) -> 0 | K18: =IF('Painel de Controle'!$G$16="S",CAPEX!K82*(1-'Painel de Controle'!$G$17),CAPEX!K82) -> 0 | L18: =IF('Painel de Controle'!$G$16="S",CAPEX!L82*(1-'Painel de Controle'!$G$17),CAPEX!L82) -> 0 | M18: =IF('Painel de Controle'!$G$16="S",CAPEX!M82*(1-'Painel de Controle'!$G$17),CAPEX!M82) -> 0 | N18: =IF('Painel de Controle'!$G$16="S",CAPEX!N82*(1-'Painel de Controle'!$G$17),CAPEX!N82) -> 0 | O18: =IF('Painel de Controle'!$G$16="S",CAPEX!O82*(1-'Painel de Controle'!$G$17),CAPEX!O82) -> 0
C19: Infraestrutura Sul
C20: EBP-Sul | D20: 20 | E20: 22095987.81 | F20: =IF('Painel de Controle'!$G$16="S",CAPEX!F84*(1-'Painel de Controle'!$G$17),CAPEX!F84) -> 0 | G20: =IF('Painel de Controle'!$G$16="S",CAPEX!G84*(1-'Painel de Controle'!$G$17),CAPEX!G84) -> 8838395.122 | H20: =IF('Painel de Controle'!$G$16="S",CAPEX!H84*(1-'Painel de Controle'!$G$17),CAPEX!H84) -> 13257592.68 | I20: =IF('Painel de Controle'!$G$16="S",CAPEX!I84*(1-'Painel de Controle'!$G$17),CAPEX!I84) -> 0 | J20: =IF('Painel de Controle'!$G$16="S",CAPEX!J84*(1-'Painel de Controle'!$G$17),CAPEX!J84) -> 0 | K20: =IF('Painel de Controle'!$G$16="S",CAPEX!K84*(1-'Painel de Controle'!$G$17),CAPEX!K84) -> 0 | L20: =IF('Painel de Controle'!$G$16="S",CAPEX!L84*(1-'Painel de Controle'!$G$17),CAPEX!L84) -> 0 | M20: =IF('Painel de Controle'!$G$16="S",CAPEX!M84*(1-'Painel de Controle'!$G$17),CAPEX!M84) -> 0 | N20: =IF('Painel de Controle'!$G$16="S",CAPEX!N84*(1-'Painel de Controle'!$G$17),CAPEX!N84) -> 0 | O20: =IF('Painel de Controle'!$G$16="S",CAPEX!O84*(1-'Painel de Controle'!$G$17),CAPEX!O84) -> 0
C21: Adutora EBP-Sul | D21: 30 | E21: 89046.66158 | F21: =IF('Painel de Controle'!$G$16="S",CAPEX!F85*(1-'Painel de Controle'!$G$17),CAPEX!F85) -> 0 | G21: =IF('Painel de Controle'!$G$16="S",CAPEX!G85*(1-'Painel de Controle'!$G$17),CAPEX!G85) -> 89046.66158 | H21: =IF('Painel de Controle'!$G$16="S",CAPEX!H85*(1-'Painel de Controle'!$G$17),CAPEX!H85) -> 0 | I21: =IF('Painel de Controle'!$G$16="S",CAPEX!I85*(1-'Painel de Controle'!$G$17),CAPEX!I85) -> 0 | J21: =IF('Painel de Controle'!$G$16="S",CAPEX!J85*(1-'Painel de Controle'!$G$17),CAPEX!J85) -> 0 | K21: =IF('Painel de Controle'!$G$16="S",CAPEX!K85*(1-'Painel de Controle'!$G$17),CAPEX!K85) -> 0 | L21: =IF('Painel de Controle'!$G$16="S",CAPEX!L85*(1-'Painel de Controle'!$G$17),CAPEX!L85) -> 0 | M21: =IF('Painel de Controle'!$G$16="S",CAPEX!M85*(1-'Painel de Controle'!$G$17),CAPEX!M85) -> 0 | N21: =IF('Painel de Controle'!$G$16="S",CAPEX!N85*(1-'Painel de Controle'!$G$17),CAPEX!N85) -> 0 | O21: =IF('Painel de Controle'!$G$16="S",CAPEX!O85*(1-'Painel de Controle'!$G$17),CAPEX!O85) -> 0
C22: Reservatório pulmão | D22: 35 | E22: 380921.6185 | F22: =IF('Painel de Controle'!$G$16="S",CAPEX!F86*(1-'Painel de Controle'!$G$17),CAPEX!F86) -> 0 | G22: =IF('Painel de Controle'!$G$16="S",CAPEX!G86*(1-'Painel de Controle'!$G$17),CAPEX!G86) -> 380921.6185 | H22: =IF('Painel de Controle'!$G$16="S",CAPEX!H86*(1-'Painel de Controle'!$G$17),CAPEX!H86) -> 0 | I22: =IF('Painel de Controle'!$G$16="S",CAPEX!I86*(1-'Painel de Controle'!$G$17),CAPEX!I86) -> 0 | J22: =IF('Painel de Controle'!$G$16="S",CAPEX!J86*(1-'Painel de Controle'!$G$17),CAPEX!J86) -> 0 | K22: =IF('Painel de Controle'!$G$16="S",CAPEX!K86*(1-'Painel de Controle'!$G$17),CAPEX!K86) -> 0 | L22: =IF('Painel de Controle'!$G$16="S",CAPEX!L86*(1-'Painel de Controle'!$G$17),CAPEX!L86) -> 0 | M22: =IF('Painel de Controle'!$G$16="S",CAPEX!M86*(1-'Painel de Controle'!$G$17),CAPEX!M86) -> 0 | N22: =IF('Painel de Controle'!$G$16="S",CAPEX!N86*(1-'Painel de Controle'!$G$17),CAPEX!N86) -> 0 | O22: =IF('Painel de Controle'!$G$16="S",CAPEX!O86*(1-'Painel de Controle'!$G$17),CAPEX!O86) -> 0
C23: Canal CP2-Sul | D23: 35 | E23: 1411566.577 | F23: =IF('Painel de Controle'!$G$16="S",CAPEX!F87*(1-'Painel de Controle'!$G$17),CAPEX!F87) -> 0 | G23: =IF('Painel de Controle'!$G$16="S",CAPEX!G87*(1-'Painel de Controle'!$G$17),CAPEX!G87) -> 1411566.577 | H23: =IF('Painel de Controle'!$G$16="S",CAPEX!H87*(1-'Painel de Controle'!$G$17),CAPEX!H87) -> 0 | I23: =IF('Painel de Controle'!$G$16="S",CAPEX!I87*(1-'Painel de Controle'!$G$17),CAPEX!I87) -> 0 | J23: =IF('Painel de Controle'!$G$16="S",CAPEX!J87*(1-'Painel de Controle'!$G$17),CAPEX!J87) -> 0 | K23: =IF('Painel de Controle'!$G$16="S",CAPEX!K87*(1-'Painel de Controle'!$G$17),CAPEX!K87) -> 0 | L23: =IF('Painel de Controle'!$G$16="S",CAPEX!L87*(1-'Painel de Controle'!$G$17),CAPEX!L87) -> 0 | M23: =IF('Painel de Controle'!$G$16="S",CAPEX!M87*(1-'Painel de Controle'!$G$17),CAPEX!M87) -> 0 | N23: =IF('Painel de Controle'!$G$16="S",CAPEX!N87*(1-'Painel de Controle'!$G$17),CAPEX!N87) -> 0 | O23: =IF('Painel de Controle'!$G$16="S",CAPEX!O87*(1-'Painel de Controle'!$G$17),CAPEX!O87) -> 0
C24: EBS-Sul | D24: 20 | E24: 17528904.15 | F24: =IF('Painel de Controle'!$G$16="S",CAPEX!F88*(1-'Painel de Controle'!$G$17),CAPEX!F88) -> 0 | G24: =IF('Painel de Controle'!$G$16="S",CAPEX!G88*(1-'Painel de Controle'!$G$17),CAPEX!G88) -> 7011561.66 | H24: =IF('Painel de Controle'!$G$16="S",CAPEX!H88*(1-'Painel de Controle'!$G$17),CAPEX!H88) -> 10517342.49 | I24: =IF('Painel de Controle'!$G$16="S",CAPEX!I88*(1-'Painel de Controle'!$G$17),CAPEX!I88) -> 0 | J24: =IF('Painel de Controle'!$G$16="S",CAPEX!J88*(1-'Painel de Controle'!$G$17),CAPEX!J88) -> 0 | K24: =IF('Painel de Controle'!$G$16="S",CAPEX!K88*(1-'Painel de Controle'!$G$17),CAPEX!K88) -> 0 | L24: =IF('Painel de Controle'!$G$16="S",CAPEX!L88*(1-'Painel de Controle'!$G$17),CAPEX!L88) -> 0 | M24: =IF('Painel de Controle'!$G$16="S",CAPEX!M88*(1-'Painel de Controle'!$G$17),CAPEX!M88) -> 0 | N24: =IF('Painel de Controle'!$G$16="S",CAPEX!N88*(1-'Painel de Controle'!$G$17),CAPEX!N88) -> 0 | O24: =IF('Painel de Controle'!$G$16="S",CAPEX!O88*(1-'Painel de Controle'!$G$17),CAPEX!O88) -> 0
C25: Adutora da EBS-Sul | D25: 30 | E25: 84003.45128 | F25: =IF('Painel de Controle'!$G$16="S",CAPEX!F89*(1-'Painel de Controle'!$G$17),CAPEX!F89) -> 0 | G25: =IF('Painel de Controle'!$G$16="S",CAPEX!G89*(1-'Painel de Controle'!$G$17),CAPEX!G89) -> 84003.45128 | H25: =IF('Painel de Controle'!$G$16="S",CAPEX!H89*(1-'Painel de Controle'!$G$17),CAPEX!H89) -> 0 | I25: =IF('Painel de Controle'!$G$16="S",CAPEX!I89*(1-'Painel de Controle'!$G$17),CAPEX!I89) -> 0 | J25: =IF('Painel de Controle'!$G$16="S",CAPEX!J89*(1-'Painel de Controle'!$G$17),CAPEX!J89) -> 0 | K25: =IF('Painel de Controle'!$G$16="S",CAPEX!K89*(1-'Painel de Controle'!$G$17),CAPEX!K89) -> 0 | L25: =IF('Painel de Controle'!$G$16="S",CAPEX!L89*(1-'Painel de Controle'!$G$17),CAPEX!L89) -> 0 | M25: =IF('Painel de Controle'!$G$16="S",CAPEX!M89*(1-'Painel de Controle'!$G$17),CAPEX!M89) -> 0 | N25: =IF('Painel de Controle'!$G$16="S",CAPEX!N89*(1-'Painel de Controle'!$G$17),CAPEX!N89) -> 0 | O25: =IF('Painel de Controle'!$G$16="S",CAPEX!O89*(1-'Painel de Controle'!$G$17),CAPEX!O89) -> 0
C26: Canal CP3-Sul | D26: 35 | E26: 2547427.585 | F26: =IF('Painel de Controle'!$G$16="S",CAPEX!F90*(1-'Painel de Controle'!$G$17),CAPEX!F90) -> 0 | G26: =IF('Painel de Controle'!$G$16="S",CAPEX!G90*(1-'Painel de Controle'!$G$17),CAPEX!G90) -> 2547427.585 | H26: =IF('Painel de Controle'!$G$16="S",CAPEX!H90*(1-'Painel de Controle'!$G$17),CAPEX!H90) -> 0 | I26: =IF('Painel de Controle'!$G$16="S",CAPEX!I90*(1-'Painel de Controle'!$G$17),CAPEX!I90) -> 0 | J26: =IF('Painel de Controle'!$G$16="S",CAPEX!J90*(1-'Painel de Controle'!$G$17),CAPEX!J90) -> 0 | K26: =IF('Painel de Controle'!$G$16="S",CAPEX!K90*(1-'Painel de Controle'!$G$17),CAPEX!K90) -> 0 | L26: =IF('Painel de Controle'!$G$16="S",CAPEX!L90*(1-'Painel de Controle'!$G$17),CAPEX!L90) -> 0 | M26: =IF('Painel de Controle'!$G$16="S",CAPEX!M90*(1-'Painel de Controle'!$G$17),CAPEX!M90) -> 0 | N26: =IF('Painel de Controle'!$G$16="S",CAPEX!N90*(1-'Painel de Controle'!$G$17),CAPEX!N90) -> 0 | O26: =IF('Painel de Controle'!$G$16="S",CAPEX!O90*(1-'Painel de Controle'!$G$17),CAPEX!O90) -> 0
C27: EBA-9 | D27: 20 | E27: 4339886.331 | F27: =IF('Painel de Controle'!$G$16="S",CAPEX!F91*(1-'Painel de Controle'!$G$17),CAPEX!F91) -> 0 | G27: =IF('Painel de Controle'!$G$16="S",CAPEX!G91*(1-'Painel de Controle'!$G$17),CAPEX!G91) -> 1735954.532 | H27: =IF('Painel de Controle'!$G$16="S",CAPEX!H91*(1-'Painel de Controle'!$G$17),CAPEX!H91) -> 2603931.798 | I27: =IF('Painel de Controle'!$G$16="S",CAPEX!I91*(1-'Painel de Controle'!$G$17),CAPEX!I91) -> 0 | J27: =IF('Painel de Controle'!$G$16="S",CAPEX!J91*(1-'Painel de Controle'!$G$17),CAPEX!J91) -> 0 | K27: =IF('Painel de Controle'!$G$16="S",CAPEX!K91*(1-'Painel de Controle'!$G$17),CAPEX!K91) -> 0 | L27: =IF('Painel de Controle'!$G$16="S",CAPEX!L91*(1-'Painel de Controle'!$G$17),CAPEX!L91) -> 0 | M27: =IF('Painel de Controle'!$G$16="S",CAPEX!M91*(1-'Painel de Controle'!$G$17),CAPEX!M91) -> 0 | N27: =IF('Painel de Controle'!$G$16="S",CAPEX!N91*(1-'Painel de Controle'!$G$17),CAPEX!N91) -> 0 | O27: =IF('Painel de Controle'!$G$16="S",CAPEX!O91*(1-'Painel de Controle'!$G$17),CAPEX!O91) -> 0
C28: EBAs 10-11-12 | D28: 25 | E28: 11068385.44 | F28: =IF('Painel de Controle'!$G$16="S",CAPEX!F92*(1-'Painel de Controle'!$G$17),CAPEX!F92) -> 0 | G28: =IF('Painel de Controle'!$G$16="S",CAPEX!G92*(1-'Painel de Controle'!$G$17),CAPEX!G92) -> 4427354.174 | H28: =IF('Painel de Controle'!$G$16="S",CAPEX!H92*(1-'Painel de Controle'!$G$17),CAPEX!H92) -> 6641031.261 | I28: =IF('Painel de Controle'!$G$16="S",CAPEX!I92*(1-'Painel de Controle'!$G$17),CAPEX!I92) -> 0 | J28: =IF('Painel de Controle'!$G$16="S",CAPEX!J92*(1-'Painel de Controle'!$G$17),CAPEX!J92) -> 0 | K28: =IF('Painel de Controle'!$G$16="S",CAPEX!K92*(1-'Painel de Controle'!$G$17),CAPEX!K92) -> 0 | L28: =IF('Painel de Controle'!$G$16="S",CAPEX!L92*(1-'Painel de Controle'!$G$17),CAPEX!L92) -> 0 | M28: =IF('Painel de Controle'!$G$16="S",CAPEX!M92*(1-'Painel de Controle'!$G$17),CAPEX!M92) -> 0 | N28: =IF('Painel de Controle'!$G$16="S",CAPEX!N92*(1-'Painel de Controle'!$G$17),CAPEX!N92) -> 0 | O28: =IF('Painel de Controle'!$G$16="S",CAPEX!O92*(1-'Painel de Controle'!$G$17),CAPEX!O92) -> 0
C29: Tomadas empresariais (24) | D29: 30 | E29: 3006894.9 | F29: =IF('Painel de Controle'!$G$16="S",CAPEX!F93*(1-'Painel de Controle'!$G$17),CAPEX!F93) -> 0 | G29: =IF('Painel de Controle'!$G$16="S",CAPEX!G93*(1-'Painel de Controle'!$G$17),CAPEX!G93) -> 1202757.96 | H29: =IF('Painel de Controle'!$G$16="S",CAPEX!H93*(1-'Painel de Controle'!$G$17),CAPEX!H93) -> 1804136.94 | I29: =IF('Painel de Controle'!$G$16="S",CAPEX!I93*(1-'Painel de Controle'!$G$17),CAPEX!I93) -> 0 | J29: =IF('Painel de Controle'!$G$16="S",CAPEX!J93*(1-'Painel de Controle'!$G$17),CAPEX!J93) -> 0 | K29: =IF('Painel de Controle'!$G$16="S",CAPEX!K93*(1-'Painel de Controle'!$G$17),CAPEX!K93) -> 0 | L29: =IF('Painel de Controle'!$G$16="S",CAPEX!L93*(1-'Painel de Controle'!$G$17),CAPEX!L93) -> 0 | M29: =IF('Painel de Controle'!$G$16="S",CAPEX!M93*(1-'Painel de Controle'!$G$17),CAPEX!M93) -> 0 | N29: =IF('Painel de Controle'!$G$16="S",CAPEX!N93*(1-'Painel de Controle'!$G$17),CAPEX!N93) -> 0 | O29: =IF('Painel de Controle'!$G$16="S",CAPEX!O93*(1-'Painel de Controle'!$G$17),CAPEX!O93) -> 0
C30: Tomadas gravitárias (5) | D30: 30 | E30: 187243.7713 | F30: =IF('Painel de Controle'!$G$16="S",CAPEX!F94*(1-'Painel de Controle'!$G$17),CAPEX!F94) -> 0 | G30: =IF('Painel de Controle'!$G$16="S",CAPEX!G94*(1-'Painel de Controle'!$G$17),CAPEX!G94) -> 187243.7713 | H30: =IF('Painel de Controle'!$G$16="S",CAPEX!H94*(1-'Painel de Controle'!$G$17),CAPEX!H94) -> 0 | I30: =IF('Painel de Controle'!$G$16="S",CAPEX!I94*(1-'Painel de Controle'!$G$17),CAPEX!I94) -> 0 | J30: =IF('Painel de Controle'!$G$16="S",CAPEX!J94*(1-'Painel de Controle'!$G$17),CAPEX!J94) -> 0 | K30: =IF('Painel de Controle'!$G$16="S",CAPEX!K94*(1-'Painel de Controle'!$G$17),CAPEX!K94) -> 0 | L30: =IF('Painel de Controle'!$G$16="S",CAPEX!L94*(1-'Painel de Controle'!$G$17),CAPEX!L94) -> 0 | M30: =IF('Painel de Controle'!$G$16="S",CAPEX!M94*(1-'Painel de Controle'!$G$17),CAPEX!M94) -> 0 | N30: =IF('Painel de Controle'!$G$16="S",CAPEX!N94*(1-'Painel de Controle'!$G$17),CAPEX!N94) -> 0 | O30: =IF('Painel de Controle'!$G$16="S",CAPEX!O94*(1-'Painel de Controle'!$G$17),CAPEX!O94) -> 0
C31: Adutoras das EBAs / Setores (36,1% de "L") | D31: 30 | E31: 52511382.16 | F31: =IF('Painel de Controle'!$G$16="S",CAPEX!F95*(1-'Painel de Controle'!$G$17),CAPEX!F95) -> 0 | G31: =IF('Painel de Controle'!$G$16="S",CAPEX!G95*(1-'Painel de Controle'!$G$17),CAPEX!G95) -> 21004552.86 | H31: =IF('Painel de Controle'!$G$16="S",CAPEX!H95*(1-'Painel de Controle'!$G$17),CAPEX!H95) -> 31506829.29 | I31: =IF('Painel de Controle'!$G$16="S",CAPEX!I95*(1-'Painel de Controle'!$G$17),CAPEX!I95) -> 0 | J31: =IF('Painel de Controle'!$G$16="S",CAPEX!J95*(1-'Painel de Controle'!$G$17),CAPEX!J95) -> 0 | K31: =IF('Painel de Controle'!$G$16="S",CAPEX!K95*(1-'Painel de Controle'!$G$17),CAPEX!K95) -> 0 | L31: =IF('Painel de Controle'!$G$16="S",CAPEX!L95*(1-'Painel de Controle'!$G$17),CAPEX!L95) -> 0 | M31: =IF('Painel de Controle'!$G$16="S",CAPEX!M95*(1-'Painel de Controle'!$G$17),CAPEX!M95) -> 0 | N31: =IF('Painel de Controle'!$G$16="S",CAPEX!N95*(1-'Painel de Controle'!$G$17),CAPEX!N95) -> 0 | O31: =IF('Painel de Controle'!$G$16="S",CAPEX!O95*(1-'Painel de Controle'!$G$17),CAPEX!O95) -> 0
C32: Estradas dos canais e estradas dos setores | D32: 35 | E32: 2130009.683 | F32: =IF('Painel de Controle'!$G$16="S",CAPEX!F96*(1-'Painel de Controle'!$G$17),CAPEX!F96) -> 0 | G32: =IF('Painel de Controle'!$G$16="S",CAPEX!G96*(1-'Painel de Controle'!$G$17),CAPEX!G96) -> 852003.8732 | H32: =IF('Painel de Controle'!$G$16="S",CAPEX!H96*(1-'Painel de Controle'!$G$17),CAPEX!H96) -> 1278005.81 | I32: =IF('Painel de Controle'!$G$16="S",CAPEX!I96*(1-'Painel de Controle'!$G$17),CAPEX!I96) -> 0 | J32: =IF('Painel de Controle'!$G$16="S",CAPEX!J96*(1-'Painel de Controle'!$G$17),CAPEX!J96) -> 0 | K32: =IF('Painel de Controle'!$G$16="S",CAPEX!K96*(1-'Painel de Controle'!$G$17),CAPEX!K96) -> 0 | L32: =IF('Painel de Controle'!$G$16="S",CAPEX!L96*(1-'Painel de Controle'!$G$17),CAPEX!L96) -> 0 | M32: =IF('Painel de Controle'!$G$16="S",CAPEX!M96*(1-'Painel de Controle'!$G$17),CAPEX!M96) -> 0 | N32: =IF('Painel de Controle'!$G$16="S",CAPEX!N96*(1-'Painel de Controle'!$G$17),CAPEX!N96) -> 0 | O32: =IF('Painel de Controle'!$G$16="S",CAPEX!O96*(1-'Painel de Controle'!$G$17),CAPEX!O96) -> 0
C33: Drenos dos canais e drenos nos setores | D33: 35 | E33: 6404215.569 | F33: =IF('Painel de Controle'!$G$16="S",CAPEX!F97*(1-'Painel de Controle'!$G$17),CAPEX!F97) -> 0 | G33: =IF('Painel de Controle'!$G$16="S",CAPEX!G97*(1-'Painel de Controle'!$G$17),CAPEX!G97) -> 2561686.227 | H33: =IF('Painel de Controle'!$G$16="S",CAPEX!H97*(1-'Painel de Controle'!$G$17),CAPEX!H97) -> 3842529.341 | I33: =IF('Painel de Controle'!$G$16="S",CAPEX!I97*(1-'Painel de Controle'!$G$17),CAPEX!I97) -> 0 | J33: =IF('Painel de Controle'!$G$16="S",CAPEX!J97*(1-'Painel de Controle'!$G$17),CAPEX!J97) -> 0 | K33: =IF('Painel de Controle'!$G$16="S",CAPEX!K97*(1-'Painel de Controle'!$G$17),CAPEX!K97) -> 0 | L33: =IF('Painel de Controle'!$G$16="S",CAPEX!L97*(1-'Painel de Controle'!$G$17),CAPEX!L97) -> 0 | M33: =IF('Painel de Controle'!$G$16="S",CAPEX!M97*(1-'Painel de Controle'!$G$17),CAPEX!M97) -> 0 | N33: =IF('Painel de Controle'!$G$16="S",CAPEX!N97*(1-'Painel de Controle'!$G$17),CAPEX!N97) -> 0 | O33: =IF('Painel de Controle'!$G$16="S",CAPEX!O97*(1-'Painel de Controle'!$G$17),CAPEX!O97) -> 0
C34: Infraestr. de Suprim. de Energia Elétrica | D34: 20 | E34: 32771043.89 | F34: =IF('Painel de Controle'!$G$16="S",CAPEX!F98*(1-'Painel de Controle'!$G$17),CAPEX!F98) -> 0 | G34: =IF('Painel de Controle'!$G$16="S",CAPEX!G98*(1-'Painel de Controle'!$G$17),CAPEX!G98) -> 13108417.56 | H34: =IF('Painel de Controle'!$G$16="S",CAPEX!H98*(1-'Painel de Controle'!$G$17),CAPEX!H98) -> 19662626.34 | I34: =IF('Painel de Controle'!$G$16="S",CAPEX!I98*(1-'Painel de Controle'!$G$17),CAPEX!I98) -> 0 | J34: =IF('Painel de Controle'!$G$16="S",CAPEX!J98*(1-'Painel de Controle'!$G$17),CAPEX!J98) -> 0 | K34: =IF('Painel de Controle'!$G$16="S",CAPEX!K98*(1-'Painel de Controle'!$G$17),CAPEX!K98) -> 0 | L34: =IF('Painel de Controle'!$G$16="S",CAPEX!L98*(1-'Painel de Controle'!$G$17),CAPEX!L98) -> 0 | M34: =IF('Painel de Controle'!$G$16="S",CAPEX!M98*(1-'Painel de Controle'!$G$17),CAPEX!M98) -> 0 | N34: =IF('Painel de Controle'!$G$16="S",CAPEX!N98*(1-'Painel de Controle'!$G$17),CAPEX!N98) -> 0 | O34: =IF('Painel de Controle'!$G$16="S",CAPEX!O98*(1-'Painel de Controle'!$G$17),CAPEX!O98) -> 0
C35: Infraestrutura Norte
C36: EBP-Norte (8,37 m³/s) | D36: 20 | E36: 47928189.56 | F36: =IF('Painel de Controle'!$G$16="S",CAPEX!F100*(1-'Painel de Controle'!$G$17),CAPEX!F100) -> 0 | G36: =IF('Painel de Controle'!$G$16="S",CAPEX!G100*(1-'Painel de Controle'!$G$17),CAPEX!G100) -> 0 | H36: =IF('Painel de Controle'!$G$16="S",CAPEX!H100*(1-'Painel de Controle'!$G$17),CAPEX!H100) -> 19171275.82 | I36: =IF('Painel de Controle'!$G$16="S",CAPEX!I100*(1-'Painel de Controle'!$G$17),CAPEX!I100) -> 28756913.73 | J36: =IF('Painel de Controle'!$G$16="S",CAPEX!J100*(1-'Painel de Controle'!$G$17),CAPEX!J100) -> 0 | K36: =IF('Painel de Controle'!$G$16="S",CAPEX!K100*(1-'Painel de Controle'!$G$17),CAPEX!K100) -> 0 | L36: =IF('Painel de Controle'!$G$16="S",CAPEX!L100*(1-'Painel de Controle'!$G$17),CAPEX!L100) -> 0 | M36: =IF('Painel de Controle'!$G$16="S",CAPEX!M100*(1-'Painel de Controle'!$G$17),CAPEX!M100) -> 0 | N36: =IF('Painel de Controle'!$G$16="S",CAPEX!N100*(1-'Painel de Controle'!$G$17),CAPEX!N100) -> 0 | O36: =IF('Painel de Controle'!$G$16="S",CAPEX!O100*(1-'Painel de Controle'!$G$17),CAPEX!O100) -> 0
C37: Adutora EBP-Norte | D37: 30 | E37: 370056.2713 | F37: =IF('Painel de Controle'!$G$16="S",CAPEX!F101*(1-'Painel de Controle'!$G$17),CAPEX!F101) -> 0 | G37: =IF('Painel de Controle'!$G$16="S",CAPEX!G101*(1-'Painel de Controle'!$G$17),CAPEX!G101) -> 0 | H37: =IF('Painel de Controle'!$G$16="S",CAPEX!H101*(1-'Painel de Controle'!$G$17),CAPEX!H101) -> 370056.2713 | I37: =IF('Painel de Controle'!$G$16="S",CAPEX!I101*(1-'Painel de Controle'!$G$17),CAPEX!I101) -> 0 | J37: =IF('Painel de Controle'!$G$16="S",CAPEX!J101*(1-'Painel de Controle'!$G$17),CAPEX!J101) -> 0 | K37: =IF('Painel de Controle'!$G$16="S",CAPEX!K101*(1-'Painel de Controle'!$G$17),CAPEX!K101) -> 0 | L37: =IF('Painel de Controle'!$G$16="S",CAPEX!L101*(1-'Painel de Controle'!$G$17),CAPEX!L101) -> 0 | M37: =IF('Painel de Controle'!$G$16="S",CAPEX!M101*(1-'Painel de Controle'!$G$17),CAPEX!M101) -> 0 | N37: =IF('Painel de Controle'!$G$16="S",CAPEX!N101*(1-'Painel de Controle'!$G$17),CAPEX!N101) -> 0 | O37: =IF('Painel de Controle'!$G$16="S",CAPEX!O101*(1-'Painel de Controle'!$G$17),CAPEX!O101) -> 0
C38: Canal CP-3 Norte (8,37 m³/s) - (SH-1, 2, 3, 4, 5 e 6) | D38: 30 | E38: 16465092.91 | F38: =IF('Painel de Controle'!$G$16="S",CAPEX!F102*(1-'Painel de Controle'!$G$17),CAPEX!F102) -> 0 | G38: =IF('Painel de Controle'!$G$16="S",CAPEX!G102*(1-'Painel de Controle'!$G$17),CAPEX!G102) -> 0 | H38: =IF('Painel de Controle'!$G$16="S",CAPEX!H102*(1-'Painel de Controle'!$G$17),CAPEX!H102) -> 8232546.456 | I38: =IF('Painel de Controle'!$G$16="S",CAPEX!I102*(1-'Painel de Controle'!$G$17),CAPEX!I102) -> 8232546.456 | J38: =IF('Painel de Controle'!$G$16="S",CAPEX!J102*(1-'Painel de Controle'!$G$17),CAPEX!J102) -> 0 | K38: =IF('Painel de Controle'!$G$16="S",CAPEX!K102*(1-'Painel de Controle'!$G$17),CAPEX!K102) -> 0 | L38: =IF('Painel de Controle'!$G$16="S",CAPEX!L102*(1-'Painel de Controle'!$G$17),CAPEX!L102) -> 0 | M38: =IF('Painel de Controle'!$G$16="S",CAPEX!M102*(1-'Painel de Controle'!$G$17),CAPEX!M102) -> 0 | N38: =IF('Painel de Controle'!$G$16="S",CAPEX!N102*(1-'Painel de Controle'!$G$17),CAPEX!N102) -> 0 | O38: =IF('Painel de Controle'!$G$16="S",CAPEX!O102*(1-'Painel de Controle'!$G$17),CAPEX!O102) -> 0
